Workbook

Sheet Start
A1: =" "&"NAHVERKEHRS-BILDARCHIV des Verbandes Deutscher Verkehrsamateure e.V." -> NAHVERKEHRS-BILDARCHIV des Verbandes Deutscher Verkehrsamateure e.V.
C2: Bilderverzeichnis Straßenbahnen* Deutschland
D6: =SUM(ABC!$C$4:$C$19,ABC!$I$4:$I$19) -> 5164 | F6: =SUM(D!$C$4:$C$19,D!$I$4:$I$19) -> 4241 | H6: =SUM(E!$C$4:$C$19,E!$I$4:$I$19) -> 1543
D7: =SUM(ABC!$F$4:$F$19,ABC!$L$4:$L$19) -> 0 | F7: =SUM(D!$F$4:$F$19,D!$L$4:$L$19) -> 4 | H7: =SUM(E!$F$4:$F$19,E!$L$4:$L$19) -> 4
D10: =SUM(F!$C$4:$C$19,F!$I$4:$I$19) -> 2636 | F10: =SUM(GHI!$C$4:$C$19,GHI!$I$4:$I$19) -> 3839 | H10: =SUM(JKL!$C$4:$C$19,JKL!$I$4:$I$19) -> 3998
D11: =SUM(F!$F$4:$F$19,F!$L$4:$L$19) -> 4 | F11: =SUM(GHI!$F$4:$F$19,GHI!$L$4:$L$19) -> 12 | H11: =SUM(JKL!$F$4:$F$19,JKL!$L$4:$L$19) -> 5
D13: =SUM(M!$C$4:$C$19,M!$I$4:$I$19) -> 2978 | F13: =SUM(NOPR!$C$4:$C$19,NOPR!$I$4:$I$19) -> 3853 | H13: =SUM(STU!$C$4:$C$19,STU!$I$4:$I$19) -> 2230
D14: =SUM(M!$F$4:$F$19,M!$L$4:$L$19) -> 2 | F14: =SUM(NOPR!$F$4:$F$19,NOPR!$L$4:$L$19) -> 99 | H14: =SUM(STU!$F$4:$F$19,STU!$L$4:$L$19) -> 92
D17: =SUM(VWZ!$C$4:$C$19,VWZ!$I$4:$I$19) -> 3002 | E17: Letzte Meldung:
D18: =SUM(VWZ!$F$4:$F$19,VWZ!$L$4:$L$19) -> 136 | E18: =News!B2 -> In dieser Version haben wir für Straßenbahnmuseen eigene Kategorien eingerichtet, die nach und nach gefüllt werden. Außerdem kommen die restlichen 300 Bilder von Dieter Waltking und ein paar "Nachzügler" von Horst Völkel hinzu.
D21: =SUM(Museum!$C$4:$C$19,Museum!$I$4:$I$19) -> 234
D22: =SUM(Museum!$F$4:$F$19,Museum!$L$4:$L$19) -> 0
C24: Direkt zum Betrieb Nr. | G24: ="Gesamtzahl erfasster Fotos: "&Betriebeliste!AE2 -> Gesamtzahl erfasster Fotos: 33718
G25: ="davon mit Vorschaubild: "&Betriebeliste!AE4 -> davon mit Vorschaubild: 28879
G26: ="Quote Fotos mit Vorschau: "&Betriebeliste!AE6*100&" %" -> Quote Fotos mit Vorschau: 86 %
D27: =Merkliste!$F$2 -> 0 | G27: ="Neu/geändert: "&Betriebeliste!AE8 -> Neu/geändert: 358
G28: Programm-Version: 3.2.1
G29: =News!A2 -> 2023-03-30
C31: * … und ggf. weiterer städtischer ÖPNV (Obus, Bus, Zahnradbahn etc.)
A33: D25

Sheet Meldungen
A1: Meldungsübersicht
G4: Neue Bilder markieren?
C5: Letzte Meldung | J5: =MIN(J6:J10) -> 2023-03-30
C6: =News!A2 -> 2023-03-30 | E6: =News!B2 -> In dieser Version haben wir für Straßenbahnmuseen eigene Kategorien eingerichtet, die nach und nach gefüllt werden. Außerdem kommen die restlichen 300 Bilder von Dieter Waltking und ein paar "Nachzügler" von Horst Völkel hinzu. | H6: i Standardmäßig werden nur die mit der letzten Meldung geänderten bzw. ergänzten Bilder als + gekennzeichnet. | I6: TRUE | J6: =IFERROR(C6/I6,99999) -> 2023-03-30
I7: FALSE | J7: =IFERROR(C9/I7,99999) -> 2173-10-13
C8: Frühere Meldungen | I8: FALSE | J8: =IFERROR(C11/I8,99999) -> 2173-10-13
C9: =News!A3 -> 2023-02-27 | E9: =News!B3 -> Erneut gibt es rund 1.100 neue Fotos zu entdecken. Von Dieter Waltking sind dies westdeutsche Städte mit dem Anfangsbuchstaben "M", von Horst Völkel ostdeutsche Städte mit den Anfangsbuchstaben von "E" bis "Z". | H9: i Wenn Sie eine der früherer Meldung ankreuzen, werden alle Bilder, die zu diesem Datum oder später hinzugefügt/geändert wurden, als + gekennzeichnet. | I9: FALSE | J9: =IFERROR(C13/I9,99999) -> 2173-10-13
I10: FALSE | J10: =IFERROR(C15/I10,99999) -> 2173-10-13
C11: =News!A4 -> 2023-01-30 | E11: =News!B4 -> Das letzte Update (V 3.1) ist leider zu älteren Excel-Versionen (Excel 2019 und älter) nicht kompatibel. Auf der VDVA-Homepage steht Version 3.1.1 zum Download bereit, die diesen Fehler behebt. Außerdem gibt es 1100 neue Fotos von H. Völkel und D. Waltking.
C13: =News!A5 -> 2022-12-19 | E13: =News!B5 -> Für die Weihnachtstage haben wir ein dickes Paket neuer Bilder bereitgestellt: Rund 1.100 Fotos von Horst Völkel (Schwerpunkt: Städte "N" bis "W") und ca. 550 Aufnahmen von Dieter Waltking von Aachen bis Düsseldorf sind neu.
C15: =News!A6 -> 2022-11-17 | E15: =News!B6 -> Rund 1100 weitere Bilder von Horst Völkel (Städte mit den Anfangsbuchstaben "K" bis "M") wurden ergänzt. Ferner gibt es neue Fotos von Frits van der Gragt aus Stuttgart zu entdecken.

Sheet Neues
A1: Was ist neu in Version 3.2?
C4: Mit dieser neuen Version sind folgende Änderungen verbunden (Änderungen gegenüber Version 3.1 in roter Schrift):
C5: 1. Um die Übersichtlichkeit zu verbessern, haben wir die Bilder von Eisenbahnen (im wesentlichen Klein- und Privatbahnen, aber auch Bergbahnen etc.) in eine gesonderte Datenbank ausgelagert. Sie können diese über die Homepage des VDVA downloaden.
C6: 2. Unsere Datenbank wächst kontinuierlich und für diverse Verkehrsbetriebe sind schon mehrere Hundert Bilder abgelegt. Für fast alle Verkehrsbetriebe mit mehr als 50 Fotos besteht daher jetzt die Möglichkeit, die Einträge nach Fahrzeugtypen und/oder Aufnahmeanlässen zu filtern.
C7: Sie erkennen diese Möglichkeit am Symbol L in der alphabetischen Betriebeliste. Beim Aufruf eines Betriebs, für den diese Möglichkeit besteht, wird die Filtermaske zudem automatisch angezeigt.
C8: 3. Bilder, die bei der letzten Aktualisierung neu hinzugekommen oder geändert worden sind, werden in der Ergebnisliste nun mit dem Symbol + markiert. Wenn es für einen Betrieb solche Bilder gibt, findet sich dieses Symbol auch in der alphabetischen Betriebeliste neben dem Namen der Stadt.
C9: 4. Wie bisher, wird auf der Startseite die jeweils neueste Meldung angezeigt. Sie können sich über einen Button nun aber auch die 4 vorherigen Meldungen anzeigen lassen. Auf der entsprechenden Seite können Sie zudem ankreuzen, dass auch die hierbei hinzugefügten/geänderten Bilder als "neu" markiert werden.
C10: 5. Die Hintergrundaktualisierung der Datenbank erfolgt jetzt nicht mehr bei jedem Programmstart, sondern nur noch bei Bedarf, d.h., wenn sich Änderungen im Datenbestand ergeben haben.
C11: 6. Um die Performance auf auch älteren Rechnern zu gewährleisten, haben wir die weiter gewachsenen Datenbestände von Städten mit mehr als 800 Fotos auf mehrere Unterkategorien (Fahrzeuggenerationen) aufgeteilt. Jedes Bild ist nur in einer Unterkategorie enthalten; bei mehreren Fahrzeugen ist das Hauptmotiv für die Einteilung maßgeblich.
C12: 7. Es wurden einige Verkehrsbetriebe zwischen den Datenbanken "Deutschland" und "Eisenbahnen" sachgerecht verschoben.
C13: 8. Für Straßenbahnmuseen/Museumsstraßenbahnen wurden eigene Betriebsnummern eingeführt. Auf den Karten sind diese an der blauen Schirft zu erkennen. Nicht für alle Museen haben wir schon Bilder, wir haben sie aber schon mal als "Platzhalter" aufgenommen.

Sheet Anleitung
A1: Hinweise zur Benutzung
C4: Für jeden Verkehrsbetrieb gibt es eine oder mehrere Tabellen. Es gibt drei Möglichkeiten, zu den Tabellen zu gelangen:
C5: 1. Über die Karten: Auf der Startseite passendes Kartenblatt anklicken, dann auf der jeweiligen Karte den gewünschten Betrieb. Über die Pfeilbuttons könne Sie zu angrenzenden Kartenblättern wechsen.
C6: 2. Über die alphabetischen Listen: Auf der Startseite den Anfangsbuchstaben auswählen, dann den Betrieb aus der Auflistung anklicken (Die Zahl in Klammern auf dem Button ist übrigens die Betrieb-Nummer. Die Zahlen hinter dem Button zeigen die Anzahl der erfassten Fotos und die Quote von Vorschaubildern an).
C7: 3. Über die Betriebsnummer: Wenn die Nummer des Verkehrsbetriebs bekannt ist, diese einfach auf der Startseite unten ins weiße Feld eingeben und dann den Button "Los!" anklicken.
C8: WICHTIG: Die Datenbank funktioniert nur, wenn der Rechner mit dem Internet verbunden ist und die Makros aktiviert sind. Dazu ggf. oben in der gelb unterlegten Zeile "Inhalt aktivieren" auswählen. (Die Makros dienen nur dem genannten Zweck. Im Zweifel oder wer einfach neugierig ist: Mit ALT-F11 kann man sich alle Makros ansehen.)
C10: Auf der Bildtabelle können Sie durch Betätigen der entsprechenden Buttons wahlweise zur Startseite, zur alphabetischen Betriebeliste oder zur Karte gehen, um einen anderen Betrieb auszuwählen. Mit den Pfeiltasten oben links können Sie zum Anfang bzw. zum Ende der Bilderliste springen. Bei den meisten Fotos steht auch ein Vorschaubild zur Verfügung. Sofern es für den ausgewählten Verkehrsbetrieb Vorschaubilder gibt, sehen Sie im rechten Teil der Kopfzeilen deren Anzahl (im Beispiel oben 113) und Sie können dann hierfür auch die Galerieansicht aufrufen. Bei den betreffenden Fotos kann außerdem in der Tabelle das jeweilige Vorschaubild aufgerufen werden (Hierzu auf "Vorschau" klicken).
C11: Die einzelnen Tabellen können durch Anklicken der Symbole in den Kopfzeilen beliebig gefiltert und/oder sortiert werden. Da sich beim Umsortieren leider die Zeilenhöhen nicht automatisch anpassen, bitte nach jedem Umsortieren den Button "Zeilenhöhe opt." betätigen. Nur so ist eine vollständige Darstellung aller Informationen gewährleistet. Die Anzahl der gefilterten Bilder sehen Sie jeweils unterhalb der Gesamtzahl. Mit dem Button "Alle Filter löschen" können alle gesetzten Filter aufgehoben werden. Dies geschieht auch automatisch, wenn Sie einen anderen Betrieb auswählen. Es steht außerdem eine Merkliste zur Verfügung, in der Sie sich einzelne Bilder durch Anklicken von "Merken" eintragen können. Bilder, die auf der Merkliste stehen, erkennen Sie am roten Häkchen . Die Gesamtzahl der Bilder auf der Merkliste steht oben im hellroten Feld. Dort befindet sich auch ein Button, über den Sie Ihre Merkliste aufrufen können.
C12: Entsprechende Buttons für die Eintragung eines Fotos in die Merkliste stehen auch in der Galerieansicht und in der Vorschau zur Verfügung. In der Merkliste selbst können Sie bei Bedarf auch wieder einzelne Bilder oder die Gesamtliste löschen. Ferner kann die Merkliste ausgedruckt oder als pdf-Datei exportiert werden (z.B., um sie als Anlage einer Bildbestellung (s.u.) beizufügen.
C13: Die Bild-Datenbank wird beim Öffnen der Datei bei Bedarf aktualisiert (Bitte beim ersten Benutzen der entsprechenden Verknüpfung zustimmen!). Dadurch werden zusätzliche Bilddaten und Vorschaubilder sofort und automatisch integriert. Im unteren Bereich der Startseite sehen Sie, auf welchem Stand die Datenbank ist und welche Änderungen gegenüber der letzten Version vogenommen wurden. Es loht sich also, gelegentlich die Datei zu öffnen und nach Neuerungen zu sehen.
C14: Wenn Sie Fragen oder Anregungen haben, stehen wir Ihnen unter der untenstehende Kontaktmöglichkeiten gerne zur Verfügung. An die genannte Email- Adresse können Sie auch festgestellte Fehler in der Datenbank meldet. Dies hilft uns, die Qualität weiter zu verbessern.
C16: Viele Verkehrsfreunde, die uns ihre Sammlung zur Verfügung gestellt haben, haben nicht nur selber fotografiert, sondern auch Bilder mit anderen Verkehrsfreunden getauscht. Vielfach ist hierbei der eigentliche Fotograf nicht mehr zu ermitteln. Soweit bekannt, sind solche Bilder im Feld "Fotograf" mit "Slg. ..." (für "Sammlung") gekennzeichnet. Sollte jemand sein eigenes Bild erkennen und mit der Veröffentlichung nicht einverstanden sein, wird er gebeten, sich bei der unten angegebenen Adresse zu melden; wir entfernen dann das betreffende Bild umgehend.
C17: Sie haben etwas Interessantes gefunden? Gerne können über die unten angegebenen Kontaktmöglichkeiten Abzüge der Fotos bestellen. Preise, Nutzungsbestimmungen und weitere Einzelheiten finden Sie unter folgendem Link: https://vdva.de/vdva-bildersammlung/
C18: Kontakt: E-Mail: sammlung@vdva.de Telefon: 0221 38 83 04 (Axel Reuther)

Sheet Filterung
A1: =INDEX(Betriebeliste!A1:D331,MATCH(O1,Betriebeliste!A1:A331,0),2) -> Essen, Niederflurwagen (21.6) | O1: =Ergebnisse!N1 -> 21.6
A2: Kriterium 1: Fahrzeugtyp | J2: Kriterium 2: Anlass | T2: TRUE | U2: =T3*U3*T15*U15*T21*U21*T28*U28 -> 1 | V2: TRUE
C3: Straßenbahn-Triebwagen | D3: =Ergebnisse!T2 -> 7 | G3: Straßenbahn-Beiwagen | H3: =Ergebnisse!U2 -> 7 | T3: TRUE | U3: TRUE
C4: =INDEX(Betriebeliste!$A$1:$Y$331,MATCH($O$1,Betriebeliste!$A$1:$A$331,0),ROW()+2) -> 0 | D4: =Ergebnisse!AA2 -> 7 | G4: =INDEX(Betriebeliste!$A$1:$Y$331,MATCH($O$1,Betriebeliste!$A$1:$A$331,0),ROW()+11) -> 0 | H4: =Ergebnisse!AK$2 -> 0 | L4: Regelbetrieb | M4: =COUNTIF(Ergebnisse!R6:R5000, ROW()-3) -> 7 | T4: TRUE | U4: TRUE | V4: TRUE
C5: =INDEX(Betriebeliste!$A$1:$Y$331,MATCH($O$1,Betriebeliste!$A$1:$A$331,0),ROW()+2) -> 0 | D5: =Ergebnisse!AB2 -> 0 | G5: =INDEX(Betriebeliste!$A$1:$Y$331,MATCH($O$1,Betriebeliste!$A$1:$A$331,0),ROW()+11) -> 0 | H5: =Ergebnisse!AL$2 -> 0 | L5: VDVA-Tagung | M5: =COUNTIF(Ergebnisse!R6:R5000, ROW()-3) -> 0 | T5: TRUE | U5: TRUE | V5: TRUE
C6: =INDEX(Betriebeliste!$A$1:$Y$331,MATCH($O$1,Betriebeliste!$A$1:$A$331,0),ROW()+2) -> 0 | D6: =Ergebnisse!AC2 -> 0 | G6: =INDEX(Betriebeliste!$A$1:$Y$331,MATCH($O$1,Betriebeliste!$A$1:$A$331,0),ROW()+11) -> 0 | H6: =Ergebnisse!AM$2 -> 0 | L6: Sonderfahrt/Museum/Ausstellung | M6: =COUNTIF(Ergebnisse!R6:R5000, ROW()-3) -> 0 | T6: TRUE | U6: TRUE | V6: TRUE
C7: =INDEX(Betriebeliste!$A$1:$Y$331,MATCH($O$1,Betriebeliste!$A$1:$A$331,0),ROW()+2) -> 0 | D7: =Ergebnisse!AD2 -> 0 | G7: =INDEX(Betriebeliste!$A$1:$Y$331,MATCH($O$1,Betriebeliste!$A$1:$A$331,0),ROW()+11) -> 0 | H7: =Ergebnisse!AN$2 -> 0 | L7: Eröffnung | M7: =COUNTIF(Ergebnisse!R6:R5000, ROW()-3) -> 0 | T7: TRUE | U7: TRUE | V7: TRUE
C8: =INDEX(Betriebeliste!$A$1:$Y$331,MATCH($O$1,Betriebeliste!$A$1:$A$331,0),ROW()+2) -> 0 | D8: =Ergebnisse!AE2 -> 0 | G8: =INDEX(Betriebeliste!$A$1:$Y$331,MATCH($O$1,Betriebeliste!$A$1:$A$331,0),ROW()+11) -> 0 | H8: =Ergebnisse!AO$2 -> 7 | L8: Stillegung | M8: =COUNTIF(Ergebnisse!R6:R5000, ROW()-3) -> 0 | T8: TRUE | U8: TRUE | V8: TRUE
C9: =INDEX(Betriebeliste!$A$1:$Y$331,MATCH($O$1,Betriebeliste!$A$1:$A$331,0),ROW()+2) -> 0 | D9: =Ergebnisse!AF2 -> 0 | G9: =INDEX(Betriebeliste!$A$1:$Y$331,MATCH($O$1,Betriebeliste!$A$1:$A$331,0),ROW()+11) -> 0 | H9: =Ergebnisse!AP$2 -> 0 | L9: Jubiläum | M9: =COUNTIF(Ergebnisse!R6:R5000, ROW()-3) -> 0 | T9: TRUE | U9: TRUE | V9: TRUE
C10: =INDEX(Betriebeliste!$A$1:$Y$331,MATCH($O$1,Betriebeliste!$A$1:$A$331,0),ROW()+2) -> 0 | D10: =Ergebnisse!AG2 -> 0 | G10: =INDEX(Betriebeliste!$A$1:$Y$331,MATCH($O$1,Betriebeliste!$A$1:$A$331,0),ROW()+11) -> 0 | H10: =Ergebnisse!AQ$2 -> 0 | L10: Sonstige Feierlichkeit | M10: =COUNTIF(Ergebnisse!R6:R5000, ROW()-3) -> 0 | T10: TRUE | U10: TRUE | V10: TRUE
C11: =INDEX(Betriebeliste!$A$1:$Y$331,MATCH($O$1,Betriebeliste!$A$1:$A$331,0),ROW()+2) -> 0 | D11: =Ergebnisse!AH2 -> 0 | G11: =INDEX(Betriebeliste!$A$1:$Y$331,MATCH($O$1,Betriebeliste!$A$1:$A$331,0),ROW()+11) -> 0 | H11: =Ergebnisse!AR$2 -> 0 | L11: Bauarbeiten | M11: =COUNTIF(Ergebnisse!R6:R5000, ROW()-3) -> 0 | T11: TRUE | U11: TRUE | V11: TRUE
C12: =INDEX(Betriebeliste!$A$1:$Y$331,MATCH($O$1,Betriebeliste!$A$1:$A$331,0),ROW()+2) -> 0 | D12: =Ergebnisse!AI2 -> 0 | G12: =INDEX(Betriebeliste!$A$1:$Y$331,MATCH($O$1,Betriebeliste!$A$1:$A$331,0),ROW()+11) -> 0 | H12: =Ergebnisse!AS$2 -> 0 | L12: Unfall/Betriebsstörung | M12: =COUNTIF(Ergebnisse!R6:R5000, ROW()-3) -> 0 | T12: TRUE | U12: TRUE | V12: TRUE
C13: Nicht zugeordnet/Sonstiges | D13: =Ergebnisse!AJ2 -> 0 | G13: Nicht zugeordnet/Sonstiges | H13: =Ergebnisse!AT2 -> 0 | L13: Nicht zugeordnet/Sonstiges | M13: =COUNTIF(Ergebnisse!R6:R5000, 0) -> 0 | T13: TRUE | U13: TRUE | V13: TRUE
T14: =T4*T5*T6*T7*T8*T9*T10*T11*T12*T13 -> 1 | U14: =U4*U5*U6*U7*U8*U9*U10*U11*U12*U13 -> 1 | V14: 1
C15: Straßenbahn Arbeitswagen | D15: =Ergebnisse!V2 -> 0 | G15: Sonderkategorien | H15: =Ergebnisse!Z2 -> 0 | T15: TRUE | U15: TRUE
C16: Arbeitstriebwagen | D16: =Ergebnisse!AU$2 -> 0 | G16: =INDEX(Betriebeliste!$A$1:$Y$331,MATCH($O$1,Betriebeliste!$A$1:$A$331,0),ROW()+8) -> 0 | H16: =Ergebnisse!BI2 -> 0 | L16: Gesamtzahl Bilder: | M16: =INDEX(Betriebeliste!A1:AA299,MATCH(O1,Betriebeliste!A1:A331,0),27) -> 7 | T16: TRUE | U16: TRUE
C17: Arbeitsbeiwagen | D17: =Ergebnisse!AV$2 -> 0 | G17: =INDEX(Betriebeliste!$A$1:$Y$331,MATCH($O$1,Betriebeliste!$A$1:$A$331,0),ROW()+8) -> 0 | H17: =Ergebnisse!BJ2 -> 0 | T17: TRUE | U17: TRUE
C18: Straßengängige Arbeitsfahrzeuge | D18: =Ergebnisse!AW2 -> 0 | G18: Nicht zugeordnet/Sonstiges | H18: =Ergebnisse!BK2 -> 0 | T18: TRUE | U18: TRUE
C19: Nicht zugeordnet/Sonstiges | D19: =Ergebnisse!AX2 -> 0 | T19: TRUE
T20: =T16*T17*T18*T19 -> 1 | U20: =U16*U17*U18 -> 1
C21: Obus | D21: =Ergebnisse!X2 -> 0 | G21: Bus | H21: =Ergebnisse!Y2 -> 0 | T21: TRUE | U21: TRUE
C22: Solowagen | D22: =Ergebnisse!AY2 -> 0 | G22: Solowagen | H22: =Ergebnisse!BD2 -> 0 | L22: Anzahl ausgewählter Bilder: | M22: =Ergebnisse!Q2 -> 7 | T22: TRUE | U22: TRUE
C23: Gelenkwagen | D23: =Ergebnisse!AZ2 -> 0 | G23: Gelenkwagen | H23: =Ergebnisse!BE2 -> 0 | T23: TRUE | U23: TRUE
C24: Anderthalb-/Doppeldecker | D24: =Ergebnisse!BA2 -> 0 | G24: Anderthalb-/Doppeldecker | H24: =Ergebnisse!BF2 -> 0 | T24: TRUE | U24: TRUE
C25: Anhänger | D25: =Ergebnisse!BB2 -> 0 | G25: Anhänger | H25: =Ergebnisse!BG2 -> 0 | T25: TRUE | U25: TRUE
C26: Nicht zugeordnet/Sonstiges | D26: =Ergebnisse!BC2 -> 0 | G26: Nicht zugeordnet/Sonstiges | H26: =Ergebnisse!BH2 -> 0 | T26: TRUE | U26: TRUE
T27: =T22*T23*T24*T25*T26 -> 1 | U27: =U22*U23*U24*U25*U26 -> 1
C28: Straßenbahn Sonstiges | D28: =Ergebnisse!W2 -> 0 | G28: Nicht zugeordnet/Sonstiges | H28: =Ergebnisse!S2 -> 0 | T28: TRUE | U28: TRUE

Sheet Ergebnisse
A1: =INDEX(Betriebeliste!A1:D331,MATCH(N1,Betriebeliste!A1:A331,0),2) -> Essen, Niederflurwagen (21.6) | N1: =IF(IFERROR(FIND(",",BM1),0)>0,LEFT(BM1,FIND(",",BM1)-1)&"."&RIGHT(BM1,LEN(BM1)-FIND(",",BM1)),LEFT(BM1,LEN(BM1))) -> 21.6 | O1: SelAnlass | P1: SelTyp | Q1: SelGesamt | R1: Anlass | S1: 0 | T1: 1 | U1: 2 | V1: 3 | W1: 4 | X1: 5 | Y1: 6 | Z1: 7 | AA1: 11 | AB1: 12 | AC1: 13 | AD1: 14 | AE1: 15 | AF1: 16 | AG1: 17 | AH1: 18 | AI1: 19 | AJ1: 10 | AK1: 21 | AL1: 22 | AM1: 23 | AN1: 24 | AO1: 25 | AP1: 26 | AQ1: 27 | AR1: 28 | AS1: 29 | AT1: 20 | AU1: 31 | AV1: 32 | AW1: 33 | AX1: 30 | AY1: 51 | AZ1: 52 | BA1: 53 | BB1: 54 | BC1: 50 | BD1: 61 | BE1: 62 | BF1: 63 | BG1: 64 | BH1: 60 | BI1: 71 | BJ1: 72 | BK1: 70 | BL1: 1 | BM1: 21,6 | BN1: 2 | BO1: 3 | BP1: 4 | BQ1: 5 | BR1: 6 | BS1: 7 | BT1: 8 | BU1: 9 | BV1: 0
A2: =INDEX(Betriebeliste!A1:AB299,MATCH(N1,Betriebeliste!A1:A331,0),28) -> 27724 | F2: =INDEX(Betriebeliste!A1:AA331,MATCH(N1,Betriebeliste!A1:A331,0),27) -> 7 | G2: < Gesamt Bild-Anzahl | K2: Bilder mit> Vorschau> | L2: =COUNTA(Ergebnistabelle[Signatur]) -> 7 | M2: =Merkliste!F2 -> 0 | O2: =COUNTIF(O6:O5000, TRUE) -> 7 | P2: =COUNTIF(P6:P5000, TRUE) -> 7 | Q2: =SUM(Q6:Q5000) -> 7 | R2: =INDEX(Betriebeliste!A1:E331,MATCH(N1,Betriebeliste!A1:A331,0),5) -> 0 | S2: =COUNTIF(S6:S5000, TRUE) -> 0 | T2: =COUNTIF(T6:T5000, TRUE) -> 7 | U2: 7 | V2: 0 | W2: 0 | X2: 0 | Y2: 0 | Z2: 0 | AA2: 7 | AB2: 0 | AC2: 0 | AD2: 0 | AE2: 0 | AF2: 0 | AG2: 0 | AH2: 0 | AI2: 0 | AJ2: 0 | AK2: 0 | AL2: 0 | AM2: 0 | AN2: 0 | AO2: 7 | AP2: 0 | AQ2: 0 | AR2: 0 | AS2: 0 | AT2: 0 | AU2: 0 | AV2: 0 | AW2: 0 | AX2: 0 | AY2: 0 | AZ2: 0 | BA2: 0 | BB2: 0 | BC2: 0 | BD2: 0 | BE2: 0 | BF2: 0 | BG2: 0 | BH2: 0 | BI2: 0 | BJ2: 0 | BK2: 0
C3: =INDEX(Betriebeliste!A1:D331,MATCH(N1,Betriebeliste!A1:A331,0),4) -> E | D3: =INDEX(Betriebeliste!A1:D331,MATCH(N1,Betriebeliste!A1:A331,0),3) -> Ruhrgebiet | F3: =SUBTOTAL(103,Ergebnistabelle[Bild-ID]) -> 7 | G3: < Gefiltert | K3: Gefiltert> | L3: =SUBTOTAL(103,Ergebnistabelle[Signatur]) -> 7 | M3: ^ Anz. Merkposten | R3: ^Filter mögl? | S3: =IF(Filterung!U28=TRUE,TRUE,"") -> TRUE | T3: =IF(Filterung!T3=TRUE,TRUE,"") -> TRUE | U3: =IF(Filterung!U3=TRUE,TRUE,"") -> TRUE | V3: =IF(Filterung!T15=TRUE,TRUE,"") -> TRUE | W3: =IF(Filterung!T28=TRUE,TRUE,"") -> TRUE | X3: =IF(Filterung!T21=TRUE,TRUE,"") -> TRUE | Y3: =IF(Filterung!U21=TRUE,TRUE,"") -> TRUE | Z3: =IF(Filterung!U15=TRUE,TRUE,"") -> TRUE | AA3: =IF(Filterung!T4=TRUE,TRUE,"") -> TRUE | AB3: =IF(Filterung!T5=TRUE,TRUE,"") -> TRUE | AC3: =IF(Filterung!T6=TRUE,TRUE,"") -> TRUE | AD3: =IF(Filterung!T7=TRUE,TRUE,"") -> TRUE | AE3: =IF(Filterung!T8=TRUE,TRUE,"") -> TRUE | AF3: =IF(Filterung!T9=TRUE,TRUE,"") -> TRUE | AG3: =IF(Filterung!T10=TRUE,TRUE,"") -> TRUE | AH3: =IF(Filterung!T11=TRUE,TRUE,"") -> TRUE | AI3: =IF(Filterung!T12=TRUE,TRUE,"") -> TRUE | AJ3: =IF(Filterung!T13=TRUE,TRUE,"") -> TRUE | AK3: =IF(Filterung!U4=TRUE,TRUE,"") -> TRUE | AL3: =IF(Filterung!U5=TRUE,TRUE,"") -> TRUE | AM3: =IF(Filterung!U6=TRUE,TRUE,"") -> TRUE | AN3: =IF(Filterung!U7=TRUE,TRUE,"") -> TRUE | AO3: =IF(Filterung!U8=TRUE,TRUE,"") -> TRUE | AP3: =IF(Filterung!U9=TRUE,TRUE,"") -> TRUE | AQ3: =IF(Filterung!U10=TRUE,TRUE,"") -> TRUE | AR3: =IF(Filterung!U11=TRUE,TRUE,"") -> TRUE | AS3: =IF(Filterung!U12=TRUE,TRUE,"") -> TRUE | AT3: =IF(Filterung!U13=TRUE,TRUE,"") -> TRUE | AU3: =IF(Filterung!T16=TRUE,TRUE,"") -> TRUE | AV3: =IF(Filterung!T17=TRUE,TRUE,"") -> TRUE | AW3: =IF(Filterung!T18=TRUE,TRUE,"") -> TRUE | AX3: =IF(Filterung!T19=TRUE,TRUE,"") -> TRUE | AY3: =IF(Filterung!T22=TRUE,TRUE,"") -> TRUE | AZ3: =IF(Filterung!T23=TRUE,TRUE,"") -> TRUE | BA3: =IF(Filterung!T24=TRUE,TRUE,"") -> TRUE | BB3: =IF(Filterung!T25=TRUE,TRUE,"") -> TRUE | BC3: =IF(Filterung!T26=TRUE,TRUE,"") -> TRUE | BD3: =IF(Filterung!U22=TRUE,TRUE,"") -> TRUE | BE3: =IF(Filterung!U23=TRUE,TRUE,"") -> TRUE | BF3: =IF(Filterung!U24=TRUE,TRUE,"") -> TRUE | BG3: =IF(Filterung!U25=TRUE,TRUE,"") -> TRUE | BH3: =IF(Filterung!U26=TRUE,TRUE,"") -> TRUE | BI3: =IF(Filterung!U16=TRUE,TRUE,"") -> TRUE | BJ3: =IF(Filterung!U17=TRUE,TRUE,"") -> TRUE | BK3: =IF(Filterung!U18=TRUE,TRUE,"") -> TRUE | BL3: =IF(Filterung!$V4=TRUE,BL1,"") -> 1 | BN3: =IF(Filterung!$V5=TRUE,BN1,"") -> 2 | BO3: =IF(Filterung!$V6=TRUE,BO1,"") -> 3 | BP3: =IF(Filterung!$V7=TRUE,BP1,"") -> 4 | BQ3: =IF(Filterung!$V8=TRUE,BQ1,"") -> 5 | BR3: =IF(Filterung!$V9=TRUE,BR1,"") -> 6 | BS3: =IF(Filterung!$V10=TRUE,BS1,"") -> 7 | BT3: =IF(Filterung!$V11=TRUE,BT1,"") -> 8 | BU3: =IF(Filterung!$V12=TRUE,BU1,"") -> 9 | BV3: =IF(Filterung!$V13=TRUE,BV1,"") -> 0
A4: Bild-ID | B4: Signatur | C4: Aufnahmeort | D4: Wagen | F4: Linie | G4: Bemerkung | H4: Datum | K4: Fotograf | L4: Vorschau | M4: Merken | BM4: +
A5: Bild-ID | B5: Signatur | C5: Aufnahmeort | D5: Wg-Typ | E5: Wg-Nr. | F5: Linie | G5: Bemerkung | H5: T | I5: M | J5: J | K5: Fotograf | L5: Vorschau | M5: ML | N5: Merken | O5: Spalte1 | P5: Spalte2 | Q5: Spalte3 | R5: Spalte4 | S5: Spalte5 | T5: Spalte6 | U5: Spalte7 | V5: Spalte8 | W5: Spalte9 | X5: Spalte10 | Y5: Spalte11 | Z5: Spalte12 | AA5: Spalte13 | AB5: Spalte14 | AC5: Spalte15 | AD5: Spalte16 | AE5: Spalte17 | AF5: Spalte18 | AG5: Spalte19 | AH5: Spalte20 | AI5: Spalte21 | AJ5: Spalte22 | AK5: Spalte23 | AL5: Spalte24 | AM5: Spalte25 | AN5: Spalte26 | AO5: Spalte27 | AP5: Spalte28 | AQ5: Spalte29 | AR5: Spalte30 | AS5: Spalte31 | AT5: Spalte32 | AU5: Spalte33 | AV5: Spalte34 | AW5: Spalte35 | AX5: Spalte36 | AY5: Spalte37 | AZ5: Spalte38 | BA5: Spalte39 | BB5: Spalte40 | BC5: Spalte41 | BD5: Spalte42 | BE5: Spalte43 | BF5: Spalte44 | BG5: Spalte45 | BH5: Spalte46 | BI5: Spalte47 | BJ5: Spalte48 | BK5: Spalte49 | BL5: Spalte50 | BM5: 51
A6: 21.6-811 | B6: HV-DW4-11-40 | C6: (H) Volkshochschule | D6: 8xNflTw | E6: 1512 | F6: 103 | H6: 20 | I6: 7 | J6: 2001 | K6: Horst Völkel | L6: =IF(Ergebnistabelle[[#This Row],[Signatur]]<>"","Vorschau","") -> Vorschau | M6: =IF(IFERROR(MATCH(Ergebnistabelle[[#This Row],[Bild-ID]],Merkliste!B:B,0),"")<>"",CHAR(252),"") ->  | N6: =IF(Ergebnistabelle[[#This Row],[Bild-ID]]<>"","Merken","") -> Merken | O6: =IF(IFERROR(MATCH(R6,$BL$3:$UP$3,0),FALSE)<>FALSE,TRUE) -> TRUE | P6: =OR(S6=S$3, W6=W$3, AA6=AA$3, AB6=AB$3, AC6=AC$3, AD6=AD$3, AE6=AE$3, AF6=AF$3, AG6=AG$3, AH6=AH$3, AI6=AI$3, AJ6=AJ$3, AK6=AK$3, AL6=AL$3, AM6=AM$3, AN6=AN$3, AO6=AO$3, AP6=AP$3, AQ6=AQ$3, AR6=AR$3, AS6=AS$3, AT6=AT$3, AU6=AU$3, AV6=AV$3, AW6=AW$3, AX6=AX$3, AY6=AY$3, AZ6=AZ$3, BA6=BA$3, BB6=BB$3, BC6=BC$3, BD6=BD$3, BE6=BE$3, BF6=BF$3, BG6=BG$3, BH6=BH$3, BI6=BI$3, BJ6=BJ$3, BK6=BK$3) -> TRUE | Q6: =Ergebnistabelle[[#This Row],[Spalte1]]*Ergebnistabelle[[#This Row],[Spalte2]] -> 1 | R6: 1 | S6: FALSE | T6: TRUE | U6: TRUE | V6: FALSE | W6: FALSE | X6: FALSE | Y6: FALSE | Z6: FALSE | AA6: TRUE | AB6: FALSE | AC6: FALSE | AD6: FALSE | AE6: FALSE | AF6: FALSE | AG6: FALSE | AH6: FALSE | AI6: FALSE | AJ6: FALSE | AK6: FALSE | AL6: FALSE | AM6: FALSE | AN6: FALSE | AO6: TRUE | AP6: FALSE | AQ6: FALSE | AR6: FALSE | AS6: FALSE | AT6: FALSE | AU6: FALSE | AV6: FALSE | AW6: FALSE | AX6: FALSE | AY6: FALSE | AZ6: FALSE | BA6: FALSE | BB6: FALSE | BC6: FALSE | BD6: FALSE | BE6: FALSE | BF6: FALSE | BG6: FALSE | BH6: FALSE | BI6: FALSE | BJ6: FALSE | BK6: FALSE | BL6: 2022-10-24 | BM6: =IF(Ergebnistabelle[[#This Row],[Spalte50]]>=Meldungen!$J$5,"+","") -> 
A7: 21.6-812 | B7: HV-DW4-11-44 | C7: vor (H) Volkshochschule | D7: 8xNflTw | E7: 1520 | F7: 103 | H7: 20 | I7: 7 | J7: 2001 | K7: Horst Völkel | L7: =IF(Ergebnistabelle[[#This Row],[Signatur]]<>"","Vorschau","") -> Vorschau | M7: =IF(IFERROR(MATCH(Ergebnistabelle[[#This Row],[Bild-ID]],Merkliste!B:B,0),"")<>"",CHAR(252),"") ->  | N7: =IF(Ergebnistabelle[[#This Row],[Bild-ID]]<>"","Merken","") -> Merken | O7: TRUE | P7: =OR(S7=S$3, W7=W$3, AA7=AA$3, AB7=AB$3, AC7=AC$3, AD7=AD$3, AE7=AE$3, AF7=AF$3, AG7=AG$3, AH7=AH$3, AI7=AI$3, AJ7=AJ$3, AK7=AK$3, AL7=AL$3, AM7=AM$3, AN7=AN$3, AO7=AO$3, AP7=AP$3, AQ7=AQ$3, AR7=AR$3, AS7=AS$3, AT7=AT$3, AU7=AU$3, AV7=AV$3, AW7=AW$3, AX7=AX$3, AY7=AY$3, AZ7=AZ$3, BA7=BA$3, BB7=BB$3, BC7=BC$3, BD7=BD$3, BE7=BE$3, BF7=BF$3, BG7=BG$3, BH7=BH$3, BI7=BI$3, BJ7=BJ$3, BK7=BK$3) -> TRUE | Q7: =Ergebnistabelle[[#This Row],[Spalte1]]*Ergebnistabelle[[#This Row],[Spalte2]] -> 1 | R7: 1 | S7: FALSE | T7: TRUE | U7: TRUE | V7: FALSE | W7: FALSE | X7: FALSE | Y7: FALSE | Z7: FALSE | AA7: TRUE | AB7: FALSE | AC7: FALSE | AD7: FALSE | AE7: FALSE | AF7: FALSE | AG7: FALSE | AH7: FALSE | AI7: FALSE | AJ7: FALSE | AK7: FALSE | AL7: FALSE | AM7: FALSE | AN7: FALSE | AO7: TRUE | AP7: FALSE | AQ7: FALSE | AR7: FALSE | AS7: FALSE | AT7: FALSE | AU7: FALSE | AV7: FALSE | AW7: FALSE | AX7: FALSE | AY7: FALSE | AZ7: FALSE | BA7: FALSE | BB7: FALSE | BC7: FALSE | BD7: FALSE | BE7: FALSE | BF7: FALSE | BG7: FALSE | BH7: FALSE | BI7: FALSE | BJ7: FALSE | BK7: FALSE | BL7: 2022-10-24 | BM7: =IF(Ergebnistabelle[[#This Row],[Spalte50]]>=Meldungen!$J$5,"+","") -> 
A8: 21.6-813 | B8: HV-DW4-11-45 | C8: Cottbus, Btf | D8: 8xNflTw 2xTw 4xGelTw | E8: 1528 24 109 | G8: Probeeinsatz in Cottbus | H8: 29 | I8: 6 | J8: 2001 | K8: Horst Völkel | L8: =IF(Ergebnistabelle[[#This Row],[Signatur]]<>"","Vorschau","") -> Vorschau | M8: =IF(IFERROR(MATCH(Ergebnistabelle[[#This Row],[Bild-ID]],Merkliste!B:B,0),"")<>"",CHAR(252),"") ->  | N8: =IF(Ergebnistabelle[[#This Row],[Bild-ID]]<>"","Merken","") -> Merken | O8: TRUE | P8: TRUE | Q8: =Ergebnistabelle[[#This Row],[Spalte1]]*Ergebnistabelle[[#This Row],[Spalte2]] -> 1 | R8: 1 | S8: FALSE | T8: TRUE | U8: TRUE | V8: FALSE | W8: FALSE | X8: FALSE | Y8: FALSE | Z8: FALSE | AA8: TRUE | AB8: FALSE | AC8: FALSE | AD8: FALSE | AE8: FALSE | AF8: FALSE | AG8: FALSE | AH8: FALSE | AI8: FALSE | AJ8: FALSE | AK8: FALSE | AL8: FALSE | AM8: FALSE | AN8: FALSE | AO8: TRUE | AP8: FALSE | AQ8: FALSE | AR8: FALSE | AS8: FALSE | AT8: FALSE | AU8: FALSE | AV8: FALSE | AW8: FALSE | AX8: FALSE | AY8: FALSE | AZ8: FALSE | BA8: FALSE | BB8: FALSE | BC8: FALSE | BD8: FALSE | BE8: FALSE | BF8: FALSE | BG8: FALSE | BH8: FALSE | BI8: FALSE | BJ8: FALSE | BK8: FALSE | BL8: 2022-10-24 | BM8: =IF(Ergebnistabelle[[#This Row],[Spalte50]]>=Meldungen!$J$5,"+","") -> 
A9: 21.6-943 | B9: HV-R-02-40 | C9: Cottbus, Stadtpromenade | D9: 6xNflTw | E9: 1528 | G9: Probeeinsatz in Cottbus | H9: 26 | I9: 7 | J9: 2001 | K9: Horst Völkel | L9: =IF(Ergebnistabelle[[#This Row],[Signatur]]<>"","Vorschau","") -> Vorschau | M9: =IF(IFERROR(MATCH(Ergebnistabelle[[#This Row],[Bild-ID]],Merkliste!B:B,0),"")<>"",CHAR(252),"") ->  | N9: =IF(Ergebnistabelle[[#This Row],[Bild-ID]]<>"","Merken","") -> Merken | O9: TRUE | P9: TRUE | Q9: =Ergebnistabelle[[#This Row],[Spalte1]]*Ergebnistabelle[[#This Row],[Spalte2]] -> 1 | R9: 1 | S9: FALSE | T9: TRUE | U9: TRUE | V9: FALSE | W9: FALSE | X9: FALSE | Y9: FALSE | Z9: FALSE | AA9: TRUE | AB9: FALSE | AC9: FALSE | AD9: FALSE | AE9: FALSE | AF9: FALSE | AG9: FALSE | AH9: FALSE | AI9: FALSE | AJ9: FALSE | AK9: FALSE | AL9: FALSE | AM9: FALSE | AN9: FALSE | AO9: TRUE | AP9: FALSE | AQ9: FALSE | AR9: FALSE | AS9: FALSE | AT9: FALSE | AU9: FALSE | AV9: FALSE | AW9: FALSE | AX9: FALSE | AY9: FALSE | AZ9: FALSE | BA9: FALSE | BB9: FALSE | BC9: FALSE | BD9: FALSE | BE9: FALSE | BF9: FALSE | BG9: FALSE | BH9: FALSE | BI9: FALSE | BJ9: FALSE | BK9: FALSE | BL9: 2023-03-30 | BM9: =IF(Ergebnistabelle[[#This Row],[Spalte50]]>=Meldungen!$J$5,"+","") -> +
A10: 21.6-944 | B10: HV-R-02-42 | C10: Cottbus, Stadtring/Thiemstr | D10: 6xNflTw | E10: 1528 | G10: Probeeinsatz in Cottbus | H10: 26 | I10: 7 | J10: 2001 | K10: Horst Völkel | L10: =IF(Ergebnistabelle[[#This Row],[Signatur]]<>"","Vorschau","") -> Vorschau | M10: =IF(IFERROR(MATCH(Ergebnistabelle[[#This Row],[Bild-ID]],Merkliste!B:B,0),"")<>"",CHAR(252),"") ->  | N10: =IF(Ergebnistabelle[[#This Row],[Bild-ID]]<>"","Merken","") -> Merken | O10: TRUE | P10: TRUE | Q10: =Ergebnistabelle[[#This Row],[Spalte1]]*Ergebnistabelle[[#This Row],[Spalte2]] -> 1 | R10: 1 | S10: FALSE | T10: TRUE | U10: TRUE | V10: FALSE | W10: FALSE | X10: FALSE | Y10: FALSE | Z10: FALSE | AA10: TRUE | AB10: FALSE | AC10: FALSE | AD10: FALSE | AE10: FALSE | AF10: FALSE | AG10: FALSE | AH10: FALSE | AI10: FALSE | AJ10: FALSE | AK10: FALSE | AL10: FALSE | AM10: FALSE | AN10: FALSE | AO10: TRUE | AP10: FALSE | AQ10: FALSE | AR10: FALSE | AS10: FALSE | AT10: FALSE | AU10: FALSE | AV10: FALSE | AW10: FALSE | AX10: FALSE | AY10: FALSE | AZ10: FALSE | BA10: FALSE | BB10: FALSE | BC10: FALSE | BD10: FALSE | BE10: FALSE | BF10: FALSE | BG10: FALSE | BH10: FALSE | BI10: FALSE | BJ10: FALSE | BK10: FALSE | BL10: 2023-03-30 | BM10: =IF(Ergebnistabelle[[#This Row],[Spalte50]]>=Meldungen!$J$5,"+","") -> +
A11: 21.6-965 | B11: HV-R-02-44 | C11: Cottbus, Btf Schmellwitz | D11: 6xNflTw 6xGelTw | E11: 1528 109 | G11: Probeeinsatz in Cottbus Tw 109 der Cottbuser Straßenbahn | H11: 30 | I11: 5 | J11: 2001 | K11: Horst Völkel | L11: =IF(Ergebnistabelle[[#This Row],[Signatur]]<>"","Vorschau","") -> Vorschau | M11: =IF(IFERROR(MATCH(Ergebnistabelle[[#This Row],[Bild-ID]],Merkliste!B:B,0),"")<>"",CHAR(252),"") ->  | N11: =IF(Ergebnistabelle[[#This Row],[Bild-ID]]<>"","Merken","") -> Merken | O11: TRUE | P11: TRUE | Q11: =Ergebnistabelle[[#This Row],[Spalte1]]*Ergebnistabelle[[#This Row],[Spalte2]] -> 1 | R11: 1 | S11: FALSE | T11: TRUE | U11: TRUE | V11: FALSE | W11: FALSE | X11: FALSE | Y11: FALSE | Z11: FALSE | AA11: TRUE | AB11: FALSE | AC11: FALSE | AD11: FALSE | AE11: FALSE | AF11: FALSE | AG11: FALSE | AH11: FALSE | AI11: FALSE | AJ11: FALSE | AK11: FALSE | AL11: FALSE | AM11: FALSE | AN11: FALSE | AO11: TRUE | AP11: FALSE | AQ11: FALSE | AR11: FALSE | AS11: FALSE | AT11: FALSE | AU11: FALSE | AV11: FALSE | AW11: FALSE | AX11: FALSE | AY11: FALSE | AZ11: FALSE | BA11: FALSE | BB11: FALSE | BC11: FALSE | BD11: FALSE | BE11: FALSE | BF11: FALSE | BG11: FALSE | BH11: FALSE | BI11: FALSE | BJ11: FALSE | BK11: FALSE | BL11: 2023-03-30 | BM11: =IF(Ergebnistabelle[[#This Row],[Spalte50]]>=Meldungen!$J$5,"+","") -> +
A12: 21.6-966 | B12: HV-R-03-21 | C12: Cottbus | D12: 6xNflTw | E12: 1528 | F12: 4 | G12: Probeeinsatz in Cottbus | H12: 23 | I12: 7 | J12: 2001 | K12: Horst Völkel | L12: =IF(Ergebnistabelle[[#This Row],[Signatur]]<>"","Vorschau","") -> Vorschau | M12: =IF(IFERROR(MATCH(Ergebnistabelle[[#This Row],[Bild-ID]],Merkliste!B:B,0),"")<>"",CHAR(252),"") ->  | N12: =IF(Ergebnistabelle[[#This Row],[Bild-ID]]<>"","Merken","") -> Merken | O12: TRUE | P12: =OR(S12=S$3, W12=W$3, AA12=AA$3, AB12=AB$3, AC12=AC$3, AD12=AD$3, AE12=AE$3, AF12=AF$3, AG12=AG$3, AH12=AH$3, AI12=AI$3, AJ12=AJ$3, AK12=AK$3, AL12=AL$3, AM12=AM$3, AN12=AN$3, AO12=AO$3, AP12=AP$3, AQ12=AQ$3, AR12=AR$3, AS12=AS$3, AT12=AT$3, AU12=AU$3, AV12=AV$3, AW12=AW$3, AX12=AX$3, AY12=AY$3, AZ12=AZ$3, BA12=BA$3, BB12=BB$3, BC12=BC$3, BD12=BD$3, BE12=BE$3, BF12=BF$3, BG12=BG$3, BH12=BH$3, BI12=BI$3, BJ12=BJ$3, BK12=BK$3) -> TRUE | Q12: =Ergebnistabelle[[#This Row],[Spalte1]]*Ergebnistabelle[[#This Row],[Spalte2]] -> 1 | R12: 1 | S12: FALSE | T12: TRUE | U12: TRUE | V12: FALSE | W12: FALSE | X12: FALSE | Y12: FALSE | Z12: FALSE | AA12: TRUE | AB12: FALSE | AC12: FALSE | AD12: FALSE | AE12: FALSE | AF12: FALSE | AG12: FALSE | AH12: FALSE | AI12: FALSE | AJ12: FALSE | AK12: FALSE | AL12: FALSE | AM12: FALSE | AN12: FALSE | AO12: TRUE | AP12: FALSE | AQ12: FALSE | AR12: FALSE | AS12: FALSE | AT12: FALSE | AU12: FALSE | AV12: FALSE | AW12: FALSE | AX12: FALSE | AY12: FALSE | AZ12: FALSE | BA12: FALSE | BB12: FALSE | BC12: FALSE | BD12: FALSE | BE12: FALSE | BF12: FALSE | BG12: FALSE | BH12: FALSE | BI12: FALSE | BJ12: FALSE | BK12: FALSE | BL12: 2023-03-30 | BM12: =IF(Ergebnistabelle[[#This Row],[Spalte50]]>=Meldungen!$J$5,"+","") -> +

Sheet Galerie
A1: =Ergebnisse!A1 -> Essen, Niederflurwagen (21.6)
G2: =COUNTA(A101:A2100) -> 25 | H2: < Bilder mit < Vorschau | L2: =Merkliste!F2 -> 0 | N2: Seite | O2: 3 | P2: von | Q2: =ROUNDUP(G2/8,0) -> 4
B3: 117 | F3: 118 | J3: 119 | N3: 120
B4: =IF(D5<>"",IFERROR(InsertPicFromURL("https://bildarchiv.vdva.org/"&D5&".jpg"),"Bild nicht verfügbar"),"") ->  | F4: =IF(H5<>"",IFERROR(InsertPicFromURL("https://bildarchiv.vdva.org/"&H5&".jpg"),""),"") ->  | J4: =IF(L5<>"",IFERROR(InsertPicFromURL("https://bildarchiv.vdva.org/"&L5&".jpg"),""),"") ->  | N4: =IF(P5<>"",IFERROR(InsertPicFromURL("https://bildarchiv.vdva.org/"&P5&".jpg"),""),"") -> 
B6: =IF(S6="","",S6) -> Btf Walterstraße (Heckinghausen) | F6: =IF(T6="","",T6) -> Oberbarmen, Heckinghauser Brücke | J6: =IF(U6="","",U6) -> Werlébrücke | N6: =IF(V6="","",V6) -> Bf Oberbarrmen | S6: Btf Walterstraße (Heckinghausen) | T6: Oberbarmen, Heckinghauser Brücke | U6: Werlébrücke | V6: Bf Oberbarrmen
B7: Obus | C7: 305 | F7: Obus | G7: 305 | J7: Obus | K7: 311 | L7: 16 | N7: Obus | O7: 310 | P7: 16
B8: =IF(S8="","",S8) -> Sonderfahrt VDVA/LRTL | F8: =IF(T8="","",T8) -> Sonderfahrt VDVA/LRTL | J8: =IF(U8="","",U8) ->  | N8: =IF(V8="","",V8) ->  | S8: Sonderfahrt VDVA/LRTL | T8: Sonderfahrt VDVA/LRTL
B9: 9 | C9: 9 | D9: 1950 | F9: 9 | G9: 9 | H9: 1950 | L9: 1956 | P9: 1956
B10: =IF(S10="","",S10) -> John H. Price | F10: =IF(T10="","",T10) -> Gerd Leimbach | J10: =IF(U10="","",U10) -> Dieter Waltking | N10: =IF(V10="","",V10) -> Dieter Waltking | S10: John H. Price | T10: Gerd Leimbach | U10: Dieter Waltking | V10: Dieter Waltking
B11: =IF(IFERROR(MATCH(B5,Merkliste!$B:$B,0),"")<>"",CHAR(252),"") ->  | F11: =IF(IFERROR(MATCH(F5,Merkliste!$B:$B,0),"")<>"",CHAR(252),"") ->  | J11: =IF(IFERROR(MATCH(J5,Merkliste!$B:$B,0),"")<>"",CHAR(252),"") ->  | N11: =IF(IFERROR(MATCH(N5,Merkliste!$B:$B,0),"")<>"",CHAR(252),"") -> 
B13: 121 | F13: 122 | J13: 123 | N13: 124
B14: =IF(D15<>"",IFERROR(InsertPicFromURL("https://bildarchiv.vdva.org/"&D15&".jpg"),""),"") ->  | F14: =IF(H15<>"",IFERROR(InsertPicFromURL("https://bildarchiv.vdva.org/"&H15&".jpg"),""),"") ->  | J14: =IF(L15<>"",IFERROR(InsertPicFromURL("https://bildarchiv.vdva.org/"&L15&".jpg"),""),"") ->  | N14: =IF(P15<>"",IFERROR(InsertPicFromURL("https://bildarchiv.vdva.org/"&P15&".jpg"),""),"") -> 
B16: =IF(S16="","",S16) -> Schellenbeck | F16: =IF(T16="","",T16) -> Wichlinghauser Markt | J16: =IF(U16="","",U16) -> Stadtbf Ronsdorf | N16: =IF(V16="","",V16) -> Dieselstraße | S16: Schellenbeck | T16: Wichlinghauser Markt | U16: Stadtbf Ronsdorf | V16: Dieselstraße
B17: Obus | C17: 30. | D17: 24 | F17: Obus | G17: 316 | H17: 10/W | J17: Obus | K17: 317 | L17: 10 | N17: Obus | P17: 24
B18: =IF(S18="","",S18) ->  | F18: =IF(T18="","",T18) ->  | J18: =IF(U18="","",U18) ->  | N18: =IF(V18="","",V18) -> 
B19: 21 | C19: 4 | D19: 1958 | F19: 19 | G19: 7 | H19: 1960 | J19: 24 | K19: 3 | L19: 1961 | N19: 16 | O19: 3 | P19: 1965
B20: =IF(S20="","",S20) -> Dieter Waltking | F20: =IF(T20="","",T20) -> Dieter Waltking | J20: =IF(U20="","",U20) -> Dieter Waltking | N20: =IF(V20="","",V20) -> Dieter Waltking | S20: Dieter Waltking | T20: Dieter Waltking | U20: Dieter Waltking | V20: Dieter Waltking
B21: =IF(IFERROR(MATCH(B15,Merkliste!$B:$B,0),"")<>"",CHAR(252),"") ->  | F21: =IF(IFERROR(MATCH(F15,Merkliste!$B:$B,0),"")<>"",CHAR(252),"") ->  | J21: =IF(IFERROR(MATCH(J15,Merkliste!$B:$B,0),"")<>"",CHAR(252),"") ->  | N21: =IF(IFERROR(MATCH(N15,Merkliste!$B:$B,0),"")<>"",CHAR(252),"") -> 
A101: 752-001 | B101: VDVA-0752-001 | D101: Obus
A102: 752-002 | B102: VDVA-0752-002 | C102: Kemna, in Richtung Beyenburg | D102: Obus | E102: 306 | F102: 16 | H102: 6 | I102: 5 | J102: 1950 | K102: Carl Bellingrodt
A103: 752-003 | B103: VDVA-0752-003 | C103: Dahlhausen | D103: Obus | E103: 302 | F103: 16 | H103: 6 | I103: 5 | J103: 1950 | K103: Carl Bellingrodt
A104: 752-004 | B104: VDVA-0752-004 | C104: Öhde | D104: Obus Obus | E104: 303 302 | F104: 16 16 | G104: Kreuzung der beiden Obusse | H104: 1 | I104: 5 | J104: 1950 | K104: Carl Bellingrodt
A105: 752-006 | B105: VDVA-0752-006 | C105: Endstation Beyenburg, Wupperbrücke | D105: Obus | E105: 301 | F105: 16 | H105: 1 | I105: 5 | J105: 1950 | K105: Carl Bellingrodt
A106: 752-007 | B106: VDVA-0752-007 | C106: Oberbarmen, Schwebebahn | D106: Obus Schwebebahn | E106: 303 17 | F106: 16 | H106: 1 | I106: 5 | J106: 1950 | K106: Carl Bellingrodt
A107: 752-008 | B107: VDVA-0752-008 | C107: Beyenburg, Wupperbrücke | D107: Obus | E107: 304 | F107: 16 | J107: 1950 | K107: Carl Bellingrodt
A108: 752-009 | B108: VDVA-0752-009 | C108: Endstation Beyenburg, Wupperbrücke | D108: Obus | E108: 304 | F108: 16 | J108: 1950 | K108: Carl Bellingrodt
A109: 752-010 | B109: VDVA-0752-010 | C109: Kemna, Richtung Oberbarmen | D109: Obus | E109: 303 | F109: 16 | H109: 6 | I109: 5 | J109: 1950 | K109: Carl Bellingrodt
A110: 752-011 | B110: VDVA-0752-011 | C110: Oehde | D110: Obus | E110: 305 | F110: 16 | H110: 1 | I110: 5 | J110: 1950 | K110: Carl Bellingrodt
A111: 752-014 | B111: VDVA-0752-014 | C111: Kemna, Richtung Beyenburg | D111: Obus | E111: 304 | F111: 16 | H111: 6 | I111: 5 | J111: 1950 | K111: Carl Bellingrodt
A112: 752-015 | B112: VDVA-0752-015 | C112: Oberbarmen, am Rauental | D112: Obus | E112: 305 | F112: 16 | H112: 6 | I112: 5 | J112: 1950 | K112: Carl Bellingrodt
A113: 752-016 | B113: VDVA-0752-016 | C113: Kikuthstraße | D113: Obus | E113: 301 | F113: 16 | H113: 6 | I113: 5 | J113: 1950 | K113: Carl Bellingrodt
A114: 752-017 | B114: VDVA-0752-017 | C114: Papierfabrik | D114: Obus | E114: 302 | F114: 16 | H114: 6 | I114: 5 | J114: 1950 | K114: Carl Bellingrodt
A115: 752-018 | B115: VDVA-0752-018 | C115: bei Kemna | D115: Obus | E115: 304 | F115: 16 | H115: 6 | I115: 5 | J115: 1950 | K115: Carl Bellingrodt
A116: 752-020 | B116: VDVA-0752-020 | C116: Btf Walterstraße (Heckinghausen) | D116: Obus | E116: 325 | H116: 11 | I116: 9 | J116: 1962 | K116: Dr. Heinrich Dillmann
A117: 752-022 | B117: VDVA-0752-022 | C117: Btf Walterstraße (Heckinghausen) | D117: Obus | E117: 305 | G117: Sonderfahrt VDVA/LRTL | H117: 9 | I117: 9 | J117: 1950 | K117: John H. Price
A118: 752-023 | B118: GL-26-019 | C118: Oberbarmen, Heckinghauser Brücke | D118: Obus | E118: 305 | G118: Sonderfahrt VDVA/LRTL | H118: 9 | I118: 9 | J118: 1950 | K118: Gerd Leimbach
A119: 752-024 | B119: DW-D-W-004 | C119: Werlébrücke | D119: Obus | E119: 311 | F119: 16 | J119: 1956 | K119: Dieter Waltking
A120: 752-025 | B120: DW-D-W-005 | C120: Bf Oberbarrmen | D120: Obus | E120: 310 | F120: 16 | J120: 1956 | K120: Dieter Waltking
A121: 752-026 | B121: DW-D-W-025 | C121: Schellenbeck | D121: Obus | E121: 30. | F121: 24 | H121: 21 | I121: 4 | J121: 1958 | K121: Dieter Waltking
A122: 752-027 | B122: DW-D-W-095 | C122: Wichlinghauser Markt | D122: Obus | E122: 316 | F122: 10/W | H122: 19 | I122: 7 | J122: 1960 | K122: Dieter Waltking
A123: 752-028 | B123: DW-D-W-098 | C123: Stadtbf Ronsdorf | D123: Obus | E123: 317 | F123: 10 | H123: 24 | I123: 3 | J123: 1961 | K123: Dieter Waltking
A124: 752-029 | B124: DW-D-W-111 | C124: Dieselstraße | D124: Obus | F124: 24 | H124: 16 | I124: 3 | J124: 1965 | K124: Dieter Waltking
A125: 752-030 | B125: DW-D-W-118 | C125: Alter Markt | D125: Obus | E125: 315 | F125: 10B | H125: 6 | I125: 8 | J125: 1965 | K125: Dieter Waltking

Sheet Vorschau
A1: =INDEX(Betriebeliste!A1:D331,MATCH(LEFT(A4,FIND("-",A4)-1),Betriebeliste!A1:A331,0),2) -> 
D2: =" "&Merkliste!F2 -> 0 | F2: =IF(IFERROR(MATCH(A4,Merkliste!B:B,0),"")<>"",CHAR(252),"") ->  | K2: Galerie
A3: Bild-ID | B3: Signatur | C3: Aufnahmeort | D3: Wagen | F3: Linie | G3: Bemerkung | H3: Datum | K3: Fotograf
B6: =IF(B4<>"",IFERROR(InsertPicFromURL("https://bildarchiv.vdva.org/"&B4&".jpg"),"Kein Bild gefunden")) -> FALSE

Sheet Merkliste
A1: Merkliste
F2: =COUNTA(A5:A200) -> 0
A3: Betrieb | B3: Bild-ID | C3: Signatur | D3: Aufnahmeort | E3: Wagen | G3: Linie | H3: Bemerkung | I3: Datum | L3: Fotograf | M3: Vorschau | N3: Einzeln löschen
A4: Betrieb | B4: Bild-ID | C4: Signatur | D4: Aufnahmeort | E4: WT | F4: WN | G4: Linie | H4: Bemerkung | I4: T | J4: M | K4: J | L4: Fotograf | M4: Vorschau | N4: Löschen
M5: =IF(Merklistentabelle[[#This Row],[Signatur]]<>"","Vorschau","") ->  | N5: =IF(Merklistentabelle[[#This Row],[Betrieb]]<>"","Löschen","") -> 
M6: =IF(Merklistentabelle[[#This Row],[Signatur]]<>"","Vorschau","") ->  | N6: =IF(Merklistentabelle[[#This Row],[Betrieb]]<>"","Löschen","") -> 

Sheet Blatt1
A1: Blatt 1

Sheet Blatt2
A1: Blatt 2

Sheet Blatt3
A1: Blatt 3

Sheet Blatt4
A1: Blatt 4

Sheet Blatt5
A1: Blatt 5

Sheet Ruhrgebiet
A1: Blatt Ruhrgebiet

Sheet Rheinland
A1: Blatt Rheinland

Sheet ABC
B1: Bilderverzeichnis Deutschland
C3: 2 | D3: P | F3: + | I3: 2 | J3: P | L3: +
B4: 92 | C4: =IFERROR(INDEX(Betriebeliste!$A$1:AA$299,MATCH(TEXT(B4,0),Betriebeliste!$A$1:$A$331,0),27),"") -> 330 | D4: =IFERROR(INDEX(Betriebeliste!$A$1:AC$299,MATCH(TEXT(B4,0),Betriebeliste!$A$1:$A$331,0),29)/C4,"") -> 97% | E4: =IF(INDEX(Betriebeliste!$A$1:E$331,MATCH(TEXT(B4,0),Betriebeliste!$A$1:$A$331,0),5)=1,"L","") -> L | F4: =IFERROR(INDEX(Betriebeliste!$A$1:BG$299,MATCH(TEXT(B4,0),Betriebeliste!$A$1:$A$331,0),30),"") -> 0 | H4: 29 | I4: =IFERROR(INDEX(Betriebeliste!$A$1:AE$298,MATCH(TEXT(H4,0),Betriebeliste!$A$1:$A$331,0),27),"") -> 190 | J4: =IFERROR(INDEX(Betriebeliste!$A$1:AF$299,MATCH(TEXT(H4,0),Betriebeliste!$A$1:$A$331,0),29)/I4,"") -> 95% | K4: =IF(INDEX(Betriebeliste!$A$1:K$331,MATCH(TEXT(H4,0),Betriebeliste!$A$1:$A$331,0),5)=1,"L","") -> L | L4: =IFERROR(INDEX(Betriebeliste!$A$1:BM$299,MATCH(TEXT(H4,0),Betriebeliste!$A$1:$A$331,0),30),"") -> 0
A5: A B C | B5: 137 | C5: =IFERROR(INDEX(Betriebeliste!$A$1:AA$299,MATCH(TEXT(B5,0),Betriebeliste!$A$1:$A$331,0),27),"") -> 324 | D5: =IFERROR(INDEX(Betriebeliste!$A$1:AC$299,MATCH(TEXT(B5,0),Betriebeliste!$A$1:$A$331,0),29)/C5,"") -> 100% | E5: =IF(INDEX(Betriebeliste!$A$1:E$331,MATCH(TEXT(B5,0),Betriebeliste!$A$1:$A$331,0),5)=1,"L","") -> L | F5: =IFERROR(INDEX(Betriebeliste!$A$1:BG$299,MATCH(TEXT(B5,0),Betriebeliste!$A$1:$A$331,0),30),"") -> 0 | H5: 27 | I5: =IFERROR(INDEX(Betriebeliste!$A$1:AE$298,MATCH(TEXT(H5,0),Betriebeliste!$A$1:$A$331,0),27),"") -> 349 | J5: =IFERROR(INDEX(Betriebeliste!$A$1:AF$299,MATCH(TEXT(H5,0),Betriebeliste!$A$1:$A$331,0),29)/I5,"") -> 75% | K5: =IF(INDEX(Betriebeliste!$A$1:K$331,MATCH(TEXT(H5,0),Betriebeliste!$A$1:$A$331,0),5)=1,"L","") -> L | L5: =IFERROR(INDEX(Betriebeliste!$A$1:BM$299,MATCH(TEXT(H5,0),Betriebeliste!$A$1:$A$331,0),30),"") -> 0
B6: 681 | C6: =IFERROR(INDEX(Betriebeliste!$A$1:AA$299,MATCH(TEXT(B6,0),Betriebeliste!$A$1:$A$331,0),27),"") -> 3 | D6: =IFERROR(INDEX(Betriebeliste!$A$1:AC$299,MATCH(TEXT(B6,0),Betriebeliste!$A$1:$A$331,0),29)/C6,"") -> 100% | E6: =IF(INDEX(Betriebeliste!$A$1:E$331,MATCH(TEXT(B6,0),Betriebeliste!$A$1:$A$331,0),5)=1,"L","") ->  | F6: =IFERROR(INDEX(Betriebeliste!$A$1:BG$299,MATCH(TEXT(B6,0),Betriebeliste!$A$1:$A$331,0),30),"") -> 0 | H6: 28 | I6: =IFERROR(INDEX(Betriebeliste!$A$1:AE$298,MATCH(TEXT(H6,0),Betriebeliste!$A$1:$A$331,0),27),"") -> 158 | J6: =IFERROR(INDEX(Betriebeliste!$A$1:AF$299,MATCH(TEXT(H6,0),Betriebeliste!$A$1:$A$331,0),29)/I6,"") -> 74% | K6: =IF(INDEX(Betriebeliste!$A$1:K$331,MATCH(TEXT(H6,0),Betriebeliste!$A$1:$A$331,0),5)=1,"L","") -> L | L6: =IFERROR(INDEX(Betriebeliste!$A$1:BM$299,MATCH(TEXT(H6,0),Betriebeliste!$A$1:$A$331,0),30),"") -> 0
B7: 136 | C7: =IFERROR(INDEX(Betriebeliste!$A$1:AA$299,MATCH(TEXT(B7,0),Betriebeliste!$A$1:$A$331,0),27),"") -> 262 | D7: =IFERROR(INDEX(Betriebeliste!$A$1:AC$299,MATCH(TEXT(B7,0),Betriebeliste!$A$1:$A$331,0),29)/C7,"") -> 66% | E7: =IF(INDEX(Betriebeliste!$A$1:E$331,MATCH(TEXT(B7,0),Betriebeliste!$A$1:$A$331,0),5)=1,"L","") -> L | F7: =IFERROR(INDEX(Betriebeliste!$A$1:BG$299,MATCH(TEXT(B7,0),Betriebeliste!$A$1:$A$331,0),30),"") -> 0 | H7: 4 | I7: =IFERROR(INDEX(Betriebeliste!$A$1:AE$298,MATCH(TEXT(H7,0),Betriebeliste!$A$1:$A$331,0),27),"") -> 134 | J7: =IFERROR(INDEX(Betriebeliste!$A$1:AF$299,MATCH(TEXT(H7,0),Betriebeliste!$A$1:$A$331,0),29)/I7,"") -> 69% | K7: =IF(INDEX(Betriebeliste!$A$1:K$331,MATCH(TEXT(H7,0),Betriebeliste!$A$1:$A$331,0),5)=1,"L","") -> L | L7: =IFERROR(INDEX(Betriebeliste!$A$1:BM$299,MATCH(TEXT(H7,0),Betriebeliste!$A$1:$A$331,0),30),"") -> 0
H8: 113 | I8: =IFERROR(INDEX(Betriebeliste!$A$1:AE$298,MATCH(TEXT(H8,0),Betriebeliste!$A$1:$A$331,0),27),"") -> 490 | J8: =IFERROR(INDEX(Betriebeliste!$A$1:AF$299,MATCH(TEXT(H8,0),Betriebeliste!$A$1:$A$331,0),29)/I8,"") -> 100% | K8: =IF(INDEX(Betriebeliste!$A$1:K$331,MATCH(TEXT(H8,0),Betriebeliste!$A$1:$A$331,0),5)=1,"L","") -> L | L8: =IFERROR(INDEX(Betriebeliste!$A$1:BM$299,MATCH(TEXT(H8,0),Betriebeliste!$A$1:$A$331,0),30),"") -> 0
B9: 644 | C9: =IFERROR(INDEX(Betriebeliste!$A$1:AA$299,MATCH(TEXT(B9,0),Betriebeliste!$A$1:$A$331,0),27),"") -> 19 | D9: =IFERROR(INDEX(Betriebeliste!$A$1:AC$299,MATCH(TEXT(B9,0),Betriebeliste!$A$1:$A$331,0),29)/C9,"") -> 100% | E9: =IF(INDEX(Betriebeliste!$A$1:E$331,MATCH(TEXT(B9,0),Betriebeliste!$A$1:$A$331,0),5)=1,"L","") ->  | F9: =IFERROR(INDEX(Betriebeliste!$A$1:BG$299,MATCH(TEXT(B9,0),Betriebeliste!$A$1:$A$331,0),30),"") -> 0 | H9: 56 | I9: =IFERROR(INDEX(Betriebeliste!$A$1:AE$298,MATCH(TEXT(H9,0),Betriebeliste!$A$1:$A$331,0),27),"") -> 338 | J9: =IFERROR(INDEX(Betriebeliste!$A$1:AF$299,MATCH(TEXT(H9,0),Betriebeliste!$A$1:$A$331,0),29)/I9,"") -> 100% | K9: =IF(INDEX(Betriebeliste!$A$1:K$331,MATCH(TEXT(H9,0),Betriebeliste!$A$1:$A$331,0),5)=1,"L","") -> L | L9: =IFERROR(INDEX(Betriebeliste!$A$1:BM$299,MATCH(TEXT(H9,0),Betriebeliste!$A$1:$A$331,0),30),"") -> 0
B10: 127 | C10: =IFERROR(INDEX(Betriebeliste!$A$1:AA$299,MATCH(TEXT(B10,0),Betriebeliste!$A$1:$A$331,0),27),"") -> 39 | D10: =IFERROR(INDEX(Betriebeliste!$A$1:AC$299,MATCH(TEXT(B10,0),Betriebeliste!$A$1:$A$331,0),29)/C10,"") -> 36% | E10: =IF(INDEX(Betriebeliste!$A$1:E$331,MATCH(TEXT(B10,0),Betriebeliste!$A$1:$A$331,0),5)=1,"L","") ->  | F10: =IFERROR(INDEX(Betriebeliste!$A$1:BG$299,MATCH(TEXT(B10,0),Betriebeliste!$A$1:$A$331,0),30),"") -> 0 | H10: 76 | I10: =IFERROR(INDEX(Betriebeliste!$A$1:AE$298,MATCH(TEXT(H10,0),Betriebeliste!$A$1:$A$331,0),27),"") -> 170 | J10: =IFERROR(INDEX(Betriebeliste!$A$1:AF$299,MATCH(TEXT(H10,0),Betriebeliste!$A$1:$A$331,0),29)/I10,"") -> 77% | K10: =IF(INDEX(Betriebeliste!$A$1:K$331,MATCH(TEXT(H10,0),Betriebeliste!$A$1:$A$331,0),5)=1,"L","") -> L | L10: =IFERROR(INDEX(Betriebeliste!$A$1:BM$299,MATCH(TEXT(H10,0),Betriebeliste!$A$1:$A$331,0),30),"") -> 0
B11: 190 | C11: =IFERROR(INDEX(Betriebeliste!$A$1:AA$299,MATCH(TEXT(B11,0),Betriebeliste!$A$1:$A$331,0),27),"") -> 42 | D11: =IFERROR(INDEX(Betriebeliste!$A$1:AC$299,MATCH(TEXT(B11,0),Betriebeliste!$A$1:$A$331,0),29)/C11,"") -> 98% | E11: =IF(INDEX(Betriebeliste!$A$1:E$331,MATCH(TEXT(B11,0),Betriebeliste!$A$1:$A$331,0),5)=1,"L","") -> L | F11: =IFERROR(INDEX(Betriebeliste!$A$1:BG$299,MATCH(TEXT(B11,0),Betriebeliste!$A$1:$A$331,0),30),"") -> 0
B12: 78 | C12: =IFERROR(INDEX(Betriebeliste!$A$1:AA$299,MATCH(TEXT(B12,0),Betriebeliste!$A$1:$A$331,0),27),"") -> 39 | D12: =IFERROR(INDEX(Betriebeliste!$A$1:AC$299,MATCH(TEXT(B12,0),Betriebeliste!$A$1:$A$331,0),29)/C12,"") -> 18% | E12: =IF(INDEX(Betriebeliste!$A$1:E$331,MATCH(TEXT(B12,0),Betriebeliste!$A$1:$A$331,0),5)=1,"L","") ->  | F12: =IFERROR(INDEX(Betriebeliste!$A$1:BG$299,MATCH(TEXT(B12,0),Betriebeliste!$A$1:$A$331,0),30),"") -> 0 | H12: 124 | I12: =IFERROR(INDEX(Betriebeliste!$A$1:AE$298,MATCH(TEXT(H12,0),Betriebeliste!$A$1:$A$331,0),27),"") -> 39 | J12: =IFERROR(INDEX(Betriebeliste!$A$1:AF$299,MATCH(TEXT(H12,0),Betriebeliste!$A$1:$A$331,0),29)/I12,"") -> 49% | K12: =IF(INDEX(Betriebeliste!$A$1:K$331,MATCH(TEXT(H12,0),Betriebeliste!$A$1:$A$331,0),5)=1,"L","") -> L | L12: =IFERROR(INDEX(Betriebeliste!$A$1:BM$299,MATCH(TEXT(H12,0),Betriebeliste!$A$1:$A$331,0),30),"") -> 0
B13: 1 | C13: =IFERROR(INDEX(Betriebeliste!$A$1:AA$299,MATCH(TEXT(B13,0),Betriebeliste!$A$1:$A$331,0),27),"") -> 1054 | D13: =IFERROR(INDEX(Betriebeliste!$A$1:AC$299,MATCH(TEXT(B13,0),Betriebeliste!$A$1:$A$331,0),29)/C13,"") -> 37% | E13: =IF(INDEX(Betriebeliste!$A$1:E$331,MATCH(TEXT(B13,0),Betriebeliste!$A$1:$A$331,0),5)=1,"L","") -> L | F13: =IFERROR(INDEX(Betriebeliste!$A$1:BG$299,MATCH(TEXT(B13,0),Betriebeliste!$A$1:$A$331,0),30),"") -> 0 | H13: 148 | I13: =IFERROR(INDEX(Betriebeliste!$A$1:AE$298,MATCH(TEXT(H13,0),Betriebeliste!$A$1:$A$331,0),27),"") -> 248 | J13: =IFERROR(INDEX(Betriebeliste!$A$1:AF$299,MATCH(TEXT(H13,0),Betriebeliste!$A$1:$A$331,0),29)/I13,"") -> 98% | K13: =IF(INDEX(Betriebeliste!$A$1:K$331,MATCH(TEXT(H13,0),Betriebeliste!$A$1:$A$331,0),5)=1,"L","") -> L | L13: =IFERROR(INDEX(Betriebeliste!$A$1:BM$299,MATCH(TEXT(H13,0),Betriebeliste!$A$1:$A$331,0),30),"") -> 0
B14: 1003 | C14: =IFERROR(INDEX(Betriebeliste!$A$1:AA$299,MATCH(TEXT(B14,0),Betriebeliste!$A$1:$A$331,0),27),"") -> 2 | D14: =IFERROR(INDEX(Betriebeliste!$A$1:AC$299,MATCH(TEXT(B14,0),Betriebeliste!$A$1:$A$331,0),29)/C14,"") -> 0% | E14: =IF(INDEX(Betriebeliste!$A$1:E$331,MATCH(TEXT(B14,0),Betriebeliste!$A$1:$A$331,0),5)=1,"L","") ->  | F14: =IFERROR(INDEX(Betriebeliste!$A$1:BG$299,MATCH(TEXT(B14,0),Betriebeliste!$A$1:$A$331,0),30),"") -> 0 | H14: 43 | I14: =IFERROR(INDEX(Betriebeliste!$A$1:AE$298,MATCH(TEXT(H14,0),Betriebeliste!$A$1:$A$331,0),27),"") -> 105 | J14: =IFERROR(INDEX(Betriebeliste!$A$1:AF$299,MATCH(TEXT(H14,0),Betriebeliste!$A$1:$A$331,0),29)/I14,"") -> 100% | K14: =IF(INDEX(Betriebeliste!$A$1:K$331,MATCH(TEXT(H14,0),Betriebeliste!$A$1:$A$331,0),5)=1,"L","") -> L | L14: =IFERROR(INDEX(Betriebeliste!$A$1:BM$299,MATCH(TEXT(H14,0),Betriebeliste!$A$1:$A$331,0),30),"") -> 0
B15: 46 | C15: =IFERROR(INDEX(Betriebeliste!$A$1:AA$299,MATCH(TEXT(B15,0),Betriebeliste!$A$1:$A$331,0),27),"") -> 228 | D15: =IFERROR(INDEX(Betriebeliste!$A$1:AC$299,MATCH(TEXT(B15,0),Betriebeliste!$A$1:$A$331,0),29)/C15,"") -> 85% | E15: =IF(INDEX(Betriebeliste!$A$1:E$331,MATCH(TEXT(B15,0),Betriebeliste!$A$1:$A$331,0),5)=1,"L","") -> L | F15: =IFERROR(INDEX(Betriebeliste!$A$1:BG$299,MATCH(TEXT(B15,0),Betriebeliste!$A$1:$A$331,0),30),"") -> 0
B16: 95 | C16: =IFERROR(INDEX(Betriebeliste!$A$1:AA$299,MATCH(TEXT(B16,0),Betriebeliste!$A$1:$A$331,0),27),"") -> 37 | D16: =IFERROR(INDEX(Betriebeliste!$A$1:AC$299,MATCH(TEXT(B16,0),Betriebeliste!$A$1:$A$331,0),29)/C16,"") -> 30% | E16: =IF(INDEX(Betriebeliste!$A$1:E$331,MATCH(TEXT(B16,0),Betriebeliste!$A$1:$A$331,0),5)=1,"L","") ->  | F16: =IFERROR(INDEX(Betriebeliste!$A$1:BG$299,MATCH(TEXT(B16,0),Betriebeliste!$A$1:$A$331,0),30),"") -> 0
B17: 685 | C17: =IFERROR(INDEX(Betriebeliste!$A$1:AA$299,MATCH(TEXT(B17,0),Betriebeliste!$A$1:$A$331,0),27),"") -> 3 | D17: =IFERROR(INDEX(Betriebeliste!$A$1:AC$299,MATCH(TEXT(B17,0),Betriebeliste!$A$1:$A$331,0),29)/C17,"") -> 100% | E17: =IF(INDEX(Betriebeliste!$A$1:E$331,MATCH(TEXT(B17,0),Betriebeliste!$A$1:$A$331,0),5)=1,"L","") ->  | F17: =IFERROR(INDEX(Betriebeliste!$A$1:BG$299,MATCH(TEXT(B17,0),Betriebeliste!$A$1:$A$331,0),30),"") -> 0
A18: 2 Anz. Datensätze P Anz. Vorschaubilder LFilterung möglich + Neue Fotos | B18: 20 | C18: =IFERROR(INDEX(Betriebeliste!$A$1:AA$299,MATCH(TEXT(B18,0),Betriebeliste!$A$1:$A$331,0),27),"") -> 561 | D18: =IFERROR(INDEX(Betriebeliste!$A$1:AC$299,MATCH(TEXT(B18,0),Betriebeliste!$A$1:$A$331,0),29)/C18,"") -> 100% | E18: =IF(INDEX(Betriebeliste!$A$1:E$331,MATCH(TEXT(B18,0),Betriebeliste!$A$1:$A$331,0),5)=1,"L","") -> L | F18: =IFERROR(INDEX(Betriebeliste!$A$1:BG$299,MATCH(TEXT(B18,0),Betriebeliste!$A$1:$A$331,0),30),"") -> 0

Sheet D
B1: Bilderverzeichnis Deutschland
C3: 2 | D3: P | F3: + | I3: 2 | J3: P | L3: +
B4: 96 | C4: =IFERROR(INDEX(Betriebeliste!$A$1:AA$299,MATCH(TEXT(B4,0),Betriebeliste!$A$1:$A$331,0),27),"") -> 619 | D4: =IFERROR(INDEX(Betriebeliste!$A$1:AC$299,MATCH(TEXT(B4,0),Betriebeliste!$A$1:$A$331,0),29)/C4,"") -> 90% | E4: =IF(INDEX(Betriebeliste!$A$1:E$331,MATCH(TEXT(B4,0),Betriebeliste!$A$1:$A$331,0),5)=1,"L","") -> L | F4: =IFERROR(INDEX(Betriebeliste!$A$1:BG$299,MATCH(TEXT(B4,0),Betriebeliste!$A$1:$A$331,0),30),"") -> 0 | H4: 70 | I4: =IFERROR(INDEX(Betriebeliste!$A$1:AE$298,MATCH(TEXT(H4,0),Betriebeliste!$A$1:$A$331,0),27),"") -> 587 | J4: =IFERROR(INDEX(Betriebeliste!$A$1:AF$299,MATCH(TEXT(H4,0),Betriebeliste!$A$1:$A$331,0),29)/I4,"") -> 100% | K4: =IF(INDEX(Betriebeliste!$A$1:K$331,MATCH(TEXT(H4,0),Betriebeliste!$A$1:$A$331,0),5)=1,"L","") -> L | L4: =IFERROR(INDEX(Betriebeliste!$A$1:BM$299,MATCH(TEXT(H4,0),Betriebeliste!$A$1:$A$331,0),30),"") -> 0
A5: D | B5: 2 | C5: =IFERROR(INDEX(Betriebeliste!$A$1:AA$299,MATCH(TEXT(B5,0),Betriebeliste!$A$1:$A$331,0),27),"") -> 141 | D5: =IFERROR(INDEX(Betriebeliste!$A$1:AC$299,MATCH(TEXT(B5,0),Betriebeliste!$A$1:$A$331,0),29)/C5,"") -> 100% | E5: =IF(INDEX(Betriebeliste!$A$1:E$331,MATCH(TEXT(B5,0),Betriebeliste!$A$1:$A$331,0),5)=1,"L","") -> L | F5: =IFERROR(INDEX(Betriebeliste!$A$1:BG$299,MATCH(TEXT(B5,0),Betriebeliste!$A$1:$A$331,0),30),"") -> 0 | H5: 132 | I5: =IFERROR(INDEX(Betriebeliste!$A$1:AE$298,MATCH(TEXT(H5,0),Betriebeliste!$A$1:$A$331,0),27),"") -> 123 | J5: =IFERROR(INDEX(Betriebeliste!$A$1:AF$299,MATCH(TEXT(H5,0),Betriebeliste!$A$1:$A$331,0),29)/I5,"") -> 70% | K5: =IF(INDEX(Betriebeliste!$A$1:K$331,MATCH(TEXT(H5,0),Betriebeliste!$A$1:$A$331,0),5)=1,"L","") -> L | L5: =IFERROR(INDEX(Betriebeliste!$A$1:BM$299,MATCH(TEXT(H5,0),Betriebeliste!$A$1:$A$331,0),30),"") -> 0
B6: 19 | C6: =IFERROR(INDEX(Betriebeliste!$A$1:AA$299,MATCH(TEXT(B6,0),Betriebeliste!$A$1:$A$331,0),27),"") -> 588 | D6: =IFERROR(INDEX(Betriebeliste!$A$1:AC$299,MATCH(TEXT(B6,0),Betriebeliste!$A$1:$A$331,0),29)/C6,"") -> 100% | E6: =IF(INDEX(Betriebeliste!$A$1:E$331,MATCH(TEXT(B6,0),Betriebeliste!$A$1:$A$331,0),5)=1,"L","") -> L | F6: =IFERROR(INDEX(Betriebeliste!$A$1:BG$299,MATCH(TEXT(B6,0),Betriebeliste!$A$1:$A$331,0),30),"") -> 0 | H6: 131 | I6: =IFERROR(INDEX(Betriebeliste!$A$1:AE$298,MATCH(TEXT(H6,0),Betriebeliste!$A$1:$A$331,0),27),"") -> 98 | J6: =IFERROR(INDEX(Betriebeliste!$A$1:AF$299,MATCH(TEXT(H6,0),Betriebeliste!$A$1:$A$331,0),29)/I6,"") -> 99% | K6: =IF(INDEX(Betriebeliste!$A$1:K$331,MATCH(TEXT(H6,0),Betriebeliste!$A$1:$A$331,0),5)=1,"L","") -> L | L6: =IFERROR(INDEX(Betriebeliste!$A$1:BM$299,MATCH(TEXT(H6,0),Betriebeliste!$A$1:$A$331,0),30),"") -> 0
B8: Duisburg | H8: Düsseldorf
B9: 62.1 | C9: =IFERROR(INDEX(Betriebeliste!$A$1:AA$299,MATCH(TEXT(B9,0),Betriebeliste!$A$1:$A$331,0),27),"") -> 173 | D9: =IFERROR(INDEX(Betriebeliste!$A$1:AC$299,MATCH(B9,Betriebeliste!$A$1:$A$331,0),29)/C9,"") -> 100% | E9: =IF(INDEX(Betriebeliste!$A$1:E$331,MATCH(B9,Betriebeliste!$A$1:$A$331,0),5)=1,"L","") -> L | F9: =IFERROR(INDEX(Betriebeliste!$A$1:BG$299,MATCH(B9,Betriebeliste!$A$1:$A$331,0),30),"") -> 0 | H9: 22.1 | I9: =IFERROR(INDEX(Betriebeliste!$A$1:AA$298,MATCH(H9,Betriebeliste!$A$1:$A$331,0),27),"") -> 349 | J9: =IFERROR(INDEX(Betriebeliste!$A$1:AF$299,MATCH(H9,Betriebeliste!$A$1:$A$331,0),29)/I9,"") -> 73% | K9: =IF(INDEX(Betriebeliste!$A$1:K$331,MATCH(H9,Betriebeliste!$A$1:$A$331,0),5)=1,"L","") -> L | L9: =IFERROR(INDEX(Betriebeliste!$A$1:BM$299,MATCH(H9,Betriebeliste!$A$1:$A$331,0),30),"") -> 0
B10: 62.2 | C10: =IFERROR(INDEX(Betriebeliste!$A$1:AA$299,MATCH(B10,Betriebeliste!$A$1:$A$331,0),27),"") -> 51 | D10: =IFERROR(INDEX(Betriebeliste!$A$1:AC$299,MATCH(B10,Betriebeliste!$A$1:$A$331,0),29)/C10,"") -> 98% | E10: =IF(INDEX(Betriebeliste!$A$1:E$331,MATCH(B10,Betriebeliste!$A$1:$A$331,0),5)=1,"L","") -> L | F10: =IFERROR(INDEX(Betriebeliste!$A$1:BG$299,MATCH(B10,Betriebeliste!$A$1:$A$331,0),30),"") -> 0 | H10: 22.2 | I10: =IFERROR(INDEX(Betriebeliste!$A$1:AA$298,MATCH(H10,Betriebeliste!$A$1:$A$331,0),27),"") -> 92 | J10: =IFERROR(INDEX(Betriebeliste!$A$1:AF$299,MATCH(H10,Betriebeliste!$A$1:$A$331,0),29)/I10,"") -> 90% | K10: =IF(INDEX(Betriebeliste!$A$1:K$331,MATCH(H10,Betriebeliste!$A$1:$A$331,0),5)=1,"L","") -> L | L10: =IFERROR(INDEX(Betriebeliste!$A$1:BM$299,MATCH(H10,Betriebeliste!$A$1:$A$331,0),30),"") -> 0
B11: 62.3 | C11: =IFERROR(INDEX(Betriebeliste!$A$1:AA$299,MATCH(B11,Betriebeliste!$A$1:$A$331,0),27),"") -> 40 | D11: =IFERROR(INDEX(Betriebeliste!$A$1:AC$299,MATCH(B11,Betriebeliste!$A$1:$A$331,0),29)/C11,"") -> 100% | E11: =IF(INDEX(Betriebeliste!$A$1:E$331,MATCH(B11,Betriebeliste!$A$1:$A$331,0),5)=1,"L","") ->  | F11: =IFERROR(INDEX(Betriebeliste!$A$1:BG$299,MATCH(B11,Betriebeliste!$A$1:$A$331,0),30),"") -> 0 | H11: 22.3 | I11: =IFERROR(INDEX(Betriebeliste!$A$1:AA$298,MATCH(H11,Betriebeliste!$A$1:$A$331,0),27),"") -> 131 | J11: =IFERROR(INDEX(Betriebeliste!$A$1:AF$299,MATCH(H11,Betriebeliste!$A$1:$A$331,0),29)/I11,"") -> 97% | K11: =IF(INDEX(Betriebeliste!$A$1:K$331,MATCH(H11,Betriebeliste!$A$1:$A$331,0),5)=1,"L","") -> L | L11: =IFERROR(INDEX(Betriebeliste!$A$1:BM$299,MATCH(H11,Betriebeliste!$A$1:$A$331,0),30),"") -> 0
B12: 62.4 | C12: =IFERROR(INDEX(Betriebeliste!$A$1:AA$299,MATCH(B12,Betriebeliste!$A$1:$A$331,0),27),"") -> 384 | D12: =IFERROR(INDEX(Betriebeliste!$A$1:AC$299,MATCH(B12,Betriebeliste!$A$1:$A$331,0),29)/C12,"") -> 100% | E12: =IF(INDEX(Betriebeliste!$A$1:E$331,MATCH(B12,Betriebeliste!$A$1:$A$331,0),5)=1,"L","") -> L | F12: =IFERROR(INDEX(Betriebeliste!$A$1:BG$299,MATCH(B12,Betriebeliste!$A$1:$A$331,0),30),"") -> 0 | H12: 22.4 | I12: =IFERROR(INDEX(Betriebeliste!$A$1:AA$298,MATCH(H12,Betriebeliste!$A$1:$A$331,0),27),"") -> 277 | J12: =IFERROR(INDEX(Betriebeliste!$A$1:AF$299,MATCH(H12,Betriebeliste!$A$1:$A$331,0),29)/I12,"") -> 97% | K12: =IF(INDEX(Betriebeliste!$A$1:K$331,MATCH(H12,Betriebeliste!$A$1:$A$331,0),5)=1,"L","") -> L | L12: =IFERROR(INDEX(Betriebeliste!$A$1:BM$299,MATCH(H12,Betriebeliste!$A$1:$A$331,0),30),"") -> 0
B13: 62.5 | C13: =IFERROR(INDEX(Betriebeliste!$A$1:AA$299,MATCH(B13,Betriebeliste!$A$1:$A$331,0),27),"") -> 3 | D13: =IFERROR(INDEX(Betriebeliste!$A$1:AC$299,MATCH(B13,Betriebeliste!$A$1:$A$331,0),29)/C13,"") -> 100% | E13: =IF(INDEX(Betriebeliste!$A$1:E$331,MATCH(B13,Betriebeliste!$A$1:$A$331,0),5)=1,"L","") ->  | F13: =IFERROR(INDEX(Betriebeliste!$A$1:BG$299,MATCH(B13,Betriebeliste!$A$1:$A$331,0),30),"") -> 0 | H13: 22.5 | I13: =IFERROR(INDEX(Betriebeliste!$A$1:AA$298,MATCH(H13,Betriebeliste!$A$1:$A$331,0),27),"") -> 115 | J13: =IFERROR(INDEX(Betriebeliste!$A$1:AF$299,MATCH(H13,Betriebeliste!$A$1:$A$331,0),29)/I13,"") -> 99% | K13: =IF(INDEX(Betriebeliste!$A$1:K$331,MATCH(H13,Betriebeliste!$A$1:$A$331,0),5)=1,"L","") -> L | L13: =IFERROR(INDEX(Betriebeliste!$A$1:BM$299,MATCH(H13,Betriebeliste!$A$1:$A$331,0),30),"") -> 4
B14: 62.6 | C14: =IFERROR(INDEX(Betriebeliste!$A$1:AA$299,MATCH(B14,Betriebeliste!$A$1:$A$331,0),27),"") -> 74 | D14: =IFERROR(INDEX(Betriebeliste!$A$1:AC$299,MATCH(B14,Betriebeliste!$A$1:$A$331,0),29)/C14,"") -> 100% | E14: =IF(INDEX(Betriebeliste!$A$1:E$331,MATCH(B14,Betriebeliste!$A$1:$A$331,0),5)=1,"L","") ->  | F14: =IFERROR(INDEX(Betriebeliste!$A$1:BG$299,MATCH(B14,Betriebeliste!$A$1:$A$331,0),30),"") -> 0 | H14: 22.6 | I14: =IFERROR(INDEX(Betriebeliste!$A$1:AA$298,MATCH(H14,Betriebeliste!$A$1:$A$331,0),27),"") -> 9 | J14: =IFERROR(INDEX(Betriebeliste!$A$1:AF$299,MATCH(H14,Betriebeliste!$A$1:$A$331,0),29)/I14,"") -> 100% | K14: =IF(INDEX(Betriebeliste!$A$1:K$331,MATCH(H14,Betriebeliste!$A$1:$A$331,0),5)=1,"L","") ->  | L14: =IFERROR(INDEX(Betriebeliste!$A$1:BM$299,MATCH(H14,Betriebeliste!$A$1:$A$331,0),30),"") -> 0
B15: 62.7 | C15: =IFERROR(INDEX(Betriebeliste!$A$1:AA$299,MATCH(B15,Betriebeliste!$A$1:$A$331,0),27),"") -> 81 | D15: =IFERROR(INDEX(Betriebeliste!$A$1:AC$299,MATCH(B15,Betriebeliste!$A$1:$A$331,0),29)/C15,"") -> 100% | E15: =IF(INDEX(Betriebeliste!$A$1:E$331,MATCH(B15,Betriebeliste!$A$1:$A$331,0),5)=1,"L","") ->  | F15: =IFERROR(INDEX(Betriebeliste!$A$1:BG$299,MATCH(B15,Betriebeliste!$A$1:$A$331,0),30),"") -> 0 | H15: 22.7 | I15: =IFERROR(INDEX(Betriebeliste!$A$1:AA$298,MATCH(H15,Betriebeliste!$A$1:$A$331,0),27),"") -> 139 | J15: =IFERROR(INDEX(Betriebeliste!$A$1:AF$299,MATCH(H15,Betriebeliste!$A$1:$A$331,0),29)/I15,"") -> 82% | K15: =IF(INDEX(Betriebeliste!$A$1:K$331,MATCH(H15,Betriebeliste!$A$1:$A$331,0),5)=1,"L","") ->  | L15: =IFERROR(INDEX(Betriebeliste!$A$1:BM$299,MATCH(H15,Betriebeliste!$A$1:$A$331,0),30),"") -> 0
B16: 62.8 | C16: =IFERROR(INDEX(Betriebeliste!$A$1:AA$299,MATCH(B16,Betriebeliste!$A$1:$A$331,0),27),"") -> 21 | D16: =IFERROR(INDEX(Betriebeliste!$A$1:AC$299,MATCH(B16,Betriebeliste!$A$1:$A$331,0),29)/C16,"") -> 76% | E16: =IF(INDEX(Betriebeliste!$A$1:E$331,MATCH(B16,Betriebeliste!$A$1:$A$331,0),5)=1,"L","") ->  | F16: =IFERROR(INDEX(Betriebeliste!$A$1:BG$299,MATCH(B16,Betriebeliste!$A$1:$A$331,0),30),"") -> 0 | H16: 22.8 | I16: =IFERROR(INDEX(Betriebeliste!$A$1:AA$298,MATCH(H16,Betriebeliste!$A$1:$A$331,0),27),"") -> 13 | J16: =IFERROR(INDEX(Betriebeliste!$A$1:AF$299,MATCH(H16,Betriebeliste!$A$1:$A$331,0),29)/I16,"") -> 85% | K16: =IF(INDEX(Betriebeliste!$A$1:K$331,MATCH(H16,Betriebeliste!$A$1:$A$331,0),5)=1,"L","") ->  | L16: =IFERROR(INDEX(Betriebeliste!$A$1:BM$299,MATCH(H16,Betriebeliste!$A$1:$A$331,0),30),"") -> 0
B17: 62.9 | C17: =IFERROR(INDEX(Betriebeliste!$A$1:AA$299,MATCH(B17,Betriebeliste!$A$1:$A$331,0),27),"") -> 6 | D17: =IFERROR(INDEX(Betriebeliste!$A$1:AC$299,MATCH(B17,Betriebeliste!$A$1:$A$331,0),29)/C17,"") -> 100% | E17: =IF(INDEX(Betriebeliste!$A$1:E$331,MATCH(B17,Betriebeliste!$A$1:$A$331,0),5)=1,"L","") ->  | F17: =IFERROR(INDEX(Betriebeliste!$A$1:BG$299,MATCH(B17,Betriebeliste!$A$1:$A$331,0),30),"") -> 0 | H17: 22.9 | I17: =IFERROR(INDEX(Betriebeliste!$A$1:AA$298,MATCH(H17,Betriebeliste!$A$1:$A$331,0),27),"") -> 14 | J17: =IFERROR(INDEX(Betriebeliste!$A$1:AF$299,MATCH(H17,Betriebeliste!$A$1:$A$331,0),29)/I17,"") -> 57% | K17: =IF(INDEX(Betriebeliste!$A$1:K$331,MATCH(H17,Betriebeliste!$A$1:$A$331,0),5)=1,"L","") ->  | L17: =IFERROR(INDEX(Betriebeliste!$A$1:BM$299,MATCH(H17,Betriebeliste!$A$1:$A$331,0),30),"") -> 0
A18: 2 Anz. Datensätze P Anz. Vorschaubilder LFilterung möglich + Neue Fotos | B18: 105 | H18: 22.11 | I18: =IFERROR(INDEX(Betriebeliste!$A$1:AA$298,MATCH(H18,Betriebeliste!$A$1:$A$331,0),27),"") -> 75 | J18: =IFERROR(INDEX(Betriebeliste!$A$1:AF$299,MATCH(H18,Betriebeliste!$A$1:$A$331,0),29)/I18,"") -> 84% | K18: =IF(INDEX(Betriebeliste!$A$1:K$331,MATCH(H18,Betriebeliste!$A$1:$A$331,0),5)=1,"L","") ->  | L18: =IFERROR(INDEX(Betriebeliste!$A$1:BM$299,MATCH(H18,Betriebeliste!$A$1:$A$331,0),30),"") -> 0
B19: 24 | C19: =IFERROR(INDEX(Betriebeliste!$A$1:AA$299,MATCH(TEXT(B19,0),Betriebeliste!$A$1:$A$331,0),27),"") -> 22 | D19: =IFERROR(INDEX(Betriebeliste!$A$1:AC$299,MATCH(TEXT(B19,0),Betriebeliste!$A$1:$A$331,0),29)/C19,"") -> 77% | E19: =IF(INDEX(Betriebeliste!$A$1:E$331,MATCH(TEXT(B19,0),Betriebeliste!$A$1:$A$331,0),5)=1,"L","") ->  | F19: =IFERROR(INDEX(Betriebeliste!$A$1:BG$299,MATCH(TEXT(B19,0),Betriebeliste!$A$1:$A$331,0),30),"") -> 0 | H19: 743 | I19: =IFERROR(INDEX(Betriebeliste!$A$1:AE$298,MATCH(TEXT(H19,0),Betriebeliste!$A$1:$A$331,0),27),"") -> 16 | J19: =IFERROR(INDEX(Betriebeliste!$A$1:AF$299,MATCH(TEXT(H19,0),Betriebeliste!$A$1:$A$331,0),29)/I19,"") -> 75% | K19: =IF(INDEX(Betriebeliste!$A$1:K$331,MATCH(TEXT(H19,0),Betriebeliste!$A$1:$A$331,0),5)=1,"L","") ->  | L19: =IFERROR(INDEX(Betriebeliste!$A$1:BM$299,MATCH(TEXT(H19,0),Betriebeliste!$A$1:$A$331,0),30),"") -> 0

Sheet E
B1: Bilderverzeichnis Deutschland
C3: 2 | D3: P | F3: + | I3: 2 | J3: P | L3: +
H4: Essen
A5: E | B5: 11 | C5: =IFERROR(INDEX(Betriebeliste!$A$1:AA$299,MATCH(TEXT(B5,0),Betriebeliste!$A$1:$A$331,0),27),"") -> 9 | D5: =IFERROR(INDEX(Betriebeliste!$A$1:AC$299,MATCH(TEXT(B5,0),Betriebeliste!$A$1:$A$331,0),29)/C5,"") -> 11% | E5: =IF(INDEX(Betriebeliste!$A$1:E$331,MATCH(TEXT(B5,0),Betriebeliste!$A$1:$A$331,0),5)=1,"L","") ->  | F5: =IFERROR(INDEX(Betriebeliste!$A$1:BG$299,MATCH(TEXT(B5,0),Betriebeliste!$A$1:$A$331,0),30),"") -> 0 | H5: 21.1 | I5: =IFERROR(INDEX(Betriebeliste!$A$1:AE$298,MATCH(H5,Betriebeliste!$A$1:$A$331,0),27),"") -> 244 | J5: =IFERROR(INDEX(Betriebeliste!$A$1:AF$299,MATCH(H5,Betriebeliste!$A$1:$A$331,0),29)/I5,"") -> 99% | K5: =IF(INDEX(Betriebeliste!$A$1:K$331,MATCH(H5,Betriebeliste!$A$1:$A$331,0),5)=1,"L","") -> L | L5: =IFERROR(INDEX(Betriebeliste!$A$1:BM$299,MATCH(H5,Betriebeliste!$A$1:$A$331,0),30),"") -> 0
B6: 37 | C6: =IFERROR(INDEX(Betriebeliste!$A$1:AA$299,MATCH(TEXT(B6,0),Betriebeliste!$A$1:$A$331,0),27),"") -> 54 | D6: =IFERROR(INDEX(Betriebeliste!$A$1:AC$299,MATCH(TEXT(B6,0),Betriebeliste!$A$1:$A$331,0),29)/C6,"") -> 100% | E6: =IF(INDEX(Betriebeliste!$A$1:E$331,MATCH(TEXT(B6,0),Betriebeliste!$A$1:$A$331,0),5)=1,"L","") -> L | F6: =IFERROR(INDEX(Betriebeliste!$A$1:BG$299,MATCH(TEXT(B6,0),Betriebeliste!$A$1:$A$331,0),30),"") -> 0 | H6: 21.2 | I6: =IFERROR(INDEX(Betriebeliste!$A$1:AE$298,MATCH(H6,Betriebeliste!$A$1:$A$331,0),27),"") -> 126 | J6: =IFERROR(INDEX(Betriebeliste!$A$1:AF$299,MATCH(H6,Betriebeliste!$A$1:$A$331,0),29)/I6,"") -> 100% | K6: =IF(INDEX(Betriebeliste!$A$1:K$331,MATCH(H6,Betriebeliste!$A$1:$A$331,0),5)=1,"L","") -> L | L6: =IFERROR(INDEX(Betriebeliste!$A$1:BM$299,MATCH(H6,Betriebeliste!$A$1:$A$331,0),30),"") -> 0
B7: 154 | C7: =IFERROR(INDEX(Betriebeliste!$A$1:AA$299,MATCH(TEXT(B7,0),Betriebeliste!$A$1:$A$331,0),27),"") -> 19 | D7: =IFERROR(INDEX(Betriebeliste!$A$1:AC$299,MATCH(TEXT(B7,0),Betriebeliste!$A$1:$A$331,0),29)/C7,"") -> 100% | E7: =IF(INDEX(Betriebeliste!$A$1:E$331,MATCH(TEXT(B7,0),Betriebeliste!$A$1:$A$331,0),5)=1,"L","") ->  | F7: =IFERROR(INDEX(Betriebeliste!$A$1:BG$299,MATCH(TEXT(B7,0),Betriebeliste!$A$1:$A$331,0),30),"") -> 0 | H7: 21.3 | I7: =IFERROR(INDEX(Betriebeliste!$A$1:AE$298,MATCH(H7,Betriebeliste!$A$1:$A$331,0),27),"") -> 120 | J7: =IFERROR(INDEX(Betriebeliste!$A$1:AF$299,MATCH(H7,Betriebeliste!$A$1:$A$331,0),29)/I7,"") -> 100% | K7: =IF(INDEX(Betriebeliste!$A$1:K$331,MATCH(H7,Betriebeliste!$A$1:$A$331,0),5)=1,"L","") -> L | L7: =IFERROR(INDEX(Betriebeliste!$A$1:BM$299,MATCH(H7,Betriebeliste!$A$1:$A$331,0),30),"") -> 0
B8: 105 | C8: =IFERROR(INDEX(Betriebeliste!$A$1:AA$299,MATCH(TEXT(B8,0),Betriebeliste!$A$1:$A$331,0),27),"") -> 43 | D8: =IFERROR(INDEX(Betriebeliste!$A$1:AC$299,MATCH(TEXT(B8,0),Betriebeliste!$A$1:$A$331,0),29)/C8,"") -> 100% | E8: =IF(INDEX(Betriebeliste!$A$1:E$331,MATCH(TEXT(B8,0),Betriebeliste!$A$1:$A$331,0),5)=1,"L","") -> L | F8: =IFERROR(INDEX(Betriebeliste!$A$1:BG$299,MATCH(TEXT(B8,0),Betriebeliste!$A$1:$A$331,0),30),"") -> 0 | H8: 21.4 | I8: =IFERROR(INDEX(Betriebeliste!$A$1:AE$298,MATCH(H8,Betriebeliste!$A$1:$A$331,0),27),"") -> 177 | J8: =IFERROR(INDEX(Betriebeliste!$A$1:AF$299,MATCH(H8,Betriebeliste!$A$1:$A$331,0),29)/I8,"") -> 100% | K8: =IF(INDEX(Betriebeliste!$A$1:K$331,MATCH(H8,Betriebeliste!$A$1:$A$331,0),5)=1,"L","") -> L | L8: =IFERROR(INDEX(Betriebeliste!$A$1:BM$299,MATCH(H8,Betriebeliste!$A$1:$A$331,0),30),"") -> 0
B9: 32 | C9: =IFERROR(INDEX(Betriebeliste!$A$1:AA$299,MATCH(TEXT(B9,0),Betriebeliste!$A$1:$A$331,0),27),"") -> 259 | D9: =IFERROR(INDEX(Betriebeliste!$A$1:AC$299,MATCH(TEXT(B9,0),Betriebeliste!$A$1:$A$331,0),29)/C9,"") -> 67% | E9: =IF(INDEX(Betriebeliste!$A$1:E$331,MATCH(TEXT(B9,0),Betriebeliste!$A$1:$A$331,0),5)=1,"L","") -> L | F9: =IFERROR(INDEX(Betriebeliste!$A$1:BG$299,MATCH(TEXT(B9,0),Betriebeliste!$A$1:$A$331,0),30),"") -> 0 | H9: 21.5 | I9: =IFERROR(INDEX(Betriebeliste!$A$1:AE$298,MATCH(H9,Betriebeliste!$A$1:$A$331,0),27),"") -> 80 | J9: =IFERROR(INDEX(Betriebeliste!$A$1:AF$299,MATCH(H9,Betriebeliste!$A$1:$A$331,0),29)/I9,"") -> 100% | K9: =IF(INDEX(Betriebeliste!$A$1:K$331,MATCH(H9,Betriebeliste!$A$1:$A$331,0),5)=1,"L","") ->  | L9: =IFERROR(INDEX(Betriebeliste!$A$1:BM$299,MATCH(H9,Betriebeliste!$A$1:$A$331,0),30),"") -> 0
B10: 104 | C10: =IFERROR(INDEX(Betriebeliste!$A$1:AA$299,MATCH(TEXT(B10,0),Betriebeliste!$A$1:$A$331,0),27),"") -> 27 | D10: =IFERROR(INDEX(Betriebeliste!$A$1:AC$299,MATCH(TEXT(B10,0),Betriebeliste!$A$1:$A$331,0),29)/C10,"") -> 85% | E10: =IF(INDEX(Betriebeliste!$A$1:E$331,MATCH(TEXT(B10,0),Betriebeliste!$A$1:$A$331,0),5)=1,"L","") ->  | F10: =IFERROR(INDEX(Betriebeliste!$A$1:BG$299,MATCH(TEXT(B10,0),Betriebeliste!$A$1:$A$331,0),30),"") -> 0 | H10: 21.6 | I10: =IFERROR(INDEX(Betriebeliste!$A$1:AE$298,MATCH(H10,Betriebeliste!$A$1:$A$331,0),27),"") -> 7 | J10: =IFERROR(INDEX(Betriebeliste!$A$1:AF$299,MATCH(H10,Betriebeliste!$A$1:$A$331,0),29)/I10,"") -> 100% | K10: =IF(INDEX(Betriebeliste!$A$1:K$331,MATCH(H10,Betriebeliste!$A$1:$A$331,0),5)=1,"L","") ->  | L10: =IFERROR(INDEX(Betriebeliste!$A$1:BM$299,MATCH(H10,Betriebeliste!$A$1:$A$331,0),30),"") -> 4
B11: 134 | C11: =IFERROR(INDEX(Betriebeliste!$A$1:AA$299,MATCH(TEXT(B11,0),Betriebeliste!$A$1:$A$331,0),27),"") -> 150 | D11: =IFERROR(INDEX(Betriebeliste!$A$1:AC$299,MATCH(TEXT(B11,0),Betriebeliste!$A$1:$A$331,0),29)/C11,"") -> 99% | E11: =IF(INDEX(Betriebeliste!$A$1:E$331,MATCH(TEXT(B11,0),Betriebeliste!$A$1:$A$331,0),5)=1,"L","") -> L | F11: =IFERROR(INDEX(Betriebeliste!$A$1:BG$299,MATCH(TEXT(B11,0),Betriebeliste!$A$1:$A$331,0),30),"") -> 0 | H11: 21.7 | I11: =IFERROR(INDEX(Betriebeliste!$A$1:AE$298,MATCH(H11,Betriebeliste!$A$1:$A$331,0),27),"") -> 98 | J11: =IFERROR(INDEX(Betriebeliste!$A$1:AF$299,MATCH(H11,Betriebeliste!$A$1:$A$331,0),29)/I11,"") -> 100% | K11: =IF(INDEX(Betriebeliste!$A$1:K$331,MATCH(H11,Betriebeliste!$A$1:$A$331,0),5)=1,"L","") ->  | L11: =IFERROR(INDEX(Betriebeliste!$A$1:BM$299,MATCH(H11,Betriebeliste!$A$1:$A$331,0),30),"") -> 0
H12: 21.8 | I12: =IFERROR(INDEX(Betriebeliste!$A$1:AE$298,MATCH(H12,Betriebeliste!$A$1:$A$331,0),27),"") -> 24 | J12: =IFERROR(INDEX(Betriebeliste!$A$1:AF$299,MATCH(H12,Betriebeliste!$A$1:$A$331,0),29)/I12,"") -> 96% | K12: =IF(INDEX(Betriebeliste!$A$1:K$331,MATCH(H12,Betriebeliste!$A$1:$A$331,0),5)=1,"L","") ->  | L12: =IFERROR(INDEX(Betriebeliste!$A$1:BM$299,MATCH(H12,Betriebeliste!$A$1:$A$331,0),30),"") -> 0
H13: 21.9 | I13: =IFERROR(INDEX(Betriebeliste!$A$1:AE$298,MATCH(H13,Betriebeliste!$A$1:$A$331,0),27),"") -> 17 | J13: =IFERROR(INDEX(Betriebeliste!$A$1:AF$299,MATCH(H13,Betriebeliste!$A$1:$A$331,0),29)/I13,"") -> 94% | K13: =IF(INDEX(Betriebeliste!$A$1:K$331,MATCH(H13,Betriebeliste!$A$1:$A$331,0),5)=1,"L","") ->  | L13: =IFERROR(INDEX(Betriebeliste!$A$1:BM$299,MATCH(H13,Betriebeliste!$A$1:$A$331,0),30),"") -> 0
H14: 21.11 | I14: =IFERROR(INDEX(Betriebeliste!$A$1:AE$298,MATCH(H14,Betriebeliste!$A$1:$A$331,0),27),"") -> 43 | J14: =IFERROR(INDEX(Betriebeliste!$A$1:AF$299,MATCH(H14,Betriebeliste!$A$1:$A$331,0),29)/I14,"") -> 100% | K14: =IF(INDEX(Betriebeliste!$A$1:K$331,MATCH(H14,Betriebeliste!$A$1:$A$331,0),5)=1,"L","") ->  | L14: =IFERROR(INDEX(Betriebeliste!$A$1:BM$299,MATCH(H14,Betriebeliste!$A$1:$A$331,0),30),"") -> 0
H15: 742 | I15: =IFERROR(INDEX(Betriebeliste!$A$1:AE$298,MATCH(TEXT(H15,0),Betriebeliste!$A$1:$A$331,0),27),"") -> 4 | J15: =IFERROR(INDEX(Betriebeliste!$A$1:AF$299,MATCH(TEXT(H15,0),Betriebeliste!$A$1:$A$331,0),29)/I15,"") -> 100% | K15: =IF(INDEX(Betriebeliste!$A$1:K$331,MATCH(TEXT(H15,0),Betriebeliste!$A$1:$A$331,0),5)=1,"L","") ->  | L15: =IFERROR(INDEX(Betriebeliste!$A$1:BM$299,MATCH(TEXT(H15,0),Betriebeliste!$A$1:$A$331,0),30),"") -> 0
H16: 744 | I16: =IFERROR(INDEX(Betriebeliste!$A$1:AE$298,MATCH(TEXT(H16,0),Betriebeliste!$A$1:$A$331,0),27),"") -> 42 | J16: =IFERROR(INDEX(Betriebeliste!$A$1:AF$299,MATCH(TEXT(H16,0),Betriebeliste!$A$1:$A$331,0),29)/I16,"") -> 100% | K16: =IF(INDEX(Betriebeliste!$A$1:K$331,MATCH(TEXT(H16,0),Betriebeliste!$A$1:$A$331,0),5)=1,"L","") ->  | L16: =IFERROR(INDEX(Betriebeliste!$A$1:BM$299,MATCH(TEXT(H16,0),Betriebeliste!$A$1:$A$331,0),30),"") -> 0
A18: 2 Anz. Datensätze P Anz. Vorschaubilder LFilterung möglich + Neue Fotos

Sheet F
B1: Bilderverzeichnis Deutschland
C3: 2 | D3: P | F3: + | I3: 2 | J3: P | L3: +
H4: Frankfurt am Main
A5: F | B5: 225.1 | C5: =IFERROR(INDEX(Betriebeliste!$A$1:AA$299,MATCH(TEXT(B5,0),Betriebeliste!$A$1:$A$331,0),27),"") -> 69 | D5: =IFERROR(INDEX(Betriebeliste!$A$1:AC$299,MATCH(TEXT(B5,0),Betriebeliste!$A$1:$A$331,0),29)/C5,"") -> 97% | E5: =IF(INDEX(Betriebeliste!$A$1:E$331,MATCH(TEXT(B5,0),Betriebeliste!$A$1:$A$331,0),5)=1,"L","") -> L | F5: =IFERROR(INDEX(Betriebeliste!$A$1:BG$299,MATCH(TEXT(B5,0),Betriebeliste!$A$1:$A$331,0),30),"") -> 0 | H5: 52.1 | I5: =IFERROR(INDEX(Betriebeliste!$A$1:AE$298,MATCH(H5,Betriebeliste!$A$1:$A$331,0),27),"") -> 683 | J5: =IFERROR(INDEX(Betriebeliste!$A$1:AF$299,MATCH(H5,Betriebeliste!$A$1:$A$331,0),29)/I5,"") -> 39% | K5: =IF(INDEX(Betriebeliste!$A$1:K$331,MATCH(H5,Betriebeliste!$A$1:$A$331,0),5)=1,"L","") -> L | L5: =IFERROR(INDEX(Betriebeliste!$A$1:BM$299,MATCH(H5,Betriebeliste!$A$1:$A$331,0),30),"") -> 0
B6: 15 | C6: =IFERROR(INDEX(Betriebeliste!$A$1:AA$299,MATCH(TEXT(B6,0),Betriebeliste!$A$1:$A$331,0),27),"") -> 119 | D6: =IFERROR(INDEX(Betriebeliste!$A$1:AC$299,MATCH(TEXT(B6,0),Betriebeliste!$A$1:$A$331,0),29)/C6,"") -> 67% | E6: =IF(INDEX(Betriebeliste!$A$1:E$331,MATCH(TEXT(B6,0),Betriebeliste!$A$1:$A$331,0),5)=1,"L","") ->  | F6: =IFERROR(INDEX(Betriebeliste!$A$1:BG$299,MATCH(TEXT(B6,0),Betriebeliste!$A$1:$A$331,0),30),"") -> 4 | H6: 52.2 | I6: =IFERROR(INDEX(Betriebeliste!$A$1:AE$298,MATCH(H6,Betriebeliste!$A$1:$A$331,0),27),"") -> 253 | J6: =IFERROR(INDEX(Betriebeliste!$A$1:AF$299,MATCH(H6,Betriebeliste!$A$1:$A$331,0),29)/I6,"") -> 39% | K6: =IF(INDEX(Betriebeliste!$A$1:K$331,MATCH(H6,Betriebeliste!$A$1:$A$331,0),5)=1,"L","") -> L | L6: =IFERROR(INDEX(Betriebeliste!$A$1:BM$299,MATCH(H6,Betriebeliste!$A$1:$A$331,0),30),"") -> 0
B7: 524.1 | C7: =IFERROR(INDEX(Betriebeliste!$A$1:AA$299,MATCH(TEXT(B7,0),Betriebeliste!$A$1:$A$331,0),27),"") -> 1 | D7: =IFERROR(INDEX(Betriebeliste!$A$1:AC$299,MATCH(TEXT(B7,0),Betriebeliste!$A$1:$A$331,0),29)/C7,"") -> 100% | E7: =IF(INDEX(Betriebeliste!$A$1:E$331,MATCH(TEXT(B7,0),Betriebeliste!$A$1:$A$331,0),5)=1,"L","") ->  | F7: =IFERROR(INDEX(Betriebeliste!$A$1:BG$299,MATCH(TEXT(B7,0),Betriebeliste!$A$1:$A$331,0),30),"") -> 0 | H7: 52.3 | I7: =IFERROR(INDEX(Betriebeliste!$A$1:AE$298,MATCH(H7,Betriebeliste!$A$1:$A$331,0),27),"") -> 196 | J7: =IFERROR(INDEX(Betriebeliste!$A$1:AF$299,MATCH(H7,Betriebeliste!$A$1:$A$331,0),29)/I7,"") -> 45% | K7: =IF(INDEX(Betriebeliste!$A$1:K$331,MATCH(H7,Betriebeliste!$A$1:$A$331,0),5)=1,"L","") -> L | L7: =IFERROR(INDEX(Betriebeliste!$A$1:BM$299,MATCH(H7,Betriebeliste!$A$1:$A$331,0),30),"") -> 0
B8: 191 | C8: =IFERROR(INDEX(Betriebeliste!$A$1:AA$299,MATCH(TEXT(B8,0),Betriebeliste!$A$1:$A$331,0),27),"") -> 387 | D8: =IFERROR(INDEX(Betriebeliste!$A$1:AC$299,MATCH(TEXT(B8,0),Betriebeliste!$A$1:$A$331,0),29)/C8,"") -> 99% | E8: =IF(INDEX(Betriebeliste!$A$1:E$331,MATCH(TEXT(B8,0),Betriebeliste!$A$1:$A$331,0),5)=1,"L","") -> L | F8: =IFERROR(INDEX(Betriebeliste!$A$1:BG$299,MATCH(TEXT(B8,0),Betriebeliste!$A$1:$A$331,0),30),"") -> 0 | H8: 52.4 | I8: =IFERROR(INDEX(Betriebeliste!$A$1:AE$298,MATCH(H8,Betriebeliste!$A$1:$A$331,0),27),"") -> 268 | J8: =IFERROR(INDEX(Betriebeliste!$A$1:AF$299,MATCH(H8,Betriebeliste!$A$1:$A$331,0),29)/I8,"") -> 66% | K8: =IF(INDEX(Betriebeliste!$A$1:K$331,MATCH(H8,Betriebeliste!$A$1:$A$331,0),5)=1,"L","") -> L | L8: =IFERROR(INDEX(Betriebeliste!$A$1:BM$299,MATCH(H8,Betriebeliste!$A$1:$A$331,0),30),"") -> 0
H9: 52.5 | I9: =IFERROR(INDEX(Betriebeliste!$A$1:AE$298,MATCH(H9,Betriebeliste!$A$1:$A$331,0),27),"") -> 66 | J9: =IFERROR(INDEX(Betriebeliste!$A$1:AF$299,MATCH(H9,Betriebeliste!$A$1:$A$331,0),29)/I9,"") -> 62% | K9: =IF(INDEX(Betriebeliste!$A$1:K$331,MATCH(H9,Betriebeliste!$A$1:$A$331,0),5)=1,"L","") ->  | L9: =IFERROR(INDEX(Betriebeliste!$A$1:BM$299,MATCH(H9,Betriebeliste!$A$1:$A$331,0),30),"") -> 0
H10: 52.6 | I10: =IFERROR(INDEX(Betriebeliste!$A$1:AE$298,MATCH(H10,Betriebeliste!$A$1:$A$331,0),27),"") -> 12 | J10: =IFERROR(INDEX(Betriebeliste!$A$1:AF$299,MATCH(H10,Betriebeliste!$A$1:$A$331,0),29)/I10,"") -> 58% | K10: =IF(INDEX(Betriebeliste!$A$1:K$331,MATCH(H10,Betriebeliste!$A$1:$A$331,0),5)=1,"L","") ->  | L10: =IFERROR(INDEX(Betriebeliste!$A$1:BM$299,MATCH(H10,Betriebeliste!$A$1:$A$331,0),30),"") -> 0
H11: 52.7 | I11: =IFERROR(INDEX(Betriebeliste!$A$1:AE$298,MATCH(H11,Betriebeliste!$A$1:$A$331,0),27),"") -> 229 | J11: =IFERROR(INDEX(Betriebeliste!$A$1:AF$299,MATCH(H11,Betriebeliste!$A$1:$A$331,0),29)/I11,"") -> 65% | K11: =IF(INDEX(Betriebeliste!$A$1:K$331,MATCH(H11,Betriebeliste!$A$1:$A$331,0),5)=1,"L","") ->  | L11: =IFERROR(INDEX(Betriebeliste!$A$1:BM$299,MATCH(H11,Betriebeliste!$A$1:$A$331,0),30),"") -> 0
H12: 52.8 | I12: =IFERROR(INDEX(Betriebeliste!$A$1:AE$298,MATCH(H12,Betriebeliste!$A$1:$A$331,0),27),"") -> 84 | J12: =IFERROR(INDEX(Betriebeliste!$A$1:AF$299,MATCH(H12,Betriebeliste!$A$1:$A$331,0),29)/I12,"") -> 33% | K12: =IF(INDEX(Betriebeliste!$A$1:K$331,MATCH(H12,Betriebeliste!$A$1:$A$331,0),5)=1,"L","") ->  | L12: =IFERROR(INDEX(Betriebeliste!$A$1:BM$299,MATCH(H12,Betriebeliste!$A$1:$A$331,0),30),"") -> 0
H13: 52.9 | I13: =IFERROR(INDEX(Betriebeliste!$A$1:AE$298,MATCH(H13,Betriebeliste!$A$1:$A$331,0),27),"") -> 134 | J13: =IFERROR(INDEX(Betriebeliste!$A$1:AF$299,MATCH(H13,Betriebeliste!$A$1:$A$331,0),29)/I13,"") -> 47% | K13: =IF(INDEX(Betriebeliste!$A$1:K$331,MATCH(H13,Betriebeliste!$A$1:$A$331,0),5)=1,"L","") ->  | L13: =IFERROR(INDEX(Betriebeliste!$A$1:BM$299,MATCH(H13,Betriebeliste!$A$1:$A$331,0),30),"") -> 0
H14: 545 | I14: =IFERROR(INDEX(Betriebeliste!$A$1:AE$298,MATCH(TEXT(H14,0),Betriebeliste!$A$1:$A$331,0),27),"") -> 41 | J14: =IFERROR(INDEX(Betriebeliste!$A$1:AF$299,MATCH(TEXT(H14,0),Betriebeliste!$A$1:$A$331,0),29)/I14,"") -> 49% | K14: =IF(INDEX(Betriebeliste!$A$1:K$331,MATCH(TEXT(H14,0),Betriebeliste!$A$1:$A$331,0),5)=1,"L","") ->  | L14: =IFERROR(INDEX(Betriebeliste!$A$1:BM$299,MATCH(TEXT(H14,0),Betriebeliste!$A$1:$A$331,0),30),"") -> 0
H15: 312 | I15: =IFERROR(INDEX(Betriebeliste!$A$1:AE$298,MATCH(TEXT(H15,0),Betriebeliste!$A$1:$A$331,0),27),"") -> 26 | J15: =IFERROR(INDEX(Betriebeliste!$A$1:AF$299,MATCH(TEXT(H15,0),Betriebeliste!$A$1:$A$331,0),29)/I15,"") -> 0% | K15: =IF(INDEX(Betriebeliste!$A$1:K$331,MATCH(TEXT(H15,0),Betriebeliste!$A$1:$A$331,0),5)=1,"L","") ->  | L15: =IFERROR(INDEX(Betriebeliste!$A$1:BM$299,MATCH(TEXT(H15,0),Betriebeliste!$A$1:$A$331,0),30),"") -> 0
H16: 111 | I16: =IFERROR(INDEX(Betriebeliste!$A$1:AE$298,MATCH(TEXT(H16,0),Betriebeliste!$A$1:$A$331,0),27),"") -> 68 | J16: =IFERROR(INDEX(Betriebeliste!$A$1:AF$299,MATCH(TEXT(H16,0),Betriebeliste!$A$1:$A$331,0),29)/I16,"") -> 96% | K16: =IF(INDEX(Betriebeliste!$A$1:K$331,MATCH(TEXT(H16,0),Betriebeliste!$A$1:$A$331,0),5)=1,"L","") ->  | L16: =IFERROR(INDEX(Betriebeliste!$A$1:BM$299,MATCH(TEXT(H16,0),Betriebeliste!$A$1:$A$331,0),30),"") -> 0
H17: 15
A18: 2 Anz. Datensätze P Anz. Vorschaubilder LFilterung möglich + Neue Fotos | H18: 524
H19: 191

Sheet GHI
B1: Bilderverzeichnis Deutschland
C3: 2 | D3: P | F3: + | I3: 2 | J3: P | L3: +
B4: 144 | C4: =IFERROR(INDEX(Betriebeliste!$A$1:AA$299,MATCH(TEXT(B4,0),Betriebeliste!$A$1:$A$331,0),27),"") -> 149 | D4: =IFERROR(INDEX(Betriebeliste!$A$1:AC$299,MATCH(TEXT(B4,0),Betriebeliste!$A$1:$A$331,0),29)/C4,"") -> 100% | E4: =IF(INDEX(Betriebeliste!$A$1:E$331,MATCH(TEXT(B4,0),Betriebeliste!$A$1:$A$331,0),5)=1,"L","") -> L | F4: =IFERROR(INDEX(Betriebeliste!$A$1:BG$299,MATCH(TEXT(B4,0),Betriebeliste!$A$1:$A$331,0),30),"") -> 0 | H4: 140 | I4: =IFERROR(INDEX(Betriebeliste!$A$1:AE$298,MATCH(TEXT(H4,0),Betriebeliste!$A$1:$A$331,0),27),"") -> 33 | J4: =IFERROR(INDEX(Betriebeliste!$A$1:AF$299,MATCH(TEXT(H4,0),Betriebeliste!$A$1:$A$331,0),29)/I4,"") -> 45% | K4: =IF(INDEX(Betriebeliste!$A$1:K$331,MATCH(TEXT(H4,0),Betriebeliste!$A$1:$A$331,0),5)=1,"L","") ->  | L4: =IFERROR(INDEX(Betriebeliste!$A$1:BM$299,MATCH(TEXT(H4,0),Betriebeliste!$A$1:$A$331,0),30),"") -> 0
A5: G H I | B5: 75 | C5: =IFERROR(INDEX(Betriebeliste!$A$1:AA$299,MATCH(TEXT(B5,0),Betriebeliste!$A$1:$A$331,0),27),"") -> 30 | D5: =IFERROR(INDEX(Betriebeliste!$A$1:AC$299,MATCH(TEXT(B5,0),Betriebeliste!$A$1:$A$331,0),29)/C5,"") -> 100% | E5: =IF(INDEX(Betriebeliste!$A$1:E$331,MATCH(TEXT(B5,0),Betriebeliste!$A$1:$A$331,0),5)=1,"L","") ->  | F5: =IFERROR(INDEX(Betriebeliste!$A$1:BG$299,MATCH(TEXT(B5,0),Betriebeliste!$A$1:$A$331,0),30),"") -> 0 | H5: 38 | I5: =IFERROR(INDEX(Betriebeliste!$A$1:AE$298,MATCH(TEXT(H5,0),Betriebeliste!$A$1:$A$331,0),27),"") -> 717 | J5: =IFERROR(INDEX(Betriebeliste!$A$1:AF$299,MATCH(TEXT(H5,0),Betriebeliste!$A$1:$A$331,0),29)/I5,"") -> 71% | K5: =IF(INDEX(Betriebeliste!$A$1:K$331,MATCH(TEXT(H5,0),Betriebeliste!$A$1:$A$331,0),5)=1,"L","") -> L | L5: =IFERROR(INDEX(Betriebeliste!$A$1:BM$299,MATCH(TEXT(H5,0),Betriebeliste!$A$1:$A$331,0),30),"") -> 3
B6: 84 | C6: =IFERROR(INDEX(Betriebeliste!$A$1:AA$299,MATCH(TEXT(B6,0),Betriebeliste!$A$1:$A$331,0),27),"") -> 199 | D6: =IFERROR(INDEX(Betriebeliste!$A$1:AC$299,MATCH(TEXT(B6,0),Betriebeliste!$A$1:$A$331,0),29)/C6,"") -> 99% | E6: =IF(INDEX(Betriebeliste!$A$1:E$331,MATCH(TEXT(B6,0),Betriebeliste!$A$1:$A$331,0),5)=1,"L","") -> L | F6: =IFERROR(INDEX(Betriebeliste!$A$1:BG$299,MATCH(TEXT(B6,0),Betriebeliste!$A$1:$A$331,0),30),"") -> 9 | H6: 100 | I6: =IFERROR(INDEX(Betriebeliste!$A$1:AE$298,MATCH(TEXT(H6,0),Betriebeliste!$A$1:$A$331,0),27),"") -> 541 | J6: =IFERROR(INDEX(Betriebeliste!$A$1:AF$299,MATCH(TEXT(H6,0),Betriebeliste!$A$1:$A$331,0),29)/I6,"") -> 100% | K6: =IF(INDEX(Betriebeliste!$A$1:K$331,MATCH(TEXT(H6,0),Betriebeliste!$A$1:$A$331,0),5)=1,"L","") -> L | L6: =IFERROR(INDEX(Betriebeliste!$A$1:BM$299,MATCH(TEXT(H6,0),Betriebeliste!$A$1:$A$331,0),30),"") -> 0
B7: 44 | C7: =IFERROR(INDEX(Betriebeliste!$A$1:AA$299,MATCH(TEXT(B7,0),Betriebeliste!$A$1:$A$331,0),27),"") -> 106 | D7: =IFERROR(INDEX(Betriebeliste!$A$1:AC$299,MATCH(TEXT(B7,0),Betriebeliste!$A$1:$A$331,0),29)/C7,"") -> 58% | E7: =IF(INDEX(Betriebeliste!$A$1:E$331,MATCH(TEXT(B7,0),Betriebeliste!$A$1:$A$331,0),5)=1,"L","") -> L | F7: =IFERROR(INDEX(Betriebeliste!$A$1:BG$299,MATCH(TEXT(B7,0),Betriebeliste!$A$1:$A$331,0),30),"") -> 0 | H7: 133 | I7: =IFERROR(INDEX(Betriebeliste!$A$1:AE$298,MATCH(TEXT(H7,0),Betriebeliste!$A$1:$A$331,0),27),"") -> 50 | J7: =IFERROR(INDEX(Betriebeliste!$A$1:AF$299,MATCH(TEXT(H7,0),Betriebeliste!$A$1:$A$331,0),29)/I7,"") -> 100% | K7: =IF(INDEX(Betriebeliste!$A$1:K$331,MATCH(TEXT(H7,0),Betriebeliste!$A$1:$A$331,0),5)=1,"L","") ->  | L7: =IFERROR(INDEX(Betriebeliste!$A$1:BM$299,MATCH(TEXT(H7,0),Betriebeliste!$A$1:$A$331,0),30),"") -> 0
B8: 36 | C8: =IFERROR(INDEX(Betriebeliste!$A$1:AA$299,MATCH(TEXT(B8,0),Betriebeliste!$A$1:$A$331,0),27),"") -> 268 | D8: =IFERROR(INDEX(Betriebeliste!$A$1:AC$299,MATCH(TEXT(B8,0),Betriebeliste!$A$1:$A$331,0),29)/C8,"") -> 100% | E8: =IF(INDEX(Betriebeliste!$A$1:E$331,MATCH(TEXT(B8,0),Betriebeliste!$A$1:$A$331,0),5)=1,"L","") -> L | F8: =IFERROR(INDEX(Betriebeliste!$A$1:BG$299,MATCH(TEXT(B8,0),Betriebeliste!$A$1:$A$331,0),30),"") -> 0 | H8: 59 | I8: =IFERROR(INDEX(Betriebeliste!$A$1:AE$298,MATCH(TEXT(H8,0),Betriebeliste!$A$1:$A$331,0),27),"") -> 72 | J8: =IFERROR(INDEX(Betriebeliste!$A$1:AF$299,MATCH(TEXT(H8,0),Betriebeliste!$A$1:$A$331,0),29)/I8,"") -> 31% | K8: =IF(INDEX(Betriebeliste!$A$1:K$331,MATCH(TEXT(H8,0),Betriebeliste!$A$1:$A$331,0),5)=1,"L","") ->  | L8: =IFERROR(INDEX(Betriebeliste!$A$1:BM$299,MATCH(TEXT(H8,0),Betriebeliste!$A$1:$A$331,0),30),"") -> 0
B9: 569 | C9: =IFERROR(INDEX(Betriebeliste!$A$1:AA$299,MATCH(TEXT(B9,0),Betriebeliste!$A$1:$A$331,0),27),"") -> 6 | D9: =IFERROR(INDEX(Betriebeliste!$A$1:AC$299,MATCH(TEXT(B9,0),Betriebeliste!$A$1:$A$331,0),29)/C9,"") -> 100% | E9: =IF(INDEX(Betriebeliste!$A$1:E$331,MATCH(TEXT(B9,0),Betriebeliste!$A$1:$A$331,0),5)=1,"L","") ->  | F9: =IFERROR(INDEX(Betriebeliste!$A$1:BG$299,MATCH(TEXT(B9,0),Betriebeliste!$A$1:$A$331,0),30),"") -> 0 | H9: 73 | I9: =IFERROR(INDEX(Betriebeliste!$A$1:AE$298,MATCH(TEXT(H9,0),Betriebeliste!$A$1:$A$331,0),27),"") -> 132 | J9: =IFERROR(INDEX(Betriebeliste!$A$1:AF$299,MATCH(TEXT(H9,0),Betriebeliste!$A$1:$A$331,0),29)/I9,"") -> 55% | K9: =IF(INDEX(Betriebeliste!$A$1:K$331,MATCH(TEXT(H9,0),Betriebeliste!$A$1:$A$331,0),5)=1,"L","") -> L | L9: =IFERROR(INDEX(Betriebeliste!$A$1:BM$299,MATCH(TEXT(H9,0),Betriebeliste!$A$1:$A$331,0),30),"") -> 0
B10: 41 | C10: =IFERROR(INDEX(Betriebeliste!$A$1:AA$299,MATCH(TEXT(B10,0),Betriebeliste!$A$1:$A$331,0),27),"") -> 2 | D10: =IFERROR(INDEX(Betriebeliste!$A$1:AC$299,MATCH(TEXT(B10,0),Betriebeliste!$A$1:$A$331,0),29)/C10,"") -> 0% | E10: =IF(INDEX(Betriebeliste!$A$1:E$331,MATCH(TEXT(B10,0),Betriebeliste!$A$1:$A$331,0),5)=1,"L","") ->  | F10: =IFERROR(INDEX(Betriebeliste!$A$1:BG$299,MATCH(TEXT(B10,0),Betriebeliste!$A$1:$A$331,0),30),"") -> 0 | H10: 67 | I10: =IFERROR(INDEX(Betriebeliste!$A$1:AE$298,MATCH(TEXT(H10,0),Betriebeliste!$A$1:$A$331,0),27),"") -> 44 | J10: =IFERROR(INDEX(Betriebeliste!$A$1:AF$299,MATCH(TEXT(H10,0),Betriebeliste!$A$1:$A$331,0),29)/I10,"") -> 100% | K10: =IF(INDEX(Betriebeliste!$A$1:K$331,MATCH(TEXT(H10,0),Betriebeliste!$A$1:$A$331,0),5)=1,"L","") ->  | L10: =IFERROR(INDEX(Betriebeliste!$A$1:BM$299,MATCH(TEXT(H10,0),Betriebeliste!$A$1:$A$331,0),30),"") -> 0
B11: 149 | C11: =IFERROR(INDEX(Betriebeliste!$A$1:AA$299,MATCH(TEXT(B11,0),Betriebeliste!$A$1:$A$331,0),27),"") -> 41 | D11: =IFERROR(INDEX(Betriebeliste!$A$1:AC$299,MATCH(TEXT(B11,0),Betriebeliste!$A$1:$A$331,0),29)/C11,"") -> 100% | E11: =IF(INDEX(Betriebeliste!$A$1:E$331,MATCH(TEXT(B11,0),Betriebeliste!$A$1:$A$331,0),5)=1,"L","") ->  | F11: =IFERROR(INDEX(Betriebeliste!$A$1:BG$299,MATCH(TEXT(B11,0),Betriebeliste!$A$1:$A$331,0),30),"") -> 0 | H11: 57 | I11: =IFERROR(INDEX(Betriebeliste!$A$1:AE$298,MATCH(TEXT(H11,0),Betriebeliste!$A$1:$A$331,0),27),"") -> 9 | J11: =IFERROR(INDEX(Betriebeliste!$A$1:AF$299,MATCH(TEXT(H11,0),Betriebeliste!$A$1:$A$331,0),29)/I11,"") -> 100% | K11: =IF(INDEX(Betriebeliste!$A$1:K$331,MATCH(TEXT(H11,0),Betriebeliste!$A$1:$A$331,0),5)=1,"L","") ->  | L11: =IFERROR(INDEX(Betriebeliste!$A$1:BM$299,MATCH(TEXT(H11,0),Betriebeliste!$A$1:$A$331,0),30),"") -> 0
H12: 61 | I12: =IFERROR(INDEX(Betriebeliste!$A$1:AE$298,MATCH(TEXT(H12,0),Betriebeliste!$A$1:$A$331,0),27),"") -> 14 | J12: =IFERROR(INDEX(Betriebeliste!$A$1:AF$299,MATCH(TEXT(H12,0),Betriebeliste!$A$1:$A$331,0),29)/I12,"") -> 100% | K12: =IF(INDEX(Betriebeliste!$A$1:K$331,MATCH(TEXT(H12,0),Betriebeliste!$A$1:$A$331,0),5)=1,"L","") ->  | L12: =IFERROR(INDEX(Betriebeliste!$A$1:BM$299,MATCH(TEXT(H12,0),Betriebeliste!$A$1:$A$331,0),30),"") -> 0
B13: 83 | C13: =IFERROR(INDEX(Betriebeliste!$A$1:AA$299,MATCH(TEXT(B13,0),Betriebeliste!$A$1:$A$331,0),27),"") -> 288 | D13: =IFERROR(INDEX(Betriebeliste!$A$1:AC$299,MATCH(TEXT(B13,0),Betriebeliste!$A$1:$A$331,0),29)/C13,"") -> 100% | E13: =IF(INDEX(Betriebeliste!$A$1:E$331,MATCH(TEXT(B13,0),Betriebeliste!$A$1:$A$331,0),5)=1,"L","") -> L | F13: =IFERROR(INDEX(Betriebeliste!$A$1:BG$299,MATCH(TEXT(B13,0),Betriebeliste!$A$1:$A$331,0),30),"") -> 0 | H13: 1001 | I13: =IFERROR(INDEX(Betriebeliste!$A$1:AE$298,MATCH(TEXT(H13,0),Betriebeliste!$A$1:$A$331,0),27),"") -> 4 | J13: =IFERROR(INDEX(Betriebeliste!$A$1:AF$299,MATCH(TEXT(H13,0),Betriebeliste!$A$1:$A$331,0),29)/I13,"") -> 0% | K13: =IF(INDEX(Betriebeliste!$A$1:K$331,MATCH(TEXT(H13,0),Betriebeliste!$A$1:$A$331,0),5)=1,"L","") ->  | L13: =IFERROR(INDEX(Betriebeliste!$A$1:BM$299,MATCH(TEXT(H13,0),Betriebeliste!$A$1:$A$331,0),30),"") -> 0
B14: 31 | C14: =IFERROR(INDEX(Betriebeliste!$A$1:AA$299,MATCH(TEXT(B14,0),Betriebeliste!$A$1:$A$331,0),27),"") -> 102 | D14: =IFERROR(INDEX(Betriebeliste!$A$1:AC$299,MATCH(TEXT(B14,0),Betriebeliste!$A$1:$A$331,0),29)/C14,"") -> 100% | E14: =IF(INDEX(Betriebeliste!$A$1:E$331,MATCH(TEXT(B14,0),Betriebeliste!$A$1:$A$331,0),5)=1,"L","") ->  | F14: =IFERROR(INDEX(Betriebeliste!$A$1:BG$299,MATCH(TEXT(B14,0),Betriebeliste!$A$1:$A$331,0),30),"") -> 0 | H14: 147 | I14: =IFERROR(INDEX(Betriebeliste!$A$1:AE$298,MATCH(TEXT(H14,0),Betriebeliste!$A$1:$A$331,0),27),"") -> 19 | J14: =IFERROR(INDEX(Betriebeliste!$A$1:AF$299,MATCH(TEXT(H14,0),Betriebeliste!$A$1:$A$331,0),29)/I14,"") -> 100% | K14: =IF(INDEX(Betriebeliste!$A$1:K$331,MATCH(TEXT(H14,0),Betriebeliste!$A$1:$A$331,0),5)=1,"L","") ->  | L14: =IFERROR(INDEX(Betriebeliste!$A$1:BM$299,MATCH(TEXT(H14,0),Betriebeliste!$A$1:$A$331,0),30),"") -> 0
B15: 13 | C15: =IFERROR(INDEX(Betriebeliste!$A$1:AA$299,MATCH(TEXT(B15,0),Betriebeliste!$A$1:$A$331,0),27),"") -> 294 | D15: =IFERROR(INDEX(Betriebeliste!$A$1:AC$299,MATCH(TEXT(B15,0),Betriebeliste!$A$1:$A$331,0),29)/C15,"") -> 75% | E15: =IF(INDEX(Betriebeliste!$A$1:E$331,MATCH(TEXT(B15,0),Betriebeliste!$A$1:$A$331,0),5)=1,"L","") -> L | F15: =IFERROR(INDEX(Betriebeliste!$A$1:BG$299,MATCH(TEXT(B15,0),Betriebeliste!$A$1:$A$331,0),30),"") -> 0
B16: 86 | C16: =IFERROR(INDEX(Betriebeliste!$A$1:AA$299,MATCH(TEXT(B16,0),Betriebeliste!$A$1:$A$331,0),27),"") -> 2 | D16: =IFERROR(INDEX(Betriebeliste!$A$1:AC$299,MATCH(TEXT(B16,0),Betriebeliste!$A$1:$A$331,0),29)/C16,"") -> 0% | E16: =IF(INDEX(Betriebeliste!$A$1:E$331,MATCH(TEXT(B16,0),Betriebeliste!$A$1:$A$331,0),5)=1,"L","") ->  | F16: =IFERROR(INDEX(Betriebeliste!$A$1:BG$299,MATCH(TEXT(B16,0),Betriebeliste!$A$1:$A$331,0),30),"") -> 0 | H16: 155 | I16: =IFERROR(INDEX(Betriebeliste!$A$1:AE$298,MATCH(TEXT(H16,0),Betriebeliste!$A$1:$A$331,0),27),"") -> 22 | J16: =IFERROR(INDEX(Betriebeliste!$A$1:AF$299,MATCH(TEXT(H16,0),Betriebeliste!$A$1:$A$331,0),29)/I16,"") -> 100% | K16: =IF(INDEX(Betriebeliste!$A$1:K$331,MATCH(TEXT(H16,0),Betriebeliste!$A$1:$A$331,0),5)=1,"L","") ->  | L16: =IFERROR(INDEX(Betriebeliste!$A$1:BM$299,MATCH(TEXT(H16,0),Betriebeliste!$A$1:$A$331,0),30),"") -> 0
B17: 42 | C17: =IFERROR(INDEX(Betriebeliste!$A$1:AA$299,MATCH(TEXT(B17,0),Betriebeliste!$A$1:$A$331,0),27),"") -> 572 | D17: =IFERROR(INDEX(Betriebeliste!$A$1:AC$299,MATCH(TEXT(B17,0),Betriebeliste!$A$1:$A$331,0),29)/C17,"") -> 98% | E17: =IF(INDEX(Betriebeliste!$A$1:E$331,MATCH(TEXT(B17,0),Betriebeliste!$A$1:$A$331,0),5)=1,"L","") -> L | F17: =IFERROR(INDEX(Betriebeliste!$A$1:BG$299,MATCH(TEXT(B17,0),Betriebeliste!$A$1:$A$331,0),30),"") -> 0 | H17: 668 | I17: =IFERROR(INDEX(Betriebeliste!$A$1:AE$298,MATCH(TEXT(H17,0),Betriebeliste!$A$1:$A$331,0),27),"") -> 83 | J17: =IFERROR(INDEX(Betriebeliste!$A$1:AF$299,MATCH(TEXT(H17,0),Betriebeliste!$A$1:$A$331,0),29)/I17,"") -> 66% | K17: =IF(INDEX(Betriebeliste!$A$1:K$331,MATCH(TEXT(H17,0),Betriebeliste!$A$1:$A$331,0),5)=1,"L","") ->  | L17: =IFERROR(INDEX(Betriebeliste!$A$1:BM$299,MATCH(TEXT(H17,0),Betriebeliste!$A$1:$A$331,0),30),"") -> 0
A18: 2 Anz. Datensätze P Anz. Vorschaubilder LFilterung möglich + Neue Fotos | B18: 60 | C18: =IFERROR(INDEX(Betriebeliste!$A$1:AA$299,MATCH(TEXT(B18,0),Betriebeliste!$A$1:$A$331,0),27),"") -> 40 | D18: =IFERROR(INDEX(Betriebeliste!$A$1:AC$299,MATCH(TEXT(B18,0),Betriebeliste!$A$1:$A$331,0),29)/C18,"") -> 100% | E18: =IF(INDEX(Betriebeliste!$A$1:E$331,MATCH(TEXT(B18,0),Betriebeliste!$A$1:$A$331,0),5)=1,"L","") ->  | F18: =IFERROR(INDEX(Betriebeliste!$A$1:BG$299,MATCH(TEXT(B18,0),Betriebeliste!$A$1:$A$331,0),30),"") -> 0

Sheet JKL
B1: Bilderverzeichnis Deutschland
C3: 2 | D3: P | F3: + | I3: 2 | J3: P | L3: +
H4: Köln
A5: J K L | B5: 34 | C5: =IFERROR(INDEX(Betriebeliste!$A$1:AA$299,MATCH(TEXT(B5,0),Betriebeliste!$A$1:$A$331,0),27),"") -> 227 | D5: =IFERROR(INDEX(Betriebeliste!$A$1:AC$299,MATCH(TEXT(B5,0),Betriebeliste!$A$1:$A$331,0),29)/C5,"") -> 74% | E5: =IF(INDEX(Betriebeliste!$A$1:E$331,MATCH(TEXT(B5,0),Betriebeliste!$A$1:$A$331,0),5)=1,"L","") -> L | F5: =IFERROR(INDEX(Betriebeliste!$A$1:BG$299,MATCH(TEXT(B5,0),Betriebeliste!$A$1:$A$331,0),30),"") -> 3 | H5: 25.1 | I5: =IFERROR(INDEX(Betriebeliste!$A$1:AE$298,MATCH(H5,Betriebeliste!$A$1:$A$331,0),27),"") -> 311 | J5: =IFERROR(INDEX(Betriebeliste!$A$1:AF$299,MATCH(H5,Betriebeliste!$A$1:$A$331,0),29)/I5,"") -> 62% | K5: =IF(INDEX(Betriebeliste!$A$1:K$331,MATCH(H5,Betriebeliste!$A$1:$A$331,0),5)=1,"L","") -> L | L5: =IFERROR(INDEX(Betriebeliste!$A$1:BM$299,MATCH(H5,Betriebeliste!$A$1:$A$331,0),30),"") -> 0
B6: 757 | C6: =IFERROR(INDEX(Betriebeliste!$A$1:AA$299,MATCH(TEXT(B6,0),Betriebeliste!$A$1:$A$331,0),27),"") -> 1 | D6: =IFERROR(INDEX(Betriebeliste!$A$1:AC$299,MATCH(TEXT(B6,0),Betriebeliste!$A$1:$A$331,0),29)/C6,"") -> 0% | E6: =IF(INDEX(Betriebeliste!$A$1:E$331,MATCH(TEXT(B6,0),Betriebeliste!$A$1:$A$331,0),5)=1,"L","") ->  | F6: =IFERROR(INDEX(Betriebeliste!$A$1:BG$299,MATCH(TEXT(B6,0),Betriebeliste!$A$1:$A$331,0),30),"") -> 0 | H6: 25.2 | I6: =IFERROR(INDEX(Betriebeliste!$A$1:AE$298,MATCH(H6,Betriebeliste!$A$1:$A$331,0),27),"") -> 95 | J6: =IFERROR(INDEX(Betriebeliste!$A$1:AF$299,MATCH(H6,Betriebeliste!$A$1:$A$331,0),29)/I6,"") -> 88% | K6: =IF(INDEX(Betriebeliste!$A$1:K$331,MATCH(H6,Betriebeliste!$A$1:$A$331,0),5)=1,"L","") -> L | L6: =IFERROR(INDEX(Betriebeliste!$A$1:BM$299,MATCH(H6,Betriebeliste!$A$1:$A$331,0),30),"") -> 0
H7: 25.3 | I7: =IFERROR(INDEX(Betriebeliste!$A$1:AE$298,MATCH(H7,Betriebeliste!$A$1:$A$331,0),27),"") -> 28 | J7: =IFERROR(INDEX(Betriebeliste!$A$1:AF$299,MATCH(H7,Betriebeliste!$A$1:$A$331,0),29)/I7,"") -> 89% | K7: =IF(INDEX(Betriebeliste!$A$1:K$331,MATCH(H7,Betriebeliste!$A$1:$A$331,0),5)=1,"L","") ->  | L7: =IFERROR(INDEX(Betriebeliste!$A$1:BM$299,MATCH(H7,Betriebeliste!$A$1:$A$331,0),30),"") -> 0
B8: 1002 | C8: =IFERROR(INDEX(Betriebeliste!$A$1:AA$299,MATCH(TEXT(B8,0),Betriebeliste!$A$1:$A$331,0),27),"") -> 17 | D8: =IFERROR(INDEX(Betriebeliste!$A$1:AC$299,MATCH(TEXT(B8,0),Betriebeliste!$A$1:$A$331,0),29)/C8,"") -> 71% | E8: =IF(INDEX(Betriebeliste!$A$1:E$331,MATCH(TEXT(B8,0),Betriebeliste!$A$1:$A$331,0),5)=1,"L","") ->  | F8: =IFERROR(INDEX(Betriebeliste!$A$1:BG$299,MATCH(TEXT(B8,0),Betriebeliste!$A$1:$A$331,0),30),"") -> 0 | H8: 25.4 | I8: =IFERROR(INDEX(Betriebeliste!$A$1:AE$298,MATCH(H8,Betriebeliste!$A$1:$A$331,0),27),"") -> 256 | J8: =IFERROR(INDEX(Betriebeliste!$A$1:AF$299,MATCH(H8,Betriebeliste!$A$1:$A$331,0),29)/I8,"") -> 79% | K8: =IF(INDEX(Betriebeliste!$A$1:K$331,MATCH(H8,Betriebeliste!$A$1:$A$331,0),5)=1,"L","") -> L | L8: =IFERROR(INDEX(Betriebeliste!$A$1:BM$299,MATCH(H8,Betriebeliste!$A$1:$A$331,0),30),"") -> 0
B9: 101 | C9: =IFERROR(INDEX(Betriebeliste!$A$1:AA$299,MATCH(TEXT(B9,0),Betriebeliste!$A$1:$A$331,0),27),"") -> 581 | D9: =IFERROR(INDEX(Betriebeliste!$A$1:AC$299,MATCH(TEXT(B9,0),Betriebeliste!$A$1:$A$331,0),29)/C9,"") -> 99% | E9: =IF(INDEX(Betriebeliste!$A$1:E$331,MATCH(TEXT(B9,0),Betriebeliste!$A$1:$A$331,0),5)=1,"L","") -> L | F9: =IFERROR(INDEX(Betriebeliste!$A$1:BG$299,MATCH(TEXT(B9,0),Betriebeliste!$A$1:$A$331,0),30),"") -> 0 | H9: 25.5 | I9: =IFERROR(INDEX(Betriebeliste!$A$1:AE$298,MATCH(H9,Betriebeliste!$A$1:$A$331,0),27),"") -> 190 | J9: =IFERROR(INDEX(Betriebeliste!$A$1:AF$299,MATCH(H9,Betriebeliste!$A$1:$A$331,0),29)/I9,"") -> 84% | K9: =IF(INDEX(Betriebeliste!$A$1:K$331,MATCH(H9,Betriebeliste!$A$1:$A$331,0),5)=1,"L","") -> L | L9: =IFERROR(INDEX(Betriebeliste!$A$1:BM$299,MATCH(H9,Betriebeliste!$A$1:$A$331,0),30),"") -> 2
B10: 30 | C10: =IFERROR(INDEX(Betriebeliste!$A$1:AA$299,MATCH(TEXT(B10,0),Betriebeliste!$A$1:$A$331,0),27),"") -> 438 | D10: =IFERROR(INDEX(Betriebeliste!$A$1:AC$299,MATCH(TEXT(B10,0),Betriebeliste!$A$1:$A$331,0),29)/C10,"") -> 75% | E10: =IF(INDEX(Betriebeliste!$A$1:E$331,MATCH(TEXT(B10,0),Betriebeliste!$A$1:$A$331,0),5)=1,"L","") -> L | F10: =IFERROR(INDEX(Betriebeliste!$A$1:BG$299,MATCH(TEXT(B10,0),Betriebeliste!$A$1:$A$331,0),30),"") -> 0 | H10: 25.6 | I10: =IFERROR(INDEX(Betriebeliste!$A$1:AE$298,MATCH(H10,Betriebeliste!$A$1:$A$331,0),27),"") -> 7 | J10: =IFERROR(INDEX(Betriebeliste!$A$1:AF$299,MATCH(H10,Betriebeliste!$A$1:$A$331,0),29)/I10,"") -> 100% | K10: =IF(INDEX(Betriebeliste!$A$1:K$331,MATCH(H10,Betriebeliste!$A$1:$A$331,0),5)=1,"L","") ->  | L10: =IFERROR(INDEX(Betriebeliste!$A$1:BM$299,MATCH(H10,Betriebeliste!$A$1:$A$331,0),30),"") -> 0
B11: 224.1 | C11: =IFERROR(INDEX(Betriebeliste!$A$1:AA$299,MATCH(TEXT(B11,0),Betriebeliste!$A$1:$A$331,0),27),"") -> 191 | D11: =IFERROR(INDEX(Betriebeliste!$A$1:AC$299,MATCH(TEXT(B11,0),Betriebeliste!$A$1:$A$331,0),29)/C11,"") -> 100% | E11: =IF(INDEX(Betriebeliste!$A$1:E$331,MATCH(TEXT(B11,0),Betriebeliste!$A$1:$A$331,0),5)=1,"L","") -> L | F11: =IFERROR(INDEX(Betriebeliste!$A$1:BG$299,MATCH(TEXT(B11,0),Betriebeliste!$A$1:$A$331,0),30),"") -> 0 | H11: 25.7 | I11: =IFERROR(INDEX(Betriebeliste!$A$1:AE$298,MATCH(H11,Betriebeliste!$A$1:$A$331,0),27),"") -> 135 | J11: =IFERROR(INDEX(Betriebeliste!$A$1:AF$299,MATCH(H11,Betriebeliste!$A$1:$A$331,0),29)/I11,"") -> 90% | K11: =IF(INDEX(Betriebeliste!$A$1:K$331,MATCH(H11,Betriebeliste!$A$1:$A$331,0),5)=1,"L","") ->  | L11: =IFERROR(INDEX(Betriebeliste!$A$1:BM$299,MATCH(H11,Betriebeliste!$A$1:$A$331,0),30),"") -> 0
B12: 219.1 | C12: =IFERROR(INDEX(Betriebeliste!$A$1:AA$299,MATCH(TEXT(B12,0),Betriebeliste!$A$1:$A$331,0),27),"") -> 86 | D12: =IFERROR(INDEX(Betriebeliste!$A$1:AC$299,MATCH(TEXT(B12,0),Betriebeliste!$A$1:$A$331,0),29)/C12,"") -> 78% | E12: =IF(INDEX(Betriebeliste!$A$1:E$331,MATCH(TEXT(B12,0),Betriebeliste!$A$1:$A$331,0),5)=1,"L","") ->  | F12: =IFERROR(INDEX(Betriebeliste!$A$1:BG$299,MATCH(TEXT(B12,0),Betriebeliste!$A$1:$A$331,0),30),"") -> 0 | H12: 25.8 | I12: =IFERROR(INDEX(Betriebeliste!$A$1:AE$298,MATCH(H12,Betriebeliste!$A$1:$A$331,0),27),"") -> 51 | J12: =IFERROR(INDEX(Betriebeliste!$A$1:AF$299,MATCH(H12,Betriebeliste!$A$1:$A$331,0),29)/I12,"") -> 71% | K12: =IF(INDEX(Betriebeliste!$A$1:K$331,MATCH(H12,Betriebeliste!$A$1:$A$331,0),5)=1,"L","") ->  | L12: =IFERROR(INDEX(Betriebeliste!$A$1:BM$299,MATCH(H12,Betriebeliste!$A$1:$A$331,0),30),"") -> 0
B13: 93 | C13: =IFERROR(INDEX(Betriebeliste!$A$1:AA$299,MATCH(TEXT(B13,0),Betriebeliste!$A$1:$A$331,0),27),"") -> 50 | D13: =IFERROR(INDEX(Betriebeliste!$A$1:AC$299,MATCH(TEXT(B13,0),Betriebeliste!$A$1:$A$331,0),29)/C13,"") -> 78% | E13: =IF(INDEX(Betriebeliste!$A$1:E$331,MATCH(TEXT(B13,0),Betriebeliste!$A$1:$A$331,0),5)=1,"L","") ->  | F13: =IFERROR(INDEX(Betriebeliste!$A$1:BG$299,MATCH(TEXT(B13,0),Betriebeliste!$A$1:$A$331,0),30),"") -> 0 | H13: 25.9 | I13: =IFERROR(INDEX(Betriebeliste!$A$1:AE$298,MATCH(H13,Betriebeliste!$A$1:$A$331,0),27),"") -> 6 | J13: =IFERROR(INDEX(Betriebeliste!$A$1:AF$299,MATCH(H13,Betriebeliste!$A$1:$A$331,0),29)/I13,"") -> 67% | K13: =IF(INDEX(Betriebeliste!$A$1:K$331,MATCH(H13,Betriebeliste!$A$1:$A$331,0),5)=1,"L","") ->  | L13: =IFERROR(INDEX(Betriebeliste!$A$1:BM$299,MATCH(H13,Betriebeliste!$A$1:$A$331,0),30),"") -> 0
B14: 725 | C14: =IFERROR(INDEX(Betriebeliste!$A$1:AA$299,MATCH(TEXT(B14,0),Betriebeliste!$A$1:$A$331,0),27),"") -> 13 | D14: =IFERROR(INDEX(Betriebeliste!$A$1:AC$299,MATCH(TEXT(B14,0),Betriebeliste!$A$1:$A$331,0),29)/C14,"") -> 31% | E14: =IF(INDEX(Betriebeliste!$A$1:E$331,MATCH(TEXT(B14,0),Betriebeliste!$A$1:$A$331,0),5)=1,"L","") ->  | F14: =IFERROR(INDEX(Betriebeliste!$A$1:BG$299,MATCH(TEXT(B14,0),Betriebeliste!$A$1:$A$331,0),30),"") -> 0 | H14: 199 | I14: =IFERROR(INDEX(Betriebeliste!$A$1:AE$298,MATCH(TEXT(H14,0),Betriebeliste!$A$1:$A$331,0),27),"") -> 15 | J14: =IFERROR(INDEX(Betriebeliste!$A$1:AF$299,MATCH(TEXT(H14,0),Betriebeliste!$A$1:$A$331,0),29)/I14,"") -> 7% | K14: =IF(INDEX(Betriebeliste!$A$1:K$331,MATCH(TEXT(H14,0),Betriebeliste!$A$1:$A$331,0),5)=1,"L","") ->  | L14: =IFERROR(INDEX(Betriebeliste!$A$1:BM$299,MATCH(TEXT(H14,0),Betriebeliste!$A$1:$A$331,0),30),"") -> 0
B15: 48 | C15: =IFERROR(INDEX(Betriebeliste!$A$1:AA$299,MATCH(TEXT(B15,0),Betriebeliste!$A$1:$A$331,0),27),"") -> 137 | D15: =IFERROR(INDEX(Betriebeliste!$A$1:AC$299,MATCH(TEXT(B15,0),Betriebeliste!$A$1:$A$331,0),29)/C15,"") -> 99% | E15: =IF(INDEX(Betriebeliste!$A$1:E$331,MATCH(TEXT(B15,0),Betriebeliste!$A$1:$A$331,0),5)=1,"L","") -> L | F15: =IFERROR(INDEX(Betriebeliste!$A$1:BG$299,MATCH(TEXT(B15,0),Betriebeliste!$A$1:$A$331,0),30),"") -> 0 | H15: 108 | I15: =IFERROR(INDEX(Betriebeliste!$A$1:AE$298,MATCH(TEXT(H15,0),Betriebeliste!$A$1:$A$331,0),27),"") -> 120 | J15: =IFERROR(INDEX(Betriebeliste!$A$1:AF$299,MATCH(TEXT(H15,0),Betriebeliste!$A$1:$A$331,0),29)/I15,"") -> 100% | K15: =IF(INDEX(Betriebeliste!$A$1:K$331,MATCH(TEXT(H15,0),Betriebeliste!$A$1:$A$331,0),5)=1,"L","") -> L | L15: =IFERROR(INDEX(Betriebeliste!$A$1:BM$299,MATCH(TEXT(H15,0),Betriebeliste!$A$1:$A$331,0),30),"") -> 0
B16: 532 | C16: =IFERROR(INDEX(Betriebeliste!$A$1:AA$299,MATCH(TEXT(B16,0),Betriebeliste!$A$1:$A$331,0),27),"") -> 1 | D16: =IFERROR(INDEX(Betriebeliste!$A$1:AC$299,MATCH(TEXT(B16,0),Betriebeliste!$A$1:$A$331,0),29)/C16,"") -> 0% | E16: =IF(INDEX(Betriebeliste!$A$1:E$331,MATCH(TEXT(B16,0),Betriebeliste!$A$1:$A$331,0),5)=1,"L","") ->  | F16: =IFERROR(INDEX(Betriebeliste!$A$1:BG$299,MATCH(TEXT(B16,0),Betriebeliste!$A$1:$A$331,0),30),"") -> 0 | H16: 5 | I16: =IFERROR(INDEX(Betriebeliste!$A$1:AE$298,MATCH(TEXT(H16,0),Betriebeliste!$A$1:$A$331,0),27),"") -> 512 | J16: =IFERROR(INDEX(Betriebeliste!$A$1:AF$299,MATCH(TEXT(H16,0),Betriebeliste!$A$1:$A$331,0),29)/I16,"") -> 58% | K16: =IF(INDEX(Betriebeliste!$A$1:K$331,MATCH(TEXT(H16,0),Betriebeliste!$A$1:$A$331,0),5)=1,"L","") ->  | L16: =IFERROR(INDEX(Betriebeliste!$A$1:BM$299,MATCH(TEXT(H16,0),Betriebeliste!$A$1:$A$331,0),30),"") -> 0
B17: 65 | C17: =IFERROR(INDEX(Betriebeliste!$A$1:AA$299,MATCH(TEXT(B17,0),Betriebeliste!$A$1:$A$331,0),27),"") -> 430 | D17: =IFERROR(INDEX(Betriebeliste!$A$1:AC$299,MATCH(TEXT(B17,0),Betriebeliste!$A$1:$A$331,0),29)/C17,"") -> 87% | E17: =IF(INDEX(Betriebeliste!$A$1:E$331,MATCH(TEXT(B17,0),Betriebeliste!$A$1:$A$331,0),5)=1,"L","") -> L | F17: =IFERROR(INDEX(Betriebeliste!$A$1:BG$299,MATCH(TEXT(B17,0),Betriebeliste!$A$1:$A$331,0),30),"") -> 0 | H17: 71 | I17: =IFERROR(INDEX(Betriebeliste!$A$1:AE$298,MATCH(TEXT(H17,0),Betriebeliste!$A$1:$A$331,0),27),"") -> 38 | J17: =IFERROR(INDEX(Betriebeliste!$A$1:AF$299,MATCH(TEXT(H17,0),Betriebeliste!$A$1:$A$331,0),29)/I17,"") -> 55% | K17: =IF(INDEX(Betriebeliste!$A$1:K$331,MATCH(TEXT(H17,0),Betriebeliste!$A$1:$A$331,0),5)=1,"L","") ->  | L17: =IFERROR(INDEX(Betriebeliste!$A$1:BM$299,MATCH(TEXT(H17,0),Betriebeliste!$A$1:$A$331,0),30),"") -> 0
A18: 2 Anz. Datensätze P Anz. Vorschaubilder LFilterung möglich + Neue Fotos | B18: 63 | C18: =IFERROR(INDEX(Betriebeliste!$A$1:AA$299,MATCH(TEXT(B18,0),Betriebeliste!$A$1:$A$331,0),27),"") -> 16 | D18: =IFERROR(INDEX(Betriebeliste!$A$1:AC$299,MATCH(TEXT(B18,0),Betriebeliste!$A$1:$A$331,0),29)/C18,"") -> 19% | E18: =IF(INDEX(Betriebeliste!$A$1:E$331,MATCH(TEXT(B18,0),Betriebeliste!$A$1:$A$331,0),5)=1,"L","") ->  | F18: =IFERROR(INDEX(Betriebeliste!$A$1:BG$299,MATCH(TEXT(B18,0),Betriebeliste!$A$1:$A$331,0),30),"") -> 0 | H18: 667 | I18: =IFERROR(INDEX(Betriebeliste!$A$1:AE$298,MATCH(TEXT(H18,0),Betriebeliste!$A$1:$A$331,0),27),"") -> 1 | J18: =IFERROR(INDEX(Betriebeliste!$A$1:AF$299,MATCH(TEXT(H18,0),Betriebeliste!$A$1:$A$331,0),29)/I18,"") -> 0% | K18: =IF(INDEX(Betriebeliste!$A$1:K$331,MATCH(TEXT(H18,0),Betriebeliste!$A$1:$A$331,0),5)=1,"L","") ->  | L18: =IFERROR(INDEX(Betriebeliste!$A$1:BM$299,MATCH(TEXT(H18,0),Betriebeliste!$A$1:$A$331,0),30),"") -> 0
B19: 68 | C19: =IFERROR(INDEX(Betriebeliste!$A$1:AA$299,MATCH(TEXT(B19,0),Betriebeliste!$A$1:$A$331,0),27),"") -> 1 | D19: =IFERROR(INDEX(Betriebeliste!$A$1:AC$299,MATCH(TEXT(B19,0),Betriebeliste!$A$1:$A$331,0),29)/C19,"") -> 0% | H19: 181 | I19: =IFERROR(INDEX(Betriebeliste!$A$1:AE$298,MATCH(TEXT(H19,0),Betriebeliste!$A$1:$A$331,0),27),"") -> 44 | J19: =IFERROR(INDEX(Betriebeliste!$A$1:AF$299,MATCH(TEXT(H19,0),Betriebeliste!$A$1:$A$331,0),29)/I19,"") -> 100% | K19: =IF(INDEX(Betriebeliste!$A$1:K$331,MATCH(TEXT(H19,0),Betriebeliste!$A$1:$A$331,0),5)=1,"L","") ->  | L19: =IFERROR(INDEX(Betriebeliste!$A$1:BM$299,MATCH(TEXT(H19,0),Betriebeliste!$A$1:$A$331,0),30),"") -> 0

Sheet M
B1: Bilderverzeichnis Deutschland
C3: 2 | D3: P | F3: + | I3: 2 | J3: P | L3: +
B4: 55 | H4: Mannheim/Ludwigshafen
A5: M | B5: 7 | C5: =IFERROR(INDEX(Betriebeliste!$A$1:AA$299,MATCH(TEXT(B5,0),Betriebeliste!$A$1:$A$331,0),27),"") -> 195 | D5: =IFERROR(INDEX(Betriebeliste!$A$1:AC$299,MATCH(TEXT(B5,0),Betriebeliste!$A$1:$A$331,0),29)/C5,"") -> 100% | E5: =IF(INDEX(Betriebeliste!$A$1:E$331,MATCH(TEXT(B5,0),Betriebeliste!$A$1:$A$331,0),5)=1,"L","") -> L | F5: =IFERROR(INDEX(Betriebeliste!$A$1:BG$299,MATCH(TEXT(B5,0),Betriebeliste!$A$1:$A$331,0),30),"") -> 0 | H5: 98.1 | I5: =IFERROR(INDEX(Betriebeliste!$A$1:AE$298,MATCH(H5,Betriebeliste!$A$1:$A$331,0),27),"") -> 74 | J5: =IFERROR(INDEX(Betriebeliste!$A$1:AF$299,MATCH(TEXT(H5,0),Betriebeliste!$A$1:$A$331,0),29)/I5,"") -> 99% | K5: =IF(INDEX(Betriebeliste!$A$1:K$331,MATCH(TEXT(H5,0),Betriebeliste!$A$1:$A$331,0),5)=1,"L","") ->  | L5: =IFERROR(INDEX(Betriebeliste!$A$1:BM$299,MATCH(TEXT(H5,0),Betriebeliste!$A$1:$A$331,0),30),"") -> 0
B6: 8 | C6: =IFERROR(INDEX(Betriebeliste!$A$1:AA$299,MATCH(TEXT(B6,0),Betriebeliste!$A$1:$A$331,0),27),"") -> 5 | D6: =IFERROR(INDEX(Betriebeliste!$A$1:AC$299,MATCH(TEXT(B6,0),Betriebeliste!$A$1:$A$331,0),29)/C6,"") -> 100% | E6: =IF(INDEX(Betriebeliste!$A$1:E$331,MATCH(TEXT(B6,0),Betriebeliste!$A$1:$A$331,0),5)=1,"L","") ->  | F6: =IFERROR(INDEX(Betriebeliste!$A$1:BG$299,MATCH(TEXT(B6,0),Betriebeliste!$A$1:$A$331,0),30),"") -> 0 | H6: 98.2 | I6: =IFERROR(INDEX(Betriebeliste!$A$1:AE$298,MATCH(H6,Betriebeliste!$A$1:$A$331,0),27),"") -> 59 | J6: =IFERROR(INDEX(Betriebeliste!$A$1:AF$299,MATCH(TEXT(H6,0),Betriebeliste!$A$1:$A$331,0),29)/I6,"") -> 100% | K6: =IF(INDEX(Betriebeliste!$A$1:K$331,MATCH(TEXT(H6,0),Betriebeliste!$A$1:$A$331,0),5)=1,"L","") ->  | L6: =IFERROR(INDEX(Betriebeliste!$A$1:BM$299,MATCH(TEXT(H6,0),Betriebeliste!$A$1:$A$331,0),30),"") -> 0
B7: 50 | C7: =IFERROR(INDEX(Betriebeliste!$A$1:AA$299,MATCH(TEXT(B7,0),Betriebeliste!$A$1:$A$331,0),27),"") -> 405 | D7: =IFERROR(INDEX(Betriebeliste!$A$1:AC$299,MATCH(TEXT(B7,0),Betriebeliste!$A$1:$A$331,0),29)/C7,"") -> 86% | E7: =IF(INDEX(Betriebeliste!$A$1:E$331,MATCH(TEXT(B7,0),Betriebeliste!$A$1:$A$331,0),5)=1,"L","") -> L | F7: =IFERROR(INDEX(Betriebeliste!$A$1:BG$299,MATCH(TEXT(B7,0),Betriebeliste!$A$1:$A$331,0),30),"") -> 0 | H7: 98.3 | I7: =IFERROR(INDEX(Betriebeliste!$A$1:AE$298,MATCH(H7,Betriebeliste!$A$1:$A$331,0),27),"") -> 566 | J7: =IFERROR(INDEX(Betriebeliste!$A$1:AF$299,MATCH(TEXT(H7,0),Betriebeliste!$A$1:$A$331,0),29)/I7,"") -> 100% | K7: =IF(INDEX(Betriebeliste!$A$1:K$331,MATCH(TEXT(H7,0),Betriebeliste!$A$1:$A$331,0),5)=1,"L","") ->  | L7: =IFERROR(INDEX(Betriebeliste!$A$1:BM$299,MATCH(TEXT(H7,0),Betriebeliste!$A$1:$A$331,0),30),"") -> 0
B8: 74 | C8: =IFERROR(INDEX(Betriebeliste!$A$1:AA$299,MATCH(TEXT(B8,0),Betriebeliste!$A$1:$A$331,0),27),"") -> 10 | D8: =IFERROR(INDEX(Betriebeliste!$A$1:AC$299,MATCH(TEXT(B8,0),Betriebeliste!$A$1:$A$331,0),29)/C8,"") -> 100% | E8: =IF(INDEX(Betriebeliste!$A$1:E$331,MATCH(TEXT(B8,0),Betriebeliste!$A$1:$A$331,0),5)=1,"L","") ->  | F8: =IFERROR(INDEX(Betriebeliste!$A$1:BG$299,MATCH(TEXT(B8,0),Betriebeliste!$A$1:$A$331,0),30),"") -> 0 | H8: 98.4 | I8: =IFERROR(INDEX(Betriebeliste!$A$1:AE$298,MATCH(H8,Betriebeliste!$A$1:$A$331,0),27),"") -> 87 | J8: =IFERROR(INDEX(Betriebeliste!$A$1:AF$299,MATCH(TEXT(H8,0),Betriebeliste!$A$1:$A$331,0),29)/I8,"") -> 100% | K8: =IF(INDEX(Betriebeliste!$A$1:K$331,MATCH(TEXT(H8,0),Betriebeliste!$A$1:$A$331,0),5)=1,"L","") ->  | L8: =IFERROR(INDEX(Betriebeliste!$A$1:BM$299,MATCH(TEXT(H8,0),Betriebeliste!$A$1:$A$331,0),30),"") -> 0
B9: 684 | C9: =IFERROR(INDEX(Betriebeliste!$A$1:AA$299,MATCH(TEXT(B9,0),Betriebeliste!$A$1:$A$331,0),27),"") -> 2 | D9: =IFERROR(INDEX(Betriebeliste!$A$1:AC$299,MATCH(TEXT(B9,0),Betriebeliste!$A$1:$A$331,0),29)/C9,"") -> 0% | E9: =IF(INDEX(Betriebeliste!$A$1:E$331,MATCH(TEXT(B9,0),Betriebeliste!$A$1:$A$331,0),5)=1,"L","") ->  | F9: =IFERROR(INDEX(Betriebeliste!$A$1:BG$299,MATCH(TEXT(B9,0),Betriebeliste!$A$1:$A$331,0),30),"") -> 0 | H9: 98.5 | I9: =IFERROR(INDEX(Betriebeliste!$A$1:AE$298,MATCH(H9,Betriebeliste!$A$1:$A$331,0),27),"") -> 124 | J9: =IFERROR(INDEX(Betriebeliste!$A$1:AF$299,MATCH(TEXT(H9,0),Betriebeliste!$A$1:$A$331,0),29)/I9,"") -> 100% | K9: =IF(INDEX(Betriebeliste!$A$1:K$331,MATCH(TEXT(H9,0),Betriebeliste!$A$1:$A$331,0),5)=1,"L","") -> L | L9: =IFERROR(INDEX(Betriebeliste!$A$1:BM$299,MATCH(TEXT(H9,0),Betriebeliste!$A$1:$A$331,0),30),"") -> 0
B10: 220.1 | C10: =IFERROR(INDEX(Betriebeliste!$A$1:AA$299,MATCH(TEXT(B10,0),Betriebeliste!$A$1:$A$331,0),27),"") -> 10 | D10: =IFERROR(INDEX(Betriebeliste!$A$1:AC$299,MATCH(TEXT(B10,0),Betriebeliste!$A$1:$A$331,0),29)/C10,"") -> 30% | E10: =IF(INDEX(Betriebeliste!$A$1:E$331,MATCH(TEXT(B10,0),Betriebeliste!$A$1:$A$331,0),5)=1,"L","") ->  | F10: =IFERROR(INDEX(Betriebeliste!$A$1:BG$299,MATCH(TEXT(B10,0),Betriebeliste!$A$1:$A$331,0),30),"") -> 0 | H10: 98.6 | I10: =IFERROR(INDEX(Betriebeliste!$A$1:AE$298,MATCH(H10,Betriebeliste!$A$1:$A$331,0),27),"") -> 38 | J10: =IFERROR(INDEX(Betriebeliste!$A$1:AF$299,MATCH(TEXT(H10,0),Betriebeliste!$A$1:$A$331,0),29)/I10,"") -> 100% | K10: =IF(INDEX(Betriebeliste!$A$1:K$331,MATCH(TEXT(H10,0),Betriebeliste!$A$1:$A$331,0),5)=1,"L","") ->  | L10: =IFERROR(INDEX(Betriebeliste!$A$1:BM$299,MATCH(TEXT(H10,0),Betriebeliste!$A$1:$A$331,0),30),"") -> 0
B11: 14 | C11: =IFERROR(INDEX(Betriebeliste!$A$1:AA$299,MATCH(TEXT(B11,0),Betriebeliste!$A$1:$A$331,0),27),"") -> 27 | D11: =IFERROR(INDEX(Betriebeliste!$A$1:AC$299,MATCH(TEXT(B11,0),Betriebeliste!$A$1:$A$331,0),29)/C11,"") -> 30% | E11: =IF(INDEX(Betriebeliste!$A$1:E$331,MATCH(TEXT(B11,0),Betriebeliste!$A$1:$A$331,0),5)=1,"L","") ->  | F11: =IFERROR(INDEX(Betriebeliste!$A$1:BG$299,MATCH(TEXT(B11,0),Betriebeliste!$A$1:$A$331,0),30),"") -> 0 | H11: 98.7 | I11: =IFERROR(INDEX(Betriebeliste!$A$1:AE$298,MATCH(H11,Betriebeliste!$A$1:$A$331,0),27),"") -> 114 | J11: =IFERROR(INDEX(Betriebeliste!$A$1:AF$299,MATCH(TEXT(H11,0),Betriebeliste!$A$1:$A$331,0),29)/I11,"") -> 100% | K11: =IF(INDEX(Betriebeliste!$A$1:K$331,MATCH(TEXT(H11,0),Betriebeliste!$A$1:$A$331,0),5)=1,"L","") ->  | L11: =IFERROR(INDEX(Betriebeliste!$A$1:BM$299,MATCH(TEXT(H11,0),Betriebeliste!$A$1:$A$331,0),30),"") -> 0
B12: 142 | C12: =IFERROR(INDEX(Betriebeliste!$A$1:AA$299,MATCH(TEXT(B12,0),Betriebeliste!$A$1:$A$331,0),27),"") -> 7 | D12: =IFERROR(INDEX(Betriebeliste!$A$1:AC$299,MATCH(TEXT(B12,0),Betriebeliste!$A$1:$A$331,0),29)/C12,"") -> 100% | E12: =IF(INDEX(Betriebeliste!$A$1:E$331,MATCH(TEXT(B12,0),Betriebeliste!$A$1:$A$331,0),5)=1,"L","") ->  | F12: =IFERROR(INDEX(Betriebeliste!$A$1:BG$299,MATCH(TEXT(B12,0),Betriebeliste!$A$1:$A$331,0),30),"") -> 0 | H12: 98.8 | I12: =IFERROR(INDEX(Betriebeliste!$A$1:AE$298,MATCH(H12,Betriebeliste!$A$1:$A$331,0),27),"") -> 40 | J12: =IFERROR(INDEX(Betriebeliste!$A$1:AF$299,MATCH(TEXT(H12,0),Betriebeliste!$A$1:$A$331,0),29)/I12,"") -> 85% | K12: =IF(INDEX(Betriebeliste!$A$1:K$331,MATCH(TEXT(H12,0),Betriebeliste!$A$1:$A$331,0),5)=1,"L","") ->  | L12: =IFERROR(INDEX(Betriebeliste!$A$1:BM$299,MATCH(TEXT(H12,0),Betriebeliste!$A$1:$A$331,0),30),"") -> 0
B13: 39 | C13: =IFERROR(INDEX(Betriebeliste!$A$1:AA$299,MATCH(TEXT(B13,0),Betriebeliste!$A$1:$A$331,0),27),"") -> 28 | D13: =IFERROR(INDEX(Betriebeliste!$A$1:AC$299,MATCH(TEXT(B13,0),Betriebeliste!$A$1:$A$331,0),29)/C13,"") -> 100% | E13: =IF(INDEX(Betriebeliste!$A$1:E$331,MATCH(TEXT(B13,0),Betriebeliste!$A$1:$A$331,0),5)=1,"L","") ->  | F13: =IFERROR(INDEX(Betriebeliste!$A$1:BG$299,MATCH(TEXT(B13,0),Betriebeliste!$A$1:$A$331,0),30),"") -> 0 | H13: 98.9 | I13: =IFERROR(INDEX(Betriebeliste!$A$1:AE$298,MATCH(H13,Betriebeliste!$A$1:$A$331,0),27),"") -> 4 | J13: =IFERROR(INDEX(Betriebeliste!$A$1:AF$299,MATCH(TEXT(H13,0),Betriebeliste!$A$1:$A$331,0),29)/I13,"") -> 75% | K13: =IF(INDEX(Betriebeliste!$A$1:K$331,MATCH(TEXT(H13,0),Betriebeliste!$A$1:$A$331,0),5)=1,"L","") ->  | L13: =IFERROR(INDEX(Betriebeliste!$A$1:BM$299,MATCH(TEXT(H13,0),Betriebeliste!$A$1:$A$331,0),30),"") -> 0
B14: 64 | C14: =IFERROR(INDEX(Betriebeliste!$A$1:AA$299,MATCH(TEXT(B14,0),Betriebeliste!$A$1:$A$331,0),27),"") -> 33 | D14: =IFERROR(INDEX(Betriebeliste!$A$1:AC$299,MATCH(TEXT(B14,0),Betriebeliste!$A$1:$A$331,0),29)/C14,"") -> 100% | E14: =IF(INDEX(Betriebeliste!$A$1:E$331,MATCH(TEXT(B14,0),Betriebeliste!$A$1:$A$331,0),5)=1,"L","") ->  | F14: =IFERROR(INDEX(Betriebeliste!$A$1:BG$299,MATCH(TEXT(B14,0),Betriebeliste!$A$1:$A$331,0),30),"") -> 0
B15: 85 | C15: =IFERROR(INDEX(Betriebeliste!$A$1:AA$299,MATCH(TEXT(B15,0),Betriebeliste!$A$1:$A$331,0),27),"") -> 16 | D15: =IFERROR(INDEX(Betriebeliste!$A$1:AC$299,MATCH(TEXT(B15,0),Betriebeliste!$A$1:$A$331,0),29)/C15,"") -> 88% | E15: =IF(INDEX(Betriebeliste!$A$1:E$331,MATCH(TEXT(B15,0),Betriebeliste!$A$1:$A$331,0),5)=1,"L","") ->  | F15: =IFERROR(INDEX(Betriebeliste!$A$1:BG$299,MATCH(TEXT(B15,0),Betriebeliste!$A$1:$A$331,0),30),"") -> 0 | H15: 47 | I15: =IFERROR(INDEX(Betriebeliste!$A$1:AA$299,MATCH(TEXT(H15,0),Betriebeliste!$A$1:$A$331,0),27),"") -> 502 | J15: =IFERROR(INDEX(Betriebeliste!$A$1:AC$299,MATCH(TEXT(H15,0),Betriebeliste!$A$1:$A$331,0),29)/I15,"") -> 100% | K15: =IF(INDEX(Betriebeliste!$A$1:E$331,MATCH(TEXT(H15,0),Betriebeliste!$A$1:$A$331,0),5)=1,"L","") -> L | L15: =IFERROR(INDEX(Betriebeliste!$A$1:BG$299,MATCH(TEXT(H15,0),Betriebeliste!$A$1:$A$331,0),30),"") -> 0
B16: 143 | C16: =IFERROR(INDEX(Betriebeliste!$A$1:AA$299,MATCH(TEXT(B16,0),Betriebeliste!$A$1:$A$331,0),27),"") -> 37 | D16: =IFERROR(INDEX(Betriebeliste!$A$1:AC$299,MATCH(TEXT(B16,0),Betriebeliste!$A$1:$A$331,0),29)/C16,"") -> 100% | E16: =IF(INDEX(Betriebeliste!$A$1:E$331,MATCH(TEXT(B16,0),Betriebeliste!$A$1:$A$331,0),5)=1,"L","") ->  | F16: =IFERROR(INDEX(Betriebeliste!$A$1:BG$299,MATCH(TEXT(B16,0),Betriebeliste!$A$1:$A$331,0),30),"") -> 0 | H16: 53 | I16: =IFERROR(INDEX(Betriebeliste!$A$1:AA$299,MATCH(TEXT(H16,0),Betriebeliste!$A$1:$A$331,0),27),"") -> 562 | J16: =IFERROR(INDEX(Betriebeliste!$A$1:AC$299,MATCH(TEXT(H16,0),Betriebeliste!$A$1:$A$331,0),29)/I16,"") -> 99% | K16: =IF(INDEX(Betriebeliste!$A$1:E$331,MATCH(TEXT(H16,0),Betriebeliste!$A$1:$A$331,0),5)=1,"L","") -> L | L16: =IFERROR(INDEX(Betriebeliste!$A$1:BG$299,MATCH(TEXT(H16,0),Betriebeliste!$A$1:$A$331,0),30),"") -> 2
B17: 55 | H17: 55 | I17: =IFERROR(INDEX(Betriebeliste!$A$1:AA$299,MATCH(TEXT(H17,0),Betriebeliste!$A$1:$A$331,0),27),"") -> 33 | J17: =IFERROR(INDEX(Betriebeliste!$A$1:AC$299,MATCH(TEXT(H17,0),Betriebeliste!$A$1:$A$331,0),29)/I17,"") -> 100% | K17: =IF(INDEX(Betriebeliste!$A$1:E$331,MATCH(TEXT(H17,0),Betriebeliste!$A$1:$A$331,0),5)=1,"L","") ->  | L17: =IFERROR(INDEX(Betriebeliste!$A$1:BG$299,MATCH(TEXT(H17,0),Betriebeliste!$A$1:$A$331,0),30),"") -> 0
A18: 2 Anz. Datensätze P Anz. Vorschaubilder LFilterung möglich + Neue Fotos | B18: 55
B19: 55

Sheet NOPR
B1: Bilderverzeichnis Deutschland
C3: 2 | D3: P | F3: + | I3: 2 | J3: P | L3: +
B4: 33 | C4: =IFERROR(INDEX(Betriebeliste!$A$1:AA$299,MATCH(TEXT(B4,0),Betriebeliste!$A$1:$A$331,0),27),"") -> 158 | D4: =IFERROR(INDEX(Betriebeliste!$A$1:AC$299,MATCH(TEXT(B4,0),Betriebeliste!$A$1:$A$331,0),29)/C4,"") -> 99% | E4: =IF(INDEX(Betriebeliste!$A$1:E$331,MATCH(TEXT(B4,0),Betriebeliste!$A$1:$A$331,0),5)=1,"L","") -> L | F4: =IFERROR(INDEX(Betriebeliste!$A$1:BG$299,MATCH(TEXT(B4,0),Betriebeliste!$A$1:$A$331,0),30),"") -> 0 | H4: 18 | I4: =IFERROR(INDEX(Betriebeliste!$A$1:AE$298,MATCH(TEXT(H4,0),Betriebeliste!$A$1:$A$331,0),27),"") -> 50 | J4: =IFERROR(INDEX(Betriebeliste!$A$1:AF$299,MATCH(TEXT(H4,0),Betriebeliste!$A$1:$A$331,0),29)/I4,"") -> 50% | K4: =IF(INDEX(Betriebeliste!$A$1:K$331,MATCH(TEXT(H4,0),Betriebeliste!$A$1:$A$331,0),5)=1,"L","") ->  | L4: =IFERROR(INDEX(Betriebeliste!$A$1:BM$299,MATCH(TEXT(H4,0),Betriebeliste!$A$1:$A$331,0),30),"") -> 4
A5: N O P R | B5: 150 | C5: =IFERROR(INDEX(Betriebeliste!$A$1:AA$299,MATCH(TEXT(B5,0),Betriebeliste!$A$1:$A$331,0),27),"") -> 105 | D5: =IFERROR(INDEX(Betriebeliste!$A$1:AC$299,MATCH(TEXT(B5,0),Betriebeliste!$A$1:$A$331,0),29)/C5,"") -> 100% | E5: =IF(INDEX(Betriebeliste!$A$1:E$331,MATCH(TEXT(B5,0),Betriebeliste!$A$1:$A$331,0),5)=1,"L","") -> L | F5: =IFERROR(INDEX(Betriebeliste!$A$1:BG$299,MATCH(TEXT(B5,0),Betriebeliste!$A$1:$A$331,0),30),"") -> 10 | H5: 102 | I5: =IFERROR(INDEX(Betriebeliste!$A$1:AE$298,MATCH(TEXT(H5,0),Betriebeliste!$A$1:$A$331,0),27),"") -> 91 | J5: =IFERROR(INDEX(Betriebeliste!$A$1:AF$299,MATCH(TEXT(H5,0),Betriebeliste!$A$1:$A$331,0),29)/I5,"") -> 100% | K5: =IF(INDEX(Betriebeliste!$A$1:K$331,MATCH(TEXT(H5,0),Betriebeliste!$A$1:$A$331,0),5)=1,"L","") ->  | L5: =IFERROR(INDEX(Betriebeliste!$A$1:BM$299,MATCH(TEXT(H5,0),Betriebeliste!$A$1:$A$331,0),30),"") -> 2
B6: 23 | C6: =IFERROR(INDEX(Betriebeliste!$A$1:AA$299,MATCH(TEXT(B6,0),Betriebeliste!$A$1:$A$331,0),27),"") -> 171 | D6: =IFERROR(INDEX(Betriebeliste!$A$1:AC$299,MATCH(TEXT(B6,0),Betriebeliste!$A$1:$A$331,0),29)/C6,"") -> 100% | E6: =IF(INDEX(Betriebeliste!$A$1:E$331,MATCH(TEXT(B6,0),Betriebeliste!$A$1:$A$331,0),5)=1,"L","") -> L | F6: =IFERROR(INDEX(Betriebeliste!$A$1:BG$299,MATCH(TEXT(B6,0),Betriebeliste!$A$1:$A$331,0),30),"") -> 0 | H6: 1013 | I6: =IFERROR(INDEX(Betriebeliste!$A$1:AE$298,MATCH(TEXT(H6,0),Betriebeliste!$A$1:$A$331,0),27),"") -> 11 | J6: =IFERROR(INDEX(Betriebeliste!$A$1:AF$299,MATCH(TEXT(H6,0),Betriebeliste!$A$1:$A$331,0),29)/I6,"") -> 27% | K6: =IF(INDEX(Betriebeliste!$A$1:K$331,MATCH(TEXT(H6,0),Betriebeliste!$A$1:$A$331,0),5)=1,"L","") ->  | L6: =IFERROR(INDEX(Betriebeliste!$A$1:BM$299,MATCH(TEXT(H6,0),Betriebeliste!$A$1:$A$331,0),30),"") -> 0
B7: 153 | C7: =IFERROR(INDEX(Betriebeliste!$A$1:AA$299,MATCH(TEXT(B7,0),Betriebeliste!$A$1:$A$331,0),27),"") -> 14 | D7: =IFERROR(INDEX(Betriebeliste!$A$1:AC$299,MATCH(TEXT(B7,0),Betriebeliste!$A$1:$A$331,0),29)/C7,"") -> 64% | E7: =IF(INDEX(Betriebeliste!$A$1:E$331,MATCH(TEXT(B7,0),Betriebeliste!$A$1:$A$331,0),5)=1,"L","") ->  | F7: =IFERROR(INDEX(Betriebeliste!$A$1:BG$299,MATCH(TEXT(B7,0),Betriebeliste!$A$1:$A$331,0),30),"") -> 0 | H7: 145 | I7: =IFERROR(INDEX(Betriebeliste!$A$1:AE$298,MATCH(TEXT(H7,0),Betriebeliste!$A$1:$A$331,0),27),"") -> 128 | J7: =IFERROR(INDEX(Betriebeliste!$A$1:AF$299,MATCH(TEXT(H7,0),Betriebeliste!$A$1:$A$331,0),29)/I7,"") -> 70% | K7: =IF(INDEX(Betriebeliste!$A$1:K$331,MATCH(TEXT(H7,0),Betriebeliste!$A$1:$A$331,0),5)=1,"L","") ->  | L7: =IFERROR(INDEX(Betriebeliste!$A$1:BM$299,MATCH(TEXT(H7,0),Betriebeliste!$A$1:$A$331,0),30),"") -> 4
B8: 94 | C8: =IFERROR(INDEX(Betriebeliste!$A$1:AA$299,MATCH(TEXT(B8,0),Betriebeliste!$A$1:$A$331,0),27),"") -> 23 | D8: =IFERROR(INDEX(Betriebeliste!$A$1:AC$299,MATCH(TEXT(B8,0),Betriebeliste!$A$1:$A$331,0),29)/C8,"") -> 100% | E8: =IF(INDEX(Betriebeliste!$A$1:E$331,MATCH(TEXT(B8,0),Betriebeliste!$A$1:$A$331,0),5)=1,"L","") ->  | F8: =IFERROR(INDEX(Betriebeliste!$A$1:BG$299,MATCH(TEXT(B8,0),Betriebeliste!$A$1:$A$331,0),30),"") -> 1 | H8: 3 | I8: =IFERROR(INDEX(Betriebeliste!$A$1:AE$298,MATCH(TEXT(H8,0),Betriebeliste!$A$1:$A$331,0),27),"") -> 146 | J8: =IFERROR(INDEX(Betriebeliste!$A$1:AF$299,MATCH(TEXT(H8,0),Betriebeliste!$A$1:$A$331,0),29)/I8,"") -> 43% | K8: =IF(INDEX(Betriebeliste!$A$1:K$331,MATCH(TEXT(H8,0),Betriebeliste!$A$1:$A$331,0),5)=1,"L","") ->  | L8: =IFERROR(INDEX(Betriebeliste!$A$1:BM$299,MATCH(TEXT(H8,0),Betriebeliste!$A$1:$A$331,0),30),"") -> 0
B9: 17 | C9: =IFERROR(INDEX(Betriebeliste!$A$1:AA$299,MATCH(TEXT(B9,0),Betriebeliste!$A$1:$A$331,0),27),"") -> 82 | D9: =IFERROR(INDEX(Betriebeliste!$A$1:AC$299,MATCH(TEXT(B9,0),Betriebeliste!$A$1:$A$331,0),29)/C9,"") -> 87% | E9: =IF(INDEX(Betriebeliste!$A$1:E$331,MATCH(TEXT(B9,0),Betriebeliste!$A$1:$A$331,0),5)=1,"L","") ->  | F9: =IFERROR(INDEX(Betriebeliste!$A$1:BG$299,MATCH(TEXT(B9,0),Betriebeliste!$A$1:$A$331,0),30),"") -> 0
B10: 54 | C10: =IFERROR(INDEX(Betriebeliste!$A$1:AA$299,MATCH(TEXT(B10,0),Betriebeliste!$A$1:$A$331,0),27),"") -> 495 | D10: =IFERROR(INDEX(Betriebeliste!$A$1:AC$299,MATCH(TEXT(B10,0),Betriebeliste!$A$1:$A$331,0),29)/C10,"") -> 100% | E10: =IF(INDEX(Betriebeliste!$A$1:E$331,MATCH(TEXT(B10,0),Betriebeliste!$A$1:$A$331,0),5)=1,"L","") -> L | F10: =IFERROR(INDEX(Betriebeliste!$A$1:BG$299,MATCH(TEXT(B10,0),Betriebeliste!$A$1:$A$331,0),30),"") -> 4 | H10: 375 | I10: =IFERROR(INDEX(Betriebeliste!$A$1:AE$298,MATCH(TEXT(H10,0),Betriebeliste!$A$1:$A$331,0),27),"") -> 36 | J10: =IFERROR(INDEX(Betriebeliste!$A$1:AF$299,MATCH(TEXT(H10,0),Betriebeliste!$A$1:$A$331,0),29)/I10,"") -> 31% | K10: =IF(INDEX(Betriebeliste!$A$1:K$331,MATCH(TEXT(H10,0),Betriebeliste!$A$1:$A$331,0),5)=1,"L","") ->  | L10: =IFERROR(INDEX(Betriebeliste!$A$1:BM$299,MATCH(TEXT(H10,0),Betriebeliste!$A$1:$A$331,0),30),"") -> 1
H11: 739 | I11: =IFERROR(INDEX(Betriebeliste!$A$1:AE$298,MATCH(TEXT(H11,0),Betriebeliste!$A$1:$A$331,0),27),"") -> 13 | J11: =IFERROR(INDEX(Betriebeliste!$A$1:AF$299,MATCH(TEXT(H11,0),Betriebeliste!$A$1:$A$331,0),29)/I11,"") -> 100% | K11: =IF(INDEX(Betriebeliste!$A$1:K$331,MATCH(TEXT(H11,0),Betriebeliste!$A$1:$A$331,0),5)=1,"L","") ->  | L11: =IFERROR(INDEX(Betriebeliste!$A$1:BM$299,MATCH(TEXT(H11,0),Betriebeliste!$A$1:$A$331,0),30),"") -> 1
B12: 72 | C12: =IFERROR(INDEX(Betriebeliste!$A$1:AA$299,MATCH(TEXT(B12,0),Betriebeliste!$A$1:$A$331,0),27),"") -> 198 | D12: =IFERROR(INDEX(Betriebeliste!$A$1:AC$299,MATCH(TEXT(B12,0),Betriebeliste!$A$1:$A$331,0),29)/C12,"") -> 99% | E12: =IF(INDEX(Betriebeliste!$A$1:E$331,MATCH(TEXT(B12,0),Betriebeliste!$A$1:$A$331,0),5)=1,"L","") -> L | F12: =IFERROR(INDEX(Betriebeliste!$A$1:BG$299,MATCH(TEXT(B12,0),Betriebeliste!$A$1:$A$331,0),30),"") -> 22 | H12: 182 | I12: =IFERROR(INDEX(Betriebeliste!$A$1:AE$298,MATCH(TEXT(H12,0),Betriebeliste!$A$1:$A$331,0),27),"") -> 74 | J12: =IFERROR(INDEX(Betriebeliste!$A$1:AF$299,MATCH(TEXT(H12,0),Betriebeliste!$A$1:$A$331,0),29)/I12,"") -> 18% | K12: =IF(INDEX(Betriebeliste!$A$1:K$331,MATCH(TEXT(H12,0),Betriebeliste!$A$1:$A$331,0),5)=1,"L","") ->  | L12: =IFERROR(INDEX(Betriebeliste!$A$1:BM$299,MATCH(TEXT(H12,0),Betriebeliste!$A$1:$A$331,0),30),"") -> 1
B13: 99 | C13: =IFERROR(INDEX(Betriebeliste!$A$1:AA$299,MATCH(TEXT(B13,0),Betriebeliste!$A$1:$A$331,0),27),"") -> 618 | D13: =IFERROR(INDEX(Betriebeliste!$A$1:AC$299,MATCH(TEXT(B13,0),Betriebeliste!$A$1:$A$331,0),29)/C13,"") -> 100% | E13: =IF(INDEX(Betriebeliste!$A$1:E$331,MATCH(TEXT(B13,0),Betriebeliste!$A$1:$A$331,0),5)=1,"L","") -> L | F13: =IFERROR(INDEX(Betriebeliste!$A$1:BG$299,MATCH(TEXT(B13,0),Betriebeliste!$A$1:$A$331,0),30),"") -> 9 | H13: 90 | I13: =IFERROR(INDEX(Betriebeliste!$A$1:AE$298,MATCH(TEXT(H13,0),Betriebeliste!$A$1:$A$331,0),27),"") -> 224 | J13: =IFERROR(INDEX(Betriebeliste!$A$1:AF$299,MATCH(TEXT(H13,0),Betriebeliste!$A$1:$A$331,0),29)/I13,"") -> 79% | K13: =IF(INDEX(Betriebeliste!$A$1:K$331,MATCH(TEXT(H13,0),Betriebeliste!$A$1:$A$331,0),5)=1,"L","") -> L | L13: =IFERROR(INDEX(Betriebeliste!$A$1:BM$299,MATCH(TEXT(H13,0),Betriebeliste!$A$1:$A$331,0),30),"") -> 19
B14: 112 | C14: =IFERROR(INDEX(Betriebeliste!$A$1:AA$299,MATCH(TEXT(B14,0),Betriebeliste!$A$1:$A$331,0),27),"") -> 598 | D14: =IFERROR(INDEX(Betriebeliste!$A$1:AC$299,MATCH(TEXT(B14,0),Betriebeliste!$A$1:$A$331,0),29)/C14,"") -> 96% | E14: =IF(INDEX(Betriebeliste!$A$1:E$331,MATCH(TEXT(B14,0),Betriebeliste!$A$1:$A$331,0),5)=1,"L","") -> L | F14: =IFERROR(INDEX(Betriebeliste!$A$1:BG$299,MATCH(TEXT(B14,0),Betriebeliste!$A$1:$A$331,0),30),"") -> 1 | H14: 217.1 | I14: =IFERROR(INDEX(Betriebeliste!$A$1:AE$298,MATCH(TEXT(H14,0),Betriebeliste!$A$1:$A$331,0),27),"") -> 166 | J14: =IFERROR(INDEX(Betriebeliste!$A$1:AF$299,MATCH(TEXT(H14,0),Betriebeliste!$A$1:$A$331,0),29)/I14,"") -> 100% | K14: =IF(INDEX(Betriebeliste!$A$1:K$331,MATCH(TEXT(H14,0),Betriebeliste!$A$1:$A$331,0),5)=1,"L","") -> L | L14: =IFERROR(INDEX(Betriebeliste!$A$1:BM$299,MATCH(TEXT(H14,0),Betriebeliste!$A$1:$A$331,0),30),"") -> 7
B15: 1005 | C15: =IFERROR(INDEX(Betriebeliste!$A$1:AA$299,MATCH(TEXT(B15,0),Betriebeliste!$A$1:$A$331,0),27),"") -> 12 | D15: =IFERROR(INDEX(Betriebeliste!$A$1:AC$299,MATCH(TEXT(B15,0),Betriebeliste!$A$1:$A$331,0),29)/C15,"") -> 33% | E15: =IF(INDEX(Betriebeliste!$A$1:E$331,MATCH(TEXT(B15,0),Betriebeliste!$A$1:$A$331,0),5)=1,"L","") ->  | F15: =IFERROR(INDEX(Betriebeliste!$A$1:BG$299,MATCH(TEXT(B15,0),Betriebeliste!$A$1:$A$331,0),30),"") -> 0 | H15: 643 | I15: =IFERROR(INDEX(Betriebeliste!$A$1:AE$298,MATCH(TEXT(H15,0),Betriebeliste!$A$1:$A$331,0),27),"") -> 206 | J15: =IFERROR(INDEX(Betriebeliste!$A$1:AF$299,MATCH(TEXT(H15,0),Betriebeliste!$A$1:$A$331,0),29)/I15,"") -> 81% | K15: =IF(INDEX(Betriebeliste!$A$1:K$331,MATCH(TEXT(H15,0),Betriebeliste!$A$1:$A$331,0),5)=1,"L","") -> L | L15: =IFERROR(INDEX(Betriebeliste!$A$1:BM$299,MATCH(TEXT(H15,0),Betriebeliste!$A$1:$A$331,0),30),"") -> 8
B16: 89 | C16: =IFERROR(INDEX(Betriebeliste!$A$1:AA$299,MATCH(TEXT(B16,0),Betriebeliste!$A$1:$A$331,0),27),"") -> 41 | D16: =IFERROR(INDEX(Betriebeliste!$A$1:AC$299,MATCH(TEXT(B16,0),Betriebeliste!$A$1:$A$331,0),29)/C16,"") -> 100% | E16: =IF(INDEX(Betriebeliste!$A$1:E$331,MATCH(TEXT(B16,0),Betriebeliste!$A$1:$A$331,0),5)=1,"L","") ->  | F16: =IFERROR(INDEX(Betriebeliste!$A$1:BG$299,MATCH(TEXT(B16,0),Betriebeliste!$A$1:$A$331,0),30),"") -> 0 | H16: 186 | I16: =IFERROR(INDEX(Betriebeliste!$A$1:AE$298,MATCH(TEXT(H16,0),Betriebeliste!$A$1:$A$331,0),27),"") -> 123 | J16: =IFERROR(INDEX(Betriebeliste!$A$1:AF$299,MATCH(TEXT(H16,0),Betriebeliste!$A$1:$A$331,0),29)/I16,"") -> 100% | K16: =IF(INDEX(Betriebeliste!$A$1:K$331,MATCH(TEXT(H16,0),Betriebeliste!$A$1:$A$331,0),5)=1,"L","") ->  | L16: =IFERROR(INDEX(Betriebeliste!$A$1:BM$299,MATCH(TEXT(H16,0),Betriebeliste!$A$1:$A$331,0),30),"") -> 0
B17: 40 | C17: =IFERROR(INDEX(Betriebeliste!$A$1:AA$299,MATCH(TEXT(B17,0),Betriebeliste!$A$1:$A$331,0),27),"") -> 70 | D17: =IFERROR(INDEX(Betriebeliste!$A$1:AC$299,MATCH(TEXT(B17,0),Betriebeliste!$A$1:$A$331,0),29)/C17,"") -> 100% | E17: =IF(INDEX(Betriebeliste!$A$1:E$331,MATCH(TEXT(B17,0),Betriebeliste!$A$1:$A$331,0),5)=1,"L","") -> L | F17: =IFERROR(INDEX(Betriebeliste!$A$1:BG$299,MATCH(TEXT(B17,0),Betriebeliste!$A$1:$A$331,0),30),"") -> 5
A18: 2 Anz. Datensätze P Anz. Vorschaubilder LFilterung möglich + Neue Fotos

Sheet STU
B1: Bilderverzeichnis Deutschland
C3: 2 | D3: P | F3: + | I3: 2 | J3: P | L3: +
H4: Stuttgart
A5: S T U | B5: 141 | C5: =IFERROR(INDEX(Betriebeliste!$A$1:AA$299,MATCH(TEXT(B5,0),Betriebeliste!$A$1:$A$331,0),27),"") -> 52 | D5: =IFERROR(INDEX(Betriebeliste!$A$1:AC$299,MATCH(TEXT(B5,0),Betriebeliste!$A$1:$A$331,0),29)/C5,"") -> 98% | E5: =IF(INDEX(Betriebeliste!$A$1:E$331,MATCH(TEXT(B5,0),Betriebeliste!$A$1:$A$331,0),5)=1,"L","") ->  | F5: =IFERROR(INDEX(Betriebeliste!$A$1:BG$299,MATCH(TEXT(B5,0),Betriebeliste!$A$1:$A$331,0),30),"") -> 4 | H5: 103.1 | I5: =IFERROR(INDEX(Betriebeliste!$A$1:AE$298,MATCH(H5,Betriebeliste!$A$1:$A$331,0),27),"") -> 288 | J5: =IFERROR(INDEX(Betriebeliste!$A$1:AF$299,MATCH(H5,Betriebeliste!$A$1:$A$331,0),29)/I5,"") -> 100% | K5: =IF(INDEX(Betriebeliste!$A$1:K$331,MATCH(H5,Betriebeliste!$A$1:$A$331,0),5)=1,"L","") -> L | L5: =IFERROR(INDEX(Betriebeliste!$A$1:BM$299,MATCH(H5,Betriebeliste!$A$1:$A$331,0),30),"") -> 4
B6: 129 | C6: =IFERROR(INDEX(Betriebeliste!$A$1:AA$299,MATCH(TEXT(B6,0),Betriebeliste!$A$1:$A$331,0),27),"") -> 214 | D6: =IFERROR(INDEX(Betriebeliste!$A$1:AC$299,MATCH(TEXT(B6,0),Betriebeliste!$A$1:$A$331,0),29)/C6,"") -> 100% | E6: =IF(INDEX(Betriebeliste!$A$1:E$331,MATCH(TEXT(B6,0),Betriebeliste!$A$1:$A$331,0),5)=1,"L","") -> L | F6: =IFERROR(INDEX(Betriebeliste!$A$1:BG$299,MATCH(TEXT(B6,0),Betriebeliste!$A$1:$A$331,0),30),"") -> 7 | H6: 103.2 | I6: =IFERROR(INDEX(Betriebeliste!$A$1:AE$298,MATCH(H6,Betriebeliste!$A$1:$A$331,0),27),"") -> 114 | J6: =IFERROR(INDEX(Betriebeliste!$A$1:AF$299,MATCH(H6,Betriebeliste!$A$1:$A$331,0),29)/I6,"") -> 100% | K6: =IF(INDEX(Betriebeliste!$A$1:K$331,MATCH(H6,Betriebeliste!$A$1:$A$331,0),5)=1,"L","") -> L | L6: =IFERROR(INDEX(Betriebeliste!$A$1:BM$299,MATCH(H6,Betriebeliste!$A$1:$A$331,0),30),"") -> 5
B7: 151 | C7: =IFERROR(INDEX(Betriebeliste!$A$1:AA$299,MATCH(TEXT(B7,0),Betriebeliste!$A$1:$A$331,0),27),"") -> 75 | D7: =IFERROR(INDEX(Betriebeliste!$A$1:AC$299,MATCH(TEXT(B7,0),Betriebeliste!$A$1:$A$331,0),29)/C7,"") -> 100% | E7: =IF(INDEX(Betriebeliste!$A$1:E$331,MATCH(TEXT(B7,0),Betriebeliste!$A$1:$A$331,0),5)=1,"L","") -> L | F7: =IFERROR(INDEX(Betriebeliste!$A$1:BG$299,MATCH(TEXT(B7,0),Betriebeliste!$A$1:$A$331,0),30),"") -> 3 | H7: 103.3 | I7: =IFERROR(INDEX(Betriebeliste!$A$1:AE$298,MATCH(H7,Betriebeliste!$A$1:$A$331,0),27),"") -> 229 | J7: =IFERROR(INDEX(Betriebeliste!$A$1:AF$299,MATCH(H7,Betriebeliste!$A$1:$A$331,0),29)/I7,"") -> 100% | K7: =IF(INDEX(Betriebeliste!$A$1:K$331,MATCH(H7,Betriebeliste!$A$1:$A$331,0),5)=1,"L","") -> L | L7: =IFERROR(INDEX(Betriebeliste!$A$1:BM$299,MATCH(H7,Betriebeliste!$A$1:$A$331,0),30),"") -> 14
B8: 1007 | C8: =IFERROR(INDEX(Betriebeliste!$A$1:AA$299,MATCH(TEXT(B8,0),Betriebeliste!$A$1:$A$331,0),27),"") -> 2 | D8: =IFERROR(INDEX(Betriebeliste!$A$1:AC$299,MATCH(TEXT(B8,0),Betriebeliste!$A$1:$A$331,0),29)/C8,"") -> 0% | E8: =IF(INDEX(Betriebeliste!$A$1:E$331,MATCH(TEXT(B8,0),Betriebeliste!$A$1:$A$331,0),5)=1,"L","") ->  | F8: =IFERROR(INDEX(Betriebeliste!$A$1:BG$299,MATCH(TEXT(B8,0),Betriebeliste!$A$1:$A$331,0),30),"") -> 0 | H8: 103.4 | I8: =IFERROR(INDEX(Betriebeliste!$A$1:AE$298,MATCH(H8,Betriebeliste!$A$1:$A$331,0),27),"") -> 46 | J8: =IFERROR(INDEX(Betriebeliste!$A$1:AF$299,MATCH(H8,Betriebeliste!$A$1:$A$331,0),29)/I8,"") -> 100% | K8: =IF(INDEX(Betriebeliste!$A$1:K$331,MATCH(H8,Betriebeliste!$A$1:$A$331,0),5)=1,"L","") ->  | L8: =IFERROR(INDEX(Betriebeliste!$A$1:BM$299,MATCH(H8,Betriebeliste!$A$1:$A$331,0),30),"") -> 5
B9: 10 | C9: =IFERROR(INDEX(Betriebeliste!$A$1:AA$299,MATCH(TEXT(B9,0),Betriebeliste!$A$1:$A$331,0),27),"") -> 97 | D9: =IFERROR(INDEX(Betriebeliste!$A$1:AC$299,MATCH(TEXT(B9,0),Betriebeliste!$A$1:$A$331,0),29)/C9,"") -> 100% | E9: =IF(INDEX(Betriebeliste!$A$1:E$331,MATCH(TEXT(B9,0),Betriebeliste!$A$1:$A$331,0),5)=1,"L","") -> L | F9: =IFERROR(INDEX(Betriebeliste!$A$1:BG$299,MATCH(TEXT(B9,0),Betriebeliste!$A$1:$A$331,0),30),"") -> 0 | H9: 103.5 | I9: =IFERROR(INDEX(Betriebeliste!$A$1:AE$298,MATCH(H9,Betriebeliste!$A$1:$A$331,0),27),"") -> 110 | J9: =IFERROR(INDEX(Betriebeliste!$A$1:AF$299,MATCH(H9,Betriebeliste!$A$1:$A$331,0),29)/I9,"") -> 100% | K9: =IF(INDEX(Betriebeliste!$A$1:K$331,MATCH(H9,Betriebeliste!$A$1:$A$331,0),5)=1,"L","") ->  | L9: =IFERROR(INDEX(Betriebeliste!$A$1:BM$299,MATCH(H9,Betriebeliste!$A$1:$A$331,0),30),"") -> 4
B10: 49 | C10: =IFERROR(INDEX(Betriebeliste!$A$1:AA$299,MATCH(TEXT(B10,0),Betriebeliste!$A$1:$A$331,0),27),"") -> 12 | D10: =IFERROR(INDEX(Betriebeliste!$A$1:AC$299,MATCH(TEXT(B10,0),Betriebeliste!$A$1:$A$331,0),29)/C10,"") -> 33% | E10: =IF(INDEX(Betriebeliste!$A$1:E$331,MATCH(TEXT(B10,0),Betriebeliste!$A$1:$A$331,0),5)=1,"L","") ->  | F10: =IFERROR(INDEX(Betriebeliste!$A$1:BG$299,MATCH(TEXT(B10,0),Betriebeliste!$A$1:$A$331,0),30),"") -> 0 | H10: 103.6 | I10: =IFERROR(INDEX(Betriebeliste!$A$1:AE$298,MATCH(H10,Betriebeliste!$A$1:$A$331,0),27),"") -> 9 | J10: =IFERROR(INDEX(Betriebeliste!$A$1:AF$299,MATCH(H10,Betriebeliste!$A$1:$A$331,0),29)/I10,"") -> 100% | K10: =IF(INDEX(Betriebeliste!$A$1:K$331,MATCH(H10,Betriebeliste!$A$1:$A$331,0),5)=1,"L","") ->  | L10: =IFERROR(INDEX(Betriebeliste!$A$1:BM$299,MATCH(H10,Betriebeliste!$A$1:$A$331,0),30),"") -> 1
B11: 9 | C11: =IFERROR(INDEX(Betriebeliste!$A$1:AA$299,MATCH(TEXT(B11,0),Betriebeliste!$A$1:$A$331,0),27),"") -> 158 | D11: =IFERROR(INDEX(Betriebeliste!$A$1:AC$299,MATCH(TEXT(B11,0),Betriebeliste!$A$1:$A$331,0),29)/C11,"") -> 61% | E11: =IF(INDEX(Betriebeliste!$A$1:E$331,MATCH(TEXT(B11,0),Betriebeliste!$A$1:$A$331,0),5)=1,"L","") ->  | F11: =IFERROR(INDEX(Betriebeliste!$A$1:BG$299,MATCH(TEXT(B11,0),Betriebeliste!$A$1:$A$331,0),30),"") -> 0 | H11: 103.7 | I11: =IFERROR(INDEX(Betriebeliste!$A$1:AE$298,MATCH(H11,Betriebeliste!$A$1:$A$331,0),27),"") -> 89 | J11: =IFERROR(INDEX(Betriebeliste!$A$1:AF$299,MATCH(H11,Betriebeliste!$A$1:$A$331,0),29)/I11,"") -> 100% | K11: =IF(INDEX(Betriebeliste!$A$1:K$331,MATCH(H11,Betriebeliste!$A$1:$A$331,0),5)=1,"L","") ->  | L11: =IFERROR(INDEX(Betriebeliste!$A$1:BM$299,MATCH(H11,Betriebeliste!$A$1:$A$331,0),30),"") -> 2
B12: 188 | C12: =IFERROR(INDEX(Betriebeliste!$A$1:AA$299,MATCH(TEXT(B12,0),Betriebeliste!$A$1:$A$331,0),27),"") -> 62 | D12: =IFERROR(INDEX(Betriebeliste!$A$1:AC$299,MATCH(TEXT(B12,0),Betriebeliste!$A$1:$A$331,0),29)/C12,"") -> 98% | E12: =IF(INDEX(Betriebeliste!$A$1:E$331,MATCH(TEXT(B12,0),Betriebeliste!$A$1:$A$331,0),5)=1,"L","") ->  | F12: =IFERROR(INDEX(Betriebeliste!$A$1:BG$299,MATCH(TEXT(B12,0),Betriebeliste!$A$1:$A$331,0),30),"") -> 0 | H12: 103.8 | I12: =IFERROR(INDEX(Betriebeliste!$A$1:AE$298,MATCH(H12,Betriebeliste!$A$1:$A$331,0),27),"") -> 35 | J12: =IFERROR(INDEX(Betriebeliste!$A$1:AF$299,MATCH(H12,Betriebeliste!$A$1:$A$331,0),29)/I12,"") -> 100% | K12: =IF(INDEX(Betriebeliste!$A$1:K$331,MATCH(H12,Betriebeliste!$A$1:$A$331,0),5)=1,"L","") ->  | L12: =IFERROR(INDEX(Betriebeliste!$A$1:BM$299,MATCH(H12,Betriebeliste!$A$1:$A$331,0),30),"") -> 0
B13: 123 | C13: =IFERROR(INDEX(Betriebeliste!$A$1:AA$299,MATCH(TEXT(B13,0),Betriebeliste!$A$1:$A$331,0),27),"") -> 87 | D13: =IFERROR(INDEX(Betriebeliste!$A$1:AC$299,MATCH(TEXT(B13,0),Betriebeliste!$A$1:$A$331,0),29)/C13,"") -> 99% | E13: =IF(INDEX(Betriebeliste!$A$1:E$331,MATCH(TEXT(B13,0),Betriebeliste!$A$1:$A$331,0),5)=1,"L","") -> L | F13: =IFERROR(INDEX(Betriebeliste!$A$1:BG$299,MATCH(TEXT(B13,0),Betriebeliste!$A$1:$A$331,0),30),"") -> 5 | H13: 103.9 | I13: =IFERROR(INDEX(Betriebeliste!$A$1:AE$298,MATCH(H13,Betriebeliste!$A$1:$A$331,0),27),"") -> 8 | J13: =IFERROR(INDEX(Betriebeliste!$A$1:AF$299,MATCH(H13,Betriebeliste!$A$1:$A$331,0),29)/I13,"") -> 100% | K13: =IF(INDEX(Betriebeliste!$A$1:K$331,MATCH(H13,Betriebeliste!$A$1:$A$331,0),5)=1,"L","") ->  | L13: =IFERROR(INDEX(Betriebeliste!$A$1:BM$299,MATCH(H13,Betriebeliste!$A$1:$A$331,0),30),"") -> 0
B14: 130 | C14: =IFERROR(INDEX(Betriebeliste!$A$1:AA$299,MATCH(TEXT(B14,0),Betriebeliste!$A$1:$A$331,0),27),"") -> 67 | D14: =IFERROR(INDEX(Betriebeliste!$A$1:AC$299,MATCH(TEXT(B14,0),Betriebeliste!$A$1:$A$331,0),29)/C14,"") -> 58% | E14: =IF(INDEX(Betriebeliste!$A$1:E$331,MATCH(TEXT(B14,0),Betriebeliste!$A$1:$A$331,0),5)=1,"L","") ->  | F14: =IFERROR(INDEX(Betriebeliste!$A$1:BG$299,MATCH(TEXT(B14,0),Betriebeliste!$A$1:$A$331,0),30),"") -> 6
B15: 88 | C15: =IFERROR(INDEX(Betriebeliste!$A$1:AA$299,MATCH(TEXT(B15,0),Betriebeliste!$A$1:$A$331,0),27),"") -> 142 | D15: =IFERROR(INDEX(Betriebeliste!$A$1:AC$299,MATCH(TEXT(B15,0),Betriebeliste!$A$1:$A$331,0),29)/C15,"") -> 75% | E15: =IF(INDEX(Betriebeliste!$A$1:E$331,MATCH(TEXT(B15,0),Betriebeliste!$A$1:$A$331,0),5)=1,"L","") -> L | F15: =IFERROR(INDEX(Betriebeliste!$A$1:BG$299,MATCH(TEXT(B15,0),Betriebeliste!$A$1:$A$331,0),30),"") -> 17 | H15: 109 | I15: =IFERROR(INDEX(Betriebeliste!$A$1:AE$298,MATCH(TEXT(H15,0),Betriebeliste!$A$1:$A$331,0),27),"") -> 48 | J15: =IFERROR(INDEX(Betriebeliste!$A$1:AF$299,MATCH(TEXT(H15,0),Betriebeliste!$A$1:$A$331,0),29)/I15,"") -> 100% | K15: =IF(INDEX(Betriebeliste!$A$1:K$331,MATCH(TEXT(H15,0),Betriebeliste!$A$1:$A$331,0),5)=1,"L","") ->  | L15: =IFERROR(INDEX(Betriebeliste!$A$1:BM$299,MATCH(TEXT(H15,0),Betriebeliste!$A$1:$A$331,0),30),"") -> 6
B16: 156 | C16: =IFERROR(INDEX(Betriebeliste!$A$1:AA$299,MATCH(TEXT(B16,0),Betriebeliste!$A$1:$A$331,0),27),"") -> 24 | D16: =IFERROR(INDEX(Betriebeliste!$A$1:AC$299,MATCH(TEXT(B16,0),Betriebeliste!$A$1:$A$331,0),29)/C16,"") -> 96% | E16: =IF(INDEX(Betriebeliste!$A$1:E$331,MATCH(TEXT(B16,0),Betriebeliste!$A$1:$A$331,0),5)=1,"L","") ->  | F16: =IFERROR(INDEX(Betriebeliste!$A$1:BG$299,MATCH(TEXT(B16,0),Betriebeliste!$A$1:$A$331,0),30),"") -> 0
B17: 227.1 | C17: =IFERROR(INDEX(Betriebeliste!$A$1:AA$299,MATCH(TEXT(B17,0),Betriebeliste!$A$1:$A$331,0),27),"") -> 36 | D17: =IFERROR(INDEX(Betriebeliste!$A$1:AC$299,MATCH(TEXT(B17,0),Betriebeliste!$A$1:$A$331,0),29)/C17,"") -> 100% | E17: =IF(INDEX(Betriebeliste!$A$1:E$331,MATCH(TEXT(B17,0),Betriebeliste!$A$1:$A$331,0),5)=1,"L","") ->  | F17: =IFERROR(INDEX(Betriebeliste!$A$1:BG$299,MATCH(TEXT(B17,0),Betriebeliste!$A$1:$A$331,0),30),"") -> 0 | H17: 135 | I17: =IFERROR(INDEX(Betriebeliste!$A$1:AE$298,MATCH(TEXT(H17,0),Betriebeliste!$A$1:$A$331,0),27),"") -> 218 | J17: =IFERROR(INDEX(Betriebeliste!$A$1:AF$299,MATCH(TEXT(H17,0),Betriebeliste!$A$1:$A$331,0),29)/I17,"") -> 53% | K17: =IF(INDEX(Betriebeliste!$A$1:K$331,MATCH(TEXT(H17,0),Betriebeliste!$A$1:$A$331,0),5)=1,"L","") -> L | L17: =IFERROR(INDEX(Betriebeliste!$A$1:BM$299,MATCH(TEXT(H17,0),Betriebeliste!$A$1:$A$331,0),30),"") -> 9
A18: 2 Anz. Datensätze P Anz. Vorschaubilder LFilterung möglich + Neue Fotos | H18: 107 | I18: =IFERROR(INDEX(Betriebeliste!$A$1:AE$298,MATCH(TEXT(H18,0),Betriebeliste!$A$1:$A$331,0),27),"") -> 8 | J18: =IFERROR(INDEX(Betriebeliste!$A$1:AF$299,MATCH(TEXT(H18,0),Betriebeliste!$A$1:$A$331,0),29)/I18,"") -> 100% | K18: =IF(INDEX(Betriebeliste!$A$1:K$331,MATCH(TEXT(H18,0),Betriebeliste!$A$1:$A$331,0),5)=1,"L","") ->  | L18: =IFERROR(INDEX(Betriebeliste!$A$1:BM$299,MATCH(TEXT(H18,0),Betriebeliste!$A$1:$A$331,0),30),"") -> 0

Sheet VWZ
B1: Bilderverzeichnis Deutschland
C3: 2 | D3: P | F3: + | I3: 2 | J3: P | L3: +
B4: 91 | C4: =IFERROR(INDEX(Betriebeliste!$A$1:AA$299,MATCH(TEXT(B4,0),Betriebeliste!$A$1:$A$331,0),27),"") -> 9 | D4: =IFERROR(INDEX(Betriebeliste!$A$1:AC$299,MATCH(TEXT(B4,0),Betriebeliste!$A$1:$A$331,0),29)/C4,"") -> 89% | E4: =IF(INDEX(Betriebeliste!$A$1:E$331,MATCH(TEXT(B4,0),Betriebeliste!$A$1:$A$331,0),5)=1,"L","") ->  | F4: =IFERROR(INDEX(Betriebeliste!$A$1:BG$299,MATCH(TEXT(B4,0),Betriebeliste!$A$1:$A$331,0),30),"") -> 0 | H4: Wuppertal
A5: V W Z | B5: 58 | C5: =IFERROR(INDEX(Betriebeliste!$A$1:AA$299,MATCH(TEXT(B5,0),Betriebeliste!$A$1:$A$331,0),27),"") -> 300 | D5: =IFERROR(INDEX(Betriebeliste!$A$1:AC$299,MATCH(TEXT(B5,0),Betriebeliste!$A$1:$A$331,0),29)/C5,"") -> 99% | E5: =IF(INDEX(Betriebeliste!$A$1:E$331,MATCH(TEXT(B5,0),Betriebeliste!$A$1:$A$331,0),5)=1,"L","") -> L | F5: =IFERROR(INDEX(Betriebeliste!$A$1:BG$299,MATCH(TEXT(B5,0),Betriebeliste!$A$1:$A$331,0),30),"") -> 27 | H5: 79 | I5: =IFERROR(INDEX(Betriebeliste!$A$1:AE$298,MATCH(TEXT(H5,0),Betriebeliste!$A$1:$A$331,0),27),"") -> 97 | J5: =IFERROR(INDEX(Betriebeliste!$A$1:AF$299,MATCH(TEXT(H5,0),Betriebeliste!$A$1:$A$331,0),29)/I5,"") -> 98% | K5: =IF(INDEX(Betriebeliste!$A$1:K$331,MATCH(TEXT(H5,0),Betriebeliste!$A$1:$A$331,0),5)=1,"L","") -> L | L5: =IFERROR(INDEX(Betriebeliste!$A$1:BM$299,MATCH(TEXT(H5,0),Betriebeliste!$A$1:$A$331,0),30),"") -> 7
B6: 138 | C6: =IFERROR(INDEX(Betriebeliste!$A$1:AA$299,MATCH(TEXT(B6,0),Betriebeliste!$A$1:$A$331,0),27),"") -> 18 | D6: =IFERROR(INDEX(Betriebeliste!$A$1:AC$299,MATCH(TEXT(B6,0),Betriebeliste!$A$1:$A$331,0),29)/C6,"") -> 100% | E6: =IF(INDEX(Betriebeliste!$A$1:E$331,MATCH(TEXT(B6,0),Betriebeliste!$A$1:$A$331,0),5)=1,"L","") ->  | F6: =IFERROR(INDEX(Betriebeliste!$A$1:BG$299,MATCH(TEXT(B6,0),Betriebeliste!$A$1:$A$331,0),30),"") -> 1 | H6: 753 | I6: =IFERROR(INDEX(Betriebeliste!$A$1:AE$298,MATCH(TEXT(H6,0),Betriebeliste!$A$1:$A$331,0),27),"") -> 237 | J6: =IFERROR(INDEX(Betriebeliste!$A$1:AF$299,MATCH(TEXT(H6,0),Betriebeliste!$A$1:$A$331,0),29)/I6,"") -> 99% | K6: =IF(INDEX(Betriebeliste!$A$1:K$331,MATCH(TEXT(H6,0),Betriebeliste!$A$1:$A$331,0),5)=1,"L","") -> L | L6: =IFERROR(INDEX(Betriebeliste!$A$1:BM$299,MATCH(TEXT(H6,0),Betriebeliste!$A$1:$A$331,0),30),"") -> 2
H7: 755 | I7: =IFERROR(INDEX(Betriebeliste!$A$1:AE$298,MATCH(TEXT(H7,0),Betriebeliste!$A$1:$A$331,0),27),"") -> 44 | J7: =IFERROR(INDEX(Betriebeliste!$A$1:AF$299,MATCH(TEXT(H7,0),Betriebeliste!$A$1:$A$331,0),29)/I7,"") -> 95% | K7: =IF(INDEX(Betriebeliste!$A$1:K$331,MATCH(TEXT(H7,0),Betriebeliste!$A$1:$A$331,0),5)=1,"L","") ->  | L7: =IFERROR(INDEX(Betriebeliste!$A$1:BM$299,MATCH(TEXT(H7,0),Betriebeliste!$A$1:$A$331,0),30),"") -> 0
H8: 82 | I8: =IFERROR(INDEX(Betriebeliste!$A$1:AE$298,MATCH(TEXT(H8,0),Betriebeliste!$A$1:$A$331,0),27),"") -> 633 | J8: =IFERROR(INDEX(Betriebeliste!$A$1:AF$299,MATCH(TEXT(H8,0),Betriebeliste!$A$1:$A$331,0),29)/I8,"") -> 97% | K8: =IF(INDEX(Betriebeliste!$A$1:K$331,MATCH(TEXT(H8,0),Betriebeliste!$A$1:$A$331,0),5)=1,"L","") -> L | L8: =IFERROR(INDEX(Betriebeliste!$A$1:BM$299,MATCH(TEXT(H8,0),Betriebeliste!$A$1:$A$331,0),30),"") -> 32
B9: 126 | C9: =IFERROR(INDEX(Betriebeliste!$A$1:AA$299,MATCH(TEXT(B9,0),Betriebeliste!$A$1:$A$331,0),27),"") -> 21 | D9: =IFERROR(INDEX(Betriebeliste!$A$1:AC$299,MATCH(TEXT(B9,0),Betriebeliste!$A$1:$A$331,0),29)/C9,"") -> 100% | E9: =IF(INDEX(Betriebeliste!$A$1:E$331,MATCH(TEXT(B9,0),Betriebeliste!$A$1:$A$331,0),5)=1,"L","") ->  | F9: =IFERROR(INDEX(Betriebeliste!$A$1:BG$299,MATCH(TEXT(B9,0),Betriebeliste!$A$1:$A$331,0),30),"") -> 5 | H9: 752 | I9: =IFERROR(INDEX(Betriebeliste!$A$1:AE$298,MATCH(TEXT(H9,0),Betriebeliste!$A$1:$A$331,0),27),"") -> 30 | J9: =IFERROR(INDEX(Betriebeliste!$A$1:AF$299,MATCH(TEXT(H9,0),Betriebeliste!$A$1:$A$331,0),29)/I9,"") -> 83% | K9: =IF(INDEX(Betriebeliste!$A$1:K$331,MATCH(TEXT(H9,0),Betriebeliste!$A$1:$A$331,0),5)=1,"L","") ->  | L9: =IFERROR(INDEX(Betriebeliste!$A$1:BM$299,MATCH(TEXT(H9,0),Betriebeliste!$A$1:$A$331,0),30),"") -> 7
B10: 152 | C10: =IFERROR(INDEX(Betriebeliste!$A$1:AA$299,MATCH(TEXT(B10,0),Betriebeliste!$A$1:$A$331,0),27),"") -> 14 | D10: =IFERROR(INDEX(Betriebeliste!$A$1:AC$299,MATCH(TEXT(B10,0),Betriebeliste!$A$1:$A$331,0),29)/C10,"") -> 43% | E10: =IF(INDEX(Betriebeliste!$A$1:E$331,MATCH(TEXT(B10,0),Betriebeliste!$A$1:$A$331,0),5)=1,"L","") ->  | F10: =IFERROR(INDEX(Betriebeliste!$A$1:BG$299,MATCH(TEXT(B10,0),Betriebeliste!$A$1:$A$331,0),30),"") -> 0 | H10: 754 | I10: =IFERROR(INDEX(Betriebeliste!$A$1:AE$298,MATCH(TEXT(H10,0),Betriebeliste!$A$1:$A$331,0),27),"") -> 89 | J10: =IFERROR(INDEX(Betriebeliste!$A$1:AF$299,MATCH(TEXT(H10,0),Betriebeliste!$A$1:$A$331,0),29)/I10,"") -> 94% | K10: =IF(INDEX(Betriebeliste!$A$1:K$331,MATCH(TEXT(H10,0),Betriebeliste!$A$1:$A$331,0),5)=1,"L","") -> L | L10: =IFERROR(INDEX(Betriebeliste!$A$1:BM$299,MATCH(TEXT(H10,0),Betriebeliste!$A$1:$A$331,0),30),"") -> 0
B11: 35 | C11: =IFERROR(INDEX(Betriebeliste!$A$1:AA$299,MATCH(TEXT(B11,0),Betriebeliste!$A$1:$A$331,0),27),"") -> 19 | D11: =IFERROR(INDEX(Betriebeliste!$A$1:AC$299,MATCH(TEXT(B11,0),Betriebeliste!$A$1:$A$331,0),29)/C11,"") -> 32% | E11: =IF(INDEX(Betriebeliste!$A$1:E$331,MATCH(TEXT(B11,0),Betriebeliste!$A$1:$A$331,0),5)=1,"L","") ->  | F11: =IFERROR(INDEX(Betriebeliste!$A$1:BG$299,MATCH(TEXT(B11,0),Betriebeliste!$A$1:$A$331,0),30),"") -> 0 | H11: 81 | I11: =IFERROR(INDEX(Betriebeliste!$A$1:AE$298,MATCH(TEXT(H11,0),Betriebeliste!$A$1:$A$331,0),27),"") -> 32 | J11: =IFERROR(INDEX(Betriebeliste!$A$1:AF$299,MATCH(TEXT(H11,0),Betriebeliste!$A$1:$A$331,0),29)/I11,"") -> 88% | K11: =IF(INDEX(Betriebeliste!$A$1:K$331,MATCH(TEXT(H11,0),Betriebeliste!$A$1:$A$331,0),5)=1,"L","") ->  | L11: =IFERROR(INDEX(Betriebeliste!$A$1:BM$299,MATCH(TEXT(H11,0),Betriebeliste!$A$1:$A$331,0),30),"") -> 0
B12: 1004 | C12: =IFERROR(INDEX(Betriebeliste!$A$1:AA$299,MATCH(TEXT(B12,0),Betriebeliste!$A$1:$A$331,0),27),"") -> 4 | D12: =IFERROR(INDEX(Betriebeliste!$A$1:AC$299,MATCH(TEXT(B12,0),Betriebeliste!$A$1:$A$331,0),29)/C12,"") -> 0% | E12: =IF(INDEX(Betriebeliste!$A$1:E$331,MATCH(TEXT(B12,0),Betriebeliste!$A$1:$A$331,0),5)=1,"L","") ->  | F12: =IFERROR(INDEX(Betriebeliste!$A$1:BG$299,MATCH(TEXT(B12,0),Betriebeliste!$A$1:$A$331,0),30),"") -> 0 | H12: 756 | I12: =IFERROR(INDEX(Betriebeliste!$A$1:AE$298,MATCH(TEXT(H12,0),Betriebeliste!$A$1:$A$331,0),27),"") -> 522 | J12: =IFERROR(INDEX(Betriebeliste!$A$1:AF$299,MATCH(TEXT(H12,0),Betriebeliste!$A$1:$A$331,0),29)/I12,"") -> 99% | K12: =IF(INDEX(Betriebeliste!$A$1:K$331,MATCH(TEXT(H12,0),Betriebeliste!$A$1:$A$331,0),5)=1,"L","") -> L | L12: =IFERROR(INDEX(Betriebeliste!$A$1:BM$299,MATCH(TEXT(H12,0),Betriebeliste!$A$1:$A$331,0),30),"") -> 33
B13: 106 | C13: =IFERROR(INDEX(Betriebeliste!$A$1:AA$299,MATCH(TEXT(B13,0),Betriebeliste!$A$1:$A$331,0),27),"") -> 68 | D13: =IFERROR(INDEX(Betriebeliste!$A$1:AC$299,MATCH(TEXT(B13,0),Betriebeliste!$A$1:$A$331,0),29)/C13,"") -> 68% | E13: =IF(INDEX(Betriebeliste!$A$1:E$331,MATCH(TEXT(B13,0),Betriebeliste!$A$1:$A$331,0),5)=1,"L","") -> L | F13: =IFERROR(INDEX(Betriebeliste!$A$1:BG$299,MATCH(TEXT(B13,0),Betriebeliste!$A$1:$A$331,0),30),"") -> 8 | H13: 80 | I13: =IFERROR(INDEX(Betriebeliste!$A$1:AE$298,MATCH(TEXT(H13,0),Betriebeliste!$A$1:$A$331,0),27),"") -> 185 | J13: =IFERROR(INDEX(Betriebeliste!$A$1:AF$299,MATCH(TEXT(H13,0),Betriebeliste!$A$1:$A$331,0),29)/I13,"") -> 99% | K13: =IF(INDEX(Betriebeliste!$A$1:K$331,MATCH(TEXT(H13,0),Betriebeliste!$A$1:$A$331,0),5)=1,"L","") -> L | L13: =IFERROR(INDEX(Betriebeliste!$A$1:BM$299,MATCH(TEXT(H13,0),Betriebeliste!$A$1:$A$331,0),30),"") -> 5
B14: 110 | C14: =IFERROR(INDEX(Betriebeliste!$A$1:AA$299,MATCH(TEXT(B14,0),Betriebeliste!$A$1:$A$331,0),27),"") -> 11 | D14: =IFERROR(INDEX(Betriebeliste!$A$1:AC$299,MATCH(TEXT(B14,0),Betriebeliste!$A$1:$A$331,0),29)/C14,"") -> 0% | E14: =IF(INDEX(Betriebeliste!$A$1:E$331,MATCH(TEXT(B14,0),Betriebeliste!$A$1:$A$331,0),5)=1,"L","") ->  | F14: =IFERROR(INDEX(Betriebeliste!$A$1:BG$299,MATCH(TEXT(B14,0),Betriebeliste!$A$1:$A$331,0),30),"") -> 0
B15: 66 | C15: =IFERROR(INDEX(Betriebeliste!$A$1:AA$299,MATCH(TEXT(B15,0),Betriebeliste!$A$1:$A$331,0),27),"") -> 28 | D15: =IFERROR(INDEX(Betriebeliste!$A$1:AC$299,MATCH(TEXT(B15,0),Betriebeliste!$A$1:$A$331,0),29)/C15,"") -> 89% | E15: =IF(INDEX(Betriebeliste!$A$1:E$331,MATCH(TEXT(B15,0),Betriebeliste!$A$1:$A$331,0),5)=1,"L","") ->  | F15: =IFERROR(INDEX(Betriebeliste!$A$1:BG$299,MATCH(TEXT(B15,0),Betriebeliste!$A$1:$A$331,0),30),"") -> 0 | H15: 218.1 | I15: =IFERROR(INDEX(Betriebeliste!$A$1:AE$298,MATCH(TEXT(H15,0),Betriebeliste!$A$1:$A$331,0),27),"") -> 9 | J15: =IFERROR(INDEX(Betriebeliste!$A$1:AF$299,MATCH(TEXT(H15,0),Betriebeliste!$A$1:$A$331,0),29)/I15,"") -> 78% | K15: =IF(INDEX(Betriebeliste!$A$1:K$331,MATCH(TEXT(H15,0),Betriebeliste!$A$1:$A$331,0),5)=1,"L","") ->  | L15: =IFERROR(INDEX(Betriebeliste!$A$1:BM$299,MATCH(TEXT(H15,0),Betriebeliste!$A$1:$A$331,0),30),"") -> 0
B16: 51 | C16: =IFERROR(INDEX(Betriebeliste!$A$1:AA$299,MATCH(TEXT(B16,0),Betriebeliste!$A$1:$A$331,0),27),"") -> 68 | D16: =IFERROR(INDEX(Betriebeliste!$A$1:AC$299,MATCH(TEXT(B16,0),Betriebeliste!$A$1:$A$331,0),29)/C16,"") -> 29% | E16: =IF(INDEX(Betriebeliste!$A$1:E$331,MATCH(TEXT(B16,0),Betriebeliste!$A$1:$A$331,0),5)=1,"L","") ->  | F16: =IFERROR(INDEX(Betriebeliste!$A$1:BG$299,MATCH(TEXT(B16,0),Betriebeliste!$A$1:$A$331,0),30),"") -> 0 | H16: 139 | I16: =IFERROR(INDEX(Betriebeliste!$A$1:AE$298,MATCH(TEXT(H16,0),Betriebeliste!$A$1:$A$331,0),27),"") -> 281 | J16: =IFERROR(INDEX(Betriebeliste!$A$1:AF$299,MATCH(TEXT(H16,0),Betriebeliste!$A$1:$A$331,0),29)/I16,"") -> 100% | K16: =IF(INDEX(Betriebeliste!$A$1:K$331,MATCH(TEXT(H16,0),Betriebeliste!$A$1:$A$331,0),5)=1,"L","") -> L | L16: =IFERROR(INDEX(Betriebeliste!$A$1:BM$299,MATCH(TEXT(H16,0),Betriebeliste!$A$1:$A$331,0),30),"") -> 8
B17: 87 | C17: =IFERROR(INDEX(Betriebeliste!$A$1:AA$299,MATCH(TEXT(B17,0),Betriebeliste!$A$1:$A$331,0),27),"") -> 13 | D17: =IFERROR(INDEX(Betriebeliste!$A$1:AC$299,MATCH(TEXT(B17,0),Betriebeliste!$A$1:$A$331,0),29)/C17,"") -> 92% | E17: =IF(INDEX(Betriebeliste!$A$1:E$331,MATCH(TEXT(B17,0),Betriebeliste!$A$1:$A$331,0),5)=1,"L","") ->  | F17: =IFERROR(INDEX(Betriebeliste!$A$1:BG$299,MATCH(TEXT(B17,0),Betriebeliste!$A$1:$A$331,0),30),"") -> 1
A18: 2 Anz. Datensätze P Anz. Vorschaubilder LFilterung möglich + Neue Fotos | B18: 12 | C18: =IFERROR(INDEX(Betriebeliste!$A$1:AA$299,MATCH(TEXT(B18,0),Betriebeliste!$A$1:$A$331,0),27),"") -> 102 | D18: =IFERROR(INDEX(Betriebeliste!$A$1:AC$299,MATCH(TEXT(B18,0),Betriebeliste!$A$1:$A$331,0),29)/C18,"") -> 99% | E18: =IF(INDEX(Betriebeliste!$A$1:E$331,MATCH(TEXT(B18,0),Betriebeliste!$A$1:$A$331,0),5)=1,"L","") -> L | F18: =IFERROR(INDEX(Betriebeliste!$A$1:BG$299,MATCH(TEXT(B18,0),Betriebeliste!$A$1:$A$331,0),30),"") -> 0 | H18: 1012 | I18: =IFERROR(INDEX(Betriebeliste!$A$1:AE$298,MATCH(TEXT(H18,0),Betriebeliste!$A$1:$A$331,0),27),"") -> 5 | J18: =IFERROR(INDEX(Betriebeliste!$A$1:AF$299,MATCH(TEXT(H18,0),Betriebeliste!$A$1:$A$331,0),29)/I18,"") -> 80% | K18: =IF(INDEX(Betriebeliste!$A$1:K$331,MATCH(TEXT(H18,0),Betriebeliste!$A$1:$A$331,0),5)=1,"L","") ->  | L18: =IFERROR(INDEX(Betriebeliste!$A$1:BM$299,MATCH(TEXT(H18,0),Betriebeliste!$A$1:$A$331,0),30),"") -> 0
B19: 97 | C19: =IFERROR(INDEX(Betriebeliste!$A$1:AA$299,MATCH(TEXT(B19,0),Betriebeliste!$A$1:$A$331,0),27),"") -> 28 | D19: =IFERROR(INDEX(Betriebeliste!$A$1:AC$299,MATCH(TEXT(B19,0),Betriebeliste!$A$1:$A$331,0),29)/C19,"") -> 100% | E19: =IF(INDEX(Betriebeliste!$A$1:E$331,MATCH(TEXT(B19,0),Betriebeliste!$A$1:$A$331,0),5)=1,"L","") ->  | F19: =IFERROR(INDEX(Betriebeliste!$A$1:BG$299,MATCH(TEXT(B19,0),Betriebeliste!$A$1:$A$331,0),30),"") -> 0 | H19: 146 | I19: =IFERROR(INDEX(Betriebeliste!$A$1:AE$298,MATCH(TEXT(H19,0),Betriebeliste!$A$1:$A$331,0),27),"") -> 135 | J19: =IFERROR(INDEX(Betriebeliste!$A$1:AF$299,MATCH(TEXT(H19,0),Betriebeliste!$A$1:$A$331,0),29)/I19,"") -> 79% | K19: =IF(INDEX(Betriebeliste!$A$1:K$331,MATCH(TEXT(H19,0),Betriebeliste!$A$1:$A$331,0),5)=1,"L","") -> L | L19: =IFERROR(INDEX(Betriebeliste!$A$1:BM$299,MATCH(TEXT(H19,0),Betriebeliste!$A$1:$A$331,0),30),"") -> 0

Sheet News (hidden)
A1: Datum | B1: Text
A2: 2023-03-30 | B2: In dieser Version haben wir für Straßenbahnmuseen eigene Kategorien eingerichtet, die nach und nach gefüllt werden. Außerdem kommen die restlichen 300 Bilder von Dieter Waltking und ein paar "Nachzügler" von Horst Völkel hinzu.
A3: 2023-02-27 | B3: Erneut gibt es rund 1.100 neue Fotos zu entdecken. Von Dieter Waltking sind dies westdeutsche Städte mit dem Anfangsbuchstaben "M", von Horst Völkel ostdeutsche Städte mit den Anfangsbuchstaben von "E" bis "Z".
A4: 2023-01-30 | B4: Das letzte Update (V 3.1) ist leider zu älteren Excel-Versionen (Excel 2019 und älter) nicht kompatibel. Auf der VDVA-Homepage steht Version 3.1.1 zum Download bereit, die diesen Fehler behebt. Außerdem gibt es 1100 neue Fotos von H. Völkel und D. Waltking.
A5: 2022-12-19 | B5: Für die Weihnachtstage haben wir ein dickes Paket neuer Bilder bereitgestellt: Rund 1.100 Fotos von Horst Völkel (Schwerpunkt: Städte "N" bis "W") und ca. 550 Aufnahmen von Dieter Waltking von Aachen bis Düsseldorf sind neu.
A6: 2022-11-17 | B6: Rund 1100 weitere Bilder von Horst Völkel (Städte mit den Anfangsbuchstaben "K" bis "M") wurden ergänzt. Ferner gibt es neue Fotos von Frits van der Gragt aus Stuttgart zu entdecken.

Sheet Museum
B1: Bilderverzeichnis Deutschland
C3: 2 | D3: P | F3: + | I3: 2 | J3: P | L3: +
B4: 2001 | C4: =IFERROR(INDEX(Betriebeliste!$A$1:AA$299,MATCH(TEXT(B4,0),Betriebeliste!$A$1:$A$331,0),27),"") -> 1 | D4: =IFERROR(INDEX(Betriebeliste!$A$1:AC$299,MATCH(TEXT(B4,0),Betriebeliste!$A$1:$A$331,0),29)/C4,"") -> 0% | E4: =IF(INDEX(Betriebeliste!$A$1:E$331,MATCH(TEXT(B4,0),Betriebeliste!$A$1:$A$331,0),5)=1,"L","") ->  | F4: =IFERROR(INDEX(Betriebeliste!$A$1:BG$299,MATCH(TEXT(B4,0),Betriebeliste!$A$1:$A$331,0),30),"") -> 0 | H4: 2017 | I4: =IFERROR(INDEX(Betriebeliste!$A$1:AE$298,MATCH(TEXT(H4,0),Betriebeliste!$A$1:$A$331,0),27),"") -> 1 | J4: =IFERROR(INDEX(Betriebeliste!$A$1:AF$299,MATCH(TEXT(H4,0),Betriebeliste!$A$1:$A$331,0),29)/I4,"") -> 0% | K4: =IF(INDEX(Betriebeliste!$A$1:K$331,MATCH(TEXT(H4,0),Betriebeliste!$A$1:$A$331,0),5)=1,"L","") ->  | L4: =IFERROR(INDEX(Betriebeliste!$A$1:BM$299,MATCH(TEXT(H4,0),Betriebeliste!$A$1:$A$331,0),30),"") -> 0
A5: Straßenbahn- Museen | B5: 2002 | C5: =IFERROR(INDEX(Betriebeliste!$A$1:AA$299,MATCH(TEXT(B5,0),Betriebeliste!$A$1:$A$331,0),27),"") -> 1 | D5: =IFERROR(INDEX(Betriebeliste!$A$1:AC$299,MATCH(TEXT(B5,0),Betriebeliste!$A$1:$A$331,0),29)/C5,"") -> 0% | E5: =IF(INDEX(Betriebeliste!$A$1:E$331,MATCH(TEXT(B5,0),Betriebeliste!$A$1:$A$331,0),5)=1,"L","") ->  | F5: =IFERROR(INDEX(Betriebeliste!$A$1:BG$299,MATCH(TEXT(B5,0),Betriebeliste!$A$1:$A$331,0),30),"") -> 0 | H5: 2018 | I5: =IFERROR(INDEX(Betriebeliste!$A$1:AE$298,MATCH(TEXT(H5,0),Betriebeliste!$A$1:$A$331,0),27),"") -> 21 | J5: =IFERROR(INDEX(Betriebeliste!$A$1:AF$299,MATCH(TEXT(H5,0),Betriebeliste!$A$1:$A$331,0),29)/I5,"") -> 100% | K5: =IF(INDEX(Betriebeliste!$A$1:K$331,MATCH(TEXT(H5,0),Betriebeliste!$A$1:$A$331,0),5)=1,"L","") ->  | L5: =IFERROR(INDEX(Betriebeliste!$A$1:BM$299,MATCH(TEXT(H5,0),Betriebeliste!$A$1:$A$331,0),30),"") -> 0
B6: 2003 | C6: =IFERROR(INDEX(Betriebeliste!$A$1:AA$299,MATCH(TEXT(B6,0),Betriebeliste!$A$1:$A$331,0),27),"") -> 1 | D6: =IFERROR(INDEX(Betriebeliste!$A$1:AC$299,MATCH(TEXT(B6,0),Betriebeliste!$A$1:$A$331,0),29)/C6,"") -> 0% | E6: =IF(INDEX(Betriebeliste!$A$1:E$331,MATCH(TEXT(B6,0),Betriebeliste!$A$1:$A$331,0),5)=1,"L","") ->  | F6: =IFERROR(INDEX(Betriebeliste!$A$1:BG$299,MATCH(TEXT(B6,0),Betriebeliste!$A$1:$A$331,0),30),"") -> 0 | H6: 2019 | I6: =IFERROR(INDEX(Betriebeliste!$A$1:AE$298,MATCH(TEXT(H6,0),Betriebeliste!$A$1:$A$331,0),27),"") -> 5 | J6: =IFERROR(INDEX(Betriebeliste!$A$1:AF$299,MATCH(TEXT(H6,0),Betriebeliste!$A$1:$A$331,0),29)/I6,"") -> 100% | K6: =IF(INDEX(Betriebeliste!$A$1:K$331,MATCH(TEXT(H6,0),Betriebeliste!$A$1:$A$331,0),5)=1,"L","") ->  | L6: =IFERROR(INDEX(Betriebeliste!$A$1:BM$299,MATCH(TEXT(H6,0),Betriebeliste!$A$1:$A$331,0),30),"") -> 0
B7: 2004 | C7: =IFERROR(INDEX(Betriebeliste!$A$1:AA$299,MATCH(TEXT(B7,0),Betriebeliste!$A$1:$A$331,0),27),"") -> 1 | D7: =IFERROR(INDEX(Betriebeliste!$A$1:AC$299,MATCH(TEXT(B7,0),Betriebeliste!$A$1:$A$331,0),29)/C7,"") -> 0% | E7: =IF(INDEX(Betriebeliste!$A$1:E$331,MATCH(TEXT(B7,0),Betriebeliste!$A$1:$A$331,0),5)=1,"L","") ->  | F7: =IFERROR(INDEX(Betriebeliste!$A$1:BG$299,MATCH(TEXT(B7,0),Betriebeliste!$A$1:$A$331,0),30),"") -> 0 | H7: 2020 | I7: =IFERROR(INDEX(Betriebeliste!$A$1:AE$298,MATCH(TEXT(H7,0),Betriebeliste!$A$1:$A$331,0),27),"") -> 1 | J7: =IFERROR(INDEX(Betriebeliste!$A$1:AF$299,MATCH(TEXT(H7,0),Betriebeliste!$A$1:$A$331,0),29)/I7,"") -> 0% | K7: =IF(INDEX(Betriebeliste!$A$1:K$331,MATCH(TEXT(H7,0),Betriebeliste!$A$1:$A$331,0),5)=1,"L","") ->  | L7: =IFERROR(INDEX(Betriebeliste!$A$1:BM$299,MATCH(TEXT(H7,0),Betriebeliste!$A$1:$A$331,0),30),"") -> 0
B8: 2005 | C8: =IFERROR(INDEX(Betriebeliste!$A$1:AA$299,MATCH(TEXT(B8,0),Betriebeliste!$A$1:$A$331,0),27),"") -> 1 | D8: =IFERROR(INDEX(Betriebeliste!$A$1:AC$299,MATCH(TEXT(B8,0),Betriebeliste!$A$1:$A$331,0),29)/C8,"") -> 0% | E8: =IF(INDEX(Betriebeliste!$A$1:E$331,MATCH(TEXT(B8,0),Betriebeliste!$A$1:$A$331,0),5)=1,"L","") ->  | F8: =IFERROR(INDEX(Betriebeliste!$A$1:BG$299,MATCH(TEXT(B8,0),Betriebeliste!$A$1:$A$331,0),30),"") -> 0 | H8: 2021 | I8: =IFERROR(INDEX(Betriebeliste!$A$1:AE$298,MATCH(TEXT(H8,0),Betriebeliste!$A$1:$A$331,0),27),"") -> 7 | J8: =IFERROR(INDEX(Betriebeliste!$A$1:AF$299,MATCH(TEXT(H8,0),Betriebeliste!$A$1:$A$331,0),29)/I8,"") -> 100% | K8: =IF(INDEX(Betriebeliste!$A$1:K$331,MATCH(TEXT(H8,0),Betriebeliste!$A$1:$A$331,0),5)=1,"L","") ->  | L8: =IFERROR(INDEX(Betriebeliste!$A$1:BM$299,MATCH(TEXT(H8,0),Betriebeliste!$A$1:$A$331,0),30),"") -> 0
B9: 2006 | C9: =IFERROR(INDEX(Betriebeliste!$A$1:AA$299,MATCH(TEXT(B9,0),Betriebeliste!$A$1:$A$331,0),27),"") -> 1 | D9: =IFERROR(INDEX(Betriebeliste!$A$1:AC$299,MATCH(TEXT(B9,0),Betriebeliste!$A$1:$A$331,0),29)/C9,"") -> 0% | E9: =IF(INDEX(Betriebeliste!$A$1:E$331,MATCH(TEXT(B9,0),Betriebeliste!$A$1:$A$331,0),5)=1,"L","") ->  | F9: =IFERROR(INDEX(Betriebeliste!$A$1:BG$299,MATCH(TEXT(B9,0),Betriebeliste!$A$1:$A$331,0),30),"") -> 0 | H9: 2022 | I9: =IFERROR(INDEX(Betriebeliste!$A$1:AE$298,MATCH(TEXT(H9,0),Betriebeliste!$A$1:$A$331,0),27),"") -> 1 | J9: =IFERROR(INDEX(Betriebeliste!$A$1:AF$299,MATCH(TEXT(H9,0),Betriebeliste!$A$1:$A$331,0),29)/I9,"") -> 0% | K9: =IF(INDEX(Betriebeliste!$A$1:K$331,MATCH(TEXT(H9,0),Betriebeliste!$A$1:$A$331,0),5)=1,"L","") ->  | L9: =IFERROR(INDEX(Betriebeliste!$A$1:BM$299,MATCH(TEXT(H9,0),Betriebeliste!$A$1:$A$331,0),30),"") -> 0
B10: 2007 | C10: =IFERROR(INDEX(Betriebeliste!$A$1:AA$299,MATCH(TEXT(B10,0),Betriebeliste!$A$1:$A$331,0),27),"") -> 1 | D10: =IFERROR(INDEX(Betriebeliste!$A$1:AC$299,MATCH(TEXT(B10,0),Betriebeliste!$A$1:$A$331,0),29)/C10,"") -> 0% | E10: =IF(INDEX(Betriebeliste!$A$1:E$331,MATCH(TEXT(B10,0),Betriebeliste!$A$1:$A$331,0),5)=1,"L","") ->  | F10: =IFERROR(INDEX(Betriebeliste!$A$1:BG$299,MATCH(TEXT(B10,0),Betriebeliste!$A$1:$A$331,0),30),"") -> 0 | H10: 2023 | I10: =IFERROR(INDEX(Betriebeliste!$A$1:AE$298,MATCH(TEXT(H10,0),Betriebeliste!$A$1:$A$331,0),27),"") -> 1 | J10: =IFERROR(INDEX(Betriebeliste!$A$1:AF$299,MATCH(TEXT(H10,0),Betriebeliste!$A$1:$A$331,0),29)/I10,"") -> 100% | K10: =IF(INDEX(Betriebeliste!$A$1:K$331,MATCH(TEXT(H10,0),Betriebeliste!$A$1:$A$331,0),5)=1,"L","") ->  | L10: =IFERROR(INDEX(Betriebeliste!$A$1:BM$299,MATCH(TEXT(H10,0),Betriebeliste!$A$1:$A$331,0),30),"") -> 0
B11: 2008 | C11: =IFERROR(INDEX(Betriebeliste!$A$1:AA$299,MATCH(TEXT(B11,0),Betriebeliste!$A$1:$A$331,0),27),"") -> 1 | D11: =IFERROR(INDEX(Betriebeliste!$A$1:AC$299,MATCH(TEXT(B11,0),Betriebeliste!$A$1:$A$331,0),29)/C11,"") -> 0% | E11: =IF(INDEX(Betriebeliste!$A$1:E$331,MATCH(TEXT(B11,0),Betriebeliste!$A$1:$A$331,0),5)=1,"L","") ->  | F11: =IFERROR(INDEX(Betriebeliste!$A$1:BG$299,MATCH(TEXT(B11,0),Betriebeliste!$A$1:$A$331,0),30),"") -> 0 | H11: 2024 | I11: =IFERROR(INDEX(Betriebeliste!$A$1:AE$298,MATCH(TEXT(H11,0),Betriebeliste!$A$1:$A$331,0),27),"") -> 1 | J11: =IFERROR(INDEX(Betriebeliste!$A$1:AF$299,MATCH(TEXT(H11,0),Betriebeliste!$A$1:$A$331,0),29)/I11,"") -> 0% | K11: =IF(INDEX(Betriebeliste!$A$1:K$331,MATCH(TEXT(H11,0),Betriebeliste!$A$1:$A$331,0),5)=1,"L","") ->  | L11: =IFERROR(INDEX(Betriebeliste!$A$1:BM$299,MATCH(TEXT(H11,0),Betriebeliste!$A$1:$A$331,0),30),"") -> 0
B12: 2009 | C12: =IFERROR(INDEX(Betriebeliste!$A$1:AA$299,MATCH(TEXT(B12,0),Betriebeliste!$A$1:$A$331,0),27),"") -> 4 | D12: =IFERROR(INDEX(Betriebeliste!$A$1:AC$299,MATCH(TEXT(B12,0),Betriebeliste!$A$1:$A$331,0),29)/C12,"") -> 100% | E12: =IF(INDEX(Betriebeliste!$A$1:E$331,MATCH(TEXT(B12,0),Betriebeliste!$A$1:$A$331,0),5)=1,"L","") ->  | F12: =IFERROR(INDEX(Betriebeliste!$A$1:BG$299,MATCH(TEXT(B12,0),Betriebeliste!$A$1:$A$331,0),30),"") -> 0 | H12: 2025 | I12: =IFERROR(INDEX(Betriebeliste!$A$1:AE$298,MATCH(TEXT(H12,0),Betriebeliste!$A$1:$A$331,0),27),"") -> 7 | J12: =IFERROR(INDEX(Betriebeliste!$A$1:AF$299,MATCH(TEXT(H12,0),Betriebeliste!$A$1:$A$331,0),29)/I12,"") -> 100% | K12: =IF(INDEX(Betriebeliste!$A$1:K$331,MATCH(TEXT(H12,0),Betriebeliste!$A$1:$A$331,0),5)=1,"L","") ->  | L12: =IFERROR(INDEX(Betriebeliste!$A$1:BM$299,MATCH(TEXT(H12,0),Betriebeliste!$A$1:$A$331,0),30),"") -> 0
B13: 2010 | C13: =IFERROR(INDEX(Betriebeliste!$A$1:AA$299,MATCH(TEXT(B13,0),Betriebeliste!$A$1:$A$331,0),27),"") -> 1 | D13: =IFERROR(INDEX(Betriebeliste!$A$1:AC$299,MATCH(TEXT(B13,0),Betriebeliste!$A$1:$A$331,0),29)/C13,"") -> 0% | E13: =IF(INDEX(Betriebeliste!$A$1:E$331,MATCH(TEXT(B13,0),Betriebeliste!$A$1:$A$331,0),5)=1,"L","") ->  | F13: =IFERROR(INDEX(Betriebeliste!$A$1:BG$299,MATCH(TEXT(B13,0),Betriebeliste!$A$1:$A$331,0),30),"") -> 0 | H13: 2026 | I13: =IFERROR(INDEX(Betriebeliste!$A$1:AE$298,MATCH(TEXT(H13,0),Betriebeliste!$A$1:$A$331,0),27),"") -> 6 | J13: =IFERROR(INDEX(Betriebeliste!$A$1:AF$299,MATCH(TEXT(H13,0),Betriebeliste!$A$1:$A$331,0),29)/I13,"") -> 100% | K13: =IF(INDEX(Betriebeliste!$A$1:K$331,MATCH(TEXT(H13,0),Betriebeliste!$A$1:$A$331,0),5)=1,"L","") ->  | L13: =IFERROR(INDEX(Betriebeliste!$A$1:BM$299,MATCH(TEXT(H13,0),Betriebeliste!$A$1:$A$331,0),30),"") -> 0
B14: 2011 | C14: =IFERROR(INDEX(Betriebeliste!$A$1:AA$299,MATCH(TEXT(B14,0),Betriebeliste!$A$1:$A$331,0),27),"") -> 1 | D14: =IFERROR(INDEX(Betriebeliste!$A$1:AC$299,MATCH(TEXT(B14,0),Betriebeliste!$A$1:$A$331,0),29)/C14,"") -> 0% | E14: =IF(INDEX(Betriebeliste!$A$1:E$331,MATCH(TEXT(B14,0),Betriebeliste!$A$1:$A$331,0),5)=1,"L","") ->  | F14: =IFERROR(INDEX(Betriebeliste!$A$1:BG$299,MATCH(TEXT(B14,0),Betriebeliste!$A$1:$A$331,0),30),"") -> 0 | H14: 2027 | I14: =IFERROR(INDEX(Betriebeliste!$A$1:AE$298,MATCH(TEXT(H14,0),Betriebeliste!$A$1:$A$331,0),27),"") -> 8 | J14: =IFERROR(INDEX(Betriebeliste!$A$1:AF$299,MATCH(TEXT(H14,0),Betriebeliste!$A$1:$A$331,0),29)/I14,"") -> 100% | K14: =IF(INDEX(Betriebeliste!$A$1:K$331,MATCH(TEXT(H14,0),Betriebeliste!$A$1:$A$331,0),5)=1,"L","") ->  | L14: =IFERROR(INDEX(Betriebeliste!$A$1:BM$299,MATCH(TEXT(H14,0),Betriebeliste!$A$1:$A$331,0),30),"") -> 0
B15: 2012 | C15: =IFERROR(INDEX(Betriebeliste!$A$1:AA$299,MATCH(TEXT(B15,0),Betriebeliste!$A$1:$A$331,0),27),"") -> 1 | D15: =IFERROR(INDEX(Betriebeliste!$A$1:AC$299,MATCH(TEXT(B15,0),Betriebeliste!$A$1:$A$331,0),29)/C15,"") -> 0% | E15: =IF(INDEX(Betriebeliste!$A$1:E$331,MATCH(TEXT(B15,0),Betriebeliste!$A$1:$A$331,0),5)=1,"L","") ->  | F15: =IFERROR(INDEX(Betriebeliste!$A$1:BG$299,MATCH(TEXT(B15,0),Betriebeliste!$A$1:$A$331,0),30),"") -> 0 | H15: 2028 | I15: =IFERROR(INDEX(Betriebeliste!$A$1:AE$298,MATCH(TEXT(H15,0),Betriebeliste!$A$1:$A$331,0),27),"") -> 54 | J15: =IFERROR(INDEX(Betriebeliste!$A$1:AF$299,MATCH(TEXT(H15,0),Betriebeliste!$A$1:$A$331,0),29)/I15,"") -> 100% | K15: =IF(INDEX(Betriebeliste!$A$1:K$331,MATCH(TEXT(H15,0),Betriebeliste!$A$1:$A$331,0),5)=1,"L","") ->  | L15: =IFERROR(INDEX(Betriebeliste!$A$1:BM$299,MATCH(TEXT(H15,0),Betriebeliste!$A$1:$A$331,0),30),"") -> 0
B16: 2013 | C16: =IFERROR(INDEX(Betriebeliste!$A$1:AA$299,MATCH(TEXT(B16,0),Betriebeliste!$A$1:$A$331,0),27),"") -> 13 | D16: =IFERROR(INDEX(Betriebeliste!$A$1:AC$299,MATCH(TEXT(B16,0),Betriebeliste!$A$1:$A$331,0),29)/C16,"") -> 54% | E16: =IF(INDEX(Betriebeliste!$A$1:E$331,MATCH(TEXT(B16,0),Betriebeliste!$A$1:$A$331,0),5)=1,"L","") ->  | F16: =IFERROR(INDEX(Betriebeliste!$A$1:BG$299,MATCH(TEXT(B16,0),Betriebeliste!$A$1:$A$331,0),30),"") -> 0 | H16: 2029 | I16: =IFERROR(INDEX(Betriebeliste!$A$1:AE$298,MATCH(TEXT(H16,0),Betriebeliste!$A$1:$A$331,0),27),"") -> 24 | J16: =IFERROR(INDEX(Betriebeliste!$A$1:AF$299,MATCH(TEXT(H16,0),Betriebeliste!$A$1:$A$331,0),29)/I16,"") -> 100% | K16: =IF(INDEX(Betriebeliste!$A$1:K$331,MATCH(TEXT(H16,0),Betriebeliste!$A$1:$A$331,0),5)=1,"L","") ->  | L16: =IFERROR(INDEX(Betriebeliste!$A$1:BM$299,MATCH(TEXT(H16,0),Betriebeliste!$A$1:$A$331,0),30),"") -> 0
B17: 2014 | C17: =IFERROR(INDEX(Betriebeliste!$A$1:AA$299,MATCH(TEXT(B17,0),Betriebeliste!$A$1:$A$331,0),27),"") -> 16 | D17: =IFERROR(INDEX(Betriebeliste!$A$1:AC$299,MATCH(TEXT(B17,0),Betriebeliste!$A$1:$A$331,0),29)/C17,"") -> 100% | E17: =IF(INDEX(Betriebeliste!$A$1:E$331,MATCH(TEXT(B17,0),Betriebeliste!$A$1:$A$331,0),5)=1,"L","") ->  | F17: =IFERROR(INDEX(Betriebeliste!$A$1:BG$299,MATCH(TEXT(B17,0),Betriebeliste!$A$1:$A$331,0),30),"") -> 0 | H17: 2030 | I17: =IFERROR(INDEX(Betriebeliste!$A$1:AE$298,MATCH(TEXT(H17,0),Betriebeliste!$A$1:$A$331,0),27),"") -> 4 | J17: =IFERROR(INDEX(Betriebeliste!$A$1:AF$299,MATCH(TEXT(H17,0),Betriebeliste!$A$1:$A$331,0),29)/I17,"") -> 100% | K17: =IF(INDEX(Betriebeliste!$A$1:K$331,MATCH(TEXT(H17,0),Betriebeliste!$A$1:$A$331,0),5)=1,"L","") ->  | L17: =IFERROR(INDEX(Betriebeliste!$A$1:BM$299,MATCH(TEXT(H17,0),Betriebeliste!$A$1:$A$331,0),30),"") -> 0
A18: 2 Anz. Datensätze P Anz. Vorschaubilder LFilterung möglich + Neue Fotos | B18: 2015 | C18: =IFERROR(INDEX(Betriebeliste!$A$1:AA$299,MATCH(TEXT(B18,0),Betriebeliste!$A$1:$A$331,0),27),"") -> 4 | D18: =IFERROR(INDEX(Betriebeliste!$A$1:AC$299,MATCH(TEXT(B18,0),Betriebeliste!$A$1:$A$331,0),29)/C18,"") -> 100% | E18: =IF(INDEX(Betriebeliste!$A$1:E$331,MATCH(TEXT(B18,0),Betriebeliste!$A$1:$A$331,0),5)=1,"L","") ->  | F18: =IFERROR(INDEX(Betriebeliste!$A$1:BG$299,MATCH(TEXT(B18,0),Betriebeliste!$A$1:$A$331,0),30),"") -> 0 | H18: 2031 | I18: =IFERROR(INDEX(Betriebeliste!$A$1:AE$298,MATCH(TEXT(H18,0),Betriebeliste!$A$1:$A$331,0),27),"") -> 28 | J18: =IFERROR(INDEX(Betriebeliste!$A$1:AF$299,MATCH(TEXT(H18,0),Betriebeliste!$A$1:$A$331,0),29)/I18,"") -> 100% | K18: =IF(INDEX(Betriebeliste!$A$1:K$331,MATCH(TEXT(H18,0),Betriebeliste!$A$1:$A$331,0),5)=1,"L","") ->  | L18: =IFERROR(INDEX(Betriebeliste!$A$1:BM$299,MATCH(TEXT(H18,0),Betriebeliste!$A$1:$A$331,0),30),"") -> 0
B19: 2016 | C19: =IFERROR(INDEX(Betriebeliste!$A$1:AA$299,MATCH(TEXT(B19,0),Betriebeliste!$A$1:$A$331,0),27),"") -> 17 | D19: =IFERROR(INDEX(Betriebeliste!$A$1:AC$299,MATCH(TEXT(B19,0),Betriebeliste!$A$1:$A$331,0),29)/C19,"") -> 100% | E19: =IF(INDEX(Betriebeliste!$A$1:E$331,MATCH(TEXT(B19,0),Betriebeliste!$A$1:$A$331,0),5)=1,"L","") ->  | F19: =IFERROR(INDEX(Betriebeliste!$A$1:BG$299,MATCH(TEXT(B19,0),Betriebeliste!$A$1:$A$331,0),30),"") -> 0

Sheet Datenbank (hidden)
A1: Bild-ID | B1: Signatur | C1: Aufnahmeort | D1: WT | E1: WN | F1: Linie | G1: Bemerkung | H1: TT | I1: MM | J1: JJ | K1: Fotograf | L1: BN | M1: Anlass | N1: 0 | O1: 1 | P1: 2 | Q1: 3 | R1: 4 | S1: 5 | T1: 6 | U1: 7 | V1: 8 | W1: 9 | X1: 10 | Y1: 11 | Z1: 12 | AA1: 13 | AB1: 14 | AC1: 15 | AD1: 16 | AE1: 17 | AF1: 18 | AG1: 19 | AH1: 20 | AI1: 21 | AJ1: 22 | AK1: 23 | AL1: 24 | AM1: 25 | AN1: 26 | AO1: 27 | AP1: 28 | AQ1: 29 | AR1: 30 | AS1: 31 | AT1: 32 | AU1: 33 | AV1: 34 | AW1: 35 | AX1: 36 | AY1: 37 | AZ1: 38 | BA1: 39 | BB1: 40 | BC1: 41 | BD1: 42 | BE1: 43 | BF1: 44 | BG1: Eingestellt | BH1: Spalte1
A2: 1-0001 | B2: VDVA-0001-001 | C2: Leipziger Straße, vor Kaufhaus Wertheim | D2: 4xBw +2xTw | E2: 869 | F2: 88 88 | J2: 1929 | K2: Friedrich Grünwald | L2: 1 | M2: 1 | N2: FALSE | O2: TRUE | P2: TRUE | Q2: FALSE | R2: FALSE | S2: FALSE | T2: FALSE | U2: FALSE | V2: TRUE | W2: FALSE | X2: FALSE | Y2: FALSE | Z2: FALSE | AA2: FALSE | AB2: FALSE | AC2: FALSE | AD2: FALSE | AE2: FALSE | AF2: FALSE | AG2: FALSE | AH2: FALSE | AI2: FALSE | AJ2: TRUE | AK2: FALSE | AL2: FALSE | AM2: FALSE | AN2: FALSE | AO2: FALSE | AP2: FALSE | AQ2: FALSE | AR2: FALSE | AS2: FALSE | AT2: FALSE | AU2: FALSE | AV2: FALSE | AW2: FALSE | AX2: FALSE | AY2: FALSE | AZ2: FALSE | BA2: FALSE | BB2: FALSE | BC2: FALSE | BD2: FALSE | BE2: FALSE | BF2: FALSE | BG2: 2020-01-01 | BH2: =LEFT(A2,FIND("-",A2)-1) -> 1
A3: 1-0002 | B3: VDVA-0001-002 | C3: Leipziger Straße, vor Kaufhaus Wertheim | D3: 4xBw +Tw | E3: 1524 | F3: 69 69 | J3: 1929 | K3: Friedrich Grünwald | L3: 1 | M3: 1 | N3: FALSE | O3: TRUE | P3: TRUE | Q3: FALSE | R3: FALSE | S3: FALSE | T3: FALSE | U3: FALSE | V3: TRUE | W3: FALSE | X3: FALSE | Y3: FALSE | Z3: FALSE | AA3: FALSE | AB3: FALSE | AC3: FALSE | AD3: FALSE | AE3: FALSE | AF3: FALSE | AG3: FALSE | AH3: FALSE | AI3: FALSE | AJ3: TRUE | AK3: FALSE | AL3: FALSE | AM3: FALSE | AN3: FALSE | AO3: FALSE | AP3: FALSE | AQ3: FALSE | AR3: FALSE | AS3: FALSE | AT3: FALSE | AU3: FALSE | AV3: FALSE | AW3: FALSE | AX3: FALSE | AY3: FALSE | AZ3: FALSE | BA3: FALSE | BB3: FALSE | BC3: FALSE | BD3: FALSE | BE3: FALSE | BF3: FALSE | BG3: 2020-01-01 | BH3: 1
A4: 1-0003 | B4: VDVA-0001-003 | C4: Am Kupfergraben (Museumsinsel) | D4: 4xTw | E4: 4790 | F4: 75 | J4: 1929 | K4: Friedrich Grünwald | L4: 1 | M4: 1 | N4: FALSE | O4: TRUE | P4: TRUE | Q4: FALSE | R4: FALSE | S4: FALSE | T4: FALSE | U4: FALSE | V4: TRUE | W4: FALSE | X4: FALSE | Y4: FALSE | Z4: FALSE | AA4: FALSE | AB4: FALSE | AC4: FALSE | AD4: FALSE | AE4: FALSE | AF4: FALSE | AG4: FALSE | AH4: FALSE | AI4: FALSE | AJ4: TRUE | AK4: FALSE | AL4: FALSE | AM4: FALSE | AN4: FALSE | AO4: FALSE | AP4: FALSE | AQ4: FALSE | AR4: FALSE | AS4: FALSE | AT4: FALSE | AU4: FALSE | AV4: FALSE | AW4: FALSE | AX4: FALSE | AY4: FALSE | AZ4: FALSE | BA4: FALSE | BB4: FALSE | BC4: FALSE | BD4: FALSE | BE4: FALSE | BF4: FALSE | BG4: 2020-01-01 | BH4: 1
A5: 1-0004 | B5: VDVA-0001-004 | C5: Körtestraße | D5: 4xTw | E5: 5204 | F5: 4 | G5: ex Tw 3095 | J5: 1930 | K5: Friedrich Grünwald | L5: 1 | M5: 1 | N5: FALSE | O5: TRUE | P5: TRUE | Q5: FALSE | R5: FALSE | S5: FALSE | T5: FALSE | U5: FALSE | V5: TRUE | W5: FALSE | X5: FALSE | Y5: FALSE | Z5: FALSE | AA5: FALSE | AB5: FALSE | AC5: FALSE | AD5: FALSE | AE5: FALSE | AF5: FALSE | AG5: FALSE | AH5: FALSE | AI5: FALSE | AJ5: TRUE | AK5: FALSE | AL5: FALSE | AM5: FALSE | AN5: FALSE | AO5: FALSE | AP5: FALSE | AQ5: FALSE | AR5: FALSE | AS5: FALSE | AT5: FALSE | AU5: FALSE | AV5: FALSE | AW5: FALSE | AX5: FALSE | AY5: FALSE | AZ5: FALSE | BA5: FALSE | BB5: FALSE | BC5: FALSE | BD5: FALSE | BE5: FALSE | BF5: FALSE | BG5: 2020-01-01 | BH5: 1
A6: 1-0005 | D6: 4xTw 2xBw | E6: 5062 506 | F6: 13 13 | L6: 1 | M6: 1 | N6: FALSE | O6: TRUE | P6: TRUE | Q6: FALSE | R6: FALSE | S6: FALSE | T6: FALSE | U6: FALSE | V6: TRUE | W6: FALSE | X6: FALSE | Y6: FALSE | Z6: FALSE | AA6: FALSE | AB6: FALSE | AC6: FALSE | AD6: FALSE | AE6: FALSE | AF6: FALSE | AG6: FALSE | AH6: FALSE | AI6: FALSE | AJ6: TRUE | AK6: FALSE | AL6: FALSE | AM6: FALSE | AN6: FALSE | AO6: FALSE | AP6: FALSE | AQ6: FALSE | AR6: FALSE | AS6: FALSE | AT6: FALSE | AU6: FALSE | AV6: FALSE | AW6: FALSE | AX6: FALSE | AY6: FALSE | AZ6: FALSE | BA6: FALSE | BB6: FALSE | BC6: FALSE | BD6: FALSE | BE6: FALSE | BF6: FALSE | BG6: 2020-01-01 | BH6: 1
A7: 1-0006 | D7: Bus | F7: 32 | K7: Friedrich Grünwald | L7: 1 | M7: 1 | N7: FALSE | O7: TRUE | P7: TRUE | Q7: FALSE | R7: FALSE | S7: FALSE | T7: FALSE | U7: FALSE | V7: TRUE | W7: FALSE | X7: FALSE | Y7: FALSE | Z7: FALSE | AA7: FALSE | AB7: FALSE | AC7: FALSE | AD7: FALSE | AE7: FALSE | AF7: FALSE | AG7: FALSE | AH7: FALSE | AI7: FALSE | AJ7: TRUE | AK7: FALSE | AL7: FALSE | AM7: FALSE | AN7: FALSE | AO7: FALSE | AP7: FALSE | AQ7: FALSE | AR7: FALSE | AS7: FALSE | AT7: FALSE | AU7: FALSE | AV7: FALSE | AW7: FALSE | AX7: FALSE | AY7: FALSE | AZ7: FALSE | BA7: FALSE | BB7: FALSE | BC7: FALSE | BD7: FALSE | BE7: FALSE | BF7: FALSE | BG7: 2020-01-01 | BH7: 1
A8: 1-0007 | B8: VDVA-0001-007 | D8: 2x+2xTw | E8: 6211 | F8: 74 | J8: 1937 | L8: 1 | M8: 1 | N8: FALSE | O8: TRUE | P8: TRUE | Q8: FALSE | R8: FALSE | S8: FALSE | T8: FALSE | U8: FALSE | V8: TRUE | W8: FALSE | X8: FALSE | Y8: FALSE | Z8: FALSE | AA8: FALSE | AB8: FALSE | AC8: FALSE | AD8: FALSE | AE8: FALSE | AF8: FALSE | AG8: FALSE | AH8: FALSE | AI8: FALSE | AJ8: TRUE | AK8: FALSE | AL8: FALSE | AM8: FALSE | AN8: FALSE | AO8: FALSE | AP8: FALSE | AQ8: FALSE | AR8: FALSE | AS8: FALSE | AT8: FALSE | AU8: FALSE | AV8: FALSE | AW8: FALSE | AX8: FALSE | AY8: FALSE | AZ8: FALSE | BA8: FALSE | BB8: FALSE | BC8: FALSE | BD8: FALSE | BE8: FALSE | BF8: FALSE | BG8: 2020-01-01 | BH8: 1
A9: 1-0008 | B9: VDVA-0001-008 | C9: U-Bahnhof | D9: U-Bahn | K9: Friedrich Grünwald | L9: 1 | M9: 1 | N9: FALSE | O9: TRUE | P9: TRUE | Q9: FALSE | R9: FALSE | S9: FALSE | T9: FALSE | U9: FALSE | V9: TRUE | W9: FALSE | X9: FALSE | Y9: FALSE | Z9: FALSE | AA9: FALSE | AB9: FALSE | AC9: FALSE | AD9: FALSE | AE9: FALSE | AF9: FALSE | AG9: FALSE | AH9: FALSE | AI9: FALSE | AJ9: TRUE | AK9: FALSE | AL9: FALSE | AM9: FALSE | AN9: FALSE | AO9: FALSE | AP9: FALSE | AQ9: FALSE | AR9: FALSE | AS9: FALSE | AT9: FALSE | AU9: FALSE | AV9: FALSE | AW9: FALSE | AX9: FALSE | AY9: FALSE | AZ9: FALSE | BA9: FALSE | BB9: FALSE | BC9: FALSE | BD9: FALSE | BE9: FALSE | BF9: FALSE | BG9: 2020-01-01 | BH9: 1
A10: 1-0009 | B10: VDVA-0001-009 | D10: 2xTw | E10: 3702 | F10: 4 | J10: 1934 | L10: 1 | M10: 1 | N10: FALSE | O10: TRUE | P10: TRUE | Q10: FALSE | R10: FALSE | S10: FALSE | T10: FALSE | U10: FALSE | V10: TRUE | W10: FALSE | X10: FALSE | Y10: FALSE | Z10: FALSE | AA10: FALSE | AB10: FALSE | AC10: FALSE | AD10: FALSE | AE10: FALSE | AF10: FALSE | AG10: FALSE | AH10: FALSE | AI10: FALSE | AJ10: TRUE | AK10: FALSE | AL10: FALSE | AM10: FALSE | AN10: FALSE | AO10: FALSE | AP10: FALSE | AQ10: FALSE | AR10: FALSE | AS10: FALSE | AT10: FALSE | AU10: FALSE | AV10: FALSE | AW10: FALSE | AX10: FALSE | AY10: FALSE | AZ10: FALSE | BA10: FALSE | BB10: FALSE | BC10: FALSE | BD10: FALSE | BE10: FALSE | BF10: FALSE | BG10: 2020-01-01 | BH10: 1
A11: 1-0010 | B11: VDVA-0001-010 | C11: Waldstrecke Rahnsdorf | D11: Tw +Bw | E11: 3292 | J11: 1936 | K11: Friedrich Grünwald | L11: 1 | M11: 1 | N11: FALSE | O11: TRUE | P11: TRUE | Q11: FALSE | R11: FALSE | S11: FALSE | T11: FALSE | U11: FALSE | V11: TRUE | W11: FALSE | X11: FALSE | Y11: FALSE | Z11: FALSE | AA11: FALSE | AB11: FALSE | AC11: FALSE | AD11: FALSE | AE11: FALSE | AF11: FALSE | AG11: FALSE | AH11: FALSE | AI11: FALSE | AJ11: TRUE | AK11: FALSE | AL11: FALSE | AM11: FALSE | AN11: FALSE | AO11: FALSE | AP11: FALSE | AQ11: FALSE | AR11: FALSE | AS11: FALSE | AT11: FALSE | AU11: FALSE | AV11: FALSE | AW11: FALSE | AX11: FALSE | AY11: FALSE | AZ11: FALSE | BA11: FALSE | BB11: FALSE | BC11: FALSE | BD11: FALSE | BE11: FALSE | BF11: FALSE | BG11: 2020-01-01 | BH11: 1
A12: 1-0011 | D12: 2xBw | E12: 1707 | F12: 22 | G12: er gilt als ältester betriebsfähiger LOWA Bw | J12: 1990 | L12: 1 | M12: 1 | N12: FALSE | O12: TRUE | P12: TRUE | Q12: FALSE | R12: FALSE | S12: FALSE | T12: FALSE | U12: FALSE | V12: TRUE | W12: FALSE | X12: FALSE | Y12: FALSE | Z12: FALSE | AA12: FALSE | AB12: FALSE | AC12: FALSE | AD12: FALSE | AE12: FALSE | AF12: FALSE | AG12: FALSE | AH12: FALSE | AI12: FALSE | AJ12: TRUE | AK12: FALSE | AL12: FALSE | AM12: FALSE | AN12: FALSE | AO12: FALSE | AP12: FALSE | AQ12: FALSE | AR12: FALSE | AS12: FALSE | AT12: FALSE | AU12: FALSE | AV12: FALSE | AW12: FALSE | AX12: FALSE | AY12: FALSE | AZ12: FALSE | BA12: FALSE | BB12: FALSE | BC12: FALSE | BD12: FALSE | BE12: FALSE | BF12: FALSE | BG12: 2020-01-01 | BH12: 1
A13: 1-0012 | B13: VDVA-0001-012 | D13: 2xTw +2xBw | E13: 3672 | F13: 8 8 | J13: 1930 | K13: Friedrich Grünwald | L13: 1 | M13: 1 | N13: FALSE | O13: TRUE | P13: TRUE | Q13: FALSE | R13: FALSE | S13: FALSE | T13: FALSE | U13: FALSE | V13: TRUE | W13: FALSE | X13: FALSE | Y13: FALSE | Z13: FALSE | AA13: FALSE | AB13: FALSE | AC13: FALSE | AD13: FALSE | AE13: FALSE | AF13: FALSE | AG13: FALSE | AH13: FALSE | AI13: FALSE | AJ13: TRUE | AK13: FALSE | AL13: FALSE | AM13: FALSE | AN13: FALSE | AO13: FALSE | AP13: FALSE | AQ13: FALSE | AR13: FALSE | AS13: FALSE | AT13: FALSE | AU13: FALSE | AV13: FALSE | AW13: FALSE | AX13: FALSE | AY13: FALSE | AZ13: FALSE | BA13: FALSE | BB13: FALSE | BC13: FALSE | BD13: FALSE | BE13: FALSE | BF13: FALSE | BG13: 2020-01-01 | BH13: 1
A14: 1-0013 | B14: VDVA-0001-013 | C14: Am Kupfergraben | D14: 2xTw +2xBw | E14: 6048 | F14: 75 75 | J14: 1926 | K14: Friedrich Grünwald | L14: 1 | M14: 1 | N14: FALSE | O14: TRUE | P14: TRUE | Q14: FALSE | R14: FALSE | S14: FALSE | T14: FALSE | U14: FALSE | V14: TRUE | W14: FALSE | X14: FALSE | Y14: FALSE | Z14: FALSE | AA14: FALSE | AB14: FALSE | AC14: FALSE | AD14: FALSE | AE14: FALSE | AF14: FALSE | AG14: FALSE | AH14: FALSE | AI14: FALSE | AJ14: TRUE | AK14: FALSE | AL14: FALSE | AM14: FALSE | AN14: FALSE | AO14: FALSE | AP14: FALSE | AQ14: FALSE | AR14: FALSE | AS14: FALSE | AT14: FALSE | AU14: FALSE | AV14: FALSE | AW14: FALSE | AX14: FALSE | AY14: FALSE | AZ14: FALSE | BA14: FALSE | BB14: FALSE | BC14: FALSE | BD14: FALSE | BE14: FALSE | BF14: FALSE | BG14: 2020-01-01 | BH14: 1
A15: 1-0014 | C15: Spandau West | D15: 2xTw | E15: 4317 | G15: Einzige Linie mit Scherenstromabnehmern | L15: 1 | M15: 1 | N15: FALSE | O15: TRUE | P15: TRUE | Q15: FALSE | R15: FALSE | S15: FALSE | T15: FALSE | U15: FALSE | V15: TRUE | W15: FALSE | X15: FALSE | Y15: FALSE | Z15: FALSE | AA15: FALSE | AB15: FALSE | AC15: FALSE | AD15: FALSE | AE15: FALSE | AF15: FALSE | AG15: FALSE | AH15: FALSE | AI15: FALSE | AJ15: TRUE | AK15: FALSE | AL15: FALSE | AM15: FALSE | AN15: FALSE | AO15: FALSE | AP15: FALSE | AQ15: FALSE | AR15: FALSE | AS15: FALSE | AT15: FALSE | AU15: FALSE | AV15: FALSE | AW15: FALSE | AX15: FALSE | AY15: FALSE | AZ15: FALSE | BA15: FALSE | BB15: FALSE | BC15: FALSE | BD15: FALSE | BE15: FALSE | BF15: FALSE | BG15: 2020-01-01 | BH15: 1
A16: 1-0015 | D16: Obus | F16: 37 | J16: 1971 | L16: 1 | M16: 1 | N16: FALSE | O16: TRUE | P16: TRUE | Q16: FALSE | R16: FALSE | S16: FALSE | T16: FALSE | U16: FALSE | V16: TRUE | W16: FALSE | X16: FALSE | Y16: FALSE | Z16: FALSE | AA16: FALSE | AB16: FALSE | AC16: FALSE | AD16: FALSE | AE16: FALSE | AF16: FALSE | AG16: FALSE | AH16: FALSE | AI16: FALSE | AJ16: TRUE | AK16: FALSE | AL16: FALSE | AM16: FALSE | AN16: FALSE | AO16: FALSE | AP16: FALSE | AQ16: FALSE | AR16: FALSE | AS16: FALSE | AT16: FALSE | AU16: FALSE | AV16: FALSE | AW16: FALSE | AX16: FALSE | AY16: FALSE | AZ16: FALSE | BA16: FALSE | BB16: FALSE | BC16: FALSE | BD16: FALSE | BE16: FALSE | BF16: FALSE | BG16: 2020-01-01 | BH16: 1
A17: 1-0016 | C17: Konstanzer Straße | D17: Bus | E17: 87 | G17: aus Oberhausen | K17: Carl-Wilhelm Schmiedeke | L17: 1 | M17: 1 | N17: FALSE | O17: TRUE | P17: TRUE | Q17: FALSE | R17: FALSE | S17: FALSE | T17: FALSE | U17: FALSE | V17: TRUE | W17: FALSE | X17: FALSE | Y17: FALSE | Z17: FALSE | AA17: FALSE | AB17: FALSE | AC17: FALSE | AD17: FALSE | AE17: FALSE | AF17: FALSE | AG17: FALSE | AH17: FALSE | AI17: FALSE | AJ17: TRUE | AK17: FALSE | AL17: FALSE | AM17: FALSE | AN17: FALSE | AO17: FALSE | AP17: FALSE | AQ17: FALSE | AR17: FALSE | AS17: FALSE | AT17: FALSE | AU17: FALSE | AV17: FALSE | AW17: FALSE | AX17: FALSE | AY17: FALSE | AZ17: FALSE | BA17: FALSE | BB17: FALSE | BC17: FALSE | BD17: FALSE | BE17: FALSE | BF17: FALSE | BG17: 2020-01-01 | BH17: 1
A18: 1-0017 | C18: Bernauer Straße | D18: Bus | E18: 25 | G18: aus Wolfsburg | J18: 1971 | K18: Peter Müller-Mark | L18: 1 | M18: 1 | N18: FALSE | O18: TRUE | P18: TRUE | Q18: FALSE | R18: FALSE | S18: FALSE | T18: FALSE | U18: FALSE | V18: TRUE | W18: FALSE | X18: FALSE | Y18: FALSE | Z18: FALSE | AA18: FALSE | AB18: FALSE | AC18: FALSE | AD18: FALSE | AE18: FALSE | AF18: FALSE | AG18: FALSE | AH18: FALSE | AI18: FALSE | AJ18: TRUE | AK18: FALSE | AL18: FALSE | AM18: FALSE | AN18: FALSE | AO18: FALSE | AP18: FALSE | AQ18: FALSE | AR18: FALSE | AS18: FALSE | AT18: FALSE | AU18: FALSE | AV18: FALSE | AW18: FALSE | AX18: FALSE | AY18: FALSE | AZ18: FALSE | BA18: FALSE | BB18: FALSE | BC18: FALSE | BD18: FALSE | BE18: FALSE | BF18: FALSE | BG18: 2020-01-01 | BH18: 1
A19: 1-0018 | C19: U-Bahnhof Hohenzollerndamm | D19: 2xTw | E19: 6202 | F19: 7 | H19: 26 | I19: 8 | J19: 1934 | L19: 1 | M19: 1 | N19: FALSE | O19: TRUE | P19: TRUE | Q19: FALSE | R19: FALSE | S19: FALSE | T19: FALSE | U19: FALSE | V19: TRUE | W19: FALSE | X19: FALSE | Y19: FALSE | Z19: FALSE | AA19: FALSE | AB19: FALSE | AC19: FALSE | AD19: FALSE | AE19: FALSE | AF19: FALSE | AG19: FALSE | AH19: FALSE | AI19: FALSE | AJ19: TRUE | AK19: FALSE | AL19: FALSE | AM19: FALSE | AN19: FALSE | AO19: FALSE | AP19: FALSE | AQ19: FALSE | AR19: FALSE | AS19: FALSE | AT19: FALSE | AU19: FALSE | AV19: FALSE | AW19: FALSE | AX19: FALSE | AY19: FALSE | AZ19: FALSE | BA19: FALSE | BB19: FALSE | BC19: FALSE | BD19: FALSE | BE19: FALSE | BF19: FALSE | BG19: 2020-01-01 | BH19: 1
A20: 1-0019 | C20: Prager Platz | D20: Bus | E20: 558 | G20: aus Saarbrücken | J20: 1971 | K20: Carl-Wilhelm Schmiedeke | L20: 1 | M20: 1 | N20: FALSE | O20: TRUE | P20: TRUE | Q20: FALSE | R20: FALSE | S20: FALSE | T20: FALSE | U20: FALSE | V20: TRUE | W20: FALSE | X20: FALSE | Y20: FALSE | Z20: FALSE | AA20: FALSE | AB20: FALSE | AC20: FALSE | AD20: FALSE | AE20: FALSE | AF20: FALSE | AG20: FALSE | AH20: FALSE | AI20: FALSE | AJ20: TRUE | AK20: FALSE | AL20: FALSE | AM20: FALSE | AN20: FALSE | AO20: FALSE | AP20: FALSE | AQ20: FALSE | AR20: FALSE | AS20: FALSE | AT20: FALSE | AU20: FALSE | AV20: FALSE | AW20: FALSE | AX20: FALSE | AY20: FALSE | AZ20: FALSE | BA20: FALSE | BB20: FALSE | BC20: FALSE | BD20: FALSE | BE20: FALSE | BF20: FALSE | BG20: 2020-01-01 | BH20: 1
A21: 1-0020 | B21: VDVA-0001-020 | C21: U-Bahnhof Krumme Lanke | D21: U-Bahn | J21: 1929 | K21: Friedrich Grünwald | L21: 1 | M21: 1 | N21: FALSE | O21: TRUE | P21: TRUE | Q21: FALSE | R21: FALSE | S21: FALSE | T21: FALSE | U21: FALSE | V21: TRUE | W21: FALSE | X21: FALSE | Y21: FALSE | Z21: FALSE | AA21: FALSE | AB21: FALSE | AC21: FALSE | AD21: FALSE | AE21: FALSE | AF21: FALSE | AG21: FALSE | AH21: FALSE | AI21: FALSE | AJ21: TRUE | AK21: FALSE | AL21: FALSE | AM21: FALSE | AN21: FALSE | AO21: FALSE | AP21: FALSE | AQ21: FALSE | AR21: FALSE | AS21: FALSE | AT21: FALSE | AU21: FALSE | AV21: FALSE | AW21: FALSE | AX21: FALSE | AY21: FALSE | AZ21: FALSE | BA21: FALSE | BB21: FALSE | BC21: FALSE | BD21: FALSE | BE21: FALSE | BF21: FALSE | BG21: 2020-01-01 | BH21: 1
A22: 1-0021 | B22: VDVA-0001-021 | C22: Nähe Krumme Lanke? | D22: U-Bahn | E22: 37 | L22: 1 | M22: 1 | N22: FALSE | O22: TRUE | P22: TRUE | Q22: FALSE | R22: FALSE | S22: FALSE | T22: FALSE | U22: FALSE | V22: TRUE | W22: FALSE | X22: FALSE | Y22: FALSE | Z22: FALSE | AA22: FALSE | AB22: FALSE | AC22: FALSE | AD22: FALSE | AE22: FALSE | AF22: FALSE | AG22: FALSE | AH22: FALSE | AI22: FALSE | AJ22: TRUE | AK22: FALSE | AL22: FALSE | AM22: FALSE | AN22: FALSE | AO22: FALSE | AP22: FALSE | AQ22: FALSE | AR22: FALSE | AS22: FALSE | AT22: FALSE | AU22: FALSE | AV22: FALSE | AW22: FALSE | AX22: FALSE | AY22: FALSE | AZ22: FALSE | BA22: FALSE | BB22: FALSE | BC22: FALSE | BD22: FALSE | BE22: FALSE | BF22: FALSE | BG22: 2020-01-01 | BH22: 1
A23: 1-0022 | B23: VDVA-0001-022 | C23: Breitenbachplatz | D23: 3xObus | E23: 806 | F23: 32 | J23: 1935 | K23: Friedrich Grünwald | L23: 1 | M23: 1 | N23: FALSE | O23: TRUE | P23: TRUE | Q23: FALSE | R23: FALSE | S23: FALSE | T23: FALSE | U23: FALSE | V23: TRUE | W23: FALSE | X23: FALSE | Y23: FALSE | Z23: FALSE | AA23: FALSE | AB23: FALSE | AC23: FALSE | AD23: FALSE | AE23: FALSE | AF23: FALSE | AG23: FALSE | AH23: FALSE | AI23: FALSE | AJ23: TRUE | AK23: FALSE | AL23: FALSE | AM23: FALSE | AN23: FALSE | AO23: FALSE | AP23: FALSE | AQ23: FALSE | AR23: FALSE | AS23: FALSE | AT23: FALSE | AU23: FALSE | AV23: FALSE | AW23: FALSE | AX23: FALSE | AY23: FALSE | AZ23: FALSE | BA23: FALSE | BB23: FALSE | BC23: FALSE | BD23: FALSE | BE23: FALSE | BF23: FALSE | BG23: 2020-01-01 | BH23: 1
A24: 1-0023 | B24: VDVA-0001-023 | C24: Breitenbachplatz | D24: 3xObus | F24: 32 | J24: 1935 | K24: Friedrich Grünwald | L24: 1 | M24: 1 | N24: FALSE | O24: TRUE | P24: TRUE | Q24: FALSE | R24: FALSE | S24: FALSE | T24: FALSE | U24: FALSE | V24: TRUE | W24: FALSE | X24: FALSE | Y24: FALSE | Z24: FALSE | AA24: FALSE | AB24: FALSE | AC24: FALSE | AD24: FALSE | AE24: FALSE | AF24: FALSE | AG24: FALSE | AH24: FALSE | AI24: FALSE | AJ24: TRUE | AK24: FALSE | AL24: FALSE | AM24: FALSE | AN24: FALSE | AO24: FALSE | AP24: FALSE | AQ24: FALSE | AR24: FALSE | AS24: FALSE | AT24: FALSE | AU24: FALSE | AV24: FALSE | AW24: FALSE | AX24: FALSE | AY24: FALSE | AZ24: FALSE | BA24: FALSE | BB24: FALSE | BC24: FALSE | BD24: FALSE | BE24: FALSE | BF24: FALSE | BG24: 2020-01-01 | BH24: 1
A25: 1-0024 | C25: Btf 27a, Berliner Straße (Ostpreußendamm) | D25: 2xBw | E25: 1765 | F25: 42 | L25: 1 | M25: 1 | N25: FALSE | O25: TRUE | P25: TRUE | Q25: FALSE | R25: FALSE | S25: FALSE | T25: FALSE | U25: FALSE | V25: TRUE | W25: FALSE | X25: FALSE | Y25: FALSE | Z25: FALSE | AA25: FALSE | AB25: FALSE | AC25: FALSE | AD25: FALSE | AE25: FALSE | AF25: FALSE | AG25: FALSE | AH25: FALSE | AI25: FALSE | AJ25: TRUE | AK25: FALSE | AL25: FALSE | AM25: FALSE | AN25: FALSE | AO25: FALSE | AP25: FALSE | AQ25: FALSE | AR25: FALSE | AS25: FALSE | AT25: FALSE | AU25: FALSE | AV25: FALSE | AW25: FALSE | AX25: FALSE | AY25: FALSE | AZ25: FALSE | BA25: FALSE | BB25: FALSE | BC25: FALSE | BD25: FALSE | BE25: FALSE | BF25: FALSE | BG25: 2020-01-01 | BH25: 1
A26: 1-0025 | C26: Btf 27a, Berliner Straße (Ostpreußendamm) | D26: 2xBw | E26: 1766 | F26: 42 | G26: ehemaliger Tw, Bj. 1894. Strecke Steglitz-Südende- Lichterfelde | L26: 1 | M26: 1 | N26: FALSE | O26: TRUE | P26: TRUE | Q26: FALSE | R26: FALSE | S26: FALSE | T26: FALSE | U26: FALSE | V26: TRUE | W26: FALSE | X26: FALSE | Y26: FALSE | Z26: FALSE | AA26: FALSE | AB26: FALSE | AC26: FALSE | AD26: FALSE | AE26: FALSE | AF26: FALSE | AG26: FALSE | AH26: FALSE | AI26: FALSE | AJ26: TRUE | AK26: FALSE | AL26: FALSE | AM26: FALSE | AN26: FALSE | AO26: FALSE | AP26: FALSE | AQ26: FALSE | AR26: FALSE | AS26: FALSE | AT26: FALSE | AU26: FALSE | AV26: FALSE | AW26: FALSE | AX26: FALSE | AY26: FALSE | AZ26: FALSE | BA26: FALSE | BB26: FALSE | BC26: FALSE | BD26: FALSE | BE26: FALSE | BF26: FALSE | BG26: 2020-01-01 | BH26: 1
A27: 1-0026 | C27: Btf 27a, Berliner Straße (Ostpreußendamm) | D27: 2xBw | E27: 1767 | F27: 42 | G27: ehemaliger Tw, Bj. 1894 | L27: 1 | M27: 1 | N27: FALSE | O27: TRUE | P27: TRUE | Q27: FALSE | R27: FALSE | S27: FALSE | T27: FALSE | U27: FALSE | V27: TRUE | W27: FALSE | X27: FALSE | Y27: FALSE | Z27: FALSE | AA27: FALSE | AB27: FALSE | AC27: FALSE | AD27: FALSE | AE27: FALSE | AF27: FALSE | AG27: FALSE | AH27: FALSE | AI27: FALSE | AJ27: TRUE | AK27: FALSE | AL27: FALSE | AM27: FALSE | AN27: FALSE | AO27: FALSE | AP27: FALSE | AQ27: FALSE | AR27: FALSE | AS27: FALSE | AT27: FALSE | AU27: FALSE | AV27: FALSE | AW27: FALSE | AX27: FALSE | AY27: FALSE | AZ27: FALSE | BA27: FALSE | BB27: FALSE | BC27: FALSE | BD27: FALSE | BE27: FALSE | BF27: FALSE | BG27: 2020-01-01 | BH27: 1
A28: 1-0027 | C28: Btf 27a, Berliner Straße (Ostpreußendamm) | D28: Tw | E28: 1768 | G28: ehemaliger Tw, Bj. 1894. Strecke Steglitz-Südende- Lichterfelde | L28: 1 | M28: 1 | N28: FALSE | O28: TRUE | P28: TRUE | Q28: FALSE | R28: FALSE | S28: FALSE | T28: FALSE | U28: FALSE | V28: TRUE | W28: FALSE | X28: FALSE | Y28: FALSE | Z28: FALSE | AA28: FALSE | AB28: FALSE | AC28: FALSE | AD28: FALSE | AE28: FALSE | AF28: FALSE | AG28: FALSE | AH28: FALSE | AI28: FALSE | AJ28: TRUE | AK28: FALSE | AL28: FALSE | AM28: FALSE | AN28: FALSE | AO28: FALSE | AP28: FALSE | AQ28: FALSE | AR28: FALSE | AS28: FALSE | AT28: FALSE | AU28: FALSE | AV28: FALSE | AW28: FALSE | AX28: FALSE | AY28: FALSE | AZ28: FALSE | BA28: FALSE | BB28: FALSE | BC28: FALSE | BD28: FALSE | BE28: FALSE | BF28: FALSE | BG28: 2020-01-01 | BH28: 1
A29: 1-0028 | C29: Btf 27a, Berliner Straße (Ostpreußendamm) | D29: 2xTw | E29: 4326 | F29: 42E | G29: Strecke Steglitz-Südende- Lichterfelde. Ehemalige erste Strecke von Siemens & Halske. Bahn 1930 stillgelegt | L29: 1 | M29: 1 | N29: FALSE | O29: TRUE | P29: TRUE | Q29: FALSE | R29: FALSE | S29: FALSE | T29: FALSE | U29: FALSE | V29: TRUE | W29: FALSE | X29: FALSE | Y29: FALSE | Z29: FALSE | AA29: FALSE | AB29: FALSE | AC29: FALSE | AD29: FALSE | AE29: FALSE | AF29: FALSE | AG29: FALSE | AH29: FALSE | AI29: FALSE | AJ29: TRUE | AK29: FALSE | AL29: FALSE | AM29: FALSE | AN29: FALSE | AO29: FALSE | AP29: FALSE | AQ29: FALSE | AR29: FALSE | AS29: FALSE | AT29: FALSE | AU29: FALSE | AV29: FALSE | AW29: FALSE | AX29: FALSE | AY29: FALSE | AZ29: FALSE | BA29: FALSE | BB29: FALSE | BC29: FALSE | BD29: FALSE | BE29: FALSE | BF29: FALSE | BG29: 2020-01-01 | BH29: 1
A30: 1-0029 | C30: Btf 27a, Berliner Straße (Ostpreußendamm) | D30: 2xTw | E30: 4330 | G30: Baujahr 1894 | L30: 1 | M30: 1 | N30: FALSE | O30: TRUE | P30: TRUE | Q30: FALSE | R30: FALSE | S30: FALSE | T30: FALSE | U30: FALSE | V30: TRUE | W30: FALSE | X30: FALSE | Y30: FALSE | Z30: FALSE | AA30: FALSE | AB30: FALSE | AC30: FALSE | AD30: FALSE | AE30: FALSE | AF30: FALSE | AG30: FALSE | AH30: FALSE | AI30: FALSE | AJ30: TRUE | AK30: FALSE | AL30: FALSE | AM30: FALSE | AN30: FALSE | AO30: FALSE | AP30: FALSE | AQ30: FALSE | AR30: FALSE | AS30: FALSE | AT30: FALSE | AU30: FALSE | AV30: FALSE | AW30: FALSE | AX30: FALSE | AY30: FALSE | AZ30: FALSE | BA30: FALSE | BB30: FALSE | BC30: FALSE | BD30: FALSE | BE30: FALSE | BF30: FALSE | BG30: 2020-01-01 | BH30: 1
A31: 1-0030 | C31: Btf 27a, Berliner Straße (Ostpreußendamm) | D31: 2xTw | E31: 4341 | F31: 42E | G31: ex Teltower Kreisbahnen | J31: 1923 | L31: 1 | M31: 1 | N31: FALSE | O31: TRUE | P31: TRUE | Q31: FALSE | R31: FALSE | S31: FALSE | T31: FALSE | U31: FALSE | V31: TRUE | W31: FALSE | X31: FALSE | Y31: FALSE | Z31: FALSE | AA31: FALSE | AB31: FALSE | AC31: FALSE | AD31: FALSE | AE31: FALSE | AF31: FALSE | AG31: FALSE | AH31: FALSE | AI31: FALSE | AJ31: TRUE | AK31: FALSE | AL31: FALSE | AM31: FALSE | AN31: FALSE | AO31: FALSE | AP31: FALSE | AQ31: FALSE | AR31: FALSE | AS31: FALSE | AT31: FALSE | AU31: FALSE | AV31: FALSE | AW31: FALSE | AX31: FALSE | AY31: FALSE | AZ31: FALSE | BA31: FALSE | BB31: FALSE | BC31: FALSE | BD31: FALSE | BE31: FALSE | BF31: FALSE | BG31: 2020-01-01 | BH31: 1
A32: 1-0031 | C32: Btf 27a, Berliner Straße (Ostpreußendamm) | D32: ArbTw | E32: H27 | G32: Baujahr 1900, ex Tw 4331 | L32: 1 | M32: 1 | N32: FALSE | O32: TRUE | P32: TRUE | Q32: FALSE | R32: FALSE | S32: FALSE | T32: FALSE | U32: FALSE | V32: TRUE | W32: FALSE | X32: FALSE | Y32: FALSE | Z32: FALSE | AA32: FALSE | AB32: FALSE | AC32: FALSE | AD32: FALSE | AE32: FALSE | AF32: FALSE | AG32: FALSE | AH32: FALSE | AI32: FALSE | AJ32: TRUE | AK32: FALSE | AL32: FALSE | AM32: FALSE | AN32: FALSE | AO32: FALSE | AP32: FALSE | AQ32: FALSE | AR32: FALSE | AS32: FALSE | AT32: FALSE | AU32: FALSE | AV32: FALSE | AW32: FALSE | AX32: FALSE | AY32: FALSE | AZ32: FALSE | BA32: FALSE | BB32: FALSE | BC32: FALSE | BD32: FALSE | BE32: FALSE | BF32: FALSE | BG32: 2020-01-01 | BH32: 1
A33: 1-0032 | C33: Tauentzienstraße | D33: 2xTw 2xBw | E33: 3618 | F33: 55 55 | K33: Peter Boehm | L33: 1 | M33: 1 | N33: FALSE | O33: TRUE | P33: TRUE | Q33: FALSE | R33: FALSE | S33: FALSE | T33: FALSE | U33: FALSE | V33: TRUE | W33: FALSE | X33: FALSE | Y33: FALSE | Z33: FALSE | AA33: FALSE | AB33: FALSE | AC33: FALSE | AD33: FALSE | AE33: FALSE | AF33: FALSE | AG33: FALSE | AH33: FALSE | AI33: FALSE | AJ33: TRUE | AK33: FALSE | AL33: FALSE | AM33: FALSE | AN33: FALSE | AO33: FALSE | AP33: FALSE | AQ33: FALSE | AR33: FALSE | AS33: FALSE | AT33: FALSE | AU33: FALSE | AV33: FALSE | AW33: FALSE | AX33: FALSE | AY33: FALSE | AZ33: FALSE | BA33: FALSE | BB33: FALSE | BC33: FALSE | BD33: FALSE | BE33: FALSE | BF33: FALSE | BG33: 2020-01-01 | BH33: 1
A34: 1-0033 | C34: Wittenbergplatz | D34: Bus | E34: 452 | G34: aus Nürnberg | J34: 1971 | K34: Peter Müller-Mark | L34: 1 | M34: 1 | N34: FALSE | O34: TRUE | P34: TRUE | Q34: FALSE | R34: FALSE | S34: FALSE | T34: FALSE | U34: FALSE | V34: TRUE | W34: FALSE | X34: FALSE | Y34: FALSE | Z34: FALSE | AA34: FALSE | AB34: FALSE | AC34: FALSE | AD34: FALSE | AE34: FALSE | AF34: FALSE | AG34: FALSE | AH34: FALSE | AI34: FALSE | AJ34: TRUE | AK34: FALSE | AL34: FALSE | AM34: FALSE | AN34: FALSE | AO34: FALSE | AP34: FALSE | AQ34: FALSE | AR34: FALSE | AS34: FALSE | AT34: FALSE | AU34: FALSE | AV34: FALSE | AW34: FALSE | AX34: FALSE | AY34: FALSE | AZ34: FALSE | BA34: FALSE | BB34: FALSE | BC34: FALSE | BD34: FALSE | BE34: FALSE | BF34: FALSE | BG34: 2020-01-01 | BH34: 1
A35: 1-0034 | C35: Endstelle Behrensstraße | D35: 2xTw 2xBw 2xBw | E35: 6164 | F35: 187 187 187 | K35: Peter Boehm | L35: 1 | M35: 1 | N35: FALSE | O35: TRUE | P35: TRUE | Q35: FALSE | R35: FALSE | S35: FALSE | T35: FALSE | U35: FALSE | V35: TRUE | W35: FALSE | X35: FALSE | Y35: FALSE | Z35: FALSE | AA35: FALSE | AB35: FALSE | AC35: FALSE | AD35: FALSE | AE35: FALSE | AF35: FALSE | AG35: FALSE | AH35: FALSE | AI35: FALSE | AJ35: TRUE | AK35: FALSE | AL35: FALSE | AM35: FALSE | AN35: FALSE | AO35: FALSE | AP35: FALSE | AQ35: FALSE | AR35: FALSE | AS35: FALSE | AT35: FALSE | AU35: FALSE | AV35: FALSE | AW35: FALSE | AX35: FALSE | AY35: FALSE | AZ35: FALSE | BA35: FALSE | BB35: FALSE | BC35: FALSE | BD35: FALSE | BE35: FALSE | BF35: FALSE | BG35: 2020-01-01 | BH35: 1
A36: 1-0035 | C36: Kupfergraben. Pergamon Museum | D36: 4xTw 2xBw | E36: 5380 | F36: 87 87 | K36: Peter Boehm | L36: 1 | M36: 1 | N36: FALSE | O36: TRUE | P36: TRUE | Q36: FALSE | R36: FALSE | S36: FALSE | T36: FALSE | U36: FALSE | V36: TRUE | W36: FALSE | X36: FALSE | Y36: FALSE | Z36: FALSE | AA36: FALSE | AB36: FALSE | AC36: FALSE | AD36: FALSE | AE36: FALSE | AF36: FALSE | AG36: FALSE | AH36: FALSE | AI36: FALSE | AJ36: TRUE | AK36: FALSE | AL36: FALSE | AM36: FALSE | AN36: FALSE | AO36: FALSE | AP36: FALSE | AQ36: FALSE | AR36: FALSE | AS36: FALSE | AT36: FALSE | AU36: FALSE | AV36: FALSE | AW36: FALSE | AX36: FALSE | AY36: FALSE | AZ36: FALSE | BA36: FALSE | BB36: FALSE | BC36: FALSE | BD36: FALSE | BE36: FALSE | BF36: FALSE | BG36: 2020-01-01 | BH36: 1
A37: 1-0036 | C37: Südwestkorso | D37: 2xTw | E37: 3336 | F37: 45 | J37: 1933 | K37: Peter Boehm | L37: 1 | M37: 1 | N37: FALSE | O37: TRUE | P37: TRUE | Q37: FALSE | R37: FALSE | S37: FALSE | T37: FALSE | U37: FALSE | V37: TRUE | W37: FALSE | X37: FALSE | Y37: FALSE | Z37: FALSE | AA37: FALSE | AB37: FALSE | AC37: FALSE | AD37: FALSE | AE37: FALSE | AF37: FALSE | AG37: FALSE | AH37: FALSE | AI37: FALSE | AJ37: TRUE | AK37: FALSE | AL37: FALSE | AM37: FALSE | AN37: FALSE | AO37: FALSE | AP37: FALSE | AQ37: FALSE | AR37: FALSE | AS37: FALSE | AT37: FALSE | AU37: FALSE | AV37: FALSE | AW37: FALSE | AX37: FALSE | AY37: FALSE | AZ37: FALSE | BA37: FALSE | BB37: FALSE | BC37: FALSE | BD37: FALSE | BE37: FALSE | BF37: FALSE | BG37: 2020-01-01 | BH37: 1
A38: 1-0037 | C38: Lindentunnel | F38: 12 | K38: Peter Boehm | L38: 1 | M38: 1 | N38: FALSE | O38: TRUE | P38: TRUE | Q38: FALSE | R38: FALSE | S38: FALSE | T38: FALSE | U38: FALSE | V38: TRUE | W38: FALSE | X38: FALSE | Y38: FALSE | Z38: FALSE | AA38: FALSE | AB38: FALSE | AC38: FALSE | AD38: FALSE | AE38: FALSE | AF38: FALSE | AG38: FALSE | AH38: FALSE | AI38: FALSE | AJ38: TRUE | AK38: FALSE | AL38: FALSE | AM38: FALSE | AN38: FALSE | AO38: FALSE | AP38: FALSE | AQ38: FALSE | AR38: FALSE | AS38: FALSE | AT38: FALSE | AU38: FALSE | AV38: FALSE | AW38: FALSE | AX38: FALSE | AY38: FALSE | AZ38: FALSE | BA38: FALSE | BB38: FALSE | BC38: FALSE | BD38: FALSE | BE38: FALSE | BF38: FALSE | BG38: 2020-01-01 | BH38: 1
A39: 1-0038 | C39: Btf 6a, Heiligenseer Dorfaue | D39: 2xTw | E39: 6 | G39: Tw der Gemeinde Heiligensee | J39: 1920 | L39: 1 | M39: 1 | N39: FALSE | O39: TRUE | P39: TRUE | Q39: FALSE | R39: FALSE | S39: FALSE | T39: FALSE | U39: FALSE | V39: TRUE | W39: FALSE | X39: FALSE | Y39: FALSE | Z39: FALSE | AA39: FALSE | AB39: FALSE | AC39: FALSE | AD39: FALSE | AE39: FALSE | AF39: FALSE | AG39: FALSE | AH39: FALSE | AI39: FALSE | AJ39: TRUE | AK39: FALSE | AL39: FALSE | AM39: FALSE | AN39: FALSE | AO39: FALSE | AP39: FALSE | AQ39: FALSE | AR39: FALSE | AS39: FALSE | AT39: FALSE | AU39: FALSE | AV39: FALSE | AW39: FALSE | AX39: FALSE | AY39: FALSE | AZ39: FALSE | BA39: FALSE | BB39: FALSE | BC39: FALSE | BD39: FALSE | BE39: FALSE | BF39: FALSE | BG39: 2020-01-01 | BH39: 1
A40: 1-0039 | C40: Btf Wiebestraße | I40: 11 | J40: 1967 | L40: 1 | M40: 1 | N40: FALSE | O40: TRUE | P40: TRUE | Q40: FALSE | R40: FALSE | S40: FALSE | T40: FALSE | U40: FALSE | V40: TRUE | W40: FALSE | X40: FALSE | Y40: FALSE | Z40: FALSE | AA40: FALSE | AB40: FALSE | AC40: FALSE | AD40: FALSE | AE40: FALSE | AF40: FALSE | AG40: FALSE | AH40: FALSE | AI40: FALSE | AJ40: TRUE | AK40: FALSE | AL40: FALSE | AM40: FALSE | AN40: FALSE | AO40: FALSE | AP40: FALSE | AQ40: FALSE | AR40: FALSE | AS40: FALSE | AT40: FALSE | AU40: FALSE | AV40: FALSE | AW40: FALSE | AX40: FALSE | AY40: FALSE | AZ40: FALSE | BA40: FALSE | BB40: FALSE | BC40: FALSE | BD40: FALSE | BE40: FALSE | BF40: FALSE | BG40: 2020-01-01 | BH40: 1
A41: 1-0040 | C41: Schienenschleife auf Museumsinsel | D41: ArbTw | E41: 23 | K41: Peter Boehm | L41: 1 | M41: 1 | N41: FALSE | O41: TRUE | P41: TRUE | Q41: FALSE | R41: FALSE | S41: FALSE | T41: FALSE | U41: FALSE | V41: TRUE | W41: FALSE | X41: FALSE | Y41: FALSE | Z41: FALSE | AA41: FALSE | AB41: FALSE | AC41: FALSE | AD41: FALSE | AE41: FALSE | AF41: FALSE | AG41: FALSE | AH41: FALSE | AI41: FALSE | AJ41: TRUE | AK41: FALSE | AL41: FALSE | AM41: FALSE | AN41: FALSE | AO41: FALSE | AP41: FALSE | AQ41: FALSE | AR41: FALSE | AS41: FALSE | AT41: FALSE | AU41: FALSE | AV41: FALSE | AW41: FALSE | AX41: FALSE | AY41: FALSE | AZ41: FALSE | BA41: FALSE | BB41: FALSE | BC41: FALSE | BD41: FALSE | BE41: FALSE | BF41: FALSE | BG41: 2020-01-01 | BH41: 1
A42: 1-0041 | C42: Roseneck | D42: 2xTw | E42: 3446 | F42: 57 | K42: Peter Boehm | L42: 1 | M42: 1 | N42: FALSE | O42: TRUE | P42: TRUE | Q42: FALSE | R42: FALSE | S42: FALSE | T42: FALSE | U42: FALSE | V42: TRUE | W42: FALSE | X42: FALSE | Y42: FALSE | Z42: FALSE | AA42: FALSE | AB42: FALSE | AC42: FALSE | AD42: FALSE | AE42: FALSE | AF42: FALSE | AG42: FALSE | AH42: FALSE | AI42: FALSE | AJ42: TRUE | AK42: FALSE | AL42: FALSE | AM42: FALSE | AN42: FALSE | AO42: FALSE | AP42: FALSE | AQ42: FALSE | AR42: FALSE | AS42: FALSE | AT42: FALSE | AU42: FALSE | AV42: FALSE | AW42: FALSE | AX42: FALSE | AY42: FALSE | AZ42: FALSE | BA42: FALSE | BB42: FALSE | BC42: FALSE | BD42: FALSE | BE42: FALSE | BF42: FALSE | BG42: 2020-01-01 | BH42: 1
A43: 1-0042 | C43: Turm-/Ecke Stromstraße | D43: 4xTw | E43: 5210 | F43: 4 | G43: nicht mehr Ringlinie | K43: Peter Boehm | L43: 1 | M43: 1 | N43: FALSE | O43: TRUE | P43: TRUE | Q43: FALSE | R43: FALSE | S43: FALSE | T43: FALSE | U43: FALSE | V43: TRUE | W43: FALSE | X43: FALSE | Y43: FALSE | Z43: FALSE | AA43: FALSE | AB43: FALSE | AC43: FALSE | AD43: FALSE | AE43: FALSE | AF43: FALSE | AG43: FALSE | AH43: FALSE | AI43: FALSE | AJ43: TRUE | AK43: FALSE | AL43: FALSE | AM43: FALSE | AN43: FALSE | AO43: FALSE | AP43: FALSE | AQ43: FALSE | AR43: FALSE | AS43: FALSE | AT43: FALSE | AU43: FALSE | AV43: FALSE | AW43: FALSE | AX43: FALSE | AY43: FALSE | AZ43: FALSE | BA43: FALSE | BB43: FALSE | BC43: FALSE | BD43: FALSE | BE43: FALSE | BF43: FALSE | BG43: 2020-01-01 | BH43: 1
A44: 1-0043 | C44: Tauentzienstraße | D44: Tw | E44: 5533 | F44: 154 | K44: Peter Boehm | L44: 1 | M44: 1 | N44: FALSE | O44: TRUE | P44: TRUE | Q44: FALSE | R44: FALSE | S44: FALSE | T44: FALSE | U44: FALSE | V44: TRUE | W44: FALSE | X44: FALSE | Y44: FALSE | Z44: FALSE | AA44: FALSE | AB44: FALSE | AC44: FALSE | AD44: FALSE | AE44: FALSE | AF44: FALSE | AG44: FALSE | AH44: FALSE | AI44: FALSE | AJ44: TRUE | AK44: FALSE | AL44: FALSE | AM44: FALSE | AN44: FALSE | AO44: FALSE | AP44: FALSE | AQ44: FALSE | AR44: FALSE | AS44: FALSE | AT44: FALSE | AU44: FALSE | AV44: FALSE | AW44: FALSE | AX44: FALSE | AY44: FALSE | AZ44: FALSE | BA44: FALSE | BB44: FALSE | BC44: FALSE | BD44: FALSE | BE44: FALSE | BF44: FALSE | BG44: 2020-01-01 | BH44: 1
A45: 1-0044 | C45: Pankow, Bürgerpark | D45: 2xTw | E45: 5597 | F45: 199 | K45: Peter Boehm | L45: 1 | M45: 1 | N45: FALSE | O45: TRUE | P45: TRUE | Q45: FALSE | R45: FALSE | S45: FALSE | T45: FALSE | U45: FALSE | V45: TRUE | W45: FALSE | X45: FALSE | Y45: FALSE | Z45: FALSE | AA45: FALSE | AB45: FALSE | AC45: FALSE | AD45: FALSE | AE45: FALSE | AF45: FALSE | AG45: FALSE | AH45: FALSE | AI45: FALSE | AJ45: TRUE | AK45: FALSE | AL45: FALSE | AM45: FALSE | AN45: FALSE | AO45: FALSE | AP45: FALSE | AQ45: FALSE | AR45: FALSE | AS45: FALSE | AT45: FALSE | AU45: FALSE | AV45: FALSE | AW45: FALSE | AX45: FALSE | AY45: FALSE | AZ45: FALSE | BA45: FALSE | BB45: FALSE | BC45: FALSE | BD45: FALSE | BE45: FALSE | BF45: FALSE | BG45: 2020-01-01 | BH45: 1
A46: 1-0045 | C46: Lindentunnel | D46: 2xTw | E46: 5753 | F46: 187 | K46: Peter Boehm | L46: 1 | M46: 1 | N46: FALSE | O46: TRUE | P46: TRUE | Q46: FALSE | R46: FALSE | S46: FALSE | T46: FALSE | U46: FALSE | V46: TRUE | W46: FALSE | X46: FALSE | Y46: FALSE | Z46: FALSE | AA46: FALSE | AB46: FALSE | AC46: FALSE | AD46: FALSE | AE46: FALSE | AF46: FALSE | AG46: FALSE | AH46: FALSE | AI46: FALSE | AJ46: TRUE | AK46: FALSE | AL46: FALSE | AM46: FALSE | AN46: FALSE | AO46: FALSE | AP46: FALSE | AQ46: FALSE | AR46: FALSE | AS46: FALSE | AT46: FALSE | AU46: FALSE | AV46: FALSE | AW46: FALSE | AX46: FALSE | AY46: FALSE | AZ46: FALSE | BA46: FALSE | BB46: FALSE | BC46: FALSE | BD46: FALSE | BE46: FALSE | BF46: FALSE | BG46: 2020-01-01 | BH46: 1
A47: 1-0046 | C47: Platz der Luftbrücke | D47: Bus | E47: 321 | G47: aus Bremen | J47: 1971 | K47: Peter Müller-Mark | L47: 1 | M47: 1 | N47: FALSE | O47: TRUE | P47: TRUE | Q47: FALSE | R47: FALSE | S47: FALSE | T47: FALSE | U47: FALSE | V47: TRUE | W47: FALSE | X47: FALSE | Y47: FALSE | Z47: FALSE | AA47: FALSE | AB47: FALSE | AC47: FALSE | AD47: FALSE | AE47: FALSE | AF47: FALSE | AG47: FALSE | AH47: FALSE | AI47: FALSE | AJ47: TRUE | AK47: FALSE | AL47: FALSE | AM47: FALSE | AN47: FALSE | AO47: FALSE | AP47: FALSE | AQ47: FALSE | AR47: FALSE | AS47: FALSE | AT47: FALSE | AU47: FALSE | AV47: FALSE | AW47: FALSE | AX47: FALSE | AY47: FALSE | AZ47: FALSE | BA47: FALSE | BB47: FALSE | BC47: FALSE | BD47: FALSE | BE47: FALSE | BF47: FALSE | BG47: 2020-01-01 | BH47: 1
A48: 1-0047 | C48: Rezallahäuser | D48: Benzol Tw | E48: 1 | G48: Schmöckwitz-Grünauer- Uferbahn der Continentalen Eisenbahnbau -und Betriebsgesellschaft, Frankfurt am Main (Einzige bestehende Aufnahme). Später BVG Linie 86 | J48: 1912 | L48: 1 | M48: 1 | N48: FALSE | O48: TRUE | P48: TRUE | Q48: FALSE | R48: FALSE | S48: FALSE | T48: FALSE | U48: FALSE | V48: TRUE | W48: FALSE | X48: FALSE | Y48: FALSE | Z48: FALSE | AA48: FALSE | AB48: FALSE | AC48: FALSE | AD48: FALSE | AE48: FALSE | AF48: FALSE | AG48: FALSE | AH48: FALSE | AI48: FALSE | AJ48: TRUE | AK48: FALSE | AL48: FALSE | AM48: FALSE | AN48: FALSE | AO48: FALSE | AP48: FALSE | AQ48: FALSE | AR48: FALSE | AS48: FALSE | AT48: FALSE | AU48: FALSE | AV48: FALSE | AW48: FALSE | AX48: FALSE | AY48: FALSE | AZ48: FALSE | BA48: FALSE | BB48: FALSE | BC48: FALSE | BD48: FALSE | BE48: FALSE | BF48: FALSE | BG48: 2020-01-01 | BH48: 1
A49: 1-0048 | D49: 2xBw 2xTw | E49: 150 125 | L49: 1 | M49: 1 | N49: FALSE | O49: TRUE | P49: TRUE | Q49: FALSE | R49: FALSE | S49: FALSE | T49: FALSE | U49: FALSE | V49: TRUE | W49: FALSE | X49: FALSE | Y49: FALSE | Z49: FALSE | AA49: FALSE | AB49: FALSE | AC49: FALSE | AD49: FALSE | AE49: FALSE | AF49: FALSE | AG49: FALSE | AH49: FALSE | AI49: FALSE | AJ49: TRUE | AK49: FALSE | AL49: FALSE | AM49: FALSE | AN49: FALSE | AO49: FALSE | AP49: FALSE | AQ49: FALSE | AR49: FALSE | AS49: FALSE | AT49: FALSE | AU49: FALSE | AV49: FALSE | AW49: FALSE | AX49: FALSE | AY49: FALSE | AZ49: FALSE | BA49: FALSE | BB49: FALSE | BC49: FALSE | BD49: FALSE | BE49: FALSE | BF49: FALSE | BG49: 2020-01-01 | BH49: 1
A50: 1-0049 | D50: 2xTw | E50: 5 | G50: Siemens & Halske Straßenbahn Linie Pankow- Gesundbrunnen, später Linie 23 und 24 | L50: 1 | M50: 1 | N50: FALSE | O50: TRUE | P50: TRUE | Q50: FALSE | R50: FALSE | S50: FALSE | T50: FALSE | U50: FALSE | V50: TRUE | W50: FALSE | X50: FALSE | Y50: FALSE | Z50: FALSE | AA50: FALSE | AB50: FALSE | AC50: FALSE | AD50: FALSE | AE50: FALSE | AF50: FALSE | AG50: FALSE | AH50: FALSE | AI50: FALSE | AJ50: TRUE | AK50: FALSE | AL50: FALSE | AM50: FALSE | AN50: FALSE | AO50: FALSE | AP50: FALSE | AQ50: FALSE | AR50: FALSE | AS50: FALSE | AT50: FALSE | AU50: FALSE | AV50: FALSE | AW50: FALSE | AX50: FALSE | AY50: FALSE | AZ50: FALSE | BA50: FALSE | BB50: FALSE | BC50: FALSE | BD50: FALSE | BE50: FALSE | BF50: FALSE | BG50: 2020-01-01 | BH50: 1
A51: 1-0050 | C51: Südring, Richtung Ostkreuz | D51: 2xTw | E51: 5 | G51: Eröffnung der Heiligenseer Straßenbahn, daneben die alte Postkutsche | H51: 29 | I51: 5 | J51: 1913 | L51: 1 | M51: 1 | N51: FALSE | O51: TRUE | P51: TRUE | Q51: FALSE | R51: FALSE | S51: FALSE | T51: FALSE | U51: FALSE | V51: TRUE | W51: FALSE | X51: FALSE | Y51: FALSE | Z51: FALSE | AA51: FALSE | AB51: FALSE | AC51: FALSE | AD51: FALSE | AE51: FALSE | AF51: FALSE | AG51: FALSE | AH51: FALSE | AI51: FALSE | AJ51: TRUE | AK51: FALSE | AL51: FALSE | AM51: FALSE | AN51: FALSE | AO51: FALSE | AP51: FALSE | AQ51: FALSE | AR51: FALSE | AS51: FALSE | AT51: FALSE | AU51: FALSE | AV51: FALSE | AW51: FALSE | AX51: FALSE | AY51: FALSE | AZ51: FALSE | BA51: FALSE | BB51: FALSE | BC51: FALSE | BD51: FALSE | BE51: FALSE | BF51: FALSE | BG51: 2020-01-01 | BH51: 1
A52: 1-0051 | D52: 4xTw | E52: 2876 | G52: historisch | L52: 1 | M52: 1 | N52: FALSE | O52: TRUE | P52: TRUE | Q52: FALSE | R52: FALSE | S52: FALSE | T52: FALSE | U52: FALSE | V52: TRUE | W52: FALSE | X52: FALSE | Y52: FALSE | Z52: FALSE | AA52: FALSE | AB52: FALSE | AC52: FALSE | AD52: FALSE | AE52: FALSE | AF52: FALSE | AG52: FALSE | AH52: FALSE | AI52: FALSE | AJ52: TRUE | AK52: FALSE | AL52: FALSE | AM52: FALSE | AN52: FALSE | AO52: FALSE | AP52: FALSE | AQ52: FALSE | AR52: FALSE | AS52: FALSE | AT52: FALSE | AU52: FALSE | AV52: FALSE | AW52: FALSE | AX52: FALSE | AY52: FALSE | AZ52: FALSE | BA52: FALSE | BB52: FALSE | BC52: FALSE | BD52: FALSE | BE52: FALSE | BF52: FALSE | BG52: 2020-01-01 | BH52: 1
A53: 1-0052 | D53: 2xTw | E53: 4116 | F53: 73 | L53: 1 | M53: 1 | N53: FALSE | O53: TRUE | P53: TRUE | Q53: FALSE | R53: FALSE | S53: FALSE | T53: FALSE | U53: FALSE | V53: TRUE | W53: FALSE | X53: FALSE | Y53: FALSE | Z53: FALSE | AA53: FALSE | AB53: FALSE | AC53: FALSE | AD53: FALSE | AE53: FALSE | AF53: FALSE | AG53: FALSE | AH53: FALSE | AI53: FALSE | AJ53: TRUE | AK53: FALSE | AL53: FALSE | AM53: FALSE | AN53: FALSE | AO53: FALSE | AP53: FALSE | AQ53: FALSE | AR53: FALSE | AS53: FALSE | AT53: FALSE | AU53: FALSE | AV53: FALSE | AW53: FALSE | AX53: FALSE | AY53: FALSE | AZ53: FALSE | BA53: FALSE | BB53: FALSE | BC53: FALSE | BD53: FALSE | BE53: FALSE | BF53: FALSE | BG53: 2020-01-01 | BH53: 1
A54: 1-0053 | D54: 2xTw 2xBw | F54: 74 74 | L54: 1 | M54: 1 | N54: FALSE | O54: TRUE | P54: TRUE | Q54: FALSE | R54: FALSE | S54: FALSE | T54: FALSE | U54: FALSE | V54: TRUE | W54: FALSE | X54: FALSE | Y54: FALSE | Z54: FALSE | AA54: FALSE | AB54: FALSE | AC54: FALSE | AD54: FALSE | AE54: FALSE | AF54: FALSE | AG54: FALSE | AH54: FALSE | AI54: FALSE | AJ54: TRUE | AK54: FALSE | AL54: FALSE | AM54: FALSE | AN54: FALSE | AO54: FALSE | AP54: FALSE | AQ54: FALSE | AR54: FALSE | AS54: FALSE | AT54: FALSE | AU54: FALSE | AV54: FALSE | AW54: FALSE | AX54: FALSE | AY54: FALSE | AZ54: FALSE | BA54: FALSE | BB54: FALSE | BC54: FALSE | BD54: FALSE | BE54: FALSE | BF54: FALSE | BG54: 2020-01-01 | BH54: 1
A55: 1-0054 | C55: S-Bahnhof Reichssportfeld (Sonderbahnsteige) | G55: Sonderzüge während der Olympischen Spiele | J55: 1936 | L55: 1 | M55: 1 | N55: FALSE | O55: TRUE | P55: TRUE | Q55: FALSE | R55: FALSE | S55: FALSE | T55: FALSE | U55: FALSE | V55: TRUE | W55: FALSE | X55: FALSE | Y55: FALSE | Z55: FALSE | AA55: FALSE | AB55: FALSE | AC55: FALSE | AD55: FALSE | AE55: FALSE | AF55: FALSE | AG55: FALSE | AH55: FALSE | AI55: FALSE | AJ55: TRUE | AK55: FALSE | AL55: FALSE | AM55: FALSE | AN55: FALSE | AO55: FALSE | AP55: FALSE | AQ55: FALSE | AR55: FALSE | AS55: FALSE | AT55: FALSE | AU55: FALSE | AV55: FALSE | AW55: FALSE | AX55: FALSE | AY55: FALSE | AZ55: FALSE | BA55: FALSE | BB55: FALSE | BC55: FALSE | BD55: FALSE | BE55: FALSE | BF55: FALSE | BG55: 2020-01-01 | BH55: 1
A56: 1-0055 | C56: S-Bahnhof Tempelhof | D56: S-Bahn | J56: 1938 | L56: 1 | M56: 1 | N56: FALSE | O56: TRUE | P56: TRUE | Q56: FALSE | R56: FALSE | S56: FALSE | T56: FALSE | U56: FALSE | V56: TRUE | W56: FALSE | X56: FALSE | Y56: FALSE | Z56: FALSE | AA56: FALSE | AB56: FALSE | AC56: FALSE | AD56: FALSE | AE56: FALSE | AF56: FALSE | AG56: FALSE | AH56: FALSE | AI56: FALSE | AJ56: TRUE | AK56: FALSE | AL56: FALSE | AM56: FALSE | AN56: FALSE | AO56: FALSE | AP56: FALSE | AQ56: FALSE | AR56: FALSE | AS56: FALSE | AT56: FALSE | AU56: FALSE | AV56: FALSE | AW56: FALSE | AX56: FALSE | AY56: FALSE | AZ56: FALSE | BA56: FALSE | BB56: FALSE | BC56: FALSE | BD56: FALSE | BE56: FALSE | BF56: FALSE | BG56: 2020-01-01 | BH56: 1
A57: 1-0056 | C57: S-Bahnhof Deutschlandhalle (heute Eichkamp) | D57: S-Bahn | J57: 1935 | L57: 1 | M57: 1 | N57: FALSE | O57: TRUE | P57: TRUE | Q57: FALSE | R57: FALSE | S57: FALSE | T57: FALSE | U57: FALSE | V57: TRUE | W57: FALSE | X57: FALSE | Y57: FALSE | Z57: FALSE | AA57: FALSE | AB57: FALSE | AC57: FALSE | AD57: FALSE | AE57: FALSE | AF57: FALSE | AG57: FALSE | AH57: FALSE | AI57: FALSE | AJ57: TRUE | AK57: FALSE | AL57: FALSE | AM57: FALSE | AN57: FALSE | AO57: FALSE | AP57: FALSE | AQ57: FALSE | AR57: FALSE | AS57: FALSE | AT57: FALSE | AU57: FALSE | AV57: FALSE | AW57: FALSE | AX57: FALSE | AY57: FALSE | AZ57: FALSE | BA57: FALSE | BB57: FALSE | BC57: FALSE | BD57: FALSE | BE57: FALSE | BF57: FALSE | BG57: 2020-01-01 | BH57: 1
A58: 1-0057 | C58: Hakenfelde | D58: 2xTw 2xBw 2xBw | E58: 3311 | F58: 75 75 75 | K58: Peter Boehm | L58: 1 | M58: 1 | N58: FALSE | O58: TRUE | P58: TRUE | Q58: FALSE | R58: FALSE | S58: FALSE | T58: FALSE | U58: FALSE | V58: TRUE | W58: FALSE | X58: FALSE | Y58: FALSE | Z58: FALSE | AA58: FALSE | AB58: FALSE | AC58: FALSE | AD58: FALSE | AE58: FALSE | AF58: FALSE | AG58: FALSE | AH58: FALSE | AI58: FALSE | AJ58: TRUE | AK58: FALSE | AL58: FALSE | AM58: FALSE | AN58: FALSE | AO58: FALSE | AP58: FALSE | AQ58: FALSE | AR58: FALSE | AS58: FALSE | AT58: FALSE | AU58: FALSE | AV58: FALSE | AW58: FALSE | AX58: FALSE | AY58: FALSE | AZ58: FALSE | BA58: FALSE | BB58: FALSE | BC58: FALSE | BD58: FALSE | BE58: FALSE | BF58: FALSE | BG58: 2020-01-01 | BH58: 1
A59: 1-0058 | C59: Endstation Roseneck | D59: Bus | E59: 7049 | F59: 19 | G59: aus Hamburg | J59: 1962 | L59: 1 | M59: 1 | N59: FALSE | O59: TRUE | P59: TRUE | Q59: FALSE | R59: FALSE | S59: FALSE | T59: FALSE | U59: FALSE | V59: TRUE | W59: FALSE | X59: FALSE | Y59: FALSE | Z59: FALSE | AA59: FALSE | AB59: FALSE | AC59: FALSE | AD59: FALSE | AE59: FALSE | AF59: FALSE | AG59: FALSE | AH59: FALSE | AI59: FALSE | AJ59: TRUE | AK59: FALSE | AL59: FALSE | AM59: FALSE | AN59: FALSE | AO59: FALSE | AP59: FALSE | AQ59: FALSE | AR59: FALSE | AS59: FALSE | AT59: FALSE | AU59: FALSE | AV59: FALSE | AW59: FALSE | AX59: FALSE | AY59: FALSE | AZ59: FALSE | BA59: FALSE | BB59: FALSE | BC59: FALSE | BD59: FALSE | BE59: FALSE | BF59: FALSE | BG59: 2020-01-01 | BH59: 1
A60: 1-0059 | D60: ArbTw | E60: A83 | L60: 1 | M60: 1 | N60: FALSE | O60: TRUE | P60: TRUE | Q60: FALSE | R60: FALSE | S60: FALSE | T60: FALSE | U60: FALSE | V60: TRUE | W60: FALSE | X60: FALSE | Y60: FALSE | Z60: FALSE | AA60: FALSE | AB60: FALSE | AC60: FALSE | AD60: FALSE | AE60: FALSE | AF60: FALSE | AG60: FALSE | AH60: FALSE | AI60: FALSE | AJ60: TRUE | AK60: FALSE | AL60: FALSE | AM60: FALSE | AN60: FALSE | AO60: FALSE | AP60: FALSE | AQ60: FALSE | AR60: FALSE | AS60: FALSE | AT60: FALSE | AU60: FALSE | AV60: FALSE | AW60: FALSE | AX60: FALSE | AY60: FALSE | AZ60: FALSE | BA60: FALSE | BB60: FALSE | BC60: FALSE | BD60: FALSE | BE60: FALSE | BF60: FALSE | BG60: 2020-01-01 | BH60: 1
A61: 1-0060 | D61: 2xTw | E61: 6005 | L61: 1 | M61: 1 | N61: FALSE | O61: TRUE | P61: TRUE | Q61: FALSE | R61: FALSE | S61: FALSE | T61: FALSE | U61: FALSE | V61: TRUE | W61: FALSE | X61: FALSE | Y61: FALSE | Z61: FALSE | AA61: FALSE | AB61: FALSE | AC61: FALSE | AD61: FALSE | AE61: FALSE | AF61: FALSE | AG61: FALSE | AH61: FALSE | AI61: FALSE | AJ61: TRUE | AK61: FALSE | AL61: FALSE | AM61: FALSE | AN61: FALSE | AO61: FALSE | AP61: FALSE | AQ61: FALSE | AR61: FALSE | AS61: FALSE | AT61: FALSE | AU61: FALSE | AV61: FALSE | AW61: FALSE | AX61: FALSE | AY61: FALSE | AZ61: FALSE | BA61: FALSE | BB61: FALSE | BC61: FALSE | BD61: FALSE | BE61: FALSE | BF61: FALSE | BG61: 2020-01-01 | BH61: 1
A62: 1-0061 | C62: Ostbahnhof | D62: Obus | H62: 15 | I62: 6 | J62: 1971 | K62: Wilhelm Pflug | L62: 1 | M62: 1 | N62: FALSE | O62: TRUE | P62: TRUE | Q62: FALSE | R62: FALSE | S62: FALSE | T62: FALSE | U62: FALSE | V62: TRUE | W62: FALSE | X62: FALSE | Y62: FALSE | Z62: FALSE | AA62: FALSE | AB62: FALSE | AC62: FALSE | AD62: FALSE | AE62: FALSE | AF62: FALSE | AG62: FALSE | AH62: FALSE | AI62: FALSE | AJ62: TRUE | AK62: FALSE | AL62: FALSE | AM62: FALSE | AN62: FALSE | AO62: FALSE | AP62: FALSE | AQ62: FALSE | AR62: FALSE | AS62: FALSE | AT62: FALSE | AU62: FALSE | AV62: FALSE | AW62: FALSE | AX62: FALSE | AY62: FALSE | AZ62: FALSE | BA62: FALSE | BB62: FALSE | BC62: FALSE | BD62: FALSE | BE62: FALSE | BF62: FALSE | BG62: 2020-01-01 | BH62: 1
A63: 1-0062 | C63: Ostbahnhof | D63: Obus Obusanhänger | H63: 15 | I63: 6 | J63: 1971 | K63: Wilhelm Pflug | L63: 1 | M63: 1 | N63: FALSE | O63: TRUE | P63: TRUE | Q63: FALSE | R63: FALSE | S63: FALSE | T63: FALSE | U63: FALSE | V63: TRUE | W63: FALSE | X63: FALSE | Y63: FALSE | Z63: FALSE | AA63: FALSE | AB63: FALSE | AC63: FALSE | AD63: FALSE | AE63: FALSE | AF63: FALSE | AG63: FALSE | AH63: FALSE | AI63: FALSE | AJ63: TRUE | AK63: FALSE | AL63: FALSE | AM63: FALSE | AN63: FALSE | AO63: FALSE | AP63: FALSE | AQ63: FALSE | AR63: FALSE | AS63: FALSE | AT63: FALSE | AU63: FALSE | AV63: FALSE | AW63: FALSE | AX63: FALSE | AY63: FALSE | AZ63: FALSE | BA63: FALSE | BB63: FALSE | BC63: FALSE | BD63: FALSE | BE63: FALSE | BF63: FALSE | BG63: 2020-01-01 | BH63: 1
A64: 1-0063 | D64: 4xBw 4xTw | E64: 7001 | F64: 75E 75E | I64: 5 | J64: 1963 | K64: F. Müller | L64: 1 | M64: 1 | N64: FALSE | O64: TRUE | P64: TRUE | Q64: FALSE | R64: FALSE | S64: FALSE | T64: FALSE | U64: FALSE | V64: TRUE | W64: FALSE | X64: FALSE | Y64: FALSE | Z64: FALSE | AA64: FALSE | AB64: FALSE | AC64: FALSE | AD64: FALSE | AE64: FALSE | AF64: FALSE | AG64: FALSE | AH64: FALSE | AI64: FALSE | AJ64: TRUE | AK64: FALSE | AL64: FALSE | AM64: FALSE | AN64: FALSE | AO64: FALSE | AP64: FALSE | AQ64: FALSE | AR64: FALSE | AS64: FALSE | AT64: FALSE | AU64: FALSE | AV64: FALSE | AW64: FALSE | AX64: FALSE | AY64: FALSE | AZ64: FALSE | BA64: FALSE | BB64: FALSE | BC64: FALSE | BD64: FALSE | BE64: FALSE | BF64: FALSE | BG64: 2020-01-01 | BH64: 1
A65: 1-0064 | D65: ArbTw | E65: A64 | J65: 1965 | K65: F. Müller | L65: 1 | M65: 1 | N65: FALSE | O65: TRUE | P65: TRUE | Q65: FALSE | R65: FALSE | S65: FALSE | T65: FALSE | U65: FALSE | V65: TRUE | W65: FALSE | X65: FALSE | Y65: FALSE | Z65: FALSE | AA65: FALSE | AB65: FALSE | AC65: FALSE | AD65: FALSE | AE65: FALSE | AF65: FALSE | AG65: FALSE | AH65: FALSE | AI65: FALSE | AJ65: TRUE | AK65: FALSE | AL65: FALSE | AM65: FALSE | AN65: FALSE | AO65: FALSE | AP65: FALSE | AQ65: FALSE | AR65: FALSE | AS65: FALSE | AT65: FALSE | AU65: FALSE | AV65: FALSE | AW65: FALSE | AX65: FALSE | AY65: FALSE | AZ65: FALSE | BA65: FALSE | BB65: FALSE | BC65: FALSE | BD65: FALSE | BE65: FALSE | BF65: FALSE | BG65: 2020-01-01 | BH65: 1
A66: 1-0065 | D66: 4xTw | E66: 4397 | G66: historisch | K66: Wolfgang von Linstow | L66: 1 | M66: 1 | N66: FALSE | O66: TRUE | P66: TRUE | Q66: FALSE | R66: FALSE | S66: FALSE | T66: FALSE | U66: FALSE | V66: TRUE | W66: FALSE | X66: FALSE | Y66: FALSE | Z66: FALSE | AA66: FALSE | AB66: FALSE | AC66: FALSE | AD66: FALSE | AE66: FALSE | AF66: FALSE | AG66: FALSE | AH66: FALSE | AI66: FALSE | AJ66: TRUE | AK66: FALSE | AL66: FALSE | AM66: FALSE | AN66: FALSE | AO66: FALSE | AP66: FALSE | AQ66: FALSE | AR66: FALSE | AS66: FALSE | AT66: FALSE | AU66: FALSE | AV66: FALSE | AW66: FALSE | AX66: FALSE | AY66: FALSE | AZ66: FALSE | BA66: FALSE | BB66: FALSE | BC66: FALSE | BD66: FALSE | BE66: FALSE | BF66: FALSE | BG66: 2020-01-01 | BH66: =LEFT(A66,FIND("-",A66)-1) -> 1
A67: 1-0066 | D67: 2xBw | E67: 1479 | F67: 72E | L67: 1 | M67: 1 | N67: FALSE | O67: TRUE | P67: TRUE | Q67: FALSE | R67: FALSE | S67: FALSE | T67: FALSE | U67: FALSE | V67: TRUE | W67: FALSE | X67: FALSE | Y67: FALSE | Z67: FALSE | AA67: FALSE | AB67: FALSE | AC67: FALSE | AD67: FALSE | AE67: FALSE | AF67: FALSE | AG67: FALSE | AH67: FALSE | AI67: FALSE | AJ67: TRUE | AK67: FALSE | AL67: FALSE | AM67: FALSE | AN67: FALSE | AO67: FALSE | AP67: FALSE | AQ67: FALSE | AR67: FALSE | AS67: FALSE | AT67: FALSE | AU67: FALSE | AV67: FALSE | AW67: FALSE | AX67: FALSE | AY67: FALSE | AZ67: FALSE | BA67: FALSE | BB67: FALSE | BC67: FALSE | BD67: FALSE | BE67: FALSE | BF67: FALSE | BG67: 2020-01-01 | BH67: 1
A68: 1-0067 | D68: 2xTw | E68: 32 | G68: Neue Berliner Straßenbahn Nordost AG | L68: 1 | M68: 1 | N68: FALSE | O68: TRUE | P68: TRUE | Q68: FALSE | R68: FALSE | S68: FALSE | T68: FALSE | U68: FALSE | V68: TRUE | W68: FALSE | X68: FALSE | Y68: FALSE | Z68: FALSE | AA68: FALSE | AB68: FALSE | AC68: FALSE | AD68: FALSE | AE68: FALSE | AF68: FALSE | AG68: FALSE | AH68: FALSE | AI68: FALSE | AJ68: TRUE | AK68: FALSE | AL68: FALSE | AM68: FALSE | AN68: FALSE | AO68: FALSE | AP68: FALSE | AQ68: FALSE | AR68: FALSE | AS68: FALSE | AT68: FALSE | AU68: FALSE | AV68: FALSE | AW68: FALSE | AX68: FALSE | AY68: FALSE | AZ68: FALSE | BA68: FALSE | BB68: FALSE | BC68: FALSE | BD68: FALSE | BE68: FALSE | BF68: FALSE | BG68: 2020-01-01 | BH68: 1
A69: 1-0068 | C69: Oberschöneweide | D69: 2xTw | L69: 1 | M69: 1 | N69: FALSE | O69: TRUE | P69: TRUE | Q69: FALSE | R69: FALSE | S69: FALSE | T69: FALSE | U69: FALSE | V69: TRUE | W69: FALSE | X69: FALSE | Y69: FALSE | Z69: FALSE | AA69: FALSE | AB69: FALSE | AC69: FALSE | AD69: FALSE | AE69: FALSE | AF69: FALSE | AG69: FALSE | AH69: FALSE | AI69: FALSE | AJ69: TRUE | AK69: FALSE | AL69: FALSE | AM69: FALSE | AN69: FALSE | AO69: FALSE | AP69: FALSE | AQ69: FALSE | AR69: FALSE | AS69: FALSE | AT69: FALSE | AU69: FALSE | AV69: FALSE | AW69: FALSE | AX69: FALSE | AY69: FALSE | AZ69: FALSE | BA69: FALSE | BB69: FALSE | BC69: FALSE | BD69: FALSE | BE69: FALSE | BF69: FALSE | BG69: 2020-01-01 | BH69: 1
A70: 1-0069 | C70: Waidmannslust bei Berlin | G70: Straßenbahnwagen als Sommervillen | H70: 24 | I70: 5 | J70: 1934 | L70: 1 | M70: 1 | N70: FALSE | O70: TRUE | P70: TRUE | Q70: FALSE | R70: FALSE | S70: FALSE | T70: FALSE | U70: FALSE | V70: TRUE | W70: FALSE | X70: FALSE | Y70: FALSE | Z70: FALSE | AA70: FALSE | AB70: FALSE | AC70: FALSE | AD70: FALSE | AE70: FALSE | AF70: FALSE | AG70: FALSE | AH70: FALSE | AI70: FALSE | AJ70: TRUE | AK70: FALSE | AL70: FALSE | AM70: FALSE | AN70: FALSE | AO70: FALSE | AP70: FALSE | AQ70: FALSE | AR70: FALSE | AS70: FALSE | AT70: FALSE | AU70: FALSE | AV70: FALSE | AW70: FALSE | AX70: FALSE | AY70: FALSE | AZ70: FALSE | BA70: FALSE | BB70: FALSE | BC70: FALSE | BD70: FALSE | BE70: FALSE | BF70: FALSE | BG70: 2020-01-01 | BH70: 1
A71: 1-0070 | C71: Dahlem, Clayallee | D71: ArbTw 2xTw | E71: T31 6022 | F71: 40 | K71: Carl-Wilhelm Schmiedeke | L71: 1 | M71: 1 | N71: FALSE | O71: TRUE | P71: TRUE | Q71: FALSE | R71: FALSE | S71: FALSE | T71: FALSE | U71: FALSE | V71: TRUE | W71: FALSE | X71: FALSE | Y71: FALSE | Z71: FALSE | AA71: FALSE | AB71: FALSE | AC71: FALSE | AD71: FALSE | AE71: FALSE | AF71: FALSE | AG71: FALSE | AH71: FALSE | AI71: FALSE | AJ71: TRUE | AK71: FALSE | AL71: FALSE | AM71: FALSE | AN71: FALSE | AO71: FALSE | AP71: FALSE | AQ71: FALSE | AR71: FALSE | AS71: FALSE | AT71: FALSE | AU71: FALSE | AV71: FALSE | AW71: FALSE | AX71: FALSE | AY71: FALSE | AZ71: FALSE | BA71: FALSE | BB71: FALSE | BC71: FALSE | BD71: FALSE | BE71: FALSE | BF71: FALSE | BG71: 2020-01-01 | BH71: 1
A72: 1-0071 | D72: ArbTw | E72: A12 | K72: Emil Konrad | L72: 1 | M72: 1 | N72: FALSE | O72: TRUE | P72: TRUE | Q72: FALSE | R72: FALSE | S72: FALSE | T72: FALSE | U72: FALSE | V72: TRUE | W72: FALSE | X72: FALSE | Y72: FALSE | Z72: FALSE | AA72: FALSE | AB72: FALSE | AC72: FALSE | AD72: FALSE | AE72: FALSE | AF72: FALSE | AG72: FALSE | AH72: FALSE | AI72: FALSE | AJ72: TRUE | AK72: FALSE | AL72: FALSE | AM72: FALSE | AN72: FALSE | AO72: FALSE | AP72: FALSE | AQ72: FALSE | AR72: FALSE | AS72: FALSE | AT72: FALSE | AU72: FALSE | AV72: FALSE | AW72: FALSE | AX72: FALSE | AY72: FALSE | AZ72: FALSE | BA72: FALSE | BB72: FALSE | BC72: FALSE | BD72: FALSE | BE72: FALSE | BF72: FALSE | BG72: 2020-01-01 | BH72: 1
A73: 1-0072 | D73: 2xBw | E73: 1204 | F73: 12 | G73: ex Kreis Mettmann | L73: 1 | M73: 1 | N73: FALSE | O73: TRUE | P73: TRUE | Q73: FALSE | R73: FALSE | S73: FALSE | T73: FALSE | U73: FALSE | V73: TRUE | W73: FALSE | X73: FALSE | Y73: FALSE | Z73: FALSE | AA73: FALSE | AB73: FALSE | AC73: FALSE | AD73: FALSE | AE73: FALSE | AF73: FALSE | AG73: FALSE | AH73: FALSE | AI73: FALSE | AJ73: TRUE | AK73: FALSE | AL73: FALSE | AM73: FALSE | AN73: FALSE | AO73: FALSE | AP73: FALSE | AQ73: FALSE | AR73: FALSE | AS73: FALSE | AT73: FALSE | AU73: FALSE | AV73: FALSE | AW73: FALSE | AX73: FALSE | AY73: FALSE | AZ73: FALSE | BA73: FALSE | BB73: FALSE | BC73: FALSE | BD73: FALSE | BE73: FALSE | BF73: FALSE | BG73: 2020-01-01 | BH73: 1
A74: 1-0073 | C74: Hermannplatz | D74: 2xTw | E74: 3590 | F74: 147 | G74: Neue Linie 147 | L74: 1 | M74: 1 | N74: FALSE | O74: TRUE | P74: TRUE | Q74: FALSE | R74: FALSE | S74: FALSE | T74: FALSE | U74: FALSE | V74: TRUE | W74: FALSE | X74: FALSE | Y74: FALSE | Z74: FALSE | AA74: FALSE | AB74: FALSE | AC74: FALSE | AD74: FALSE | AE74: FALSE | AF74: FALSE | AG74: FALSE | AH74: FALSE | AI74: FALSE | AJ74: TRUE | AK74: FALSE | AL74: FALSE | AM74: FALSE | AN74: FALSE | AO74: FALSE | AP74: FALSE | AQ74: FALSE | AR74: FALSE | AS74: FALSE | AT74: FALSE | AU74: FALSE | AV74: FALSE | AW74: FALSE | AX74: FALSE | AY74: FALSE | AZ74: FALSE | BA74: FALSE | BB74: FALSE | BC74: FALSE | BD74: FALSE | BE74: FALSE | BF74: FALSE | BG74: 2020-01-01 | BH74: 1
A75: 1-0074 | C75: Dönhoffplatz | D75: 2xTw | E75: 4365 | F75: 82 | L75: 1 | M75: 1 | N75: FALSE | O75: TRUE | P75: TRUE | Q75: FALSE | R75: FALSE | S75: FALSE | T75: FALSE | U75: FALSE | V75: TRUE | W75: FALSE | X75: FALSE | Y75: FALSE | Z75: FALSE | AA75: FALSE | AB75: FALSE | AC75: FALSE | AD75: FALSE | AE75: FALSE | AF75: FALSE | AG75: FALSE | AH75: FALSE | AI75: FALSE | AJ75: TRUE | AK75: FALSE | AL75: FALSE | AM75: FALSE | AN75: FALSE | AO75: FALSE | AP75: FALSE | AQ75: FALSE | AR75: FALSE | AS75: FALSE | AT75: FALSE | AU75: FALSE | AV75: FALSE | AW75: FALSE | AX75: FALSE | AY75: FALSE | AZ75: FALSE | BA75: FALSE | BB75: FALSE | BC75: FALSE | BD75: FALSE | BE75: FALSE | BF75: FALSE | BG75: 2020-01-01 | BH75: 1
A76: 1-0075 | D76: 4xTw | E76: 5372 | F76: 49 | L76: 1 | M76: 1 | N76: FALSE | O76: TRUE | P76: TRUE | Q76: FALSE | R76: FALSE | S76: FALSE | T76: FALSE | U76: FALSE | V76: TRUE | W76: FALSE | X76: FALSE | Y76: FALSE | Z76: FALSE | AA76: FALSE | AB76: FALSE | AC76: FALSE | AD76: FALSE | AE76: FALSE | AF76: FALSE | AG76: FALSE | AH76: FALSE | AI76: FALSE | AJ76: TRUE | AK76: FALSE | AL76: FALSE | AM76: FALSE | AN76: FALSE | AO76: FALSE | AP76: FALSE | AQ76: FALSE | AR76: FALSE | AS76: FALSE | AT76: FALSE | AU76: FALSE | AV76: FALSE | AW76: FALSE | AX76: FALSE | AY76: FALSE | AZ76: FALSE | BA76: FALSE | BB76: FALSE | BC76: FALSE | BD76: FALSE | BE76: FALSE | BF76: FALSE | BG76: 2020-01-01 | BH76: 1
A77: 1-0076 | D77: 2xBw | E77: 1487 | F77: 62 | K77: Emil Konrad | L77: 1 | M77: 1 | N77: FALSE | O77: TRUE | P77: TRUE | Q77: FALSE | R77: FALSE | S77: FALSE | T77: FALSE | U77: FALSE | V77: TRUE | W77: FALSE | X77: FALSE | Y77: FALSE | Z77: FALSE | AA77: FALSE | AB77: FALSE | AC77: FALSE | AD77: FALSE | AE77: FALSE | AF77: FALSE | AG77: FALSE | AH77: FALSE | AI77: FALSE | AJ77: TRUE | AK77: FALSE | AL77: FALSE | AM77: FALSE | AN77: FALSE | AO77: FALSE | AP77: FALSE | AQ77: FALSE | AR77: FALSE | AS77: FALSE | AT77: FALSE | AU77: FALSE | AV77: FALSE | AW77: FALSE | AX77: FALSE | AY77: FALSE | AZ77: FALSE | BA77: FALSE | BB77: FALSE | BC77: FALSE | BD77: FALSE | BE77: FALSE | BF77: FALSE | BG77: 2020-01-01 | BH77: 1
A78: 1-0077 | C78: Alexanderplatz, vor dem Berolinahaus | D78: 2xTw | E78: 4117 | F78: 71E | K78: Emil Konrad | L78: 1 | M78: 1 | N78: FALSE | O78: TRUE | P78: TRUE | Q78: FALSE | R78: FALSE | S78: FALSE | T78: FALSE | U78: FALSE | V78: TRUE | W78: FALSE | X78: FALSE | Y78: FALSE | Z78: FALSE | AA78: FALSE | AB78: FALSE | AC78: FALSE | AD78: FALSE | AE78: FALSE | AF78: FALSE | AG78: FALSE | AH78: FALSE | AI78: FALSE | AJ78: TRUE | AK78: FALSE | AL78: FALSE | AM78: FALSE | AN78: FALSE | AO78: FALSE | AP78: FALSE | AQ78: FALSE | AR78: FALSE | AS78: FALSE | AT78: FALSE | AU78: FALSE | AV78: FALSE | AW78: FALSE | AX78: FALSE | AY78: FALSE | AZ78: FALSE | BA78: FALSE | BB78: FALSE | BC78: FALSE | BD78: FALSE | BE78: FALSE | BF78: FALSE | BG78: 2020-01-01 | BH78: 1
A79: 1-0078 | D79: 2xTw | E79: 4312 | F79: 71 | K79: Emil Konrad | L79: 1 | M79: 1 | N79: FALSE | O79: TRUE | P79: TRUE | Q79: FALSE | R79: FALSE | S79: FALSE | T79: FALSE | U79: FALSE | V79: TRUE | W79: FALSE | X79: FALSE | Y79: FALSE | Z79: FALSE | AA79: FALSE | AB79: FALSE | AC79: FALSE | AD79: FALSE | AE79: FALSE | AF79: FALSE | AG79: FALSE | AH79: FALSE | AI79: FALSE | AJ79: TRUE | AK79: FALSE | AL79: FALSE | AM79: FALSE | AN79: FALSE | AO79: FALSE | AP79: FALSE | AQ79: FALSE | AR79: FALSE | AS79: FALSE | AT79: FALSE | AU79: FALSE | AV79: FALSE | AW79: FALSE | AX79: FALSE | AY79: FALSE | AZ79: FALSE | BA79: FALSE | BB79: FALSE | BC79: FALSE | BD79: FALSE | BE79: FALSE | BF79: FALSE | BG79: 2020-01-01 | BH79: 1
A80: 1-0079 | C80: Alexanderplatz, vor dem Polizeipräsidium | D80: 2xTw | E80: 4355 | F80: 64E | K80: Emil Konrad | L80: 1 | M80: 1 | N80: FALSE | O80: TRUE | P80: TRUE | Q80: FALSE | R80: FALSE | S80: FALSE | T80: FALSE | U80: FALSE | V80: TRUE | W80: FALSE | X80: FALSE | Y80: FALSE | Z80: FALSE | AA80: FALSE | AB80: FALSE | AC80: FALSE | AD80: FALSE | AE80: FALSE | AF80: FALSE | AG80: FALSE | AH80: FALSE | AI80: FALSE | AJ80: TRUE | AK80: FALSE | AL80: FALSE | AM80: FALSE | AN80: FALSE | AO80: FALSE | AP80: FALSE | AQ80: FALSE | AR80: FALSE | AS80: FALSE | AT80: FALSE | AU80: FALSE | AV80: FALSE | AW80: FALSE | AX80: FALSE | AY80: FALSE | AZ80: FALSE | BA80: FALSE | BB80: FALSE | BC80: FALSE | BD80: FALSE | BE80: FALSE | BF80: FALSE | BG80: 2020-01-01 | BH80: 1
A81: 1-0080 | B81: VDVA-0001-080 | C81: Stettiner Bahnhof | D81: Doppeldeckbus | E81: 286 | F81: 5 | J81: 1933 | K81: Friedrich Grünwald | L81: 1 | M81: 1 | N81: FALSE | O81: TRUE | P81: TRUE | Q81: FALSE | R81: FALSE | S81: FALSE | T81: FALSE | U81: FALSE | V81: TRUE | W81: FALSE | X81: FALSE | Y81: FALSE | Z81: FALSE | AA81: FALSE | AB81: FALSE | AC81: FALSE | AD81: FALSE | AE81: FALSE | AF81: FALSE | AG81: FALSE | AH81: FALSE | AI81: FALSE | AJ81: TRUE | AK81: FALSE | AL81: FALSE | AM81: FALSE | AN81: FALSE | AO81: FALSE | AP81: FALSE | AQ81: FALSE | AR81: FALSE | AS81: FALSE | AT81: FALSE | AU81: FALSE | AV81: FALSE | AW81: FALSE | AX81: FALSE | AY81: FALSE | AZ81: FALSE | BA81: FALSE | BB81: FALSE | BC81: FALSE | BD81: FALSE | BE81: FALSE | BF81: FALSE | BG81: 2020-01-01 | BH81: 1
A82: 1-0081 | D82: 2xTw | E82: 20 | G82: historisch | J82: 1906 | L82: 1 | M82: 1 | N82: FALSE | O82: TRUE | P82: TRUE | Q82: FALSE | R82: FALSE | S82: FALSE | T82: FALSE | U82: FALSE | V82: TRUE | W82: FALSE | X82: FALSE | Y82: FALSE | Z82: FALSE | AA82: FALSE | AB82: FALSE | AC82: FALSE | AD82: FALSE | AE82: FALSE | AF82: FALSE | AG82: FALSE | AH82: FALSE | AI82: FALSE | AJ82: TRUE | AK82: FALSE | AL82: FALSE | AM82: FALSE | AN82: FALSE | AO82: FALSE | AP82: FALSE | AQ82: FALSE | AR82: FALSE | AS82: FALSE | AT82: FALSE | AU82: FALSE | AV82: FALSE | AW82: FALSE | AX82: FALSE | AY82: FALSE | AZ82: FALSE | BA82: FALSE | BB82: FALSE | BC82: FALSE | BD82: FALSE | BE82: FALSE | BF82: FALSE | BG82: 2020-01-01 | BH82: 1
A83: 1-0082 | C83: Btf Damerowstraße | D83: 2xTw | E83: 118 | G83: historisch | J83: 1902 | L83: 1 | M83: 1 | N83: FALSE | O83: TRUE | P83: TRUE | Q83: FALSE | R83: FALSE | S83: FALSE | T83: FALSE | U83: FALSE | V83: TRUE | W83: FALSE | X83: FALSE | Y83: FALSE | Z83: FALSE | AA83: FALSE | AB83: FALSE | AC83: FALSE | AD83: FALSE | AE83: FALSE | AF83: FALSE | AG83: FALSE | AH83: FALSE | AI83: FALSE | AJ83: TRUE | AK83: FALSE | AL83: FALSE | AM83: FALSE | AN83: FALSE | AO83: FALSE | AP83: FALSE | AQ83: FALSE | AR83: FALSE | AS83: FALSE | AT83: FALSE | AU83: FALSE | AV83: FALSE | AW83: FALSE | AX83: FALSE | AY83: FALSE | AZ83: FALSE | BA83: FALSE | BB83: FALSE | BC83: FALSE | BD83: FALSE | BE83: FALSE | BF83: FALSE | BG83: 2020-01-01 | BH83: 1
A84: 1-0083 | C84: Alt-Berlin, Spittelmarkt | J84: 1890 | L84: 1 | M84: 1 | N84: FALSE | O84: TRUE | P84: TRUE | Q84: FALSE | R84: FALSE | S84: FALSE | T84: FALSE | U84: FALSE | V84: TRUE | W84: FALSE | X84: FALSE | Y84: FALSE | Z84: FALSE | AA84: FALSE | AB84: FALSE | AC84: FALSE | AD84: FALSE | AE84: FALSE | AF84: FALSE | AG84: FALSE | AH84: FALSE | AI84: FALSE | AJ84: TRUE | AK84: FALSE | AL84: FALSE | AM84: FALSE | AN84: FALSE | AO84: FALSE | AP84: FALSE | AQ84: FALSE | AR84: FALSE | AS84: FALSE | AT84: FALSE | AU84: FALSE | AV84: FALSE | AW84: FALSE | AX84: FALSE | AY84: FALSE | AZ84: FALSE | BA84: FALSE | BB84: FALSE | BC84: FALSE | BD84: FALSE | BE84: FALSE | BF84: FALSE | BG84: 2020-01-01 | BH84: 1
A85: 1-0084 | C85: Alt-Berlin, Spittelmarkt | D85: 2xTw 2xTw 2xTw | E85: 2017 | J85: 1900 | L85: 1 | M85: 1 | N85: FALSE | O85: TRUE | P85: TRUE | Q85: FALSE | R85: FALSE | S85: FALSE | T85: FALSE | U85: FALSE | V85: TRUE | W85: FALSE | X85: FALSE | Y85: FALSE | Z85: FALSE | AA85: FALSE | AB85: FALSE | AC85: FALSE | AD85: FALSE | AE85: FALSE | AF85: FALSE | AG85: FALSE | AH85: FALSE | AI85: FALSE | AJ85: TRUE | AK85: FALSE | AL85: FALSE | AM85: FALSE | AN85: FALSE | AO85: FALSE | AP85: FALSE | AQ85: FALSE | AR85: FALSE | AS85: FALSE | AT85: FALSE | AU85: FALSE | AV85: FALSE | AW85: FALSE | AX85: FALSE | AY85: FALSE | AZ85: FALSE | BA85: FALSE | BB85: FALSE | BC85: FALSE | BD85: FALSE | BE85: FALSE | BF85: FALSE | BG85: 2020-01-01 | BH85: 1
A86: 1-0085 | C86: Potsdamer Brücke und Blick in die Königin- Augusta-Straße | D86: 2xTw 4xTw 2xBw | J86: 1907 | L86: 1 | M86: 1 | N86: FALSE | O86: TRUE | P86: TRUE | Q86: FALSE | R86: FALSE | S86: FALSE | T86: FALSE | U86: FALSE | V86: TRUE | W86: FALSE | X86: FALSE | Y86: FALSE | Z86: FALSE | AA86: FALSE | AB86: FALSE | AC86: FALSE | AD86: FALSE | AE86: FALSE | AF86: FALSE | AG86: FALSE | AH86: FALSE | AI86: FALSE | AJ86: TRUE | AK86: FALSE | AL86: FALSE | AM86: FALSE | AN86: FALSE | AO86: FALSE | AP86: FALSE | AQ86: FALSE | AR86: FALSE | AS86: FALSE | AT86: FALSE | AU86: FALSE | AV86: FALSE | AW86: FALSE | AX86: FALSE | AY86: FALSE | AZ86: FALSE | BA86: FALSE | BB86: FALSE | BC86: FALSE | BD86: FALSE | BE86: FALSE | BF86: FALSE | BG86: 2020-01-01 | BH86: 1
A87: 1-0086 | D87: 2xTw | E87: 8 | G87: Flachbahn der Berliner Hoch- und U-Bahngesellschaft | J87: 1902 | L87: 1 | M87: 1 | N87: FALSE | O87: TRUE | P87: TRUE | Q87: FALSE | R87: FALSE | S87: FALSE | T87: FALSE | U87: FALSE | V87: TRUE | W87: FALSE | X87: FALSE | Y87: FALSE | Z87: FALSE | AA87: FALSE | AB87: FALSE | AC87: FALSE | AD87: FALSE | AE87: FALSE | AF87: FALSE | AG87: FALSE | AH87: FALSE | AI87: FALSE | AJ87: TRUE | AK87: FALSE | AL87: FALSE | AM87: FALSE | AN87: FALSE | AO87: FALSE | AP87: FALSE | AQ87: FALSE | AR87: FALSE | AS87: FALSE | AT87: FALSE | AU87: FALSE | AV87: FALSE | AW87: FALSE | AX87: FALSE | AY87: FALSE | AZ87: FALSE | BA87: FALSE | BB87: FALSE | BC87: FALSE | BD87: FALSE | BE87: FALSE | BF87: FALSE | BG87: 2020-01-01 | BH87: 1
A88: 1-0087 | C88: Anhalter Bahnhof | D88: Pferdebahnwagen | J88: 1941 | L88: 1 | M88: 1 | N88: FALSE | O88: TRUE | P88: TRUE | Q88: FALSE | R88: FALSE | S88: FALSE | T88: FALSE | U88: FALSE | V88: TRUE | W88: FALSE | X88: FALSE | Y88: FALSE | Z88: FALSE | AA88: FALSE | AB88: FALSE | AC88: FALSE | AD88: FALSE | AE88: FALSE | AF88: FALSE | AG88: FALSE | AH88: FALSE | AI88: FALSE | AJ88: TRUE | AK88: FALSE | AL88: FALSE | AM88: FALSE | AN88: FALSE | AO88: FALSE | AP88: FALSE | AQ88: FALSE | AR88: FALSE | AS88: FALSE | AT88: FALSE | AU88: FALSE | AV88: FALSE | AW88: FALSE | AX88: FALSE | AY88: FALSE | AZ88: FALSE | BA88: FALSE | BB88: FALSE | BC88: FALSE | BD88: FALSE | BE88: FALSE | BF88: FALSE | BG88: 2020-01-01 | BH88: 1
A89: 1-0088 | C89: Leipziger Platz | D89: 2xTw | E89: 4364 | F89: 65 | J89: 1931 | K89: Emil Konrad | L89: 1 | M89: 1 | N89: FALSE | O89: TRUE | P89: TRUE | Q89: FALSE | R89: FALSE | S89: FALSE | T89: FALSE | U89: FALSE | V89: TRUE | W89: FALSE | X89: FALSE | Y89: FALSE | Z89: FALSE | AA89: FALSE | AB89: FALSE | AC89: FALSE | AD89: FALSE | AE89: FALSE | AF89: FALSE | AG89: FALSE | AH89: FALSE | AI89: FALSE | AJ89: TRUE | AK89: FALSE | AL89: FALSE | AM89: FALSE | AN89: FALSE | AO89: FALSE | AP89: FALSE | AQ89: FALSE | AR89: FALSE | AS89: FALSE | AT89: FALSE | AU89: FALSE | AV89: FALSE | AW89: FALSE | AX89: FALSE | AY89: FALSE | AZ89: FALSE | BA89: FALSE | BB89: FALSE | BC89: FALSE | BD89: FALSE | BE89: FALSE | BF89: FALSE | BG89: 2020-01-01 | BH89: 1
A90: 1-0089 | C90: Elsenstraße (Treptow, Rathaus) | D90: 2xBw | E90: 913 | F90: 55E | J90: 1932 | K90: Walter Ende | L90: 1 | M90: 1 | N90: FALSE | O90: TRUE | P90: TRUE | Q90: FALSE | R90: FALSE | S90: FALSE | T90: FALSE | U90: FALSE | V90: TRUE | W90: FALSE | X90: FALSE | Y90: FALSE | Z90: FALSE | AA90: FALSE | AB90: FALSE | AC90: FALSE | AD90: FALSE | AE90: FALSE | AF90: FALSE | AG90: FALSE | AH90: FALSE | AI90: FALSE | AJ90: TRUE | AK90: FALSE | AL90: FALSE | AM90: FALSE | AN90: FALSE | AO90: FALSE | AP90: FALSE | AQ90: FALSE | AR90: FALSE | AS90: FALSE | AT90: FALSE | AU90: FALSE | AV90: FALSE | AW90: FALSE | AX90: FALSE | AY90: FALSE | AZ90: FALSE | BA90: FALSE | BB90: FALSE | BC90: FALSE | BD90: FALSE | BE90: FALSE | BF90: FALSE | BG90: 2020-01-01 | BH90: 1
A91: 1-0090 | C91: Spandau Marktplatz | D91: ArbTw | E91: H28A | G91: Hilfsgerätewagen | I91: 10 | J91: 1941 | K91: Walter Ende | L91: 1 | M91: 1 | N91: FALSE | O91: TRUE | P91: TRUE | Q91: FALSE | R91: FALSE | S91: FALSE | T91: FALSE | U91: FALSE | V91: TRUE | W91: FALSE | X91: FALSE | Y91: FALSE | Z91: FALSE | AA91: FALSE | AB91: FALSE | AC91: FALSE | AD91: FALSE | AE91: FALSE | AF91: FALSE | AG91: FALSE | AH91: FALSE | AI91: FALSE | AJ91: TRUE | AK91: FALSE | AL91: FALSE | AM91: FALSE | AN91: FALSE | AO91: FALSE | AP91: FALSE | AQ91: FALSE | AR91: FALSE | AS91: FALSE | AT91: FALSE | AU91: FALSE | AV91: FALSE | AW91: FALSE | AX91: FALSE | AY91: FALSE | AZ91: FALSE | BA91: FALSE | BB91: FALSE | BC91: FALSE | BD91: FALSE | BE91: FALSE | BF91: FALSE | BG91: 2020-01-01 | BH91: 1
A92: 1-0091 | C92: Steglitz, Stadtpark | D92: 4xTw | E92: 5271 | F92: 61 | L92: 1 | M92: 1 | N92: FALSE | O92: TRUE | P92: TRUE | Q92: FALSE | R92: FALSE | S92: FALSE | T92: FALSE | U92: FALSE | V92: TRUE | W92: FALSE | X92: FALSE | Y92: FALSE | Z92: FALSE | AA92: FALSE | AB92: FALSE | AC92: FALSE | AD92: FALSE | AE92: FALSE | AF92: FALSE | AG92: FALSE | AH92: FALSE | AI92: FALSE | AJ92: TRUE | AK92: FALSE | AL92: FALSE | AM92: FALSE | AN92: FALSE | AO92: FALSE | AP92: FALSE | AQ92: FALSE | AR92: FALSE | AS92: FALSE | AT92: FALSE | AU92: FALSE | AV92: FALSE | AW92: FALSE | AX92: FALSE | AY92: FALSE | AZ92: FALSE | BA92: FALSE | BB92: FALSE | BC92: FALSE | BD92: FALSE | BE92: FALSE | BF92: FALSE | BG92: 2020-01-01 | BH92: 1
A93: 1-0092 | C93: Händelplatz | D93: 2xTw | E93: 5620 | F93: 45 | J93: 1940 | K93: Linberg | L93: 1 | M93: 1 | N93: FALSE | O93: TRUE | P93: TRUE | Q93: FALSE | R93: FALSE | S93: FALSE | T93: FALSE | U93: FALSE | V93: TRUE | W93: FALSE | X93: FALSE | Y93: FALSE | Z93: FALSE | AA93: FALSE | AB93: FALSE | AC93: FALSE | AD93: FALSE | AE93: FALSE | AF93: FALSE | AG93: FALSE | AH93: FALSE | AI93: FALSE | AJ93: TRUE | AK93: FALSE | AL93: FALSE | AM93: FALSE | AN93: FALSE | AO93: FALSE | AP93: FALSE | AQ93: FALSE | AR93: FALSE | AS93: FALSE | AT93: FALSE | AU93: FALSE | AV93: FALSE | AW93: FALSE | AX93: FALSE | AY93: FALSE | AZ93: FALSE | BA93: FALSE | BB93: FALSE | BC93: FALSE | BD93: FALSE | BE93: FALSE | BF93: FALSE | BG93: 2020-01-01 | BH93: 1
A94: 1-0093 | C94: in Richtung Gardepirnierplatz | D94: Tw | E94: 3644 | I94: 11 | J94: 1941 | K94: Walter Ende | L94: 1 | M94: 1 | N94: FALSE | O94: TRUE | P94: TRUE | Q94: FALSE | R94: FALSE | S94: FALSE | T94: FALSE | U94: FALSE | V94: TRUE | W94: FALSE | X94: FALSE | Y94: FALSE | Z94: FALSE | AA94: FALSE | AB94: FALSE | AC94: FALSE | AD94: FALSE | AE94: FALSE | AF94: FALSE | AG94: FALSE | AH94: FALSE | AI94: FALSE | AJ94: TRUE | AK94: FALSE | AL94: FALSE | AM94: FALSE | AN94: FALSE | AO94: FALSE | AP94: FALSE | AQ94: FALSE | AR94: FALSE | AS94: FALSE | AT94: FALSE | AU94: FALSE | AV94: FALSE | AW94: FALSE | AX94: FALSE | AY94: FALSE | AZ94: FALSE | BA94: FALSE | BB94: FALSE | BC94: FALSE | BD94: FALSE | BE94: FALSE | BF94: FALSE | BG94: 2020-01-01 | BH94: 1
A95: 1-0094 | C95: Schlossstraße? | D95: 2xTw | E95: 3736 | F95: 44 | K95: Hermann Kühne | L95: 1 | M95: 1 | N95: FALSE | O95: TRUE | P95: TRUE | Q95: FALSE | R95: FALSE | S95: FALSE | T95: FALSE | U95: FALSE | V95: TRUE | W95: FALSE | X95: FALSE | Y95: FALSE | Z95: FALSE | AA95: FALSE | AB95: FALSE | AC95: FALSE | AD95: FALSE | AE95: FALSE | AF95: FALSE | AG95: FALSE | AH95: FALSE | AI95: FALSE | AJ95: TRUE | AK95: FALSE | AL95: FALSE | AM95: FALSE | AN95: FALSE | AO95: FALSE | AP95: FALSE | AQ95: FALSE | AR95: FALSE | AS95: FALSE | AT95: FALSE | AU95: FALSE | AV95: FALSE | AW95: FALSE | AX95: FALSE | AY95: FALSE | AZ95: FALSE | BA95: FALSE | BB95: FALSE | BC95: FALSE | BD95: FALSE | BE95: FALSE | BF95: FALSE | BG95: 2020-01-01 | BH95: 1
A96: 1-0095 | D96: 2xTw | E96: 4318 | F96: 154E | K96: Hermann Kühne | L96: 1 | M96: 1 | N96: FALSE | O96: TRUE | P96: TRUE | Q96: FALSE | R96: FALSE | S96: FALSE | T96: FALSE | U96: FALSE | V96: TRUE | W96: FALSE | X96: FALSE | Y96: FALSE | Z96: FALSE | AA96: FALSE | AB96: FALSE | AC96: FALSE | AD96: FALSE | AE96: FALSE | AF96: FALSE | AG96: FALSE | AH96: FALSE | AI96: FALSE | AJ96: TRUE | AK96: FALSE | AL96: FALSE | AM96: FALSE | AN96: FALSE | AO96: FALSE | AP96: FALSE | AQ96: FALSE | AR96: FALSE | AS96: FALSE | AT96: FALSE | AU96: FALSE | AV96: FALSE | AW96: FALSE | AX96: FALSE | AY96: FALSE | AZ96: FALSE | BA96: FALSE | BB96: FALSE | BC96: FALSE | BD96: FALSE | BE96: FALSE | BF96: FALSE | BG96: 2020-01-01 | BH96: 1
A97: 1-0096 | C97: Kniproderstraße? | D97: 2x+2xTw | E97: 6212 | F97: 74 | K97: Hermann Kühne | L97: 1 | M97: 1 | N97: FALSE | O97: TRUE | P97: TRUE | Q97: FALSE | R97: FALSE | S97: FALSE | T97: FALSE | U97: FALSE | V97: TRUE | W97: FALSE | X97: FALSE | Y97: FALSE | Z97: FALSE | AA97: FALSE | AB97: FALSE | AC97: FALSE | AD97: FALSE | AE97: FALSE | AF97: FALSE | AG97: FALSE | AH97: FALSE | AI97: FALSE | AJ97: TRUE | AK97: FALSE | AL97: FALSE | AM97: FALSE | AN97: FALSE | AO97: FALSE | AP97: FALSE | AQ97: FALSE | AR97: FALSE | AS97: FALSE | AT97: FALSE | AU97: FALSE | AV97: FALSE | AW97: FALSE | AX97: FALSE | AY97: FALSE | AZ97: FALSE | BA97: FALSE | BB97: FALSE | BC97: FALSE | BD97: FALSE | BE97: FALSE | BF97: FALSE | BG97: 2020-01-01 | BH97: 1
A98: 1-0097 | C98: Johannesstift | D98: 2xTw | E98: 4319 | F98: 120 | G98: verlässt die Kreisbahnstrecke und fährt zur Station Johannisstift | J98: 1941 | L98: 1 | M98: 1 | N98: FALSE | O98: TRUE | P98: TRUE | Q98: FALSE | R98: FALSE | S98: FALSE | T98: FALSE | U98: FALSE | V98: TRUE | W98: FALSE | X98: FALSE | Y98: FALSE | Z98: FALSE | AA98: FALSE | AB98: FALSE | AC98: FALSE | AD98: FALSE | AE98: FALSE | AF98: FALSE | AG98: FALSE | AH98: FALSE | AI98: FALSE | AJ98: TRUE | AK98: FALSE | AL98: FALSE | AM98: FALSE | AN98: FALSE | AO98: FALSE | AP98: FALSE | AQ98: FALSE | AR98: FALSE | AS98: FALSE | AT98: FALSE | AU98: FALSE | AV98: FALSE | AW98: FALSE | AX98: FALSE | AY98: FALSE | AZ98: FALSE | BA98: FALSE | BB98: FALSE | BC98: FALSE | BD98: FALSE | BE98: FALSE | BF98: FALSE | BG98: 2020-01-01 | BH98: 1
A99: 1-0098 | D99: 2xTw | E99: 4319 | F99: 120 | L99: 1 | M99: 1 | N99: FALSE | O99: TRUE | P99: TRUE | Q99: FALSE | R99: FALSE | S99: FALSE | T99: FALSE | U99: FALSE | V99: TRUE | W99: FALSE | X99: FALSE | Y99: FALSE | Z99: FALSE | AA99: FALSE | AB99: FALSE | AC99: FALSE | AD99: FALSE | AE99: FALSE | AF99: FALSE | AG99: FALSE | AH99: FALSE | AI99: FALSE | AJ99: TRUE | AK99: FALSE | AL99: FALSE | AM99: FALSE | AN99: FALSE | AO99: FALSE | AP99: FALSE | AQ99: FALSE | AR99: FALSE | AS99: FALSE | AT99: FALSE | AU99: FALSE | AV99: FALSE | AW99: FALSE | AX99: FALSE | AY99: FALSE | AZ99: FALSE | BA99: FALSE | BB99: FALSE | BC99: FALSE | BD99: FALSE | BE99: FALSE | BF99: FALSE | BG99: 2020-01-01 | BH99: 1
A100: 1-0099 | C100: Bahnhof Spandau West | D100: 2xTw 2xBw | E100: 4320 1239 | F100: 120 120 | I100: 2 | J100: 1941 | K100: Hermann Kühne | L100: 1 | M100: 1 | N100: FALSE | O100: TRUE | P100: TRUE | Q100: FALSE | R100: FALSE | S100: FALSE | T100: FALSE | U100: FALSE | V100: TRUE | W100: FALSE | X100: FALSE | Y100: FALSE | Z100: FALSE | AA100: FALSE | AB100: FALSE | AC100: FALSE | AD100: FALSE | AE100: FALSE | AF100: FALSE | AG100: FALSE | AH100: FALSE | AI100: FALSE | AJ100: TRUE | AK100: FALSE | AL100: FALSE | AM100: FALSE | AN100: FALSE | AO100: FALSE | AP100: FALSE | AQ100: FALSE | AR100: FALSE | AS100: FALSE | AT100: FALSE | AU100: FALSE | AV100: FALSE | AW100: FALSE | AX100: FALSE | AY100: FALSE | AZ100: FALSE | BA100: FALSE | BB100: FALSE | BC100: FALSE | BD100: FALSE | BE100: FALSE | BF100: FALSE | BG100: 2020-01-01 | BH100: 1
A101: 1-0100 | C101: Wiener Brücke | D101: 2xTw 2xBw | E101: 6105 729 | F101: 88 88 | H101: 20 | I101: 6 | J101: 1956 | K101: Dieter Waltking | L101: 1 | M101: 1 | N101: FALSE | O101: TRUE | P101: TRUE | Q101: FALSE | R101: FALSE | S101: FALSE | T101: FALSE | U101: FALSE | V101: TRUE | W101: FALSE | X101: FALSE | Y101: FALSE | Z101: FALSE | AA101: FALSE | AB101: FALSE | AC101: FALSE | AD101: FALSE | AE101: FALSE | AF101: FALSE | AG101: FALSE | AH101: FALSE | AI101: FALSE | AJ101: TRUE | AK101: FALSE | AL101: FALSE | AM101: FALSE | AN101: FALSE | AO101: FALSE | AP101: FALSE | AQ101: FALSE | AR101: FALSE | AS101: FALSE | AT101: FALSE | AU101: FALSE | AV101: FALSE | AW101: FALSE | AX101: FALSE | AY101: FALSE | AZ101: FALSE | BA101: FALSE | BB101: FALSE | BC101: FALSE | BD101: FALSE | BE101: FALSE | BF101: FALSE | BG101: 2020-01-01 | BH101: 1
A102: 1-0101 | D102: 2xTw | E102: 3244 | F102: 191 | L102: 1 | M102: 1 | N102: FALSE | O102: TRUE | P102: TRUE | Q102: FALSE | R102: FALSE | S102: FALSE | T102: FALSE | U102: FALSE | V102: TRUE | W102: FALSE | X102: FALSE | Y102: FALSE | Z102: FALSE | AA102: FALSE | AB102: FALSE | AC102: FALSE | AD102: FALSE | AE102: FALSE | AF102: FALSE | AG102: FALSE | AH102: FALSE | AI102: FALSE | AJ102: TRUE | AK102: FALSE | AL102: FALSE | AM102: FALSE | AN102: FALSE | AO102: FALSE | AP102: FALSE | AQ102: FALSE | AR102: FALSE | AS102: FALSE | AT102: FALSE | AU102: FALSE | AV102: FALSE | AW102: FALSE | AX102: FALSE | AY102: FALSE | AZ102: FALSE | BA102: FALSE | BB102: FALSE | BC102: FALSE | BD102: FALSE | BE102: FALSE | BF102: FALSE | BG102: 2020-01-01 | BH102: 1
A103: 1-0102 | D103: 2xTw | E103: 3935 | F103: 25 | L103: 1 | M103: 1 | N103: FALSE | O103: TRUE | P103: TRUE | Q103: FALSE | R103: FALSE | S103: FALSE | T103: FALSE | U103: FALSE | V103: TRUE | W103: FALSE | X103: FALSE | Y103: FALSE | Z103: FALSE | AA103: FALSE | AB103: FALSE | AC103: FALSE | AD103: FALSE | AE103: FALSE | AF103: FALSE | AG103: FALSE | AH103: FALSE | AI103: FALSE | AJ103: TRUE | AK103: FALSE | AL103: FALSE | AM103: FALSE | AN103: FALSE | AO103: FALSE | AP103: FALSE | AQ103: FALSE | AR103: FALSE | AS103: FALSE | AT103: FALSE | AU103: FALSE | AV103: FALSE | AW103: FALSE | AX103: FALSE | AY103: FALSE | AZ103: FALSE | BA103: FALSE | BB103: FALSE | BC103: FALSE | BD103: FALSE | BE103: FALSE | BF103: FALSE | BG103: 2020-01-01 | BH103: 1
A104: 1-0103 | D104: Tw | E104: 147 | K104: Carl-Wilhelm Schmiedeke | L104: 1 | M104: 1 | N104: FALSE | O104: TRUE | P104: TRUE | Q104: FALSE | R104: FALSE | S104: FALSE | T104: FALSE | U104: FALSE | V104: TRUE | W104: FALSE | X104: FALSE | Y104: FALSE | Z104: FALSE | AA104: FALSE | AB104: FALSE | AC104: FALSE | AD104: FALSE | AE104: FALSE | AF104: FALSE | AG104: FALSE | AH104: FALSE | AI104: FALSE | AJ104: TRUE | AK104: FALSE | AL104: FALSE | AM104: FALSE | AN104: FALSE | AO104: FALSE | AP104: FALSE | AQ104: FALSE | AR104: FALSE | AS104: FALSE | AT104: FALSE | AU104: FALSE | AV104: FALSE | AW104: FALSE | AX104: FALSE | AY104: FALSE | AZ104: FALSE | BA104: FALSE | BB104: FALSE | BC104: FALSE | BD104: FALSE | BE104: FALSE | BF104: FALSE | BG104: 2020-01-01 | BH104: 1
A105: 1-0104 | D105: 2xTw | E105: 4302 | F105: 8E | L105: 1 | M105: 1 | N105: FALSE | O105: TRUE | P105: TRUE | Q105: FALSE | R105: FALSE | S105: FALSE | T105: FALSE | U105: FALSE | V105: TRUE | W105: FALSE | X105: FALSE | Y105: FALSE | Z105: FALSE | AA105: FALSE | AB105: FALSE | AC105: FALSE | AD105: FALSE | AE105: FALSE | AF105: FALSE | AG105: FALSE | AH105: FALSE | AI105: FALSE | AJ105: TRUE | AK105: FALSE | AL105: FALSE | AM105: FALSE | AN105: FALSE | AO105: FALSE | AP105: FALSE | AQ105: FALSE | AR105: FALSE | AS105: FALSE | AT105: FALSE | AU105: FALSE | AV105: FALSE | AW105: FALSE | AX105: FALSE | AY105: FALSE | AZ105: FALSE | BA105: FALSE | BB105: FALSE | BC105: FALSE | BD105: FALSE | BE105: FALSE | BF105: FALSE | BG105: 2020-01-01 | BH105: 1
A106: 1-0105 | D106: 2xTw | E106: 4313 | F106: 8E | L106: 1 | M106: 1 | N106: FALSE | O106: TRUE | P106: TRUE | Q106: FALSE | R106: FALSE | S106: FALSE | T106: FALSE | U106: FALSE | V106: TRUE | W106: FALSE | X106: FALSE | Y106: FALSE | Z106: FALSE | AA106: FALSE | AB106: FALSE | AC106: FALSE | AD106: FALSE | AE106: FALSE | AF106: FALSE | AG106: FALSE | AH106: FALSE | AI106: FALSE | AJ106: TRUE | AK106: FALSE | AL106: FALSE | AM106: FALSE | AN106: FALSE | AO106: FALSE | AP106: FALSE | AQ106: FALSE | AR106: FALSE | AS106: FALSE | AT106: FALSE | AU106: FALSE | AV106: FALSE | AW106: FALSE | AX106: FALSE | AY106: FALSE | AZ106: FALSE | BA106: FALSE | BB106: FALSE | BC106: FALSE | BD106: FALSE | BE106: FALSE | BF106: FALSE | BG106: 2020-01-01 | BH106: 1
A107: 1-0106 | D107: 4xTw | E107: 5420 | F107: 84E | L107: 1 | M107: 1 | N107: FALSE | O107: TRUE | P107: TRUE | Q107: FALSE | R107: FALSE | S107: FALSE | T107: FALSE | U107: FALSE | V107: TRUE | W107: FALSE | X107: FALSE | Y107: FALSE | Z107: FALSE | AA107: FALSE | AB107: FALSE | AC107: FALSE | AD107: FALSE | AE107: FALSE | AF107: FALSE | AG107: FALSE | AH107: FALSE | AI107: FALSE | AJ107: TRUE | AK107: FALSE | AL107: FALSE | AM107: FALSE | AN107: FALSE | AO107: FALSE | AP107: FALSE | AQ107: FALSE | AR107: FALSE | AS107: FALSE | AT107: FALSE | AU107: FALSE | AV107: FALSE | AW107: FALSE | AX107: FALSE | AY107: FALSE | AZ107: FALSE | BA107: FALSE | BB107: FALSE | BC107: FALSE | BD107: FALSE | BE107: FALSE | BF107: FALSE | BG107: 2020-01-01 | BH107: 1
A108: 1-0107 | D108: 2xBw | E108: 247 | F108: 24E | L108: 1 | M108: 1 | N108: FALSE | O108: TRUE | P108: TRUE | Q108: FALSE | R108: FALSE | S108: FALSE | T108: FALSE | U108: FALSE | V108: TRUE | W108: FALSE | X108: FALSE | Y108: FALSE | Z108: FALSE | AA108: FALSE | AB108: FALSE | AC108: FALSE | AD108: FALSE | AE108: FALSE | AF108: FALSE | AG108: FALSE | AH108: FALSE | AI108: FALSE | AJ108: TRUE | AK108: FALSE | AL108: FALSE | AM108: FALSE | AN108: FALSE | AO108: FALSE | AP108: FALSE | AQ108: FALSE | AR108: FALSE | AS108: FALSE | AT108: FALSE | AU108: FALSE | AV108: FALSE | AW108: FALSE | AX108: FALSE | AY108: FALSE | AZ108: FALSE | BA108: FALSE | BB108: FALSE | BC108: FALSE | BD108: FALSE | BE108: FALSE | BF108: FALSE | BG108: 2020-01-01 | BH108: 1
A109: 1-0108 | C109: Gesundbrunnen, Rügener Straße | D109: 4xTw 2xBw | E109: 5209 | F109: 29 29 | J109: 1955 | K109: F. Müller | L109: 1 | M109: 1 | N109: FALSE | O109: TRUE | P109: TRUE | Q109: FALSE | R109: FALSE | S109: FALSE | T109: FALSE | U109: FALSE | V109: TRUE | W109: FALSE | X109: FALSE | Y109: FALSE | Z109: FALSE | AA109: FALSE | AB109: FALSE | AC109: FALSE | AD109: FALSE | AE109: FALSE | AF109: FALSE | AG109: FALSE | AH109: FALSE | AI109: FALSE | AJ109: TRUE | AK109: FALSE | AL109: FALSE | AM109: FALSE | AN109: FALSE | AO109: FALSE | AP109: FALSE | AQ109: FALSE | AR109: FALSE | AS109: FALSE | AT109: FALSE | AU109: FALSE | AV109: FALSE | AW109: FALSE | AX109: FALSE | AY109: FALSE | AZ109: FALSE | BA109: FALSE | BB109: FALSE | BC109: FALSE | BD109: FALSE | BE109: FALSE | BF109: FALSE | BG109: 2020-01-01 | BH109: 1
A110: 1-0109 | C110: Osloer-/Grünthaler Straße | D110: 2xTw 2xBw 2xBw | E110: 3592 | F110: 3 3 3 | J110: 1955 | K110: F. Müller | L110: 1 | M110: 1 | N110: FALSE | O110: TRUE | P110: TRUE | Q110: FALSE | R110: FALSE | S110: FALSE | T110: FALSE | U110: FALSE | V110: TRUE | W110: FALSE | X110: FALSE | Y110: FALSE | Z110: FALSE | AA110: FALSE | AB110: FALSE | AC110: FALSE | AD110: FALSE | AE110: FALSE | AF110: FALSE | AG110: FALSE | AH110: FALSE | AI110: FALSE | AJ110: TRUE | AK110: FALSE | AL110: FALSE | AM110: FALSE | AN110: FALSE | AO110: FALSE | AP110: FALSE | AQ110: FALSE | AR110: FALSE | AS110: FALSE | AT110: FALSE | AU110: FALSE | AV110: FALSE | AW110: FALSE | AX110: FALSE | AY110: FALSE | AZ110: FALSE | BA110: FALSE | BB110: FALSE | BC110: FALSE | BD110: FALSE | BE110: FALSE | BF110: FALSE | BG110: 2020-01-01 | BH110: 1
A111: 1-0110 | C111: Hermannplatz | D111: 2xTw | E111: 3932 | F111: 147 | K111: Walter Ende | L111: 1 | M111: 1 | N111: FALSE | O111: TRUE | P111: TRUE | Q111: FALSE | R111: FALSE | S111: FALSE | T111: FALSE | U111: FALSE | V111: TRUE | W111: FALSE | X111: FALSE | Y111: FALSE | Z111: FALSE | AA111: FALSE | AB111: FALSE | AC111: FALSE | AD111: FALSE | AE111: FALSE | AF111: FALSE | AG111: FALSE | AH111: FALSE | AI111: FALSE | AJ111: TRUE | AK111: FALSE | AL111: FALSE | AM111: FALSE | AN111: FALSE | AO111: FALSE | AP111: FALSE | AQ111: FALSE | AR111: FALSE | AS111: FALSE | AT111: FALSE | AU111: FALSE | AV111: FALSE | AW111: FALSE | AX111: FALSE | AY111: FALSE | AZ111: FALSE | BA111: FALSE | BB111: FALSE | BC111: FALSE | BD111: FALSE | BE111: FALSE | BF111: FALSE | BG111: 2020-01-01 | BH111: 1
A112: 1-0111 | D112: 2xTw | E112: 5443 | F112: 58E | K112: Walter Ende | L112: 1 | M112: 1 | N112: FALSE | O112: TRUE | P112: TRUE | Q112: FALSE | R112: FALSE | S112: FALSE | T112: FALSE | U112: FALSE | V112: TRUE | W112: FALSE | X112: FALSE | Y112: FALSE | Z112: FALSE | AA112: FALSE | AB112: FALSE | AC112: FALSE | AD112: FALSE | AE112: FALSE | AF112: FALSE | AG112: FALSE | AH112: FALSE | AI112: FALSE | AJ112: TRUE | AK112: FALSE | AL112: FALSE | AM112: FALSE | AN112: FALSE | AO112: FALSE | AP112: FALSE | AQ112: FALSE | AR112: FALSE | AS112: FALSE | AT112: FALSE | AU112: FALSE | AV112: FALSE | AW112: FALSE | AX112: FALSE | AY112: FALSE | AZ112: FALSE | BA112: FALSE | BB112: FALSE | BC112: FALSE | BD112: FALSE | BE112: FALSE | BF112: FALSE | BG112: 2020-01-01 | BH112: 1
A113: 1-0112 | C113: Bahnhof Lichtenrade? | D113: 2xTw | E113: 5450 | F113: 99E | K113: Walter Ende | L113: 1 | M113: 1 | N113: FALSE | O113: TRUE | P113: TRUE | Q113: FALSE | R113: FALSE | S113: FALSE | T113: FALSE | U113: FALSE | V113: TRUE | W113: FALSE | X113: FALSE | Y113: FALSE | Z113: FALSE | AA113: FALSE | AB113: FALSE | AC113: FALSE | AD113: FALSE | AE113: FALSE | AF113: FALSE | AG113: FALSE | AH113: FALSE | AI113: FALSE | AJ113: TRUE | AK113: FALSE | AL113: FALSE | AM113: FALSE | AN113: FALSE | AO113: FALSE | AP113: FALSE | AQ113: FALSE | AR113: FALSE | AS113: FALSE | AT113: FALSE | AU113: FALSE | AV113: FALSE | AW113: FALSE | AX113: FALSE | AY113: FALSE | AZ113: FALSE | BA113: FALSE | BB113: FALSE | BC113: FALSE | BD113: FALSE | BE113: FALSE | BF113: FALSE | BG113: 2020-01-01 | BH113: 1
A114: 1-0113 | D114: 2xTw | E114: 5532 | F114: 77E | L114: 1 | M114: 1 | N114: FALSE | O114: TRUE | P114: TRUE | Q114: FALSE | R114: FALSE | S114: FALSE | T114: FALSE | U114: FALSE | V114: TRUE | W114: FALSE | X114: FALSE | Y114: FALSE | Z114: FALSE | AA114: FALSE | AB114: FALSE | AC114: FALSE | AD114: FALSE | AE114: FALSE | AF114: FALSE | AG114: FALSE | AH114: FALSE | AI114: FALSE | AJ114: TRUE | AK114: FALSE | AL114: FALSE | AM114: FALSE | AN114: FALSE | AO114: FALSE | AP114: FALSE | AQ114: FALSE | AR114: FALSE | AS114: FALSE | AT114: FALSE | AU114: FALSE | AV114: FALSE | AW114: FALSE | AX114: FALSE | AY114: FALSE | AZ114: FALSE | BA114: FALSE | BB114: FALSE | BC114: FALSE | BD114: FALSE | BE114: FALSE | BF114: FALSE | BG114: 2020-01-01 | BH114: 1
A115: 1-0114 | D115: 2xBw 2xTw | E115: 658 5814 | F115: 187 187 | K115: Hermann Kühne | L115: 1 | M115: 1 | N115: FALSE | O115: TRUE | P115: TRUE | Q115: FALSE | R115: FALSE | S115: FALSE | T115: FALSE | U115: FALSE | V115: TRUE | W115: FALSE | X115: FALSE | Y115: FALSE | Z115: FALSE | AA115: FALSE | AB115: FALSE | AC115: FALSE | AD115: FALSE | AE115: FALSE | AF115: FALSE | AG115: FALSE | AH115: FALSE | AI115: FALSE | AJ115: TRUE | AK115: FALSE | AL115: FALSE | AM115: FALSE | AN115: FALSE | AO115: FALSE | AP115: FALSE | AQ115: FALSE | AR115: FALSE | AS115: FALSE | AT115: FALSE | AU115: FALSE | AV115: FALSE | AW115: FALSE | AX115: FALSE | AY115: FALSE | AZ115: FALSE | BA115: FALSE | BB115: FALSE | BC115: FALSE | BD115: FALSE | BE115: FALSE | BF115: FALSE | BG115: 2020-01-01 | BH115: 1
A116: 1-0115 | D116: 2xBw 2xTw | E116: 5996 | F116: 23 23 | J116: 1965 | K116: F. Müller | L116: 1 | M116: 1 | N116: FALSE | O116: TRUE | P116: TRUE | Q116: FALSE | R116: FALSE | S116: FALSE | T116: FALSE | U116: FALSE | V116: TRUE | W116: FALSE | X116: FALSE | Y116: FALSE | Z116: FALSE | AA116: FALSE | AB116: FALSE | AC116: FALSE | AD116: FALSE | AE116: FALSE | AF116: FALSE | AG116: FALSE | AH116: FALSE | AI116: FALSE | AJ116: TRUE | AK116: FALSE | AL116: FALSE | AM116: FALSE | AN116: FALSE | AO116: FALSE | AP116: FALSE | AQ116: FALSE | AR116: FALSE | AS116: FALSE | AT116: FALSE | AU116: FALSE | AV116: FALSE | AW116: FALSE | AX116: FALSE | AY116: FALSE | AZ116: FALSE | BA116: FALSE | BB116: FALSE | BC116: FALSE | BD116: FALSE | BE116: FALSE | BF116: FALSE | BG116: 2020-01-01 | BH116: 1
A117: 1-0116 | C117: Görlitzer Bahnhof | D117: 2xTw | E117: 6202 | F117: 191 | L117: 1 | M117: 1 | N117: FALSE | O117: TRUE | P117: TRUE | Q117: FALSE | R117: FALSE | S117: FALSE | T117: FALSE | U117: FALSE | V117: TRUE | W117: FALSE | X117: FALSE | Y117: FALSE | Z117: FALSE | AA117: FALSE | AB117: FALSE | AC117: FALSE | AD117: FALSE | AE117: FALSE | AF117: FALSE | AG117: FALSE | AH117: FALSE | AI117: FALSE | AJ117: TRUE | AK117: FALSE | AL117: FALSE | AM117: FALSE | AN117: FALSE | AO117: FALSE | AP117: FALSE | AQ117: FALSE | AR117: FALSE | AS117: FALSE | AT117: FALSE | AU117: FALSE | AV117: FALSE | AW117: FALSE | AX117: FALSE | AY117: FALSE | AZ117: FALSE | BA117: FALSE | BB117: FALSE | BC117: FALSE | BD117: FALSE | BE117: FALSE | BF117: FALSE | BG117: 2020-01-01 | BH117: 1
A118: 1-0117 | D118: 2xTw | E118: 861 | J118: 1965 | K118: F. Müller | L118: 1 | M118: 1 | N118: FALSE | O118: TRUE | P118: TRUE | Q118: FALSE | R118: FALSE | S118: FALSE | T118: FALSE | U118: FALSE | V118: TRUE | W118: FALSE | X118: FALSE | Y118: FALSE | Z118: FALSE | AA118: FALSE | AB118: FALSE | AC118: FALSE | AD118: FALSE | AE118: FALSE | AF118: FALSE | AG118: FALSE | AH118: FALSE | AI118: FALSE | AJ118: TRUE | AK118: FALSE | AL118: FALSE | AM118: FALSE | AN118: FALSE | AO118: FALSE | AP118: FALSE | AQ118: FALSE | AR118: FALSE | AS118: FALSE | AT118: FALSE | AU118: FALSE | AV118: FALSE | AW118: FALSE | AX118: FALSE | AY118: FALSE | AZ118: FALSE | BA118: FALSE | BB118: FALSE | BC118: FALSE | BD118: FALSE | BE118: FALSE | BF118: FALSE | BG118: 2020-01-01 | BH118: 1
A119: 1-0118 | B119: VDVA-0001-118 | C119: U-Bahnhof Onkel Toms Hütte | J119: 1930 | K119: Friedrich Grünwald | L119: 1 | M119: 1 | N119: FALSE | O119: TRUE | P119: TRUE | Q119: FALSE | R119: FALSE | S119: FALSE | T119: FALSE | U119: FALSE | V119: TRUE | W119: FALSE | X119: FALSE | Y119: FALSE | Z119: FALSE | AA119: FALSE | AB119: FALSE | AC119: FALSE | AD119: FALSE | AE119: FALSE | AF119: FALSE | AG119: FALSE | AH119: FALSE | AI119: FALSE | AJ119: TRUE | AK119: FALSE | AL119: FALSE | AM119: FALSE | AN119: FALSE | AO119: FALSE | AP119: FALSE | AQ119: FALSE | AR119: FALSE | AS119: FALSE | AT119: FALSE | AU119: FALSE | AV119: FALSE | AW119: FALSE | AX119: FALSE | AY119: FALSE | AZ119: FALSE | BA119: FALSE | BB119: FALSE | BC119: FALSE | BD119: FALSE | BE119: FALSE | BF119: FALSE | BG119: 2020-01-01 | BH119: 1
A120: 1-0119 | D120: 2xBw | E120: 1105 | F120: 40 | L120: 1 | M120: 1 | N120: FALSE | O120: TRUE | P120: TRUE | Q120: FALSE | R120: FALSE | S120: FALSE | T120: FALSE | U120: FALSE | V120: TRUE | W120: FALSE | X120: FALSE | Y120: FALSE | Z120: FALSE | AA120: FALSE | AB120: FALSE | AC120: FALSE | AD120: FALSE | AE120: FALSE | AF120: FALSE | AG120: FALSE | AH120: FALSE | AI120: FALSE | AJ120: TRUE | AK120: FALSE | AL120: FALSE | AM120: FALSE | AN120: FALSE | AO120: FALSE | AP120: FALSE | AQ120: FALSE | AR120: FALSE | AS120: FALSE | AT120: FALSE | AU120: FALSE | AV120: FALSE | AW120: FALSE | AX120: FALSE | AY120: FALSE | AZ120: FALSE | BA120: FALSE | BB120: FALSE | BC120: FALSE | BD120: FALSE | BE120: FALSE | BF120: FALSE | BG120: 2020-01-01 | BH120: 1
A121: 1-0120 | C121: Btf Müllerstraße | D121: ArbTw | E121: A36 | K121: Walter Ende | L121: 1 | M121: 1 | N121: FALSE | O121: TRUE | P121: TRUE | Q121: FALSE | R121: FALSE | S121: FALSE | T121: FALSE | U121: FALSE | V121: TRUE | W121: FALSE | X121: FALSE | Y121: FALSE | Z121: FALSE | AA121: FALSE | AB121: FALSE | AC121: FALSE | AD121: FALSE | AE121: FALSE | AF121: FALSE | AG121: FALSE | AH121: FALSE | AI121: FALSE | AJ121: TRUE | AK121: FALSE | AL121: FALSE | AM121: FALSE | AN121: FALSE | AO121: FALSE | AP121: FALSE | AQ121: FALSE | AR121: FALSE | AS121: FALSE | AT121: FALSE | AU121: FALSE | AV121: FALSE | AW121: FALSE | AX121: FALSE | AY121: FALSE | AZ121: FALSE | BA121: FALSE | BB121: FALSE | BC121: FALSE | BD121: FALSE | BE121: FALSE | BF121: FALSE | BG121: 2020-01-01 | BH121: 1
A122: 1-0121 | C122: Btf Steglitz? | D122: ArbTw | E122: A149 | K122: Walter Ende | L122: 1 | M122: 1 | N122: FALSE | O122: TRUE | P122: TRUE | Q122: FALSE | R122: FALSE | S122: FALSE | T122: FALSE | U122: FALSE | V122: TRUE | W122: FALSE | X122: FALSE | Y122: FALSE | Z122: FALSE | AA122: FALSE | AB122: FALSE | AC122: FALSE | AD122: FALSE | AE122: FALSE | AF122: FALSE | AG122: FALSE | AH122: FALSE | AI122: FALSE | AJ122: TRUE | AK122: FALSE | AL122: FALSE | AM122: FALSE | AN122: FALSE | AO122: FALSE | AP122: FALSE | AQ122: FALSE | AR122: FALSE | AS122: FALSE | AT122: FALSE | AU122: FALSE | AV122: FALSE | AW122: FALSE | AX122: FALSE | AY122: FALSE | AZ122: FALSE | BA122: FALSE | BB122: FALSE | BC122: FALSE | BD122: FALSE | BE122: FALSE | BF122: FALSE | BG122: 2020-01-01 | BH122: 1
A123: 1-0122 | D123: ArbTw | E123: 268 | K123: Walter Ende | L123: 1 | M123: 1 | N123: FALSE | O123: TRUE | P123: TRUE | Q123: FALSE | R123: FALSE | S123: FALSE | T123: FALSE | U123: FALSE | V123: TRUE | W123: FALSE | X123: FALSE | Y123: FALSE | Z123: FALSE | AA123: FALSE | AB123: FALSE | AC123: FALSE | AD123: FALSE | AE123: FALSE | AF123: FALSE | AG123: FALSE | AH123: FALSE | AI123: FALSE | AJ123: TRUE | AK123: FALSE | AL123: FALSE | AM123: FALSE | AN123: FALSE | AO123: FALSE | AP123: FALSE | AQ123: FALSE | AR123: FALSE | AS123: FALSE | AT123: FALSE | AU123: FALSE | AV123: FALSE | AW123: FALSE | AX123: FALSE | AY123: FALSE | AZ123: FALSE | BA123: FALSE | BB123: FALSE | BC123: FALSE | BD123: FALSE | BE123: FALSE | BF123: FALSE | BG123: 2020-01-01 | BH123: 1
A124: 1-0123 | D124: 2xTw | E124: 7 | L124: 1 | M124: 1 | N124: FALSE | O124: TRUE | P124: TRUE | Q124: FALSE | R124: FALSE | S124: FALSE | T124: FALSE | U124: FALSE | V124: TRUE | W124: FALSE | X124: FALSE | Y124: FALSE | Z124: FALSE | AA124: FALSE | AB124: FALSE | AC124: FALSE | AD124: FALSE | AE124: FALSE | AF124: FALSE | AG124: FALSE | AH124: FALSE | AI124: FALSE | AJ124: TRUE | AK124: FALSE | AL124: FALSE | AM124: FALSE | AN124: FALSE | AO124: FALSE | AP124: FALSE | AQ124: FALSE | AR124: FALSE | AS124: FALSE | AT124: FALSE | AU124: FALSE | AV124: FALSE | AW124: FALSE | AX124: FALSE | AY124: FALSE | AZ124: FALSE | BA124: FALSE | BB124: FALSE | BC124: FALSE | BD124: FALSE | BE124: FALSE | BF124: FALSE | BG124: 2020-01-01 | BH124: 1
A125: 1-0124 | D125: 4xTw | E125: 6211 | F125: 75E | K125: Carl-Wilhelm Schmiedeke | L125: 1 | M125: 1 | N125: FALSE | O125: TRUE | P125: TRUE | Q125: FALSE | R125: FALSE | S125: FALSE | T125: FALSE | U125: FALSE | V125: TRUE | W125: FALSE | X125: FALSE | Y125: FALSE | Z125: FALSE | AA125: FALSE | AB125: FALSE | AC125: FALSE | AD125: FALSE | AE125: FALSE | AF125: FALSE | AG125: FALSE | AH125: FALSE | AI125: FALSE | AJ125: TRUE | AK125: FALSE | AL125: FALSE | AM125: FALSE | AN125: FALSE | AO125: FALSE | AP125: FALSE | AQ125: FALSE | AR125: FALSE | AS125: FALSE | AT125: FALSE | AU125: FALSE | AV125: FALSE | AW125: FALSE | AX125: FALSE | AY125: FALSE | AZ125: FALSE | BA125: FALSE | BB125: FALSE | BC125: FALSE | BD125: FALSE | BE125: FALSE | BF125: FALSE | BG125: 2020-01-01 | BH125: 1
A126: 1-0125 | D126: Pferdebahnwagen | E126: 355 | K126: Walter Ende | L126: 1 | M126: 1 | N126: FALSE | O126: TRUE | P126: TRUE | Q126: FALSE | R126: FALSE | S126: FALSE | T126: FALSE | U126: FALSE | V126: TRUE | W126: FALSE | X126: FALSE | Y126: FALSE | Z126: FALSE | AA126: FALSE | AB126: FALSE | AC126: FALSE | AD126: FALSE | AE126: FALSE | AF126: FALSE | AG126: FALSE | AH126: FALSE | AI126: FALSE | AJ126: TRUE | AK126: FALSE | AL126: FALSE | AM126: FALSE | AN126: FALSE | AO126: FALSE | AP126: FALSE | AQ126: FALSE | AR126: FALSE | AS126: FALSE | AT126: FALSE | AU126: FALSE | AV126: FALSE | AW126: FALSE | AX126: FALSE | AY126: FALSE | AZ126: FALSE | BA126: FALSE | BB126: FALSE | BC126: FALSE | BD126: FALSE | BE126: FALSE | BF126: FALSE | BG126: 2020-01-01 | BH126: 1
A127: 1-0126 | C127: Johannesstift | D127: 2xTw | E127: 3468 | F127: 54 | J127: 1960 | L127: 1 | M127: 1 | N127: FALSE | O127: TRUE | P127: TRUE | Q127: FALSE | R127: FALSE | S127: FALSE | T127: FALSE | U127: FALSE | V127: TRUE | W127: FALSE | X127: FALSE | Y127: FALSE | Z127: FALSE | AA127: FALSE | AB127: FALSE | AC127: FALSE | AD127: FALSE | AE127: FALSE | AF127: FALSE | AG127: FALSE | AH127: FALSE | AI127: FALSE | AJ127: TRUE | AK127: FALSE | AL127: FALSE | AM127: FALSE | AN127: FALSE | AO127: FALSE | AP127: FALSE | AQ127: FALSE | AR127: FALSE | AS127: FALSE | AT127: FALSE | AU127: FALSE | AV127: FALSE | AW127: FALSE | AX127: FALSE | AY127: FALSE | AZ127: FALSE | BA127: FALSE | BB127: FALSE | BC127: FALSE | BD127: FALSE | BE127: FALSE | BF127: FALSE | BG127: 2020-01-01 | BH127: 1
A128: 1-0127 | D128: 4xTw | E128: 6211 | F128: 75E | I128: 5 | J128: 1963 | K128: F. Müller | L128: 1 | M128: 1 | N128: FALSE | O128: TRUE | P128: TRUE | Q128: FALSE | R128: FALSE | S128: FALSE | T128: FALSE | U128: FALSE | V128: TRUE | W128: FALSE | X128: FALSE | Y128: FALSE | Z128: FALSE | AA128: FALSE | AB128: FALSE | AC128: FALSE | AD128: FALSE | AE128: FALSE | AF128: FALSE | AG128: FALSE | AH128: FALSE | AI128: FALSE | AJ128: TRUE | AK128: FALSE | AL128: FALSE | AM128: FALSE | AN128: FALSE | AO128: FALSE | AP128: FALSE | AQ128: FALSE | AR128: FALSE | AS128: FALSE | AT128: FALSE | AU128: FALSE | AV128: FALSE | AW128: FALSE | AX128: FALSE | AY128: FALSE | AZ128: FALSE | BA128: FALSE | BB128: FALSE | BC128: FALSE | BD128: FALSE | BE128: FALSE | BF128: FALSE | BG128: 2020-01-01 | BH128: 1
A129: 1-0128 | D129: ArbTw | E129: A114 | K129: Walter Ende | L129: 1 | M129: 1 | N129: FALSE | O129: TRUE | P129: TRUE | Q129: FALSE | R129: FALSE | S129: FALSE | T129: FALSE | U129: FALSE | V129: TRUE | W129: FALSE | X129: FALSE | Y129: FALSE | Z129: FALSE | AA129: FALSE | AB129: FALSE | AC129: FALSE | AD129: FALSE | AE129: FALSE | AF129: FALSE | AG129: FALSE | AH129: FALSE | AI129: FALSE | AJ129: TRUE | AK129: FALSE | AL129: FALSE | AM129: FALSE | AN129: FALSE | AO129: FALSE | AP129: FALSE | AQ129: FALSE | AR129: FALSE | AS129: FALSE | AT129: FALSE | AU129: FALSE | AV129: FALSE | AW129: FALSE | AX129: FALSE | AY129: FALSE | AZ129: FALSE | BA129: FALSE | BB129: FALSE | BC129: FALSE | BD129: FALSE | BE129: FALSE | BF129: FALSE | BG129: 2020-01-01 | BH129: 1
A130: 1-0129 | D130: Bus | F130: KE | L130: 1 | M130: 1 | N130: FALSE | O130: TRUE | P130: TRUE | Q130: FALSE | R130: FALSE | S130: FALSE | T130: FALSE | U130: FALSE | V130: TRUE | W130: FALSE | X130: FALSE | Y130: FALSE | Z130: FALSE | AA130: FALSE | AB130: FALSE | AC130: FALSE | AD130: FALSE | AE130: FALSE | AF130: FALSE | AG130: FALSE | AH130: FALSE | AI130: FALSE | AJ130: TRUE | AK130: FALSE | AL130: FALSE | AM130: FALSE | AN130: FALSE | AO130: FALSE | AP130: FALSE | AQ130: FALSE | AR130: FALSE | AS130: FALSE | AT130: FALSE | AU130: FALSE | AV130: FALSE | AW130: FALSE | AX130: FALSE | AY130: FALSE | AZ130: FALSE | BA130: FALSE | BB130: FALSE | BC130: FALSE | BD130: FALSE | BE130: FALSE | BF130: FALSE | BG130: 2020-01-01 | BH130: =LEFT(A130,FIND("-",A130)-1) -> 1
A131: 1-0130 | D131: Doppeldeckbus | F131: 3 | L131: 1 | M131: 1 | N131: FALSE | O131: TRUE | P131: TRUE | Q131: FALSE | R131: FALSE | S131: FALSE | T131: FALSE | U131: FALSE | V131: TRUE | W131: FALSE | X131: FALSE | Y131: FALSE | Z131: FALSE | AA131: FALSE | AB131: FALSE | AC131: FALSE | AD131: FALSE | AE131: FALSE | AF131: FALSE | AG131: FALSE | AH131: FALSE | AI131: FALSE | AJ131: TRUE | AK131: FALSE | AL131: FALSE | AM131: FALSE | AN131: FALSE | AO131: FALSE | AP131: FALSE | AQ131: FALSE | AR131: FALSE | AS131: FALSE | AT131: FALSE | AU131: FALSE | AV131: FALSE | AW131: FALSE | AX131: FALSE | AY131: FALSE | AZ131: FALSE | BA131: FALSE | BB131: FALSE | BC131: FALSE | BD131: FALSE | BE131: FALSE | BF131: FALSE | BG131: 2020-01-01 | BH131: 1
A132: 1-0131 | D132: 2xTw | E132: 5505 | F132: S | G132: Neue Linie S | L132: 1 | M132: 1 | N132: FALSE | O132: TRUE | P132: TRUE | Q132: FALSE | R132: FALSE | S132: FALSE | T132: FALSE | U132: FALSE | V132: TRUE | W132: FALSE | X132: FALSE | Y132: FALSE | Z132: FALSE | AA132: FALSE | AB132: FALSE | AC132: FALSE | AD132: FALSE | AE132: FALSE | AF132: FALSE | AG132: FALSE | AH132: FALSE | AI132: FALSE | AJ132: TRUE | AK132: FALSE | AL132: FALSE | AM132: FALSE | AN132: FALSE | AO132: FALSE | AP132: FALSE | AQ132: FALSE | AR132: FALSE | AS132: FALSE | AT132: FALSE | AU132: FALSE | AV132: FALSE | AW132: FALSE | AX132: FALSE | AY132: FALSE | AZ132: FALSE | BA132: FALSE | BB132: FALSE | BC132: FALSE | BD132: FALSE | BE132: FALSE | BF132: FALSE | BG132: 2020-01-01 | BH132: 1
A133: 1-0132 | D133: 2xTw | E133: 52 | G133: historisch | L133: 1 | M133: 1 | N133: FALSE | O133: TRUE | P133: TRUE | Q133: FALSE | R133: FALSE | S133: FALSE | T133: FALSE | U133: FALSE | V133: TRUE | W133: FALSE | X133: FALSE | Y133: FALSE | Z133: FALSE | AA133: FALSE | AB133: FALSE | AC133: FALSE | AD133: FALSE | AE133: FALSE | AF133: FALSE | AG133: FALSE | AH133: FALSE | AI133: FALSE | AJ133: TRUE | AK133: FALSE | AL133: FALSE | AM133: FALSE | AN133: FALSE | AO133: FALSE | AP133: FALSE | AQ133: FALSE | AR133: FALSE | AS133: FALSE | AT133: FALSE | AU133: FALSE | AV133: FALSE | AW133: FALSE | AX133: FALSE | AY133: FALSE | AZ133: FALSE | BA133: FALSE | BB133: FALSE | BC133: FALSE | BD133: FALSE | BE133: FALSE | BF133: FALSE | BG133: 2020-01-01 | BH133: 1
A134: 1-0133 | D134: 2xTw | E134: 5 | G134: Straßenbahn der Gemeinde Heiligensee | L134: 1 | M134: 1 | N134: FALSE | O134: TRUE | P134: TRUE | Q134: FALSE | R134: FALSE | S134: FALSE | T134: FALSE | U134: FALSE | V134: TRUE | W134: FALSE | X134: FALSE | Y134: FALSE | Z134: FALSE | AA134: FALSE | AB134: FALSE | AC134: FALSE | AD134: FALSE | AE134: FALSE | AF134: FALSE | AG134: FALSE | AH134: FALSE | AI134: FALSE | AJ134: TRUE | AK134: FALSE | AL134: FALSE | AM134: FALSE | AN134: FALSE | AO134: FALSE | AP134: FALSE | AQ134: FALSE | AR134: FALSE | AS134: FALSE | AT134: FALSE | AU134: FALSE | AV134: FALSE | AW134: FALSE | AX134: FALSE | AY134: FALSE | AZ134: FALSE | BA134: FALSE | BB134: FALSE | BC134: FALSE | BD134: FALSE | BE134: FALSE | BF134: FALSE | BG134: 2020-01-01 | BH134: 1
A135: 1-0134 | D135: 2xBw | E135: 18 | G135: Grunewaldbahn | L135: 1 | M135: 1 | N135: FALSE | O135: TRUE | P135: TRUE | Q135: FALSE | R135: FALSE | S135: FALSE | T135: FALSE | U135: FALSE | V135: TRUE | W135: FALSE | X135: FALSE | Y135: FALSE | Z135: FALSE | AA135: FALSE | AB135: FALSE | AC135: FALSE | AD135: FALSE | AE135: FALSE | AF135: FALSE | AG135: FALSE | AH135: FALSE | AI135: FALSE | AJ135: TRUE | AK135: FALSE | AL135: FALSE | AM135: FALSE | AN135: FALSE | AO135: FALSE | AP135: FALSE | AQ135: FALSE | AR135: FALSE | AS135: FALSE | AT135: FALSE | AU135: FALSE | AV135: FALSE | AW135: FALSE | AX135: FALSE | AY135: FALSE | AZ135: FALSE | BA135: FALSE | BB135: FALSE | BC135: FALSE | BD135: FALSE | BE135: FALSE | BF135: FALSE | BG135: 2020-01-01 | BH135: 1
A136: 1-0135 | D136: 2xTw | E136: 4300 | L136: 1 | M136: 1 | N136: FALSE | O136: TRUE | P136: TRUE | Q136: FALSE | R136: FALSE | S136: FALSE | T136: FALSE | U136: FALSE | V136: TRUE | W136: FALSE | X136: FALSE | Y136: FALSE | Z136: FALSE | AA136: FALSE | AB136: FALSE | AC136: FALSE | AD136: FALSE | AE136: FALSE | AF136: FALSE | AG136: FALSE | AH136: FALSE | AI136: FALSE | AJ136: TRUE | AK136: FALSE | AL136: FALSE | AM136: FALSE | AN136: FALSE | AO136: FALSE | AP136: FALSE | AQ136: FALSE | AR136: FALSE | AS136: FALSE | AT136: FALSE | AU136: FALSE | AV136: FALSE | AW136: FALSE | AX136: FALSE | AY136: FALSE | AZ136: FALSE | BA136: FALSE | BB136: FALSE | BC136: FALSE | BD136: FALSE | BE136: FALSE | BF136: FALSE | BG136: 2020-01-01 | BH136: 1
A137: 1-0136 | D137: 2xTw | E137: 4355 | F137: 186 | G137: Schmöckwitz-Grünauer- Uferbahn | L137: 1 | M137: 1 | N137: FALSE | O137: TRUE | P137: TRUE | Q137: FALSE | R137: FALSE | S137: FALSE | T137: FALSE | U137: FALSE | V137: TRUE | W137: FALSE | X137: FALSE | Y137: FALSE | Z137: FALSE | AA137: FALSE | AB137: FALSE | AC137: FALSE | AD137: FALSE | AE137: FALSE | AF137: FALSE | AG137: FALSE | AH137: FALSE | AI137: FALSE | AJ137: TRUE | AK137: FALSE | AL137: FALSE | AM137: FALSE | AN137: FALSE | AO137: FALSE | AP137: FALSE | AQ137: FALSE | AR137: FALSE | AS137: FALSE | AT137: FALSE | AU137: FALSE | AV137: FALSE | AW137: FALSE | AX137: FALSE | AY137: FALSE | AZ137: FALSE | BA137: FALSE | BB137: FALSE | BC137: FALSE | BD137: FALSE | BE137: FALSE | BF137: FALSE | BG137: 2020-01-01 | BH137: 1
A138: 1-0137 | D138: 2xTw | E138: 4320 | F138: 120 | K138: Willy Esch | L138: 1 | M138: 1 | N138: FALSE | O138: TRUE | P138: TRUE | Q138: FALSE | R138: FALSE | S138: FALSE | T138: FALSE | U138: FALSE | V138: TRUE | W138: FALSE | X138: FALSE | Y138: FALSE | Z138: FALSE | AA138: FALSE | AB138: FALSE | AC138: FALSE | AD138: FALSE | AE138: FALSE | AF138: FALSE | AG138: FALSE | AH138: FALSE | AI138: FALSE | AJ138: TRUE | AK138: FALSE | AL138: FALSE | AM138: FALSE | AN138: FALSE | AO138: FALSE | AP138: FALSE | AQ138: FALSE | AR138: FALSE | AS138: FALSE | AT138: FALSE | AU138: FALSE | AV138: FALSE | AW138: FALSE | AX138: FALSE | AY138: FALSE | AZ138: FALSE | BA138: FALSE | BB138: FALSE | BC138: FALSE | BD138: FALSE | BE138: FALSE | BF138: FALSE | BG138: 2020-01-01 | BH138: 1
A139: 1-0138 | D139: Dampfbahn | G139: Dampfstraßenbahn Zoo- Grunewald | L139: 1 | M139: 1 | N139: FALSE | O139: TRUE | P139: TRUE | Q139: FALSE | R139: FALSE | S139: FALSE | T139: FALSE | U139: FALSE | V139: TRUE | W139: FALSE | X139: FALSE | Y139: FALSE | Z139: FALSE | AA139: FALSE | AB139: FALSE | AC139: FALSE | AD139: FALSE | AE139: FALSE | AF139: FALSE | AG139: FALSE | AH139: FALSE | AI139: FALSE | AJ139: TRUE | AK139: FALSE | AL139: FALSE | AM139: FALSE | AN139: FALSE | AO139: FALSE | AP139: FALSE | AQ139: FALSE | AR139: FALSE | AS139: FALSE | AT139: FALSE | AU139: FALSE | AV139: FALSE | AW139: FALSE | AX139: FALSE | AY139: FALSE | AZ139: FALSE | BA139: FALSE | BB139: FALSE | BC139: FALSE | BD139: FALSE | BE139: FALSE | BF139: FALSE | BG139: 2020-01-01 | BH139: 1
A140: 1-0139 | D140: 4xTw | E140: 5245 | F140: 17 | L140: 1 | M140: 1 | N140: FALSE | O140: TRUE | P140: TRUE | Q140: FALSE | R140: FALSE | S140: FALSE | T140: FALSE | U140: FALSE | V140: TRUE | W140: FALSE | X140: FALSE | Y140: FALSE | Z140: FALSE | AA140: FALSE | AB140: FALSE | AC140: FALSE | AD140: FALSE | AE140: FALSE | AF140: FALSE | AG140: FALSE | AH140: FALSE | AI140: FALSE | AJ140: TRUE | AK140: FALSE | AL140: FALSE | AM140: FALSE | AN140: FALSE | AO140: FALSE | AP140: FALSE | AQ140: FALSE | AR140: FALSE | AS140: FALSE | AT140: FALSE | AU140: FALSE | AV140: FALSE | AW140: FALSE | AX140: FALSE | AY140: FALSE | AZ140: FALSE | BA140: FALSE | BB140: FALSE | BC140: FALSE | BD140: FALSE | BE140: FALSE | BF140: FALSE | BG140: 2020-01-01 | BH140: 1
A141: 1-0140 | D141: Dampfbahn | G141: Dampfbahn Nollendorfplatz- Grunewald | L141: 1 | M141: 1 | N141: FALSE | O141: TRUE | P141: TRUE | Q141: FALSE | R141: FALSE | S141: FALSE | T141: FALSE | U141: FALSE | V141: TRUE | W141: FALSE | X141: FALSE | Y141: FALSE | Z141: FALSE | AA141: FALSE | AB141: FALSE | AC141: FALSE | AD141: FALSE | AE141: FALSE | AF141: FALSE | AG141: FALSE | AH141: FALSE | AI141: FALSE | AJ141: TRUE | AK141: FALSE | AL141: FALSE | AM141: FALSE | AN141: FALSE | AO141: FALSE | AP141: FALSE | AQ141: FALSE | AR141: FALSE | AS141: FALSE | AT141: FALSE | AU141: FALSE | AV141: FALSE | AW141: FALSE | AX141: FALSE | AY141: FALSE | AZ141: FALSE | BA141: FALSE | BB141: FALSE | BC141: FALSE | BD141: FALSE | BE141: FALSE | BF141: FALSE | BG141: 2020-01-01 | BH141: 1
A142: 1-0141 | D142: 2xTw | E142: 30 | G142: historisch | L142: 1 | M142: 1 | N142: FALSE | O142: TRUE | P142: TRUE | Q142: FALSE | R142: FALSE | S142: FALSE | T142: FALSE | U142: FALSE | V142: TRUE | W142: FALSE | X142: FALSE | Y142: FALSE | Z142: FALSE | AA142: FALSE | AB142: FALSE | AC142: FALSE | AD142: FALSE | AE142: FALSE | AF142: FALSE | AG142: FALSE | AH142: FALSE | AI142: FALSE | AJ142: TRUE | AK142: FALSE | AL142: FALSE | AM142: FALSE | AN142: FALSE | AO142: FALSE | AP142: FALSE | AQ142: FALSE | AR142: FALSE | AS142: FALSE | AT142: FALSE | AU142: FALSE | AV142: FALSE | AW142: FALSE | AX142: FALSE | AY142: FALSE | AZ142: FALSE | BA142: FALSE | BB142: FALSE | BC142: FALSE | BD142: FALSE | BE142: FALSE | BF142: FALSE | BG142: 2020-01-01 | BH142: 1
A143: 1-0142 | D143: 2xTw | E143: 117 | G143: historisch | L143: 1 | M143: 1 | N143: FALSE | O143: TRUE | P143: TRUE | Q143: FALSE | R143: FALSE | S143: FALSE | T143: FALSE | U143: FALSE | V143: TRUE | W143: FALSE | X143: FALSE | Y143: FALSE | Z143: FALSE | AA143: FALSE | AB143: FALSE | AC143: FALSE | AD143: FALSE | AE143: FALSE | AF143: FALSE | AG143: FALSE | AH143: FALSE | AI143: FALSE | AJ143: TRUE | AK143: FALSE | AL143: FALSE | AM143: FALSE | AN143: FALSE | AO143: FALSE | AP143: FALSE | AQ143: FALSE | AR143: FALSE | AS143: FALSE | AT143: FALSE | AU143: FALSE | AV143: FALSE | AW143: FALSE | AX143: FALSE | AY143: FALSE | AZ143: FALSE | BA143: FALSE | BB143: FALSE | BC143: FALSE | BD143: FALSE | BE143: FALSE | BF143: FALSE | BG143: 2020-01-01 | BH143: 1
A144: 1-0143 | D144: 4xTw | E144: 1000 | G144: historisch | L144: 1 | M144: 1 | N144: FALSE | O144: TRUE | P144: TRUE | Q144: FALSE | R144: FALSE | S144: FALSE | T144: FALSE | U144: FALSE | V144: TRUE | W144: FALSE | X144: FALSE | Y144: FALSE | Z144: FALSE | AA144: FALSE | AB144: FALSE | AC144: FALSE | AD144: FALSE | AE144: FALSE | AF144: FALSE | AG144: FALSE | AH144: FALSE | AI144: FALSE | AJ144: TRUE | AK144: FALSE | AL144: FALSE | AM144: FALSE | AN144: FALSE | AO144: FALSE | AP144: FALSE | AQ144: FALSE | AR144: FALSE | AS144: FALSE | AT144: FALSE | AU144: FALSE | AV144: FALSE | AW144: FALSE | AX144: FALSE | AY144: FALSE | AZ144: FALSE | BA144: FALSE | BB144: FALSE | BC144: FALSE | BD144: FALSE | BE144: FALSE | BF144: FALSE | BG144: 2020-01-01 | BH144: 1
A145: 1-0144 | D145: 4xTw | E145: 25 | L145: 1 | M145: 1 | N145: FALSE | O145: TRUE | P145: TRUE | Q145: FALSE | R145: FALSE | S145: FALSE | T145: FALSE | U145: FALSE | V145: TRUE | W145: FALSE | X145: FALSE | Y145: FALSE | Z145: FALSE | AA145: FALSE | AB145: FALSE | AC145: FALSE | AD145: FALSE | AE145: FALSE | AF145: FALSE | AG145: FALSE | AH145: FALSE | AI145: FALSE | AJ145: TRUE | AK145: FALSE | AL145: FALSE | AM145: FALSE | AN145: FALSE | AO145: FALSE | AP145: FALSE | AQ145: FALSE | AR145: FALSE | AS145: FALSE | AT145: FALSE | AU145: FALSE | AV145: FALSE | AW145: FALSE | AX145: FALSE | AY145: FALSE | AZ145: FALSE | BA145: FALSE | BB145: FALSE | BC145: FALSE | BD145: FALSE | BE145: FALSE | BF145: FALSE | BG145: 2020-01-01 | BH145: 1
A146: 1-0145 | D146: 2xTw | E146: 14 | L146: 1 | M146: 1 | N146: FALSE | O146: TRUE | P146: TRUE | Q146: FALSE | R146: FALSE | S146: FALSE | T146: FALSE | U146: FALSE | V146: TRUE | W146: FALSE | X146: FALSE | Y146: FALSE | Z146: FALSE | AA146: FALSE | AB146: FALSE | AC146: FALSE | AD146: FALSE | AE146: FALSE | AF146: FALSE | AG146: FALSE | AH146: FALSE | AI146: FALSE | AJ146: TRUE | AK146: FALSE | AL146: FALSE | AM146: FALSE | AN146: FALSE | AO146: FALSE | AP146: FALSE | AQ146: FALSE | AR146: FALSE | AS146: FALSE | AT146: FALSE | AU146: FALSE | AV146: FALSE | AW146: FALSE | AX146: FALSE | AY146: FALSE | AZ146: FALSE | BA146: FALSE | BB146: FALSE | BC146: FALSE | BD146: FALSE | BE146: FALSE | BF146: FALSE | BG146: 2020-01-01 | BH146: 1
A147: 1-0146 | D147: 2xTw | E147: 31 | G147: Teltower Kreisbahnen | L147: 1 | M147: 1 | N147: FALSE | O147: TRUE | P147: TRUE | Q147: FALSE | R147: FALSE | S147: FALSE | T147: FALSE | U147: FALSE | V147: TRUE | W147: FALSE | X147: FALSE | Y147: FALSE | Z147: FALSE | AA147: FALSE | AB147: FALSE | AC147: FALSE | AD147: FALSE | AE147: FALSE | AF147: FALSE | AG147: FALSE | AH147: FALSE | AI147: FALSE | AJ147: TRUE | AK147: FALSE | AL147: FALSE | AM147: FALSE | AN147: FALSE | AO147: FALSE | AP147: FALSE | AQ147: FALSE | AR147: FALSE | AS147: FALSE | AT147: FALSE | AU147: FALSE | AV147: FALSE | AW147: FALSE | AX147: FALSE | AY147: FALSE | AZ147: FALSE | BA147: FALSE | BB147: FALSE | BC147: FALSE | BD147: FALSE | BE147: FALSE | BF147: FALSE | BG147: 2020-01-01 | BH147: 1
A148: 1-0147 | D148: 2xTw | L148: 1 | M148: 1 | N148: FALSE | O148: TRUE | P148: TRUE | Q148: FALSE | R148: FALSE | S148: FALSE | T148: FALSE | U148: FALSE | V148: TRUE | W148: FALSE | X148: FALSE | Y148: FALSE | Z148: FALSE | AA148: FALSE | AB148: FALSE | AC148: FALSE | AD148: FALSE | AE148: FALSE | AF148: FALSE | AG148: FALSE | AH148: FALSE | AI148: FALSE | AJ148: TRUE | AK148: FALSE | AL148: FALSE | AM148: FALSE | AN148: FALSE | AO148: FALSE | AP148: FALSE | AQ148: FALSE | AR148: FALSE | AS148: FALSE | AT148: FALSE | AU148: FALSE | AV148: FALSE | AW148: FALSE | AX148: FALSE | AY148: FALSE | AZ148: FALSE | BA148: FALSE | BB148: FALSE | BC148: FALSE | BD148: FALSE | BE148: FALSE | BF148: FALSE | BG148: 2020-01-01 | BH148: 1
A149: 1-0148 | D149: 2xTw | E149: 1136 | G149: historisch | L149: 1 | M149: 1 | N149: FALSE | O149: TRUE | P149: TRUE | Q149: FALSE | R149: FALSE | S149: FALSE | T149: FALSE | U149: FALSE | V149: TRUE | W149: FALSE | X149: FALSE | Y149: FALSE | Z149: FALSE | AA149: FALSE | AB149: FALSE | AC149: FALSE | AD149: FALSE | AE149: FALSE | AF149: FALSE | AG149: FALSE | AH149: FALSE | AI149: FALSE | AJ149: TRUE | AK149: FALSE | AL149: FALSE | AM149: FALSE | AN149: FALSE | AO149: FALSE | AP149: FALSE | AQ149: FALSE | AR149: FALSE | AS149: FALSE | AT149: FALSE | AU149: FALSE | AV149: FALSE | AW149: FALSE | AX149: FALSE | AY149: FALSE | AZ149: FALSE | BA149: FALSE | BB149: FALSE | BC149: FALSE | BD149: FALSE | BE149: FALSE | BF149: FALSE | BG149: 2020-01-01 | BH149: 1
A150: 1-0149 | D150: 4xTw | E150: 1204 | F150: 71 | L150: 1 | M150: 1 | N150: FALSE | O150: TRUE | P150: TRUE | Q150: FALSE | R150: FALSE | S150: FALSE | T150: FALSE | U150: FALSE | V150: TRUE | W150: FALSE | X150: FALSE | Y150: FALSE | Z150: FALSE | AA150: FALSE | AB150: FALSE | AC150: FALSE | AD150: FALSE | AE150: FALSE | AF150: FALSE | AG150: FALSE | AH150: FALSE | AI150: FALSE | AJ150: TRUE | AK150: FALSE | AL150: FALSE | AM150: FALSE | AN150: FALSE | AO150: FALSE | AP150: FALSE | AQ150: FALSE | AR150: FALSE | AS150: FALSE | AT150: FALSE | AU150: FALSE | AV150: FALSE | AW150: FALSE | AX150: FALSE | AY150: FALSE | AZ150: FALSE | BA150: FALSE | BB150: FALSE | BC150: FALSE | BD150: FALSE | BE150: FALSE | BF150: FALSE | BG150: 2020-01-01 | BH150: 1
A151: 1-0150 | D151: 2xTw | E151: 1368 | L151: 1 | M151: 1 | N151: FALSE | O151: TRUE | P151: TRUE | Q151: FALSE | R151: FALSE | S151: FALSE | T151: FALSE | U151: FALSE | V151: TRUE | W151: FALSE | X151: FALSE | Y151: FALSE | Z151: FALSE | AA151: FALSE | AB151: FALSE | AC151: FALSE | AD151: FALSE | AE151: FALSE | AF151: FALSE | AG151: FALSE | AH151: FALSE | AI151: FALSE | AJ151: TRUE | AK151: FALSE | AL151: FALSE | AM151: FALSE | AN151: FALSE | AO151: FALSE | AP151: FALSE | AQ151: FALSE | AR151: FALSE | AS151: FALSE | AT151: FALSE | AU151: FALSE | AV151: FALSE | AW151: FALSE | AX151: FALSE | AY151: FALSE | AZ151: FALSE | BA151: FALSE | BB151: FALSE | BC151: FALSE | BD151: FALSE | BE151: FALSE | BF151: FALSE | BG151: 2020-01-01 | BH151: 1
A152: 1-0151 | D152: 2xTw | E152: 2344 | F152: 78E | L152: 1 | M152: 1 | N152: FALSE | O152: TRUE | P152: TRUE | Q152: FALSE | R152: FALSE | S152: FALSE | T152: FALSE | U152: FALSE | V152: TRUE | W152: FALSE | X152: FALSE | Y152: FALSE | Z152: FALSE | AA152: FALSE | AB152: FALSE | AC152: FALSE | AD152: FALSE | AE152: FALSE | AF152: FALSE | AG152: FALSE | AH152: FALSE | AI152: FALSE | AJ152: TRUE | AK152: FALSE | AL152: FALSE | AM152: FALSE | AN152: FALSE | AO152: FALSE | AP152: FALSE | AQ152: FALSE | AR152: FALSE | AS152: FALSE | AT152: FALSE | AU152: FALSE | AV152: FALSE | AW152: FALSE | AX152: FALSE | AY152: FALSE | AZ152: FALSE | BA152: FALSE | BB152: FALSE | BC152: FALSE | BD152: FALSE | BE152: FALSE | BF152: FALSE | BG152: 2020-01-01 | BH152: 1
A153: 1-0152 | D153: 4xTw | E153: 2816 | F153: 48 | L153: 1 | M153: 1 | N153: FALSE | O153: TRUE | P153: TRUE | Q153: FALSE | R153: FALSE | S153: FALSE | T153: FALSE | U153: FALSE | V153: TRUE | W153: FALSE | X153: FALSE | Y153: FALSE | Z153: FALSE | AA153: FALSE | AB153: FALSE | AC153: FALSE | AD153: FALSE | AE153: FALSE | AF153: FALSE | AG153: FALSE | AH153: FALSE | AI153: FALSE | AJ153: TRUE | AK153: FALSE | AL153: FALSE | AM153: FALSE | AN153: FALSE | AO153: FALSE | AP153: FALSE | AQ153: FALSE | AR153: FALSE | AS153: FALSE | AT153: FALSE | AU153: FALSE | AV153: FALSE | AW153: FALSE | AX153: FALSE | AY153: FALSE | AZ153: FALSE | BA153: FALSE | BB153: FALSE | BC153: FALSE | BD153: FALSE | BE153: FALSE | BF153: FALSE | BG153: 2020-01-01 | BH153: 1
A154: 1-0153 | D154: 4xTw | E154: 3029 | F154: 60 | L154: 1 | M154: 1 | N154: FALSE | O154: TRUE | P154: TRUE | Q154: FALSE | R154: FALSE | S154: FALSE | T154: FALSE | U154: FALSE | V154: TRUE | W154: FALSE | X154: FALSE | Y154: FALSE | Z154: FALSE | AA154: FALSE | AB154: FALSE | AC154: FALSE | AD154: FALSE | AE154: FALSE | AF154: FALSE | AG154: FALSE | AH154: FALSE | AI154: FALSE | AJ154: TRUE | AK154: FALSE | AL154: FALSE | AM154: FALSE | AN154: FALSE | AO154: FALSE | AP154: FALSE | AQ154: FALSE | AR154: FALSE | AS154: FALSE | AT154: FALSE | AU154: FALSE | AV154: FALSE | AW154: FALSE | AX154: FALSE | AY154: FALSE | AZ154: FALSE | BA154: FALSE | BB154: FALSE | BC154: FALSE | BD154: FALSE | BE154: FALSE | BF154: FALSE | BG154: 2020-01-01 | BH154: 1
A155: 1-0154 | D155: 2xTw | E155: 3061 | F155: 147 | L155: 1 | M155: 1 | N155: FALSE | O155: TRUE | P155: TRUE | Q155: FALSE | R155: FALSE | S155: FALSE | T155: FALSE | U155: FALSE | V155: TRUE | W155: FALSE | X155: FALSE | Y155: FALSE | Z155: FALSE | AA155: FALSE | AB155: FALSE | AC155: FALSE | AD155: FALSE | AE155: FALSE | AF155: FALSE | AG155: FALSE | AH155: FALSE | AI155: FALSE | AJ155: TRUE | AK155: FALSE | AL155: FALSE | AM155: FALSE | AN155: FALSE | AO155: FALSE | AP155: FALSE | AQ155: FALSE | AR155: FALSE | AS155: FALSE | AT155: FALSE | AU155: FALSE | AV155: FALSE | AW155: FALSE | AX155: FALSE | AY155: FALSE | AZ155: FALSE | BA155: FALSE | BB155: FALSE | BC155: FALSE | BD155: FALSE | BE155: FALSE | BF155: FALSE | BG155: 2020-01-01 | BH155: 1
A156: 1-0155 | D156: 2xTw | E156: 4348 | F156: 42 | L156: 1 | M156: 1 | N156: FALSE | O156: TRUE | P156: TRUE | Q156: FALSE | R156: FALSE | S156: FALSE | T156: FALSE | U156: FALSE | V156: TRUE | W156: FALSE | X156: FALSE | Y156: FALSE | Z156: FALSE | AA156: FALSE | AB156: FALSE | AC156: FALSE | AD156: FALSE | AE156: FALSE | AF156: FALSE | AG156: FALSE | AH156: FALSE | AI156: FALSE | AJ156: TRUE | AK156: FALSE | AL156: FALSE | AM156: FALSE | AN156: FALSE | AO156: FALSE | AP156: FALSE | AQ156: FALSE | AR156: FALSE | AS156: FALSE | AT156: FALSE | AU156: FALSE | AV156: FALSE | AW156: FALSE | AX156: FALSE | AY156: FALSE | AZ156: FALSE | BA156: FALSE | BB156: FALSE | BC156: FALSE | BD156: FALSE | BE156: FALSE | BF156: FALSE | BG156: 2020-01-01 | BH156: 1
A157: 1-0156 | C157: Dönhoffplatz | D157: 2xTw 2xBw | E157: 5590 1063 | F157: 27E 27E | L157: 1 | M157: 1 | N157: FALSE | O157: TRUE | P157: TRUE | Q157: FALSE | R157: FALSE | S157: FALSE | T157: FALSE | U157: FALSE | V157: TRUE | W157: FALSE | X157: FALSE | Y157: FALSE | Z157: FALSE | AA157: FALSE | AB157: FALSE | AC157: FALSE | AD157: FALSE | AE157: FALSE | AF157: FALSE | AG157: FALSE | AH157: FALSE | AI157: FALSE | AJ157: TRUE | AK157: FALSE | AL157: FALSE | AM157: FALSE | AN157: FALSE | AO157: FALSE | AP157: FALSE | AQ157: FALSE | AR157: FALSE | AS157: FALSE | AT157: FALSE | AU157: FALSE | AV157: FALSE | AW157: FALSE | AX157: FALSE | AY157: FALSE | AZ157: FALSE | BA157: FALSE | BB157: FALSE | BC157: FALSE | BD157: FALSE | BE157: FALSE | BF157: FALSE | BG157: 2020-01-01 | BH157: 1
A158: 1-0157 | D158: 2xTw | E158: 1 | G158: historisch | L158: 1 | M158: 1 | N158: FALSE | O158: TRUE | P158: TRUE | Q158: FALSE | R158: FALSE | S158: FALSE | T158: FALSE | U158: FALSE | V158: TRUE | W158: FALSE | X158: FALSE | Y158: FALSE | Z158: FALSE | AA158: FALSE | AB158: FALSE | AC158: FALSE | AD158: FALSE | AE158: FALSE | AF158: FALSE | AG158: FALSE | AH158: FALSE | AI158: FALSE | AJ158: TRUE | AK158: FALSE | AL158: FALSE | AM158: FALSE | AN158: FALSE | AO158: FALSE | AP158: FALSE | AQ158: FALSE | AR158: FALSE | AS158: FALSE | AT158: FALSE | AU158: FALSE | AV158: FALSE | AW158: FALSE | AX158: FALSE | AY158: FALSE | AZ158: FALSE | BA158: FALSE | BB158: FALSE | BC158: FALSE | BD158: FALSE | BE158: FALSE | BF158: FALSE | BG158: 2020-01-01 | BH158: 1
A159: 1-0158 | D159: 2xTw | E159: 223 | L159: 1 | M159: 1 | N159: FALSE | O159: TRUE | P159: TRUE | Q159: FALSE | R159: FALSE | S159: FALSE | T159: FALSE | U159: FALSE | V159: TRUE | W159: FALSE | X159: FALSE | Y159: FALSE | Z159: FALSE | AA159: FALSE | AB159: FALSE | AC159: FALSE | AD159: FALSE | AE159: FALSE | AF159: FALSE | AG159: FALSE | AH159: FALSE | AI159: FALSE | AJ159: TRUE | AK159: FALSE | AL159: FALSE | AM159: FALSE | AN159: FALSE | AO159: FALSE | AP159: FALSE | AQ159: FALSE | AR159: FALSE | AS159: FALSE | AT159: FALSE | AU159: FALSE | AV159: FALSE | AW159: FALSE | AX159: FALSE | AY159: FALSE | AZ159: FALSE | BA159: FALSE | BB159: FALSE | BC159: FALSE | BD159: FALSE | BE159: FALSE | BF159: FALSE | BG159: 2020-01-01 | BH159: 1
A160: 1-0159 | D160: 2xBw | E160: 89 | L160: 1 | M160: 1 | N160: FALSE | O160: TRUE | P160: TRUE | Q160: FALSE | R160: FALSE | S160: FALSE | T160: FALSE | U160: FALSE | V160: TRUE | W160: FALSE | X160: FALSE | Y160: FALSE | Z160: FALSE | AA160: FALSE | AB160: FALSE | AC160: FALSE | AD160: FALSE | AE160: FALSE | AF160: FALSE | AG160: FALSE | AH160: FALSE | AI160: FALSE | AJ160: TRUE | AK160: FALSE | AL160: FALSE | AM160: FALSE | AN160: FALSE | AO160: FALSE | AP160: FALSE | AQ160: FALSE | AR160: FALSE | AS160: FALSE | AT160: FALSE | AU160: FALSE | AV160: FALSE | AW160: FALSE | AX160: FALSE | AY160: FALSE | AZ160: FALSE | BA160: FALSE | BB160: FALSE | BC160: FALSE | BD160: FALSE | BE160: FALSE | BF160: FALSE | BG160: 2020-01-01 | BH160: 1
A161: 1-0160 | D161: Dampflok | E161: 2 | G161: Straßenbahndampflok der Teltower Kreisbahn | L161: 1 | M161: 1 | N161: FALSE | O161: TRUE | P161: TRUE | Q161: FALSE | R161: FALSE | S161: FALSE | T161: FALSE | U161: FALSE | V161: TRUE | W161: FALSE | X161: FALSE | Y161: FALSE | Z161: FALSE | AA161: FALSE | AB161: FALSE | AC161: FALSE | AD161: FALSE | AE161: FALSE | AF161: FALSE | AG161: FALSE | AH161: FALSE | AI161: FALSE | AJ161: TRUE | AK161: FALSE | AL161: FALSE | AM161: FALSE | AN161: FALSE | AO161: FALSE | AP161: FALSE | AQ161: FALSE | AR161: FALSE | AS161: FALSE | AT161: FALSE | AU161: FALSE | AV161: FALSE | AW161: FALSE | AX161: FALSE | AY161: FALSE | AZ161: FALSE | BA161: FALSE | BB161: FALSE | BC161: FALSE | BD161: FALSE | BE161: FALSE | BF161: FALSE | BG161: 2020-01-01 | BH161: 1
A162: 1-0161 | D162: 2xTw | E162: 4330 | L162: 1 | M162: 1 | N162: FALSE | O162: TRUE | P162: TRUE | Q162: FALSE | R162: FALSE | S162: FALSE | T162: FALSE | U162: FALSE | V162: TRUE | W162: FALSE | X162: FALSE | Y162: FALSE | Z162: FALSE | AA162: FALSE | AB162: FALSE | AC162: FALSE | AD162: FALSE | AE162: FALSE | AF162: FALSE | AG162: FALSE | AH162: FALSE | AI162: FALSE | AJ162: TRUE | AK162: FALSE | AL162: FALSE | AM162: FALSE | AN162: FALSE | AO162: FALSE | AP162: FALSE | AQ162: FALSE | AR162: FALSE | AS162: FALSE | AT162: FALSE | AU162: FALSE | AV162: FALSE | AW162: FALSE | AX162: FALSE | AY162: FALSE | AZ162: FALSE | BA162: FALSE | BB162: FALSE | BC162: FALSE | BD162: FALSE | BE162: FALSE | BF162: FALSE | BG162: 2020-01-01 | BH162: 1
A163: 1-0162 | D163: 2xTw | E163: 4334 | F163: 97 | L163: 1 | M163: 1 | N163: FALSE | O163: TRUE | P163: TRUE | Q163: FALSE | R163: FALSE | S163: FALSE | T163: FALSE | U163: FALSE | V163: TRUE | W163: FALSE | X163: FALSE | Y163: FALSE | Z163: FALSE | AA163: FALSE | AB163: FALSE | AC163: FALSE | AD163: FALSE | AE163: FALSE | AF163: FALSE | AG163: FALSE | AH163: FALSE | AI163: FALSE | AJ163: TRUE | AK163: FALSE | AL163: FALSE | AM163: FALSE | AN163: FALSE | AO163: FALSE | AP163: FALSE | AQ163: FALSE | AR163: FALSE | AS163: FALSE | AT163: FALSE | AU163: FALSE | AV163: FALSE | AW163: FALSE | AX163: FALSE | AY163: FALSE | AZ163: FALSE | BA163: FALSE | BB163: FALSE | BC163: FALSE | BD163: FALSE | BE163: FALSE | BF163: FALSE | BG163: 2020-01-01 | BH163: 1
A164: 1-0163 | D164: 2xTw | E164: 4347 | F164: 97 | L164: 1 | M164: 1 | N164: FALSE | O164: TRUE | P164: TRUE | Q164: FALSE | R164: FALSE | S164: FALSE | T164: FALSE | U164: FALSE | V164: TRUE | W164: FALSE | X164: FALSE | Y164: FALSE | Z164: FALSE | AA164: FALSE | AB164: FALSE | AC164: FALSE | AD164: FALSE | AE164: FALSE | AF164: FALSE | AG164: FALSE | AH164: FALSE | AI164: FALSE | AJ164: TRUE | AK164: FALSE | AL164: FALSE | AM164: FALSE | AN164: FALSE | AO164: FALSE | AP164: FALSE | AQ164: FALSE | AR164: FALSE | AS164: FALSE | AT164: FALSE | AU164: FALSE | AV164: FALSE | AW164: FALSE | AX164: FALSE | AY164: FALSE | AZ164: FALSE | BA164: FALSE | BB164: FALSE | BC164: FALSE | BD164: FALSE | BE164: FALSE | BF164: FALSE | BG164: 2020-01-01 | BH164: 1
A165: 1-0164 | D165: 2xTw | E165: 27 | G165: Berliner Ostbahnen | L165: 1 | M165: 1 | N165: FALSE | O165: TRUE | P165: TRUE | Q165: FALSE | R165: FALSE | S165: FALSE | T165: FALSE | U165: FALSE | V165: TRUE | W165: FALSE | X165: FALSE | Y165: FALSE | Z165: FALSE | AA165: FALSE | AB165: FALSE | AC165: FALSE | AD165: FALSE | AE165: FALSE | AF165: FALSE | AG165: FALSE | AH165: FALSE | AI165: FALSE | AJ165: TRUE | AK165: FALSE | AL165: FALSE | AM165: FALSE | AN165: FALSE | AO165: FALSE | AP165: FALSE | AQ165: FALSE | AR165: FALSE | AS165: FALSE | AT165: FALSE | AU165: FALSE | AV165: FALSE | AW165: FALSE | AX165: FALSE | AY165: FALSE | AZ165: FALSE | BA165: FALSE | BB165: FALSE | BC165: FALSE | BD165: FALSE | BE165: FALSE | BF165: FALSE | BG165: 2020-01-01 | BH165: 1
A166: 1-0165 | D166: 2xTw | E166: 4094 | F166: 90 | L166: 1 | M166: 1 | N166: FALSE | O166: TRUE | P166: TRUE | Q166: FALSE | R166: FALSE | S166: FALSE | T166: FALSE | U166: FALSE | V166: TRUE | W166: FALSE | X166: FALSE | Y166: FALSE | Z166: FALSE | AA166: FALSE | AB166: FALSE | AC166: FALSE | AD166: FALSE | AE166: FALSE | AF166: FALSE | AG166: FALSE | AH166: FALSE | AI166: FALSE | AJ166: TRUE | AK166: FALSE | AL166: FALSE | AM166: FALSE | AN166: FALSE | AO166: FALSE | AP166: FALSE | AQ166: FALSE | AR166: FALSE | AS166: FALSE | AT166: FALSE | AU166: FALSE | AV166: FALSE | AW166: FALSE | AX166: FALSE | AY166: FALSE | AZ166: FALSE | BA166: FALSE | BB166: FALSE | BC166: FALSE | BD166: FALSE | BE166: FALSE | BF166: FALSE | BG166: 2020-01-01 | BH166: 1
A167: 1-0166 | C167: Schmöckwitz-Grünauer- Uferbahn | D167: 2xTw | E167: 2 | G167: AG für Bahn-Bau und Betrieb Frankfurt am Main | L167: 1 | M167: 1 | N167: FALSE | O167: TRUE | P167: TRUE | Q167: FALSE | R167: FALSE | S167: FALSE | T167: FALSE | U167: FALSE | V167: TRUE | W167: FALSE | X167: FALSE | Y167: FALSE | Z167: FALSE | AA167: FALSE | AB167: FALSE | AC167: FALSE | AD167: FALSE | AE167: FALSE | AF167: FALSE | AG167: FALSE | AH167: FALSE | AI167: FALSE | AJ167: TRUE | AK167: FALSE | AL167: FALSE | AM167: FALSE | AN167: FALSE | AO167: FALSE | AP167: FALSE | AQ167: FALSE | AR167: FALSE | AS167: FALSE | AT167: FALSE | AU167: FALSE | AV167: FALSE | AW167: FALSE | AX167: FALSE | AY167: FALSE | AZ167: FALSE | BA167: FALSE | BB167: FALSE | BC167: FALSE | BD167: FALSE | BE167: FALSE | BF167: FALSE | BG167: 2020-01-01 | BH167: 1
A168: 1-0167 | C168: Spandau | D168: 2xTw | E168: 101 | F168: N | G168: Spandauer Straßenbahn | J168: 1906 | L168: 1 | M168: 1 | N168: FALSE | O168: TRUE | P168: TRUE | Q168: FALSE | R168: FALSE | S168: FALSE | T168: FALSE | U168: FALSE | V168: TRUE | W168: FALSE | X168: FALSE | Y168: FALSE | Z168: FALSE | AA168: FALSE | AB168: FALSE | AC168: FALSE | AD168: FALSE | AE168: FALSE | AF168: FALSE | AG168: FALSE | AH168: FALSE | AI168: FALSE | AJ168: TRUE | AK168: FALSE | AL168: FALSE | AM168: FALSE | AN168: FALSE | AO168: FALSE | AP168: FALSE | AQ168: FALSE | AR168: FALSE | AS168: FALSE | AT168: FALSE | AU168: FALSE | AV168: FALSE | AW168: FALSE | AX168: FALSE | AY168: FALSE | AZ168: FALSE | BA168: FALSE | BB168: FALSE | BC168: FALSE | BD168: FALSE | BE168: FALSE | BF168: FALSE | BG168: 2020-01-01 | BH168: 1
A169: 1-0168 | D169: 4xTw | E169: 65 | L169: 1 | M169: 1 | N169: FALSE | O169: TRUE | P169: TRUE | Q169: FALSE | R169: FALSE | S169: FALSE | T169: FALSE | U169: FALSE | V169: TRUE | W169: FALSE | X169: FALSE | Y169: FALSE | Z169: FALSE | AA169: FALSE | AB169: FALSE | AC169: FALSE | AD169: FALSE | AE169: FALSE | AF169: FALSE | AG169: FALSE | AH169: FALSE | AI169: FALSE | AJ169: TRUE | AK169: FALSE | AL169: FALSE | AM169: FALSE | AN169: FALSE | AO169: FALSE | AP169: FALSE | AQ169: FALSE | AR169: FALSE | AS169: FALSE | AT169: FALSE | AU169: FALSE | AV169: FALSE | AW169: FALSE | AX169: FALSE | AY169: FALSE | AZ169: FALSE | BA169: FALSE | BB169: FALSE | BC169: FALSE | BD169: FALSE | BE169: FALSE | BF169: FALSE | BG169: 2020-01-01 | BH169: 1
A170: 1-0169 | D170: 2xBw | E170: 89 | L170: 1 | M170: 1 | N170: FALSE | O170: TRUE | P170: TRUE | Q170: FALSE | R170: FALSE | S170: FALSE | T170: FALSE | U170: FALSE | V170: TRUE | W170: FALSE | X170: FALSE | Y170: FALSE | Z170: FALSE | AA170: FALSE | AB170: FALSE | AC170: FALSE | AD170: FALSE | AE170: FALSE | AF170: FALSE | AG170: FALSE | AH170: FALSE | AI170: FALSE | AJ170: TRUE | AK170: FALSE | AL170: FALSE | AM170: FALSE | AN170: FALSE | AO170: FALSE | AP170: FALSE | AQ170: FALSE | AR170: FALSE | AS170: FALSE | AT170: FALSE | AU170: FALSE | AV170: FALSE | AW170: FALSE | AX170: FALSE | AY170: FALSE | AZ170: FALSE | BA170: FALSE | BB170: FALSE | BC170: FALSE | BD170: FALSE | BE170: FALSE | BF170: FALSE | BG170: 2020-01-01 | BH170: 1
A171: 1-0170 | D171: 2xTw | E171: 4328 | F171: 42 | L171: 1 | M171: 1 | N171: FALSE | O171: TRUE | P171: TRUE | Q171: FALSE | R171: FALSE | S171: FALSE | T171: FALSE | U171: FALSE | V171: TRUE | W171: FALSE | X171: FALSE | Y171: FALSE | Z171: FALSE | AA171: FALSE | AB171: FALSE | AC171: FALSE | AD171: FALSE | AE171: FALSE | AF171: FALSE | AG171: FALSE | AH171: FALSE | AI171: FALSE | AJ171: TRUE | AK171: FALSE | AL171: FALSE | AM171: FALSE | AN171: FALSE | AO171: FALSE | AP171: FALSE | AQ171: FALSE | AR171: FALSE | AS171: FALSE | AT171: FALSE | AU171: FALSE | AV171: FALSE | AW171: FALSE | AX171: FALSE | AY171: FALSE | AZ171: FALSE | BA171: FALSE | BB171: FALSE | BC171: FALSE | BD171: FALSE | BE171: FALSE | BF171: FALSE | BG171: 2020-01-01 | BH171: 1
A172: 1-0171 | D172: 2xTw | E172: 4336 | F172: 97 | L172: 1 | M172: 1 | N172: FALSE | O172: TRUE | P172: TRUE | Q172: FALSE | R172: FALSE | S172: FALSE | T172: FALSE | U172: FALSE | V172: TRUE | W172: FALSE | X172: FALSE | Y172: FALSE | Z172: FALSE | AA172: FALSE | AB172: FALSE | AC172: FALSE | AD172: FALSE | AE172: FALSE | AF172: FALSE | AG172: FALSE | AH172: FALSE | AI172: FALSE | AJ172: TRUE | AK172: FALSE | AL172: FALSE | AM172: FALSE | AN172: FALSE | AO172: FALSE | AP172: FALSE | AQ172: FALSE | AR172: FALSE | AS172: FALSE | AT172: FALSE | AU172: FALSE | AV172: FALSE | AW172: FALSE | AX172: FALSE | AY172: FALSE | AZ172: FALSE | BA172: FALSE | BB172: FALSE | BC172: FALSE | BD172: FALSE | BE172: FALSE | BF172: FALSE | BG172: 2020-01-01 | BH172: 1
A173: 1-0172 | D173: 2xBw | E173: S81 | L173: 1 | M173: 1 | N173: FALSE | O173: TRUE | P173: TRUE | Q173: FALSE | R173: FALSE | S173: FALSE | T173: FALSE | U173: FALSE | V173: TRUE | W173: FALSE | X173: FALSE | Y173: FALSE | Z173: FALSE | AA173: FALSE | AB173: FALSE | AC173: FALSE | AD173: FALSE | AE173: FALSE | AF173: FALSE | AG173: FALSE | AH173: FALSE | AI173: FALSE | AJ173: TRUE | AK173: FALSE | AL173: FALSE | AM173: FALSE | AN173: FALSE | AO173: FALSE | AP173: FALSE | AQ173: FALSE | AR173: FALSE | AS173: FALSE | AT173: FALSE | AU173: FALSE | AV173: FALSE | AW173: FALSE | AX173: FALSE | AY173: FALSE | AZ173: FALSE | BA173: FALSE | BB173: FALSE | BC173: FALSE | BD173: FALSE | BE173: FALSE | BF173: FALSE | BG173: 2020-01-01 | BH173: 1
A174: 1-0173 | D174: 2xTw 2xBw | G174: Benzol Tw der Linie 120 mit Uferbahnwagen der Osthaveler Kreisbahn | L174: 1 | M174: 1 | N174: FALSE | O174: TRUE | P174: TRUE | Q174: FALSE | R174: FALSE | S174: FALSE | T174: FALSE | U174: FALSE | V174: TRUE | W174: FALSE | X174: FALSE | Y174: FALSE | Z174: FALSE | AA174: FALSE | AB174: FALSE | AC174: FALSE | AD174: FALSE | AE174: FALSE | AF174: FALSE | AG174: FALSE | AH174: FALSE | AI174: FALSE | AJ174: TRUE | AK174: FALSE | AL174: FALSE | AM174: FALSE | AN174: FALSE | AO174: FALSE | AP174: FALSE | AQ174: FALSE | AR174: FALSE | AS174: FALSE | AT174: FALSE | AU174: FALSE | AV174: FALSE | AW174: FALSE | AX174: FALSE | AY174: FALSE | AZ174: FALSE | BA174: FALSE | BB174: FALSE | BC174: FALSE | BD174: FALSE | BE174: FALSE | BF174: FALSE | BG174: 2020-01-01 | BH174: 1
A175: 1-0174 | C175: Südwestkorso | D175: 2xTw | E175: 4314 | F175: 71 | G175: ehemaliger Heiligensee Tw | L175: 1 | M175: 1 | N175: FALSE | O175: TRUE | P175: TRUE | Q175: FALSE | R175: FALSE | S175: FALSE | T175: FALSE | U175: FALSE | V175: TRUE | W175: FALSE | X175: FALSE | Y175: FALSE | Z175: FALSE | AA175: FALSE | AB175: FALSE | AC175: FALSE | AD175: FALSE | AE175: FALSE | AF175: FALSE | AG175: FALSE | AH175: FALSE | AI175: FALSE | AJ175: TRUE | AK175: FALSE | AL175: FALSE | AM175: FALSE | AN175: FALSE | AO175: FALSE | AP175: FALSE | AQ175: FALSE | AR175: FALSE | AS175: FALSE | AT175: FALSE | AU175: FALSE | AV175: FALSE | AW175: FALSE | AX175: FALSE | AY175: FALSE | AZ175: FALSE | BA175: FALSE | BB175: FALSE | BC175: FALSE | BD175: FALSE | BE175: FALSE | BF175: FALSE | BG175: 2020-01-01 | BH175: 1
A176: 1-0175 | C176: Potsdamer Straße | D176: 2xTw 2xBw | E176: 5804 | F176: 60 60 | K176: Karl Matern | L176: 1 | M176: 1 | N176: FALSE | O176: TRUE | P176: TRUE | Q176: FALSE | R176: FALSE | S176: FALSE | T176: FALSE | U176: FALSE | V176: TRUE | W176: FALSE | X176: FALSE | Y176: FALSE | Z176: FALSE | AA176: FALSE | AB176: FALSE | AC176: FALSE | AD176: FALSE | AE176: FALSE | AF176: FALSE | AG176: FALSE | AH176: FALSE | AI176: FALSE | AJ176: TRUE | AK176: FALSE | AL176: FALSE | AM176: FALSE | AN176: FALSE | AO176: FALSE | AP176: FALSE | AQ176: FALSE | AR176: FALSE | AS176: FALSE | AT176: FALSE | AU176: FALSE | AV176: FALSE | AW176: FALSE | AX176: FALSE | AY176: FALSE | AZ176: FALSE | BA176: FALSE | BB176: FALSE | BC176: FALSE | BD176: FALSE | BE176: FALSE | BF176: FALSE | BG176: 2020-01-01 | BH176: 1
A177: 1-0176 | C177: Potsdamer Straße | D177: 2xTw | E177: 6158 | F177: 40 | K177: Karl Matern | L177: 1 | M177: 1 | N177: FALSE | O177: TRUE | P177: TRUE | Q177: FALSE | R177: FALSE | S177: FALSE | T177: FALSE | U177: FALSE | V177: TRUE | W177: FALSE | X177: FALSE | Y177: FALSE | Z177: FALSE | AA177: FALSE | AB177: FALSE | AC177: FALSE | AD177: FALSE | AE177: FALSE | AF177: FALSE | AG177: FALSE | AH177: FALSE | AI177: FALSE | AJ177: TRUE | AK177: FALSE | AL177: FALSE | AM177: FALSE | AN177: FALSE | AO177: FALSE | AP177: FALSE | AQ177: FALSE | AR177: FALSE | AS177: FALSE | AT177: FALSE | AU177: FALSE | AV177: FALSE | AW177: FALSE | AX177: FALSE | AY177: FALSE | AZ177: FALSE | BA177: FALSE | BB177: FALSE | BC177: FALSE | BD177: FALSE | BE177: FALSE | BF177: FALSE | BG177: 2020-01-01 | BH177: 1
